Workbook

Sheet Simulador de Alternativas PED
B2: Simulador de Propostas para o Equacionamento Petros
B5: Dados de Entrada para a Simulação do PED Atual e Alternativas:
B7: Plano PPSP: | G7: =IF(E7=""," *","") -> *
B9: Valor do Benefício Petros: | F9: =IF(E9=""," *","") -> *
D11: Valor do Benefíco INSS: | F11: =IF(E11=""," *","") -> * | J11: https://www.discrepantes.com.br/noticias/
D13: Valor do Teto do INSS (ver nota 4): | F13: =IF(E13=""," *","") -> *
D15: Grupo (I - 14,9% / II - 11%): | F15: =IF(E15=""," *","") -> *
D17: =CONCATENATE("Data de nascimento do Participante ",IF(Idioma = "BR","(DD/MM/AAAA): ",IF(Idioma = "IN","(MM/DD/YYYY): ",""))) -> Data de nascimento do Participante (DD/MM/AAAA): | F17: =IF(E17=""," *","") -> *
D19: Projeção do IPCA: | E19: 0.0375 | F19: =IF(E19=""," *","") -> 
D22: Contribuições Extraordinárias são Isentas de IR? (ver nota 11): | E22: NÃO | F22: =IF(E22=""," *","") -> 
E24: Contribuições Extraordinárias estão Sujeitas ao Limite de 12% do IR?: | F24: SIM
D26: Quant. Dependentes IR (ver nota 12):
D28: Pensão Judicial (ver notas 8 e 12):
D30: Isento de IR por doença grave: | E30: NÃO | F30: =IF(E30=""," *","") -> 
B34: Dados de Entrada para Simulação do PP3
B36: Possui Dependentes Cadastrados com Direito à Pensão na Petros? | G36: =IF(F36="","*","") -> *
B38: Valor da Reseva de Migração Individual Informado no Simulador Oficial da Petros | G38: =IF(F38="","*","") -> *
B41: Modalidade para o Recebimento do Benefício PP3
B46: =CONCATENATE("Benefíco Bruto Petros na Modalidade ", Aux_1!C3) -> Benefíco Bruto Petros na Modalidade Prazo Indeterminado
B48: =CONCATENATE("Saldo Inicial Depositado na Conta de Benefício Concedido",IF(Memoria_Calculo = TRUE," ","")) -> Saldo Inicial Depositado na Conta de Benefício Concedido | F48: =IF(Reserva_Individual_Migracao_Petros <>"",Reserva_Individual_Migracao_Petros,"") -> 
B50: Taxa Anual de Juros (Rentabilidade Real Prevista para o PP3 - ver Nota 16) | F50: 0.0527 | G50: =IF(F50="","*","") -> 
B52: Regime de Tributação de Imposto de Renda (ver nota 22) | F52: Progressivo | G52: =IF(F52="","*","") -> 
B54: Deseja Receber 13 Benefícios ao Ano (12 Benefícios + 1 Abono Anual)? | G54: =IF(F54="","*","") -> *
I55: 1
B56: Valor do Benefício Bruto Petros no Plano PP3 por Prazo Indeterminado | F56: =IF(AND(Plano<>"",Data_Nascimento_Participante<>"",Dependentes_Cadastrados<>"",Modalidade_Beneficio="Prazo Indeterminado",Saldo_Inicial_Conta<>"",Opcao_Abono<>""),Saldo_Inicial_Conta/VPL_Beneficio_PP3_Prazo_Indeterminado,"") ->  | I56: 1
I57: 2
B58: Prazo Desejado em Anos para o Recebimento da Renda | G58: =IF(F58="","*","") -> * | I58: 2
I59: 2
B60: Quantidade de Benefícios que serão Pagos ao Participante no Plano PP3 | F60: =IF(AND(Prazo_Recebimento_Definido<>"",Opcao_Abono<>""),Prazo_Recebimento_Definido*12,"") ->  | I60: 2
I61: 2
B62: Quantidade de Abonos Anuais que serão Pagos ao Participante no Plano PP3 | F62: =IF(AND(Prazo_Recebimento_Definido<>"",Opcao_Abono<>""),IF(Opcao_Abono="SIM",Prazo_Recebimento_Definido,0),"") ->  | I62: 2
I63: 2
B64: =CONCATENATE("Valor do Benefício Bruto Petros no Plano PP3 por Prazo Determinado de ",Prazo_Recebimento_Definido, " Anos") -> Valor do Benefício Bruto Petros no Plano PP3 por Prazo Determinado de Anos | F64: =IF(AND(Modalidade_Beneficio="Prazo Determinado",Saldo_Inicial_Conta<>"",Opcao_Abono<>"",Prazo_Recebimento_Definido<>"",Taxa_Juros_Anual_PP3<>""),Saldo_Inicial_Conta/VPL_Beneficio_PP3_Prazo_Determinado,"") ->  | I64: 2
I65: 3
B66: Percentual Desejado da Reserva Matemática Correspondente ao Benefício | G66: =IF(F66="","*","") -> * | I66: 3
I67: 3
B68: =CONCATENATE("Valor Inicial Benefício Bruto Petros no Plano PP3 com Percentual ", Percentual_Reserva*100, "% da Reserva") -> Valor Inicial Benefício Bruto Petros no Plano PP3 com Percentual 0% da Reserva | F68: =IF(AND(Modalidade_Beneficio="Percentual da Reserva Matemática",Saldo_Inicial_Conta<>"",Percentual_Reserva<>""),Percentual_Reserva*Saldo_Inicial_Conta,"") ->  | I68: 3
B72: Tabela Comparativa
C73: Sem Equacionar | D73: PED Atual | E73: PED-RBF (ver nota 10) | F73: Migração para o PP3
B74: Benefício Bruto Inicial Petros | C74: =IF(AND(Plano<>"",Beneficio_Petros<>"",Teto_INSS<>"",Grupo<>""),Beneficio_Petros,"") ->  | D74: =IF(AND(Plano<>"",Beneficio_Petros<>"",Teto_INSS<>"",Grupo<>""),Beneficio_Petros,"") ->  | E74: =IF(AND(Plano<>"",Beneficio_Petros<>"",Teto_INSS<>"",Grupo<>""),Beneficio_Petros,"") ->  | F74: =IF(Fluxo_Rodando = TRUE,Entrada_Beneficio_PP3,IF(AND(Modalidade=1,Valor_Beneficio_Prazo_Indeterminado<>""),Valor_Beneficio_Prazo_Indeterminado,IF(AND(Modalidade=2,Valor_Beneficio_Prazo_Determinado<>""),Valor_Beneficio_Prazo_Determinado,IF(AND(Modalidade=3,Valor_Beneficio_Percentual_Reserva<>""),Valor_Beneficio_Percentual_Reserva,"")))) -> 
B75: Contribuição Normal Total (ver nota 5) | C75: =IF(AND(Situacao <> "Pensionista NR", Situacao <> "Pensionista Pré-70"),IF(Beneficio_Petros<>"",IF(Grupo="Grupo II",IF(Beneficio_Petros<=Meio_Teto_INSS,Beneficio_Petros*0.0145,IF(AND(Beneficio_Petros>Meio_Teto_INSS,Beneficio_Petros<Teto_INSS),Beneficio_Petros*0.03-(0.03 - 0.0145) * Meio_Teto_INSS,IF(Beneficio_Petros>=Teto_INSS,Beneficio_Petros*0.11-(0.03 - 0.0145) * Meio_Teto_INSS - (0.11 - 0.03) * Teto_INSS,""))),IF(Grupo="Grupo I",IF(Beneficio_Petros<=Meio_Teto_INSS,Beneficio_Petros*0.0196,IF(AND(Beneficio_Petros>Meio_Teto_INSS,Beneficio_Petros<Teto_INSS),Beneficio_Petros*0.0406 -(0.0406 - 0.0196) * Meio_Teto_INSS,IF(Beneficio_Petros>=Teto_INSS,Beneficio_Petros*0.149-(0.0406 - 0.0196) * Meio_Teto_INSS - (0.149 - 0.0406) *Teto_INSS,""))),"")),""),0) ->  | D75: =Contribuicao_Normal_Sem_Equacionamento ->  | E75: =IF(Beneficio_Petros<>"",Contribuicao_Normal_Sem_Equacionamento,"") -> 
B76: Contribuição Normal Básica | D76: =IF(AND(Beneficio_Petros<>"",Situacao<>""),IF(Grupo_Base="Grupo II",IF(Beneficio_Petros<=Meio_Teto_INSS,Beneficio_Petros*0.0145,IF(AND(Beneficio_Petros>Meio_Teto_INSS,Beneficio_Petros<Teto_INSS),Beneficio_Petros*0.03-(0.03 - 0.0145) * Meio_Teto_INSS,IF(Beneficio_Petros>=Teto_INSS,Beneficio_Petros*0.11-(0.03 - 0.0145) * Meio_Teto_INSS - (0.11 - 0.03) * Teto_INSS,""))),IF(Grupo_Base="Grupo I",IF(Beneficio_Petros<=Meio_Teto_INSS,Beneficio_Petros*0.0196,IF(AND(Beneficio_Petros>Meio_Teto_INSS,Beneficio_Petros<Teto_INSS),Beneficio_Petros*0.0406 -(0.0406 - 0.0196) * Meio_Teto_INSS,IF(Beneficio_Petros>=Teto_INSS,Beneficio_Petros*0.149 - (0.0406 - 0.0196) * Meio_Teto_INSS - (0.149 - 0.0406) * Teto_INSS,""))),"")),"") -> 
B77: Contribuição Extraordinária PED-2015 | D77: =IF(OR(Ano_Simulacao > (Duracao_PED - 2), Situacao = "Aposentado Pré-70", Situacao = "Pensionista Pré-70"),0, IF(AND(Beneficio_Petros<>"",OR(Situacao="Aposentado",Situacao="Pensionista NR")),IF(Beneficio_Petros<=Meio_Teto_INSS,Beneficio_Petros*0.0453,IF(AND(Beneficio_Petros>Meio_Teto_INSS,Beneficio_Petros<=Teto_INSS),Beneficio_Petros*0.0939 - (0.0939 - 0.0453) * Meio_Teto_INSS,IF(Beneficio_Petros>Meio_Teto_INSS,Beneficio_Petros*0.3444 - (0.0939 - 0.0453) * Meio_Teto_INSS - (0.3444 - 0.0939) * Teto_INSS,""))),"")) -> 
B78: Projetar o PED-2018? (Ver nota 14) | D78: =IF(OR(Opcao_PED_2018=FALSE,Ano_Simulacao>Duracao_PED,Situacao="Aposentado Pré-70",Situacao="Pensionista Pré-70"),0,IF(AND(Plano=Aux!D9,Contribuicao_Normal_Grupo_I<>"",Situacao<>""),0.645149*Contribuicao_Normal_Grupo_I,IF(AND(Plano=Aux!D10,Contribuicao_Normal_Grupo_I<>"",Situacao<>""),0.356869*Contribuicao_Normal_Grupo_I,""))) ->  | I78: TRUE
B79: Contribuição Extraordinária PED 2015 + PED 2018 | D79: =IF(AND(Contribuicao_Extra_PED_2015<>"",Contribuicao_Extra_PED_2018<>""),Contribuicao_Extra_PED_2015+Contribuicao_Extra_PED_2018,"") ->  | E79: =IF(OR(Situacao = "Aposentado Pré-70", Situacao = "Pensionista Pré-70"),0, IF(AND(Beneficio_Petros<>"",OR(Situacao="Aposentado",Situacao="Pensionista NR")),IF(Plano = Nao_Repactuado,Percent_Contr_Extra_PED_RBF_PPSP_NR * Beneficio_Petros,IF(Plano = Repactuado,Percent_Contr_Extra_PED_RBF_PPSP_R * Beneficio_Petros,"")),"")) -> 
B80: Contribuição Total Petros | C80: =IF(AND(Beneficio_Petros<>"",Grupo<>"",Situacao<>""),Contribuicao_Normal_Sem_Equacionamento + C77 + C78,"") ->  | D80: =IF(AND(Beneficio_Petros<>"",Grupo<>"",Situacao<>""),Contribuicao_Normal_PED+Contribuicao_Extra_PED_2015+Contribuicao_Extra_PED_2018,"") ->  | E80: =IF(AND(Beneficio_Petros<>"",Grupo<>"",Situacao<>""),Contribuicao_Normal_PED_RBF_Total+Contribuicao_Extra_PED_RBF,"") -> 
B81: Base IR 1 | C81: =IF(AND(Beneficio_Petros<>"",Grupo<>"",Situacao<>""),IF((1 - Percentual_Peculio)*Contribuicao_Normal_Sem_Equacionamento <= 0.12*Beneficio_Petros, IF((Beneficio_Petros - (1 - Percentual_Peculio)*Contribuicao_Normal_Sem_Equacionamento - Quantidade_Dependentes_IR*Desconto_Dependente - Pensao_Judicial)>0,Beneficio_Petros - (1 - Percentual_Peculio)*Contribuicao_Normal_Sem_Equacionamento - Quantidade_Dependentes_IR*Desconto_Dependente - Pensao_Judicial,0), IF((Beneficio_Petros - 0.12*Beneficio_Petros - Quantidade_Dependentes_IR*Desconto_Dependente - Pensao_Judicial)>0,Beneficio_Petros - 0.12*Beneficio_Petros - Quantidade_Dependentes_IR*Desconto_Dependente - Pensao_Judicial,0)),"") ->  | D81: =IF(AND(Beneficio_Petros<>"",Grupo<>"",Situacao<>""),IF(OR((1 - Percentual_Peculio)*Contribuicao_Normal_PED > 0.12*Beneficio_Petros,AND(((1 - Percentual_Peculio)*Contribuicao_Normal_PED + Contribuicao_Extra_PED_2015 + Contribuicao_Extra_PED_2018)> 0.12*Beneficio_Petros, Isencao_IR_Contribuicoes_Extraordinarias = "SIM",Limite_12_IR = "SIM")), Beneficio_Petros - 0.12*Beneficio_Petros - Quantidade_Dependentes_IR*Desconto_Dependente - Pensao_Judicial, Beneficio_Petros - (1 - Percentual_Peculio)*Contribuicao_Normal_PED - Quantidade_Dependentes_IR*Desconto_Dependente - Pensao_Judicial - IF(Isencao_IR_Contribuicoes_Extraordinarias = "SIM",Contribuicao_Extra_PED_2015 + Contribuicao_Extra_PED_2018,0)),"") ->  | E81: =IF(AND(Beneficio_Petros<>"",Grupo<>"",Situacao<>""),IF(OR((1 - Percentual_Peculio)*Contribuicao_Normal_PED_RBF_Total > 0.12*Beneficio_Petros,AND(((1 - Percentual_Peculio)*Contribuicao_Normal_PED_RBF_Total + Contribuicao_Extra_PED_RBF)> 0.12*Beneficio_Petros, Isencao_IR_Contribuicoes_Extraordinarias = "SIM",Limite_12_IR = "SIM")), Beneficio_Petros - 0.12*Beneficio_Petros - Quantidade_Dependentes_IR*Desconto_Dependente - Pensao_Judicial, Beneficio_Petros - (1 - Percentual_Peculio)*Contribuicao_Normal_PED_RBF_Total - Quantidade_Dependentes_IR*Desconto_Dependente - Pensao_Judicial - IF(Isencao_IR_Contribuicoes_Extraordinarias = "SIM",Contribuicao_Extra_PED_RBF,0)),"") ->  | F81: =IF(Beneficio_Bruto_PP3<>"",IF((Beneficio_Bruto_PP3 - Quantidade_Dependentes_IR*Desconto_Dependente - Pensao_Judicial)>0,Beneficio_Bruto_PP3 - Quantidade_Dependentes_IR*Desconto_Dependente - Pensao_Judicial,0),"") -> 
B82: Desconto >= 65 Anos | C82: =IF(Data_Nascimento_Participante<>"",IF((Idade_Atual + Ano_Simulacao - 1)>=65, IF(C81 >= Desconto_65, Desconto_65, C81),0),"") ->  | D82: =IF(Data_Nascimento_Participante<>"",IF((Idade_Atual + Ano_Simulacao - 1)>=65, IF(D81 >= Desconto_65, Desconto_65, D81),0),"") ->  | E82: =IF(Data_Nascimento_Participante<>"",IF((Idade_Atual + Ano_Simulacao - 1)>=65, IF(E81 >= Desconto_65, Desconto_65, E81),0),"") ->  | F82: =IF(Data_Nascimento_Participante<>"",IF((Idade_Atual + Ano_Simulacao - 1)>=65, IF(F81 >= Desconto_65, Desconto_65, F81),0),"") -> 
B83: Base de Cálculo Imposto Renda | C83: =IF(AND(C81<>"",C82<>""),C81 - C82,"") ->  | D83: =IF(AND(D81<>"",D82<>""),D81 - D82,"") ->  | E83: =IF(AND(E81<>"",E82<>""),E81 - E82,"") ->  | F83: =IF(AND(F81<>"",F82<>""),IF((F81 - F82)>0,F81 - F82,0),"") -> 
B84: Imposto de Renda | C84: =IF(AND(Beneficio_Petros<>"",Grupo<>"",Situacao<>"",Data_Nascimento_Participante<>""), IF(Isento_IR = "NÃO",Base_IR*Aliquota - Deduzir,0),"") ->  | D84: =IF(AND(Beneficio_Petros<>"",Grupo<>"",Situacao<>"",Data_Nascimento_Participante<>""),IF(Isento_IR = "NÃO", Base_IR_PED*Aliquota_PED - Deduzir_PED,0),"") ->  | E84: =IF(AND(Beneficio_Petros<>"",Grupo<>"",Situacao<>"",Data_Nascimento_Participante<>""), IF(Isento_IR = "NÃO",Base_IR_PED_RBF*Aliquota_PED_RBF - Deduzir_PED_RBF,0),"") ->  | F84: =IF(Beneficio_Bruto_PP3<>"",IF(Isento_IR = "NÃO", IF(Regime_Tributacao_IR = "Progressivo",Base_IR_PP3*Aliquota_PP3-Deduzir_PP3,IF(Regime_Tributacao_IR="Regressivo",IF(Ano_Simulacao*12<=Regressivo_Faixa_1_Ate,Regressivo_Faixa_1_Aliquota*Beneficio_Bruto_PP3,IF(AND(Ano_Simulacao*12>Regressivo_Faixa_2_De,Ano_Simulacao*12<=Regressivo_Faixa_2_Ate),Regressivo_Faixa_2_Aliquota*Beneficio_Bruto_PP3,IF(AND(Ano_Simulacao*12>Regressivo_Faixa_3_De,Ano_Simulacao*12<=Regressivo_Faixa_3_Ate),Regressivo_Faixa_3_Aliquota*Beneficio_Bruto_PP3,IF(AND(Ano_Simulacao*12>Regressivo_Faixa_4_De,Ano_Simulacao*12<=Regressivo_Faixa_4_Ate),Regressivo_Faixa_4_Aliquota*Beneficio_Bruto_PP3,IF(AND(Ano_Simulacao*12>Regressivo_Faixa_5_De,Ano_Simulacao*12<=Regressivo_Faixa_5_Ate),Regressivo_Faixa_5_Aliquota*Beneficio_Bruto_PP3,IF(Ano_Simulacao*12>Regressivo_Faixa_6_De,Regressivo_Faixa_6_Aliquota*Beneficio_Bruto_PP3,0)))))))),0),"") -> 
B85: Benefício Líquido | C85: =IF(AND(Beneficio_Petros<>"",Grupo<>"",Situacao<>"",Data_Nascimento_Participante<>""), IF((Beneficio_Petros - Contribuicao_Normal_Sem_Equacionamento - C77 - C78 - IR - Pensao_Judicial) > 0,Beneficio_Petros - Contribuicao_Normal_Sem_Equacionamento - C77 - C78 - IR - Pensao_Judicial,0),"") ->  | D85: =IF(AND(Beneficio_Petros<>"",Grupo<>"",Situacao<>"",Data_Nascimento_Participante<>""), IF((Beneficio_Petros - Contribuicao_Normal_PED - Contribuicao_Extra_PED_2015 - Contribuicao_Extra_PED_2018 - IR_PED - Pensao_Judicial) > 0,Beneficio_Petros - Contribuicao_Normal_PED - Contribuicao_Extra_PED_2015 - Contribuicao_Extra_PED_2018 - IR_PED - Pensao_Judicial,0),"") ->  | E85: =IF(AND(Beneficio_Petros<>"",Grupo<>"",Situacao<>"",Data_Nascimento_Participante<>""),IF((Beneficio_Petros - Contribuicao_Normal_PED_RBF_Total - Contribuicao_Extra_PED_RBF - IR_PED_RBF - Pensao_Judicial) > 0,Beneficio_Petros - Contribuicao_Normal_PED_RBF_Total - Contribuicao_Extra_PED_RBF - IR_PED_RBF - Pensao_Judicial,0),"") ->  | F85: =IF(AND(Beneficio_Bruto_PP3<>"",Beneficio_Bruto_PP3<>0,Data_Nascimento_Participante<>""),IF((Beneficio_Bruto_PP3-IR_PP3-Pensao_Judicial)>0,Beneficio_Bruto_PP3-IR_PP3-Pensao_Judicial,0),IF(Beneficio_Bruto_PP3=0,0,"")) -> 
B86: Contribuição Adicional 13° | E86: =IF(AND(Beneficio_Petros<>"",Situacao<>"",Data_Nascimento_Participante<>""), IF(Situacao = "Aposentado", Percent_Contr_Extra_Abono_PED_RBF*(Beneficio_Petros - Contribuicao_Normal_PED_RBF_Total),0),"") -> 
B87: 13° Líquido | C87: =IF(AND(Beneficio_Petros<>"",Grupo<>"",Situacao<>"",Data_Nascimento_Participante<>""),IF((Beneficio_Petros - Contribuicao_Normal_Sem_Equacionamento - C77 - C78 - IR - Pensao_Judicial) > 0,Beneficio_Petros - Contribuicao_Normal_Sem_Equacionamento - C77 - C78 - IR - Pensao_Judicial,0),"") ->  | D87: =IF(AND(Beneficio_Petros<>"",Grupo<>"",Situacao<>"",Data_Nascimento_Participante<>""),IF((Beneficio_Petros - Contribuicao_Normal_PED - Contribuicao_Extra_PED_2015 - Contribuicao_Extra_PED_2018 - IR_PED - Pensao_Judicial) > 0,Beneficio_Petros - Contribuicao_Normal_PED - Contribuicao_Extra_PED_2015 - Contribuicao_Extra_PED_2018 - IR_PED - Pensao_Judicial,0),"") ->  | E87: =IF(AND(Beneficio_Petros<>"",Situacao<>"",Data_Nascimento_Participante<>""),IF((Beneficio_Petros - Contribuicao_Normal_PED_RBF_Total - Contribuicao_Extra_PED_RBF - Contribuicao_Adicional_13_PED_RBF - IR_PED_RBF - Pensao_Judicial) > 0,Beneficio_Petros - Contribuicao_Normal_PED_RBF_Total - Contribuicao_Extra_PED_RBF - Contribuicao_Adicional_13_PED_RBF - IR_PED_RBF - Pensao_Judicial,0),"") ->  | F87: =IF(Beneficio_Bruto_PP3<>"",IF(Opcao_Abono="SIM",Beneficio_Liquido_PP3,0),"") -> 
B91: ATENÇÃO: a execução do Fluxo de Caixa Anual irá demorar alguns minutos. Após pressionar o botão, AGUARDE!!!
B93: Notas:
B95: 1 - ATENÇAO! Este Simulador não foi desenvolvido pela Petros. As premissas de cálculo aqui adotadas no cálculo do benefício PP3 e de seu recálculo atuarial anual podem ser muito diferentes das que são empregadas no Simulador da Petros e, até o momento, não há como aferí-las, já que o Simulador da Petros não é acompanhado de memória de cálculo. Portanto, embora este Simulador tente reproduzir, de forma aproximada, os resultados finais apresentados no Simulador PP3 Oficial da Petros, tais resultados devem ser encarados com reservas, a fim de não criar falsas expectativas ou influenciar tomadas de decisão equivocadas. Caso o benefício inicial PP3 calculado por este Simulador apresente erro excessivo, quando comparado com o valor informado no Simulador Oficial da Petros, recomenda-se desconsiderar as projeções referentes ao PP3 aqui apresentadas, bem como sua comparação com as demais alternativas para o equacionamento.
B97: 2 - Este Simulador aplica-se somente aos Participantes Pós-70 Aposentados.
B99: 3 - Os campos que contêm um asterisco vermelho do lado direito são de preenchimento obrigatório.
B101: 4 - O valor do "Teto do INSS" a ser utilizado na simulação deve ser compatível com a data do contracheque utilizado. Caso os valores dos benefícios Petros e do INSS considerados sejam valores de 2018, deverá ser utilizado o teto do INSS vigente naquele ano (R$5.645,80). Se os valores dos benefícios utilizados como dados de entrada forem de 2019, deverá ser utilizado o teto do INSS correspondente (R$5.839,45).
B103: 5 - O valor da Contribuição Total Petros calculado no simulador corresponde à soma das parcelas indicadas no contracheque como "Contribuição Petros" e "Contribuição Petros Ref. Pecúlio".
B105: 6 - Para as projeções futuras dos reajustes anuais na tabela salarial da Patrocinadoras está sendo utilizado o IPCA.
B107: 7 - Na ausência de projeções futuras do INPC, as correções anuais do teto do INSS e do benefício INSS estão sendo feitas de acordo com a projeção futura adotada para o IPCA.
B109: 8 - O valor da pensão judicial, quando incluído na simulação, é reajustado, anualmente, de acordo com a variação anual do valor do benefício bruto apurado para a alternativa considerada.
B111: 9 - As tabelas progressivas das Contribuições Petros Normal e Extraordinária, onde aplicáveis, estão sendo reajustadas, anualmente, de acordo com o teto reajustado do INSS.
B113: 10 - A alternativa aqui denominada PED-RBF corresponde ao PED com Redução de Benefícios Futuros, conforme proposta apresentada pelo presidente da Petros, em palestra proferida no dia 15/10/2019. Esta proposta, caso aprovada, irá substituir o PED Atual e aplica-se a todos os participantes, independentemente de adesão voluntária.
B115: 11 - Até o momento, as Contribuições Extraordinárias não são isentas de imposto de renda. Isto pesa, desfavoravelmente, no cálculo dos valores dos benefícios liquidos do PED Atual e PED-RBF. Recomenda-se que, além deste cenário, seja também simulado um novo cenário em que as Contribuições Extraordinárias sejam isentas de imposto de renda. Este é um cenário possível de ocorrer nos próximos anos e influencia, significativamente, a comparação entre as alternativas.
B117: 12 - Recomenda-se que dados de entrada que proporcionem descontos temporários no contracheque, tais como quantidade de filhos dependentes para efeito de desconto no imposto de renda e pensão judicial concedida por tempo limitado, não sejam incluídos nas simulações de longo prazo. Nas simulações de longo prazo, devem ser considerados apenas o cônjuge, caso seja dependente, filhos incapazes e demais itens de descontos que irão permanecer no contracheque por todo o período de simulação.
B119: =CONCATENATE("13 - Na situação sem equacionamento, no PED Atual e no PED-RBF, a Contribuição Petros Ref. Pecúlio é calculada como sendo correspondente a ",Aux!R21 * 100,"% da Contribuição Total Petros calculada pelo Simulador. Esta contribuição não é dedutível da base de cálculo do Imposto de Renda.") -> 13 - Na situação sem equacionamento, no PED Atual e no PED-RBF, a Contribuição Petros Ref. Pecúlio é calculada como sendo correspondente a 2,777% da Contribuição Total Petros calculada pelo Simulador. Esta contribuição não é dedutível da base de cálculo do Imposto de Renda.
B121: 14 - Nas simulações de longo prazo do PED Atual as projeções do PED-2018 serão sempre consideradas, independentemente da seleção feita pelo usuário na linha correspondente ao mesmo. As demais alternativas ao equacionamento já visam solucionar todo o déficit acumulado.
B123: 15 - Este Simulador emprega a Tábua de Mortalidade Experiência Petros 2013 para o PPSP-R e Experiência Petros 2017 para o PPSP-NR.
B125: 16 - A Taxa Anual de Juros adotada deve corresponder à taxa real que irá rentabilizar o Plano PP3. A taxa empregada no Simulador Petros é de 5,27% a.a. Este Simulador permite que esta taxa seja alterado pelo usuário, caso deseje simular o PP3 em diferentes cenários.
B127: 17 - Estão previstas reavaliações periódicas do valor do Benefício Bruto PP3 a ser pago pela Petros, levando-se em conta fatores como o aumento da expectativa de vida do Participante e a evolução das reservas individuais frente ao rendimento real do Plano PP3. Tais efeitos podem ser observados no Fluxo de Caixa do PP3, parte integrante deste Simulador.
B129: 18 - A alternativa PED-RBF, além da manutenção da Contribução Normal já existente, introduz Contribuições Extraordinárias, conforme descritas a seguir:
B130: =CONCATENATE("a) instituição de Contribuição Extraordinária de caráter permanente e com alíquota única correspondente a ",Percent_Contr_Extra_PED_RBF_PPSP_R * 100,"%, incidente sobre o valor benefício, no caso dos atuais Participantes Aposentados Repactuados",";") -> a) instituição de Contribuição Extraordinária de caráter permanente e com alíquota única correspondente a 13,7%, incidente sobre o valor benefício, no caso dos atuais Participantes Aposentados Repactuados;
B131: =CONCATENATE("b) instituição de Contribuição Extraordinária de caráter permanente e com alíquota única correspondente a ",Percent_Contr_Extra_PED_RBF_PPSP_NR*100,"%, incidente sobre o valor benefício, no caso dos atuais Participantes Aposentados Não Repactuados",";") -> b) instituição de Contribuição Extraordinária de caráter permanente e com alíquota única correspondente a 14,57%, incidente sobre o valor benefício, no caso dos atuais Participantes Aposentados Não Repactuados;
B132: c) manutenção da Contribuiçãos Normal para o custeio do plano, porém com valor flutuante;
B133: =CONCATENATE("d) instituição de Teto Máximo para o valor do Pecúlio por Morte, equivalente a ", Teto_Peculio_PED_RBF,";") -> d) instituição de Teto Máximo para o valor do Pecúlio por Morte, equivalente a 2 x Renda Global;
B134: =CONCATENATE("e) instituição de Contribuição Extraordinária, equivalente a ",Percent_Contr_Extra_Abono_PED_RBF * 100,"%, incidente sobre o valor do Abono Anual já descontado da Contribuição Normal. Contribuição Extraordinária de caráter permanente;") -> e) instituição de Contribuição Extraordinária, equivalente a 30%, incidente sobre o valor do Abono Anual já descontado da Contribuição Normal. Contribuição Extraordinária de caráter permanente;
B136: 19 - Adicionalmente, com a implantação do PED-RBF será promovida a segregação dos participantes Pré-70, acarretando redução no valor do déficit atribuído aos Pós-70. O PED-RBF contempla, ainda, o aumento da TCF da diferença de pensão.
B138: 20 - A estimativa do PED-2018, aplicável ao PED Atual, considera o equacionamento de todo o déficit ainda não equacionado, existente na data 31/12/2018. Conforme o Relatório Anual 2018, emitido pela Petros, temos a seguinte situação para cada um dos planos existentes:
B140: Equilíbrio Técnico a equacionar
B141: PPSP-NR | C141: 2839475868
B142: PPSP-R | C142: 5566877001
B144: 21 - Com exceção do PED Atual, todas as demais alternativas para o equacionamento são apenas propostas e não têm data de implantação definida. Portanto, para efeito de comparação entre as mesmas, todas as alternativas são consideradas como tendo início de vigência na mesma data.
B146: 22 - Ao migrar para o PP3, o Participante terá que optar por um dos regimes de tributação de imposto de renda. Os regimes existentes são o Progressivo e o Regressivo. Caso o Participante faça opção pelo regime Regressivo, deverá estar atento ao fato que a aliquota inicial aplicável ao mesmo é de 35%, que será gradativamente reduzida com o passar do tempo. Esta alíquota inicial de 35% será aplicada nos 2 primeiros anos após a migração e incidirá, inclusive, sobre o Saque Único, caso o Participante tenha feito opção pelo mesmo.
B148: 23 - As alternativas PED-RBF e PP3 encontram-se ainda em estudos e este Simulador tenta reproduzir as regras definidas até o momento.

Sheet Parametrização PED-RBF (hidden)
B2: Parametrização da Altenativa PED-RBF
D5: PPSP-R | F5: PPSP-NR | H5: Ambos os Planos
C7: Contribuição Extraordinária: | D7: 0.137 | F7: 0.1457
C9: Teto Pecúlio por Morte: | H9: 2 x Renda Global
C11: Contribuição Extra Abono Anual: | H11: 0.3 | J11: Prazo: | K11: Permanente | L11: anos
C15: Notas:
C16: 1 - A alternativa aqui denominada PED-RBF corresponde ao PED com Alteração de Direitos, conforme proposta apresentada pelo presidente da Petros, em palestra proferida no dia 15/10/2019.

Sheet Tutorial (hidden)
B2: TUTORIAL
B4: 1° Passo: Preencha todos dos dados de entrada necessários à simulação. Os campos cujo preenchimento é obrigatório são identificados com um asterisco vermelho do lado direito (*).
B6: 2° Passo: Analise os resultados apresentados na Tabela Comparativa (Figura 1). Nesta tabela, são indicados os cálculos correspondentes ao primeiro contracheque, para cada uma das alternativas ao equacionamento.
B7: O usuário não deve se precipitar e tentar concluir qual é a melhor alternativa aplicável ao seu caso com base apenas nas informações contidas na Tabela Comparativa. As alternativas analisadas têm durações diferentes e podem conter particularidades, tais como deflator ou outras medidas saneadoras de prazo limitado, cujos efeitos ao logo do tempo só poderão ser avaliados com a execução do Passo 3.
B10: Figura 1
B12: 3° Passo: Pressione o botão Fluxo de Caixa Anual, localizado logo abaixo da Tabela Comparativa (Figura 1). A exibição dos resultados poderá demorar alguns minutos, dependendo da capacidade de processamento do seu computador; portanto, aguarde.
B14: 4° Passo: Algum tempo após ter sido acionado o botão Fluxo de Caixa Anual, será apresentada a janela mostrada na Figura 2, onde deverá ser informada a expectativa de vida do usuário. O valor sugerido corresponde à expectativa média de vida de indivíduos com a sua idade. Para aceitá-la, aperte OK.
B16: Figura 2
B18: 5° Passo: Logo em seguida, será apresentada a janela mostrada na Figura 3, onde deverá ser informada a taxa de atratividade anual a ser utilizada nos cálculos de VPL (Valor Presente Líquido). Para simplesmente aceitar o valor sugerido, aperte OK.
B20: Figura 3
B22: 6° Passo: Imediatamente após, será mostrada Tabela Perdas Anuas Projetadas, indicada na Figura 4. Nesta tabela, são apresentados, para cada uma das alternativas analisadas, os resultados da soma das perdas incorridas nos 12 benefícios mensais Petros recebidos, adicionada à perda no 13° do ano correspondente. A sequência de linhas da tabela vai desde o Ano 1 até o ano correspondente à expectativa de vida do usuário, informada no Passo 4.
B23: As perdas anuais no benefício Petros e no 13° estão indicadas em valores futuros; porém, no rodapé da tabela, é apresentado, em vermelho, o valor presente líquido (VPL) das perdas acumuladas até o último ano da expectativa de vida do usuário, incluindo a perda no pecúlio e perdas residuais, quando aplicáveis, bem outras informações de interresse. Obviamente, a alternativa menos onerosa para o usuário será aquela que ocasione as menores perdas acumuladas ao final de sua expectativa de vida.
B24: Porém, é importante salientar que a idade limite média de um indivíduo aumenta a cada ano vivido. Portanto, a melhor maneira de analisar as perdas causadas por cada alternativa ao longo do tempo será através de um gráfico Valor Presente Líquido das Perdas x Expectativa de Vida, conforme descrito no Passo 7.
B27: Figura 4
B29: Passo 7: Para exibir o Gráfico Valor Presente Líquido das Perdas x Expectativa de Vida basta pressionar o botão Exibir Gráfico VPL x Expec. Vida, existente logo abaixo da Tabela Perdas Anuais Projetadas (ver Figura 4).
B30: O gráfico exibido terá aspecto semelhante ao mostrado na Figura 5 e, como se pode observar na figura, as linhas do gráfico podem se cruzar ao longo do tempo, indicando que uma alternativa que era a mais vantajosa nos primeiros anos de expectativa de vida do participante poderá deixar de ser nos anos subsequentes.
B31: No gráfico mostrado na Figura 5 podemos ver que, para expectativas de vida de até 2 anos, a alternativa menos onerosa para o participante é a correspondente ao PED Atual, em vermelho. Porém, no segundo ano as linhas do gráfico se cruzam e, a partir de então, a alternativa correspodente ao PED-RBF, em verde, passa a ser a menos onerosa, situação esta que permanece até o 42° ano de expectativa de vida, quando então, a alternativa correspondente ao PED Atual, em vermelho, volta e ser a menos onerosa, mantendo-se assim até o 50° ano de expectativa de vida, que corresponde ao final do gráfico.
B32: O formato, a posição das curvas e se elas irão ou não se cruzar dependerá do perfil do participante. O exemplo mostrado na Figura 5 é hipotético e visa tão somente esclarecer como interpretar o gráfico. Cabe ao usuário simular sua situação real e interpretar o gráfico resultante.
B35: Figura 5
B37: Passo 8: Como se pode ver na parte inferior da Figura 4, há vários outros botões na Tabela Perdas Anuais Projetadas, que permitem a exibição de tabelas e gráficos correspondentes à Projeção do Valor do Benefício, do 13° e o Fluxo de Caixa do PP3. Basta pressionar o botão correspondente para se ter acesso à tabela ou gráfico desejado.

Sheet Família Real (hidden)
C4: Dependentes Cadastrados na Petros com Direito à Pensão por Morte
D6: Cônjuge: | F6: =IF(Conjuge_Cadastrado="","*","") -> *
D8: Data de Nascimento do Cônjuge: | K8: =IF(AND(Conjuge_Cadastrado="SIM",Data_Nascimento_Conjuge=""),"*","") -> 
D10: Filhos: | F10: =IF(Filhos_Cadastrados="","*","") -> * | G10: Quantidade | I10: Dependente Incapaz?
D12: Data de Nascimento do Filho 1: | I12: =IF(AND(Filhos_Cadastrados="SIM",Quantidade_Filhos>=1,Data_Nascimento_Filho_1=""),"*","") ->  | J12: NÃO | K12: =IF(AND(Filhos_Cadastrados="SIM",Quantidade_Filhos>=1,Pensao_Vitalicia_Filho_1=""),"*","") -> 
D14: Data de Nascimento do Filho 2: | I14: =IF(AND(Filhos_Cadastrados="SIM",Quantidade_Filhos>=2,Data_Nascimento_Filho_2=""),"*","") ->  | J14: NÃO | K14: =IF(AND(Filhos_Cadastrados="SIM",Quantidade_Filhos>=2,Pensao_Vitalicia_Filho_2=""),"*","") -> 
D16: Data de Nascimento do Filho 3: | I16: =IF(AND(Filhos_Cadastrados="SIM",Quantidade_Filhos>=3,Data_Nascimento_Filho_3=""),"*","") ->  | J16: NÃO | K16: =IF(AND(Filhos_Cadastrados="SIM",Quantidade_Filhos>=3,Pensao_Vitalicia_Filho_3=""),"*","") -> 
D18: Data de Nascimento do Filho 4: | I18: =IF(AND(Filhos_Cadastrados="SIM",Quantidade_Filhos>=4,Data_Nascimento_Filho_4=""),"*","") ->  | J18: NÃO | K18: =IF(AND(Filhos_Cadastrados="SIM",Quantidade_Filhos>=4,Pensao_Vitalicia_Filho_4=""),"*","") -> 

Sheet Aux_1 (hidden)
B2: Modalidade de Benefício
B3: 1 | C3: =IF(B3=1,"Prazo Indeterminado",IF(B3=2,"Prazo Determinado",IF(B3=3,"Percentual da Reserva Matemática",""))) -> Prazo Indeterminado

Sheet Aux (hidden)
B2: Grupos | D2: Teto INSS | F2: 1/2 Teto | H2: Situação | O2: Tabela de Imposto de Renda
D3: 5839.45 | F3: =Teto_INSS/2 -> 0 | J3: Teste Sem Equac. | K3: Teste PED | L3: Teste PP3 | M3: Teste PED-RBF | N3: Teste NPP | O3: Base | Q3: Alíquota | R3: Deduzir | V3: Tabela I.R - Regime Regressivo
B4: Grupo I | D4: 5645.8 | H4: Aposentado | J4: =IF(AND(Base_IR>=O4,Base_IR<=P4),TRUE,"") ->  | K4: =IF(AND(Base_IR_PED>=O4,Base_IR_PED<=Aux!P4),TRUE,"") ->  | L4: =IF(AND(Base_IR_PP3>=O4,Base_IR_PP3<=P4),TRUE,"") ->  | M4: =IF(AND(Base_IR_PED_RBF>=O4,Base_IR_PED_RBF<=P4),TRUE,"") ->  | N4: =IF(AND(Base_IR_NPP>=O4,Base_IR_NPP<=P4),TRUE,"") ->  | O4: 0 | P4: 1903.08 | Q4: 0 | R4: 0 | S4: Faixa 1 | V4: Prazo em Meses | X4: Alíquota
B5: Grupo II | H5: Aposentado Pré-70 | J5: =IF(AND(Base_IR>=O5,Base_IR<=P5),TRUE,"") ->  | K5: =IF(AND(Base_IR_PED>=O5,Base_IR_PED<=Aux!P5),TRUE,"") ->  | L5: =IF(AND(Base_IR_PP3>=O5,Base_IR_PP3<=P5),TRUE,"") ->  | M5: =IF(AND(Base_IR_PED_RBF>=O5,Base_IR_PED_RBF<=P5),TRUE,"") ->  | N5: =IF(AND(Base_IR_NPP>=O5,Base_IR_NPP<=P5),TRUE,"") ->  | O5: 1903.09 | P5: 2826.65 | Q5: 0.075 | R5: 142.8 | S5: Faixa 2 | V5: > que | W5: <= que
H6: Pensionista NR | J6: =IF(AND(Base_IR>=O6,Base_IR<=P6),TRUE,"") ->  | K6: =IF(AND(Base_IR_PED>=O6,Base_IR_PED<=Aux!P6),TRUE,"") ->  | L6: =IF(AND(Base_IR_PP3>=O6,Base_IR_PP3<=P6),TRUE,"") ->  | M6: =IF(AND(Base_IR_PED_RBF>=O6,Base_IR_PED_RBF<=P6),TRUE,"") ->  | N6: =IF(AND(Base_IR_NPP>=O6,Base_IR_NPP<=P6),TRUE,"") ->  | O6: 2826.66 | P6: 3751.05 | Q6: 0.15 | R6: 354.8 | S6: Faixa 3 | V6: 0 | W6: 24 | X6: 0.35 | Y6: Faixa 1
B7: Opções | D7: Plano | H7: Pensionista Pré-70 | J7: =IF(AND(Base_IR>=O7,Base_IR<=P7),TRUE,"") ->  | K7: =IF(AND(Base_IR_PED>=O7,Base_IR_PED<=Aux!P7),TRUE,"") ->  | L7: =IF(AND(Base_IR_PP3>=O7,Base_IR_PP3<=P7),TRUE,"") ->  | M7: =IF(AND(Base_IR_PED_RBF>=O7,Base_IR_PED_RBF<=P7),TRUE,"") ->  | N7: =IF(AND(Base_IR_NPP>=O7,Base_IR_NPP<=P7),TRUE,"") ->  | O7: 3751.06 | P7: 4664.68 | Q7: 0.225 | R7: 636.13 | S7: Faixa 4 | V7: 24 | W7: 48 | X7: 0.3 | Y7: Faixa 2
J8: =IF(AND(Base_IR>=O8,Base_IR<=P8),TRUE,"") ->  | K8: =IF(AND(Base_IR_PED>=O8,Base_IR_PED<=Aux!P8),TRUE,"") ->  | L8: =IF(AND(Base_IR_PP3>=O8,Base_IR_PP3<=P8),TRUE,"") ->  | M8: =IF(AND(Base_IR_PED_RBF>=O8,Base_IR_PED_RBF<=P8),TRUE,"") ->  | N8: =IF(AND(Base_IR_NPP>=O8,Base_IR_NPP<=P8),TRUE,"") ->  | O8: 4664.69 | P8: 999999999 | Q8: 0.275 | R8: 839.36 | S8: Faixa 5 | V8: 48 | W8: 72 | X8: 0.25 | Y8: Faixa 3
B9: SIM | D9: PPSP-NR (Não Repactuados) | V9: 72 | W9: 96 | X9: 0.2 | Y9: Faixa 4
B10: NÃO | D10: PPSP-R (Repactuados) | Q10: Alíquota | R10: Deduzir | V10: 96 | W10: 120 | X10: 0.15 | Y10: Faixa 5
M11: Duração do PED (anos) | N11: 18 | P11: Sem Equac. | Q11: =VLOOKUP(TRUE,J4:R8,8,FALSE) ->  | R11: =VLOOKUP(TRUE,J4:R8,9,FALSE) ->  | V11: 120 | X11: 0.1 | Y11: Faixa 6
P12: PED | Q12: =VLOOKUP(TRUE,K4:R8,7,FALSE) ->  | R12: =VLOOKUP(TRUE,K4:R8,8,FALSE) -> 
B13: Opções | D13: Situação | M13: Ano de Simulação | N13: 1 | P13: PP3 | Q13: =VLOOKUP(TRUE,L4:R8,6,FALSE) ->  | R13: =VLOOKUP(TRUE,L4:R8,7,FALSE) -> 
B14: NÃO | D14: Aposentado | P14: PED-RBF | Q14: =VLOOKUP(TRUE,M4:R8,5,FALSE) ->  | R14: =VLOOKUP(TRUE,M4:R8,6,FALSE) -> 
B15: SIM | J15: Fluxo Rodando | K15: FALSE | P15: NPP | Q15: =VLOOKUP(TRUE,N4:R9,4,FALSE) ->  | R15: =VLOOKUP(TRUE,N4:R9,5,FALSE) -> 
M16: Progressivo
J17: Gr. VPL Rodando | K17: FALSE | M17: Regressivo | Q17: Depend. | R17: 189.59
B18: Grupo Base
B19: Grupo I | Q19: Desconto >= 65 | R19: 1903.98
L20: Nome da Série | M20: Benef. Bruto sem PED
Q21: Percentual Pecúlio: | R21: 0.02777
B22: Grupo Unif. | L22: Nome da Série | M22: Benef. Líq. sem PED | T22: PPSP-R | V22: PPSP-NR
B23: Grupo I | Q23: Percent. Pec. NPP: | R23: =IF(Situacao="Aposentado",IF(AND(Teste_CN_Aposentado=TRUE,Teste_Aumento_CN_Aposentado=TRUE),IF(AND(Plano<>"",Plano="PPSP-R (Repactuados)"),IF(Percent_Peculio_Petros_NPP_Parametrizado_PPSP_R<>"",Percent_Peculio_Petros_NPP_Parametrizado_PPSP_R,Percentual_Peculio/(1+Percent_Aumento_Contr_Normal_PPSP_R)),IF(AND(Plano<>"",Plano="PPSP-NR (Não Repactuados)"),IF(Percent_Peculio_Petros_NPP_Parametrizado_PPSP_NR<>"",Percent_Peculio_Petros_NPP_Parametrizado_PPSP_NR,Percentual_Peculio/(1+Percent_Aumento_Contr_Normal_PPSP_NR)),"")),Percentual_Peculio),IF(Situacao="Aposentado Pré-70",IF(AND(Teste_CN_Aposentado_Pre_70=TRUE,Teste_Aumento_CN_Aposentado_Pre_70=TRUE),IF(AND(Plano<>"",Plano="PPSP-R (Repactuados)"),IF(Percent_Peculio_Petros_NPP_Parametrizado_PPSP_R<>"",Percent_Peculio_Petros_NPP_Parametrizado_PPSP_R,Percentual_Peculio/(1+Percent_Aumento_Contr_Normal_PPSP_R)),IF(AND(Plano<>"",Plano="PPSP-NR (Não Repactuados)"),IF(Percent_Peculio_Petros_NPP_Parametrizado_PPSP_NR<>"",Percent_Peculio_Petros_NPP_Parametrizado_PPSP_NR,Percentual_Peculio/(1+Percent_Aumento_Contr_Normal_PPSP_NR)),"")),Percentual_Peculio),IF(Situacao="Pensionista Pré-70",IF(AND(Teste_CN_Pensionista_Pre_70=TRUE,Teste_Aumento_CN_Pensionista_Pre_70=TRUE),IF(AND(Plano<>"",Plano="PPSP-R (Repactuados)"),IF(Percent_Peculio_Petros_NPP_Parametrizado_PPSP_R<>"",Percent_Peculio_Petros_NPP_Parametrizado_PPSP_R,Percentual_Peculio/(1+Percent_Aumento_Contr_Normal_PPSP_R)),IF(AND(Plano<>"",Plano="PPSP-NR (Não Repactuados)"),IF(Percent_Peculio_Petros_NPP_Parametrizado_PPSP_NR<>"",Percent_Peculio_Petros_NPP_Parametrizado_PPSP_NR,Percentual_Peculio/(1+Percent_Aumento_Contr_Normal_PPSP_NR)),"")),Percentual_Peculio),IF(Situacao="Pensionista NR",IF(AND(Teste_CN_Pensionista_NR=TRUE,Teste_Aumento_CN_Pensionista_NR=TRUE),IF(AND(Plano<>"",Plano="PPSP-R (Repactuados)"),IF(Percent_Peculio_Petros_NPP_Parametrizado_PPSP_R<>"",Percent_Peculio_Petros_NPP_Parametrizado_PPSP_R,Percentual_Peculio/(1+Percent_Aumento_Contr_Normal_PPSP_R)),IF(AND(Plano<>"",Plano="PPSP-NR (Não Repactuados)"),IF(Percent_Peculio_Petros_NPP_Parametrizado_PPSP_NR<>"",Percent_Peculio_Petros_NPP_Parametrizado_PPSP_NR,Percentual_Peculio/(1+Percent_Aumento_Contr_Normal_PPSP_NR)),"")),Percentual_Peculio),"outra situação")))) ->  | T23: =IF(Percent_Aumento_Contr_Normal_PPSP_R<>"",0.0277/(1 + Percent_Aumento_Contr_Normal_PPSP_R),"") ->  | V23: =IF(Percent_Aumento_Contr_Normal_PPSP_NR<>"",0.0277/(1 + Percent_Aumento_Contr_Normal_PPSP_NR),"") -> 
B24: Grupo II | L24: Nome da Série | M24: Benef. Bruto PP3
B25: Não Unificar | Q25: Taxa de juros VPL: | R25: 0.06
L26: Nome da Série | M26: Benef. Líq. PP3
B28: Grupo NPP | D28: Teto Deflator Acumulado | L28: Nome da Série | M28: Benef. Líq. PED
B29: =IF(Grupo_Unificado="Não Unificar",Grupo,Grupo_Unificado) ->  | D29: =IF(AND(Percent_Deflator_Beneficio<>"",Prazo_Deflator<>""),(1 + Percent_Deflator_Beneficio) ^ Prazo_Deflator - 1,0) -> 
L30: Nome da Série | M30: Benef. Líq. PED-RBF
L32: Nome da Série | M32: Benef. Bruto NPP
L34: Nome da Série | M34: Benef. Líq. NPP
L37: Nome da Série | M37: 13° Bruto sem PED
B38: Aumento CN | D38: CE Pecúlio | F38: CE Abono | H38: Deflator | J38: Prazo Deflator
B39: 0 | D39: 0 | F39: 0 | H39: 0 | J39: 1 | L39: Nome da Série | M39: 13° Líq. sem PED
B40: 0.05 | D40: 0.05 | F40: 0.05 | H40: 0.01 | J40: 2
B41: 0.1 | D41: 0.1 | F41: 0.1 | H41: 0.015 | J41: 3 | L41: Nome da Série | M41: 13° Bruto PP3
B42: 0.15 | D42: 0.15 | F42: 0.15 | H42: 0.02 | J42: 4
B43: 0.2 | D43: 0.2 | F43: 0.2 | H43: 0.021 | J43: 5 | L43: Nome da Série | M43: 13° Líq. PP3
B44: 0.25 | D44: 0.25 | F44: 0.25 | H44: 0.022 | J44: 6
B45: 0.3 | D45: 0.3 | F45: 0.3 | H45: 0.023 | J45: 7 | L45: Nome da Série | M45: 13° Líq. PED
B46: 0.35 | D46: 0.35 | F46: 0.35 | H46: 0.024 | J46: 8
B47: 0.4 | D47: 0.4 | F47: 0.4 | H47: 0.025 | J47: 9 | L47: Nome da Série | M47: 13° Líq. PED-RBF
B48: 0.45 | D48: 0.45 | F48: 0.45 | H48: 0.026 | J48: 10
B49: 0.5 | D49: 0.5 | F49: 0.5 | H49: 0.027 | L49: Nome da Série | M49: 13° Bruto NPP
B50: 0.55 | H50: 0.028
B51: 0.6 | F51: Prazo CE 13° | H51: 0.029 | J51: Teto Pecúlio PED-RBF | L51: Nome da Série | M51: 13° Líq. NPP
B52: 0.65 | F52: 1 | H52: 0.03 | J52: 2 x Renda Global
B53: 0.7 | F53: 2 | H53: 0.031 | J53: 2 x Teto INSS
B54: 0.75 | F54: 3 | H54: 0.032 | L54: Nome da Série | M54: VPL Perdas PED
B55: 0.8 | F55: 4 | H55: 0.033
B56: 0.85 | F56: 5 | H56: 0.034 | L56: Nome da Série | M56: VPL Perdas PP3
B57: 0.9 | F57: 6 | H57: 0.035
B58: 0.95 | F58: 7 | L58: Nome da Série | M58: VPL Perdas PED-RBF
B59: 1 | F59: 8
B60: 1.05 | F60: 9 | L60: Nome da Série | M60: VPL Perdas NPP
B61: 1.09 | F61: 10
B62: 1.1 | F62: 11
B63: 1.15 | F63: 12
B64: 1.2 | F64: 13
B65: 1.25 | F65: 14
B66: 1.3 | F66: 15
B67: 1.35 | F67: 16
B68: 1.39 | F68: 17
B69: 1.4 | F69: 18
B70: 1.45 | F70: 19
B71: 1.5 | F71: 20
B72: 1.55 | F72: Permanente
B73: 1.6
B74: 1.62
C82: Exp. Petros 2013 | E82: Exp. Petros 2017 | H82: MC | L82: Prazo Rec. | N82: Inibe | R82: Método 1 | S82: Somente quem vive mais percorrendo os px de toda a tábua
B83: Idade | C83: Expectativa Vida | E83: Expectativa Vida | H83: FALSE | J83: NÃO | N83: FALSE | P83: SIM | R83: Método 2 | S83: Somente quem vive mais percorrendo até a idade limite esperada para a idade atual
C84: lx | D84: ex | E84: lx | F84: ex | J84: SIM = 5% | L84: 10 | P84: NÃO
B85: 18 | C85: 10000000 | D85: 65.1 | E85: 1000000 | F85: 66.1 | J85: SIM = 10% | L85: 15
B86: 19 | C86: 9999900 | D86: 64.1 | E86: 999990 | F86: 65.1 | H86: Inibe Oculta Linha FC | J86: SIM = 15% | L86: 20 | R86: Idioma: | S86: BR
B87: 20 | C87: 9999800 | D87: 63.1 | E87: 999980 | F87: 64.1 | H87: FALSE | L87: 25
B88: 21 | C88: 9999600 | D88: 62.1 | E88: 999960 | F88: 63.1 | L88: 30 | N88: Data Base
B89: 22 | C89: 9999300 | D89: 61.1 | E89: 999940 | F89: 62.1 | H89: Simulador Carregado | J89: Valor Inicial da UMP | L89: 35 | N89: 2018-12-31
B90: 23 | C90: 9999000 | D90: 60.1 | E90: 999910 | F90: 61.1 | H90: TRUE | J90: 100 | L90: 40
B91: 24 | C91: 9998600 | D91: 59.1 | E91: 999880 | F91: 60.1 | L91: 45
B92: 25 | C92: 9998100 | D92: 58.1 | E92: 999840 | F92: 59.1
B93: 26 | C93: 9997400 | D93: 57.1 | E93: 999790 | F93: 58.1
B94: 27 | C94: 9996600 | D94: 56.1 | E94: 999730 | F94: 57.1
B95: 28 | C95: 9995701 | D95: 55.1 | E95: 999660 | F95: 56.1
B96: 29 | C96: 9994601 | D96: 54.1 | E96: 999580 | F96: 55.1
B97: 30 | C97: 9993302 | D97: 53.1 | E97: 999480 | F97: 54.1
B98: 31 | C98: 9991803 | D98: 52.1 | E98: 999360 | F98: 53.1
B99: 32 | C99: 9990004 | D99: 51.1 | E99: 999220 | F99: 52.1
B100: 33 | C100: 9987907 | D100: 50.1 | E100: 999060 | F100: 51.2
B101: 34 | C101: 9985509 | D101: 49.2 | E101: 998871 | F101: 50.2
B102: 35 | C102: 9982813 | D102: 48.2 | E102: 998661 | F102: 49.2 | I102: A quem se aplica cada uma das Contribuições ou Medidas
B103: 36 | C103: 9979719 | D103: 47.2 | E103: 998411 | F103: 48.2
B104: 37 | C104: 9976126 | D104: 46.2 | E104: 998122 | F104: 47.2 | J104: Contr. Normal | L104: Aumento CN | N104: Deflator | P104: Contr. Pecúlio e 13°
B105: 38 | C105: 9972036 | D105: 45.2 | E105: 997792 | F105: 46.2
B106: 39 | C106: 9967349 | D106: 44.2 | E106: 997413 | F106: 45.2 | I106: Aposentado | K106: TRUE | M106: TRUE | O106: TRUE | Q106: TRUE
B107: 40 | C107: 9962266 | D107: 43.3 | E107: 997014 | F107: 44.3
B108: 41 | C108: 9956487 | D108: 42.3 | E108: 996555 | F108: 43.3 | I108: Aposentado Pré-70 | K108: TRUE | M108: FALSE | O108: FALSE | Q108: FALSE
B109: 42 | C109: 9949916 | D109: 41.3 | E109: 996027 | F109: 42.3
B110: 43 | C110: 9942454 | D110: 40.3 | E110: 995420 | F110: 41.3 | I110: Pensionista NR | K110: TRUE | M110: TRUE | O110: TRUE | Q110: TRUE
B111: 44 | C111: 9934003 | D111: 39.4 | E111: 994723 | F111: 40.3
B112: 45 | C112: 9924466 | D112: 38.4 | E112: 993927 | F112: 39.4 | I112: Pensionista Pré-70 | K112: FALSE | M112: FALSE | O112: FALSE | Q112: FALSE
B113: 46 | C113: 9913748 | D113: 37.5 | E113: 993023 | F113: 38.4
B114: 47 | C114: 9901653 | D114: 36.5 | E114: 992000 | F114: 37.5
B115: 48 | C115: 9888088 | D115: 35.5 | E115: 990849 | F115: 36.5
B116: 49 | C116: 9872860 | D116: 34.6 | E116: 989551 | F116: 35.5
B117: 50 | C117: 9855879 | D117: 33.7 | E117: 988087 | F117: 34.6
B118: 51 | C118: 9836857 | D118: 32.7 | E118: 986436 | F118: 33.7
B119: 52 | C119: 9815609 | D119: 31.8 | E119: 984592 | F119: 32.7
B120: 53 | C120: 9791954 | D120: 30.9 | E120: 982524 | F120: 31.8
B121: 54 | C121: 9765613 | D121: 30 | E121: 980215 | F121: 30.9
B122: 55 | C122: 9736316 | D122: 29 | E122: 977637 | F122: 29.9
B123: 56 | C123: 9703700 | D123: 28.1 | E123: 974753 | F123: 29
B124: 57 | C124: 9667505 | D124: 27.2 | E124: 971546 | F124: 28.1
B125: 58 | C125: 9627385 | D125: 26.4 | E125: 967971 | F125: 27.2
B126: 59 | C126: 9582906 | D126: 25.5 | E126: 964002 | F126: 26.3
B127: 60 | C127: 9533650 | D127: 24.6 | E127: 959597 | F127: 25.4
B128: 61 | C128: 9479213 | D128: 23.7 | E128: 954713 | F128: 24.6
B129: 62 | C129: 9420063 | D129: 22.9 | E129: 949299 | F129: 23.7
B130: 63 | C130: 9353651 | D130: 22 | E130: 943309 | F130: 22.9
B131: 64 | C131: 9280412 | D131: 21.2 | E131: 936697 | F131: 22
B132: 65 | C132: 9199765 | D132: 20.4 | E132: 929390 | F132: 21.2
B133: 66 | C133: 9111080 | D133: 19.6 | E133: 921342 | F133: 20.4
B134: 67 | C134: 9013591 | D134: 18.8 | E134: 912479 | F134: 19.6
B135: 68 | C135: 8906600 | D135: 18 | E135: 902733 | F135: 18.8
B136: 69 | C136: 8789389 | D136: 17.3 | E136: 892027 | F136: 18
B137: 70 | C137: 8661152 | D137: 16.5 | E137: 880288 | F137: 17.2
B138: 71 | C138: 8521101 | D138: 15.8 | E138: 867436 | F138: 16.5
B139: 72 | C139: 8368403 | D139: 15 | E139: 853392 | F139: 15.7
B140: 73 | C140: 8202206 | D140: 14.3 | E140: 838073 | F140: 15
B141: 74 | C141: 8021758 | D141: 13.6 | E141: 821396 | F141: 14.3
B142: 75 | C142: 7826348 | D142: 13 | E142: 803284 | F142: 13.6
B143: 76 | C143: 7615193 | D143: 12.3 | E143: 783660 | F143: 12.9
B144: 77 | C144: 7387727 | D144: 11.7 | E144: 762454 | F144: 12.3
B145: 78 | C145: 7143489 | D145: 11.1 | E145: 739603 | F145: 11.7
B146: 79 | C146: 6882180 | D146: 10.5 | E146: 715063 | F146: 11
B147: 80 | C147: 6603727 | D147: 9.9 | E147: 688806 | F147: 10.4
B148: 81 | C148: 6308210 | D148: 9.3 | E148: 660820 | F148: 9.9
B149: 82 | C149: 5996080 | D149: 8.8 | E149: 631123 | F149: 9.3
B150: 83 | C150: 5668214 | D150: 8.3 | E150: 599762 | F150: 8.8
B151: 84 | C151: 5325741 | D151: 7.8 | E151: 566817 | F151: 8.2
B152: 85 | C152: 4970301 | D152: 7.3 | E152: 532411 | F152: 7.7
B153: 86 | C153: 4604039 | D153: 6.8 | E153: 496708 | F153: 7.3
B154: 87 | C154: 4229639 | D154: 6.4 | E154: 459932 | F154: 6.8
B155: 88 | C155: 3850198 | D155: 6 | E155: 422341 | F155: 6.4
B156: 89 | C156: 3469375 | D156: 5.6 | E156: 384263 | F156: 5.9
B157: 90 | C157: 3091213 | D157: 5.2 | E157: 346060 | F157: 5.5
B158: 91 | C158: 2720144 | D158: 4.8 | E158: 308145 | F158: 5.2
B159: 92 | C159: 2360758 | D159: 4.5 | E159: 270965 | F159: 4.8
B160: 93 | C160: 2017740 | D160: 4.2 | E160: 234978 | F160: 4.5
B161: 94 | C161: 1695547 | D161: 3.9 | E161: 200657 | F161: 4.1
B162: 95 | C162: 1398284 | D162: 3.6 | E162: 168449 | F162: 3.8
B163: 96 | C163: 1129380 | D163: 3.3 | E163: 138762 | F163: 3.6
B164: 97 | C164: 891397 | D164: 3.1 | E164: 111938 | F164: 3.3
B165: 98 | C165: 685814 | D165: 2.8 | E165: 88227 | F165: 3
B166: 99 | C166: 512914 | D166: 2.6 | E166: 67773 | F166: 2.8
B167: 100 | C167: 371760 | D167: 2.4 | E167: 50598 | F167: 2.6
B168: 101 | C168: 260250 | D168: 2.2 | E168: 36601 | F168: 2.4
B169: 102 | C169: 175307 | D169: 2 | E169: 25566 | F169: 2.2
B170: 103 | C170: 113157 | D170: 1.9 | E170: 17179 | F170: 2
B171: 104 | C171: 69669 | D171: 1.7 | E171: 11057 | F171: 1.9
B172: 105 | C172: 40705 | D172: 1.6 | E172: 6786 | F172: 1.7
B173: 106 | C173: 22442 | D173: 1.4 | E173: 3951 | F173: 1.6
B174: 107 | C174: 11603 | D174: 1.3 | E174: 2169 | F174: 1.4
B175: 108 | C175: 5586 | D175: 1.2 | E175: 1116 | F175: 1.3
B176: 109 | C176: 2485 | D176: 1.1 | E176: 535 | F176: 1.2
B177: 110 | C177: 1013 | D177: 1 | E177: 236 | F177: 1.1
B178: 111 | C178: 375 | D178: 1 | E178: 96 | F178: 1
B179: 112 | C179: 124 | D179: 0.9 | E179: 35 | F179: 1
B180: 113 | C180: 37 | D180: 0.8 | E180: 12 | F180: 0.9
B181: 114 | C181: 9 | D181: 0.8 | E181: 3 | F181: 0.8
B182: 115 | C182: 2 | D182: 0.7 | E182: 1 | F182: 0.7
B183: 116 | C183: 0 | D183: 0.5 | E183: 0 | F183: 0.5

Sheet Aux VPL Benefício PP3 (hidden)
E1: Fator Benef. | F1: Fator Abono | G1: Participante | N1: Cônjuge | T1: Filho 1 | Z1: Filho 2 | AF1: Filho 3 | AL1: Filho 4 | AT1: Método 1 - Prazo Indeterminado | AX1: Método 2 - Prazo Indeterminado | BB1: Prazo Determinado
C2: Mês | D2: Expoente | E2: vkb | F2: vka | G2: Idade Participante | I2: lx (P) | J2: kpx (P) | K2: kqx (P) | L2: vkb * kpx (P) | M2: vka * kpx (P) | N2: Idade Beneficiário | P2: lx (B) | Q2: kpx (B) | R2: vkb * kpx (P) | S2: vka * kpx (P) | T2: Idade Filho 1 | V2: lx (F1) | W2: kpx (F1) | X2: vkb * kpx (P) | Y2: vka * kpx (P) | Z2: Idade Filho 2 | AB2: lx (F2) | AC2: kpx (F2) | AD2: vkb * kpx (P) | AE2: vka * kpx (P) | AF2: Idade Filho 3 | AH2: lx (F3) | AI2: kpx (F3) | AJ2: vkb * kpx (P) | AK2: vka * kpx (P) | AL2: Idade Filho 4 | AN2: lx (F4) | AO2: kpx (F4) | AP2: vkb * kpx (P) | AQ2: vka * kpx (P) | AT2: Mês Início da Série Incrementada
B3: 0 | G3: =IF(Idade_Participante_Incrementada<>"",Idade_Participante_Incrementada,"") ->  | H3: =IF(AND(G3<>"",Mes_Nascimento_Participante<>""),12-Mes_Nascimento_Participante,"") ->  | I3: =IF(AND(Plano=Nao_Repactuado,G3<=116),VLOOKUP(G3,Tabua_Mortalidade,4),IF(AND(Plano=Repactuado,G3<=116),VLOOKUP(G3,Tabua_Mortalidade,2),"")) ->  | N3: =IF(Idade_Conjuge_Incrementada<>"",Idade_Conjuge_Incrementada,"") ->  | O3: =IF(AND(N3<>"",Mes_Nascimento_Conjuge<>""),12-Mes_Nascimento_Conjuge,"") ->  | P3: =IF(AND(Plano=Nao_Repactuado,N3<=116),VLOOKUP(N3,Tabua_Mortalidade,4),IF(AND(Plano=Repactuado,N3<=116),VLOOKUP(N3,Tabua_Mortalidade,2),"")) ->  | T3: =IF(Idade_Filho_1_Incrementada<>"",Idade_Filho_1_Incrementada,"") ->  | U3: =IF(AND(T3<>"",Mes_Nascimento_Filho_1<>""),12-Mes_Nascimento_Filho_1,"") ->  | V3: =IF(AND(Plano=Nao_Repactuado,T3>=18,T3<=116),VLOOKUP(T3,Tabua_Mortalidade,4),IF(AND(Plano=Repactuado,T3>=18,T3<=116),VLOOKUP(T3,Tabua_Mortalidade,2),IF(T3<18,IF(Plano=Nao_Repactuado,1000000,IF(Plano=Repactuado,10000000,"")),""))) ->  | Z3: =IF(Idade_Filho_2_Incrementada<>"",Idade_Filho_2_Incrementada,"") ->  | AA3: =IF(AND(Z3<>"",Mes_Nascimento_Filho_2<>""),12-Mes_Nascimento_Filho_2,"") ->  | AB3: =IF(AND(Plano=Nao_Repactuado,Z3>=18,Z3<=116),VLOOKUP(Z3,Tabua_Mortalidade,4),IF(AND(Plano=Repactuado,Z3>=18,Z3<=116),VLOOKUP(Z3,Tabua_Mortalidade,2),IF(Z3<18,IF(Plano=Nao_Repactuado,1000000,IF(Plano=Repactuado,10000000,"")),""))) ->  | AF3: =IF(Idade_Filho_3_Incrementada<>"",Idade_Filho_3_Incrementada,"") ->  | AG3: =IF(AND(AF3<>"",Mes_Nascimento_Filho_3<>""),12-Mes_Nascimento_Filho_3,"") ->  | AH3: =IF(AND(Plano=Nao_Repactuado,AF3>=18,AF3<=116),VLOOKUP(AF3,Tabua_Mortalidade,4),IF(AND(Plano=Repactuado,AF3>=18,AF3<=116),ROCV(AF3,Tabua_Mortalidade,2),IF(AF3<18,IF(Plano=Nao_Repactuado,1000000,IF(Plano=Repactuado,10000000,"")),""))) ->  | AL3: =IF(Idade_Filho_4_Incrementada<>"",Idade_Filho_4_Incrementada,"") ->  | AM3: =IF(AND(AL3<>"",Mes_Nascimento_Filho_4<>""),12-Mes_Nascimento_Filho_4,"") ->  | AN3: =IF(AND(Plano=Nao_Repactuado,AL3>=18,AL3<=116),VLOOKUP(AL3,Tabua_Mortalidade,4),IF(AND(Plano=Repactuado,AL3>=18,AL3<=116),VLOOKUP(AL3,Tabua_Mortalidade,2),IF(AL3<18,IF(Plano=Nao_Repactuado,1000000,IF(Plano=Repactuado,10000000,"")),""))) ->  | AZ3: Mês Início da Série | BB3: Quantid. Benefícios Pagos | BE3: Idade Partici. Data Base | BG3: Mês Nascimento Part. | BI3: Idade Partici. Data Atual | BK3: Expect. Vida Participante | BM3: Int. Expect. Vida Participante
B4: 1 | C4: =IF(MOD(B4,12)=1,"JAN",IF(MOD(B4,12)=2,"FEV",IF(MOD(B4,12)=3,"MAR",IF(MOD(B4,12)=4,"ABR",IF(MOD(B4,12)=5,"MAI",IF(MOD(B4,12)=6,"JUN",IF(MOD(B4,12)=7,"JUL",IF(MOD(B4,12)=8,"AGO",IF(MOD(B4,12)=9,"SET",IF(MOD(B4,12)=10,"OUT",IF(MOD(B4,12)=11,"NOV",IF(MOD(B4,12)=0,"DEZ","")))))))))))) -> JAN | D4: =IF(B4>=Mes_Inicio_Serie_Beneficio_PP3,(B4-Mes_Inicio_Serie_Beneficio_PP3+1),"") -> 1 | E4: =IF(Mes_Inicio_Serie_Beneficio_PP3<>"",IF(B4>=Mes_Inicio_Serie_Beneficio_PP3,1/((1+Rentabilidade_Mensal_PP3)^D4),IF(B4=Mes_Inicio_Serie_Beneficio_PP3 - 1,1,"")),"") -> 0.9957292878 | F4: =IF(B4>=Mes_Inicio_Serie_Beneficio_PP3,IF(AND(E4<>"",C4="NOV"),E4,0),"") -> 0 | G4: =IF(G3<>"",IF(MOD(B4,12)=Mes_Nascimento_Participante,G3+1,G3),"") ->  | H4: =IF(H3<>"",IF((H3+1)=12,0,H3+1),"") ->  | J4: =IF(AND(I$3<>"",I5<>""),I5/I$3,"") ->  | K4: =IF(J4<>"",1 - J4,"") ->  | L4: =IF(AND(E4<>"",J4<>""),E4 * J4,"") ->  | M4: =IF(AND(F4<>"",J4<>""),F4 * J4,"") ->  | N4: =IF(N3<>"",IF(MOD(B4,12)=Mes_Nascimento_Conjuge,N3+1,N3),"") ->  | O4: =IF(O3<>"",IF((O3+1)=12,0,O3+1),"") ->  | Q4: =IF(AND(P$3<>"",P5<>""),P5/P$3,0) -> 0 | R4: =IF(AND($E4<>"",Q4<>""),$E4 * Q4,"") -> 0 | S4: =IF(AND($F4<>"",Q4<>""),$F4 * Q4,"") -> 0 | T4: =IF(T3<>"",IF(MOD($B4,12)=Mes_Nascimento_Filho_1,T3+1,T3),"") ->  | U4: =IF(U3<>"",IF((U3+1)=12,0,U3+1),"") ->  | W4: =IF(AND(V$3<>"",V5<>"",OR(T4<21,Pensao_Vitalicia_Filho_1="SIM")),V5/V$3,0) -> 0 | X4: =IF(AND($E4<>"",W4<>""),$E4 * W4,"") -> 0 | Y4: =IF(AND($F4<>"",W4<>""),$F4 * W4,"") -> 0 | Z4: =IF(Z3<>"",IF(MOD($B4,12)=Mes_Nascimento_Filho_2,Z3+1,Z3),"") ->  | AA4: =IF(AA3<>"",IF((AA3+1)=12,0,AA3+1),"") ->  | AC4: =IF(AND(AB$3<>"",AB5<>"",OR(Z4<21,Pensao_Vitalicia_Filho_2="SIM")),AB5/AB$3,0) -> 0 | AD4: =IF(AND($E4<>"",AC4<>""),$E4 * AC4,"") -> 0 | AE4: =IF(AND($F4<>"",AC4<>""),$F4 * AC4,"") -> 0 | AF4: =IF(AF3<>"",IF(MOD($B4,12)=Mes_Nascimento_Filho_3,AF3+1,AF3),"") ->  | AG4: =IF(AG3<>"",IF((AG3+1)=12,0,AG3+1),"") ->  | AH4: =IF(AND(Plano=Nao_Repactuado,AF4>=18,AF4<=116),VLOOKUP(AF4,Tabua_Mortalidade,4),IF(AND(Plano=Repactuado,AF4>=18,AF4<=116),VLOOKUP(AF4,Tabua_Mortalidade,2),IF(AF4<18,IF(Plano=Nao_Repactuado,1000000,IF(Plano=Repactuado,10000000,"")),""))) ->  | AI4: =IF(AND(AH$3<>"",AH5<>"",OR(AF4<21,Pensao_Vitalicia_Filho_3="SIM")),AH5/AH$3,0) -> 0 | AJ4: =IF(AND($E4<>"",AI4<>""),$E4 * AI4,"") -> 0 | AK4: =IF(AND($F4<>"",AI4<>""),$F4 * AI4,"") -> 0 | AL4: =IF(AL3<>"",IF(MOD($B4,12)=Mes_Nascimento_Filho_4,AL3+1,AL3),"") ->  | AM4: =IF(AM3<>"",IF((AM3+1)=12,0,AM3+1),"") ->  | AO4: =IF(AND(AN$3<>"",AN5<>"",OR(AL4<21,Pensao_Vitalicia_Filho_4="SIM")),AN5/AN$3,0) -> 0 | AP4: =IF(AND($E4<>"",AO4<>""),$E4 * AO4,"") -> 0 | AQ4: =IF(AND($F4<>"",AO4<>""),$F4 * AO4,"") -> 0 | AT4: =IF(Data_Base_Incrementada<>"",MONTH(Data_Base_Incrementada+ 1),"") -> 1 | AZ4: =IF(Data_Base<>"",MONTH(Data_Base + 1),"") -> 1 | BB4: =IF(AND(Mes_Inicio_Serie_Beneficio_PP3<>"",Mes_Inicio_Serie<>""),IF(Mes_Inicio_Serie_Beneficio_PP3>=Mes_Inicio_Serie,Mes_Inicio_Serie_Beneficio_PP3 - Mes_Inicio_Serie,Mes_Inicio_Serie_Beneficio_PP3 + (12 - Mes_Inicio_Serie + 1)),"") -> 0 | BE4: =IF(AND(Data_Base<>"",Data_Nascimento_Participante<>""),DATEDIF(Data_Nascimento_Participante,Data_Base,"Y"),"") ->  | BG4: =IF(Data_Nascimento_Participante<>"",MONTH(Data_Nascimento_Participante),"") ->  | BI4: =IF(Data_Nascimento_Participante<>"",DATEDIF(Data_Nascimento_Participante,TODAY(),"Y"),"") ->  | BK4: =IF(Idade_Participante_Data_Base<>"",IF(Plano=Nao_Repactuado,VLOOKUP(Idade_Participante_Data_Base,Tabua_Mortalidade,5,FALSE),IF(Plano=Repactuado,VLOOKUP(Idade_Participante_Data_Base,Tabua_Mortalidade,3,FALSE),"")),"") ->  | BM4: =IF(Expectiva_Vida_Participante<>"",ROUNDUP(Expectiva_Vida_Participante,0),"") -> 
B5: 2 | C5: =IF(MOD(B5,12)=1,"JAN",IF(MOD(B5,12)=2,"FEV",IF(MOD(B5,12)=3,"MAR",IF(MOD(B5,12)=4,"ABR",IF(MOD(B5,12)=5,"MAI",IF(MOD(B5,12)=6,"JUN",IF(MOD(B5,12)=7,"JUL",IF(MOD(B5,12)=8,"AGO",IF(MOD(B5,12)=9,"SET",IF(MOD(B5,12)=10,"OUT",IF(MOD(B5,12)=11,"NOV",IF(MOD(B5,12)=0,"DEZ","")))))))))))) -> FEV | D5: 2 | E5: 0.9914768147 | F5: 0 | H5: =IF(H4<>"",IF((H4+1)=12,0,H4+1),"") ->  | J5: =IF(AND(I$3<>"",I6<>""),I6/I$3,"") ->  | L5: =IF(AND(E5<>"",J5<>""),E5 * J5,"") ->  | M5: =IF(AND(F5<>"",J5<>""),F5 * J5,"") ->  | O5: =IF(O4<>"",IF((O4+1)=12,0,O4+1),"") ->  | Q5: 0 | R5: =IF(AND($E5<>"",Q5<>""),$E5 * Q5,"") -> 0 | S5: =IF(AND($F5<>"",Q5<>""),$F5 * Q5,"") -> 0 | U5: =IF(U4<>"",IF((U4+1)=12,0,U4+1),"") ->  | W5: 0 | X5: =IF(AND($E5<>"",W5<>""),$E5 * W5,"") -> 0 | Y5: =IF(AND($F5<>"",W5<>""),$F5 * W5,"") -> 0 | AA5: =IF(AA4<>"",IF((AA4+1)=12,0,AA4+1),"") ->  | AC5: 0 | AD5: =IF(AND($E5<>"",AC5<>""),$E5 * AC5,"") -> 0 | AE5: =IF(AND($F5<>"",AC5<>""),$F5 * AC5,"") -> 0 | AG5: =IF(AG4<>"",IF((AG4+1)=12,0,AG4+1),"") ->  | AI5: 0 | AJ5: =IF(AND($E5<>"",AI5<>""),$E5 * AI5,"") -> 0 | AK5: =IF(AND($F5<>"",AI5<>""),$F5 * AI5,"") -> 0 | AM5: =IF(AM4<>"",IF((AM4+1)=12,0,AM4+1),"") ->  | AO5: 0 | AP5: =IF(AND($E5<>"",AO5<>""),$E5 * AO5,"") -> 0 | AQ5: =IF(AND($F5<>"",AO5<>""),$F5 * AO5,"") -> 0
B6: 3 | C6: MAR | D6: 3 | E6: 0.9872425026 | F6: 0 | Q6: 0 | R6: 0 | S6: 0 | W6: 0 | X6: 0 | Y6: 0 | AC6: 0 | AD6: 0 | AE6: 0 | AI6: 0 | AJ6: 0 | AK6: 0 | AO6: 0 | AP6: 0 | AQ6: 0 | AT6: Linha Inicial | AV6: Método para Prazo Indeterminado | AX6: Método 2 | BB6: Incremento Anual | BE6: Idade Cônjuge Data Base | BG6: Mês Nascimento Conj.
B7: 4 | C7: ABR | D7: 4 | E7: 0.9830262741 | F7: 0 | Q7: 0 | R7: 0 | S7: 0 | W7: 0 | X7: 0 | Y7: 0 | AC7: 0 | AD7: 0 | AE7: 0 | AI7: 0 | AJ7: 0 | AK7: 0 | AO7: 0 | AP7: 0 | AQ7: 0 | AT7: =IF(Mes_Inicio_Serie_Beneficio_PP3<>"",AT4+3,"") -> 4 | BB7: 0 | BE7: =IF(AND(Data_Base<>"",Data_Nascimento_Conjuge<>"",Conjuge_Cadastrado="SIM"),DATEDIF(Data_Nascimento_Conjuge,Data_Base,"Y"),"") ->  | BG7: =IF(Data_Nascimento_Conjuge<>"",MONTH(Data_Nascimento_Conjuge),"") -> 
B8: 5 | C8: MAI | D8: 5 | E8: 0.9788280518 | F8: 0 | Q8: 0 | R8: 0 | S8: 0 | W8: 0 | X8: 0 | Y8: 0 | AC8: 0 | AD8: 0 | AE8: 0 | AI8: 0 | AJ8: 0 | AK8: 0 | AO8: 0 | AP8: 0 | AQ8: 0
B9: 6 | C9: JUN | D9: 6 | E9: =IF(Mes_Inicio_Serie_Beneficio_PP3<>"",IF(B9>=Mes_Inicio_Serie_Beneficio_PP3,1/((1+Rentabilidade_Mensal_PP3)^D9),IF(B9=Mes_Inicio_Serie_Beneficio_PP3 - 1,1,"")),"") -> 0.9746477589 | F9: 0 | Q9: 0 | R9: 0 | S9: 0 | W9: 0 | X9: 0 | Y9: 0 | AC9: 0 | AD9: 0 | AE9: 0 | AI9: 0 | AJ9: 0 | AK9: 0 | AO9: 0 | AP9: 0 | AQ9: 0 | AT9: Linha Final | AX9: Linha Final | AZ9: Data Base Incrementada | BB9: Linha Final | BE9: Idade Filho 1 Data Base | BG9: Mês Nascimento Filho 1
B10: 7 | C10: JUL | D10: 7 | E10: 0.9704853189 | F10: 0 | Q10: 0 | R10: 0 | S10: 0 | W10: 0 | X10: 0 | Y10: 0 | AC10: 0 | AD10: 0 | AE10: 0 | AI10: 0 | AJ10: 0 | AK10: 0 | AO10: 0 | AP10: 0 | AQ10: 0 | AT10: 1400 | AX10: =IF(AND(AT7<>"",Quantidade_Incrementada_Beneficios_Principal<>""),AT7+Quantidade_Incrementada_Beneficios_Principal-1,"") -> 3 | AZ10: 2018-12-31 | BB10: =IF(AND(AT7<>"",Quantidade_Beneficios_Prazo_Determinado<>""),AT7+Quantidade_Beneficios_Prazo_Determinado-1 -Quantidade_Beneficios_Pagos_Primeiro_Reajuste - 12*Incremento_Anual,"") ->  | BE10: =IF(AND(Data_Base<>"",Data_Nascimento_Filho_1<>""),DATEDIF(Data_Nascimento_Filho_1,Data_Base,"Y"),"") ->  | BG10: =IF(Data_Nascimento_Filho_1<>"",MONTH(Data_Nascimento_Filho_1),"") -> 
B11: 8 | C11: AGO | D11: 8 | E11: 0.9663406555 | F11: 0 | Q11: 0 | R11: 0 | S11: 0 | W11: 0 | X11: 0 | Y11: 0 | AC11: 0 | AD11: 0 | AE11: 0 | AI11: 0 | AJ11: 0 | AK11: 0 | AO11: 0 | AP11: 0 | AQ11: 0
B12: 9 | C12: SET | D12: 9 | E12: 0.9622136927 | F12: 0 | Q12: 0 | R12: 0 | S12: 0 | W12: 0 | X12: 0 | Y12: 0 | AC12: 0 | AD12: 0 | AE12: 0 | AI12: 0 | AJ12: 0 | AK12: 0 | AO12: 0 | AP12: 0 | AQ12: 0 | AT12: Rent. Mensal PP3 | AZ12: Idade Participante Incrementada | BE12: Idade Filho 2 Data Base | BG12: Mês Nascimento Filho 2
B13: 10 | C13: OUT | D13: 10 | E13: 0.958104355 | F13: 0 | Q13: 0 | R13: 0 | S13: 0 | W13: 0 | X13: 0 | Y13: 0 | AC13: 0 | AD13: 0 | AE13: 0 | AI13: 0 | AJ13: 0 | AK13: 0 | AO13: 0 | AP13: 0 | AQ13: 0 | AT13: =IF(Taxa_Juros_Anual_PP3<>"",(1+Taxa_Juros_Anual_PP3)^(1/12) - 1,0) -> 0.00428902936 | AZ13: =IF(AND(Data_Base_Incrementada<>"",Data_Nascimento_Participante<>""),IF(DATEDIF(Data_Nascimento_Participante,Data_Base_Incrementada,"Y")<=116,DATEDIF(Data_Nascimento_Participante,Data_Base_Incrementada,"Y"),116),"") ->  | BE13: =IF(AND(Data_Base<>"",Data_Nascimento_Filho_2<>""),DATEDIF(Data_Nascimento_Filho_2,Data_Base,"Y"),"") ->  | BG13: =IF(Data_Nascimento_Filho_2<>"",MONTH(Data_Nascimento_Filho_2),"") -> 
B14: 11 | C14: NOV | D14: 11 | E14: 0.9540125671 | F14: 0.9540125671 | Q14: 0 | R14: 0 | S14: 0 | W14: 0 | X14: 0 | Y14: 0 | AC14: 0 | AD14: 0 | AE14: 0 | AI14: 0 | AJ14: 0 | AK14: 0 | AO14: 0 | AP14: 0 | AQ14: 0
B15: 12 | C15: DEZ | D15: 12 | E15: 0.949938254 | F15: 0 | Q15: 0 | R15: 0 | S15: 0 | W15: 0 | X15: 0 | Y15: 0 | AC15: 0 | AD15: 0 | AE15: 0 | AI15: 0 | AJ15: 0 | AK15: 0 | AO15: 0 | AP15: 0 | AQ15: 0 | AT15: Fator VPL Benef. + Abono Método 1 (P) | AZ15: Expectativa Participante Incrementada | BE15: Idade Filho 3 Data Base | BG15: Mês Nascimento Filho 3
B16: 13 | C16: JAN | D16: 13 | E16: 0.9458813412 | F16: 0 | Q16: 0 | R16: 0 | S16: 0 | W16: 0 | X16: 0 | Y16: 0 | AC16: 0 | AD16: 0 | AE16: 0 | AI16: 0 | AJ16: 0 | AK16: 0 | AO16: 0 | AP16: 0 | AQ16: 0 | AT16: =IF(Coluna_Beneficio<>"",SUM(INDIRECT(CONCATENATE(Coluna_Beneficio,AT7,":",Coluna_Beneficio,AT10))) + IF(Opcao_Abono="SIM",SUM(INDIRECT(CONCATENATE(Coluna_Abono,AT7,":",Coluna_Abono,AT10))),0),"") ->  | AZ16: =IF(Idade_Participante_Incrementada<>"",IF(Plano=Nao_Repactuado,VLOOKUP(Idade_Participante_Incrementada,Tabua_Mortalidade,5,FALSE),IF(Plano=Repactuado,VLOOKUP(Idade_Participante_Incrementada,Tabua_Mortalidade,3,FALSE),"")),"") ->  | BE16: =IF(AND(Data_Base<>"",Data_Nascimento_Filho_3<>""),DATEDIF(Data_Nascimento_Filho_3,Data_Base,"Y"),"") ->  | BG16: =IF(Data_Nascimento_Filho_3<>"",MONTH(Data_Nascimento_Filho_3),"") -> 
B17: 14 | C17: FEV | D17: 14 | E17: 0.9418417542 | F17: 0 | Q17: 0 | R17: 0 | S17: 0 | W17: 0 | X17: 0 | Y17: 0 | AC17: 0 | AD17: 0 | AE17: 0 | AI17: 0 | AJ17: 0 | AK17: 0 | AO17: 0 | AP17: 0 | AQ17: 0
B18: 15 | C18: MAR | D18: 15 | E18: 0.9378194192 | F18: 0 | Q18: 0 | R18: 0 | S18: 0 | W18: 0 | X18: 0 | Y18: 0 | AC18: 0 | AD18: 0 | AE18: 0 | AI18: 0 | AJ18: 0 | AK18: 0 | AO18: 0 | AP18: 0 | AQ18: 0 | AZ18: Quant.Incrementada Benefícios Part. | BE18: Idade Filho 4 Data Base | BG18: Mês Nascimento Filho 4
B19: 16 | C19: ABR | D19: 16 | E19: 0.9338142624 | F19: 0 | Q19: 0 | R19: 0 | S19: 0 | W19: 0 | X19: 0 | Y19: 0 | AC19: 0 | AD19: 0 | AE19: 0 | AI19: 0 | AJ19: 0 | AK19: 0 | AO19: 0 | AP19: 0 | AQ19: 0 | AZ19: =IF(Expectativa_Participante_Incrementada<>"",TRUNC(Expectativa_Participante_Incrementada,0)*12 + ROUND(((Expectativa_Participante_Incrementada - TRUNC(Expectativa_Participante_Incrementada,0)) * 12),0),0) -> 0 | BE19: =IF(AND(Data_Base<>"",Data_Nascimento_Filho_4<>""),DATEDIF(Data_Nascimento_Filho_4,Data_Base,"Y"),"") ->  | BG19: =IF(Data_Nascimento_Filho_4<>"",MONTH(Data_Nascimento_Filho_4),"") -> 
B20: 17 | C20: MAI | D20: 17 | E20: 0.9298262105 | F20: 0 | Q20: 0 | R20: 0 | S20: 0 | W20: 0 | X20: 0 | Y20: 0 | AC20: 0 | AD20: 0 | AE20: 0 | AI20: 0 | AJ20: 0 | AK20: 0 | AO20: 0 | AP20: 0 | AQ20: 0
B21: 18 | C21: JUN | D21: 18 | E21: 0.9258551904 | F21: 0 | Q21: 0 | R21: 0 | S21: 0 | W21: 0 | X21: 0 | Y21: 0 | AC21: 0 | AD21: 0 | AE21: 0 | AI21: 0 | AJ21: 0 | AK21: 0 | AO21: 0 | AP21: 0 | AQ21: 0 | AX21: Fator VPL Método 2 | AZ21: Idade Cônjuge Incrementada | BB21: Fator VPL Prazo Determ.
B22: 19 | C22: JUL | D22: 19 | E22: 0.9219011294 | F22: 0 | Q22: 0 | R22: 0 | S22: 0 | W22: 0 | X22: 0 | Y22: 0 | AC22: 0 | AD22: 0 | AE22: 0 | AI22: 0 | AJ22: 0 | AK22: 0 | AO22: 0 | AP22: 0 | AQ22: 0 | AX22: =IF(AND(AT7<>"",AX10<>""),SUM(INDIRECT(CONCATENATE("E",AT7,":E",AX10))) + IF(Opcao_Abono="SIM",SUM(INDIRECT(CONCATENATE("F",AT7,":F",AX10))),0),"") -> 0.9957292878 | AZ22: =IF(AND(Data_Base_Incrementada<>"",Data_Nascimento_Conjuge<>"",Conjuge_Cadastrado="SIM"),IF(DATEDIF(Data_Nascimento_Conjuge,Data_Base_Incrementada,"Y")<=116,DATEDIF(Data_Nascimento_Conjuge,Data_Base_Incrementada,"Y"),116),"") ->  | BB22: =IF(AND(AT7<>"",BB10<>""),SUM(INDIRECT(CONCATENATE("E",AT7,":E",BB10))) + IF(Opcao_Abono="SIM",SUM(INDIRECT(CONCATENATE("F",AT7,":F",BB10))),0),"") -> 
B23: 20 | C23: AGO | D23: 20 | E23: 0.917963955 | F23: 0 | Q23: 0 | R23: 0 | S23: 0 | W23: 0 | X23: 0 | Y23: 0 | AC23: 0 | AD23: 0 | AE23: 0 | AI23: 0 | AJ23: 0 | AK23: 0 | AO23: 0 | AP23: 0 | AQ23: 0
B24: 21 | C24: SET | D24: 21 | E24: 0.9140435952 | F24: 0 | Q24: 0 | R24: 0 | S24: 0 | W24: 0 | X24: 0 | Y24: 0 | AC24: 0 | AD24: 0 | AE24: 0 | AI24: 0 | AJ24: 0 | AK24: 0 | AO24: 0 | AP24: 0 | AQ24: 0 | AV24: Fator VPL Benef. PP3 | AZ24: Expectativa Conjuge Incrementada
B25: 22 | C25: OUT | D25: 22 | E25: 0.9101399781 | F25: 0 | Q25: 0 | R25: 0 | S25: 0 | W25: 0 | X25: 0 | Y25: 0 | AC25: 0 | AD25: 0 | AE25: 0 | AI25: 0 | AJ25: 0 | AK25: 0 | AO25: 0 | AP25: 0 | AQ25: 0 | AV25: =IF(Metodo_Calculo_Beneficio="Método 1",Fator_VPL_Beneficio_Metodo_1,IF(Metodo_Calculo_Beneficio="Método 2",Fator_VPL_Beneficio_Metodo_2,"")) -> 0.9957292878 | AZ25: =IF(Idade_Conjuge_Incrementada<>"",IF(Plano=Nao_Repactuado,VLOOKUP(Idade_Conjuge_Incrementada,Tabua_Mortalidade,5,FALSE),IF(Plano=Repactuado,VLOOKUP(Idade_Conjuge_Incrementada,Tabua_Mortalidade,3,FALSE),"")),"") -> 
B26: 23 | C26: NOV | D26: 23 | E26: 0.9062530323 | F26: 0.9062530323 | Q26: 0 | R26: 0 | S26: 0 | W26: 0 | X26: 0 | Y26: 0 | AC26: 0 | AD26: 0 | AE26: 0 | AI26: 0 | AJ26: 0 | AK26: 0 | AO26: 0 | AP26: 0 | AQ26: 0
B27: 24 | C27: DEZ | D27: 24 | E27: 0.9023826864 | F27: 0 | Q27: 0 | R27: 0 | S27: 0 | W27: 0 | X27: 0 | Y27: 0 | AC27: 0 | AD27: 0 | AE27: 0 | AI27: 0 | AJ27: 0 | AK27: 0 | AO27: 0 | AP27: 0 | AQ27: 0 | AZ27: Quant.Incrementada Benefícios Cônjuge
B28: 25 | C28: JAN | D28: 25 | E28: 0.8985288697 | F28: 0 | Q28: 0 | R28: 0 | S28: 0 | W28: 0 | X28: 0 | Y28: 0 | AC28: 0 | AD28: 0 | AE28: 0 | AI28: 0 | AJ28: 0 | AK28: 0 | AO28: 0 | AP28: 0 | AQ28: 0 | AZ28: =IF(Expectativa_Conjuge_Incrementada<>"",TRUNC(Expectativa_Conjuge_Incrementada,0)*12 + ROUND(((Expectativa_Conjuge_Incrementada - TRUNC(Expectativa_Conjuge_Incrementada,0)) * 12),0),0) -> 0
B29: 26 | C29: FEV | D29: 26 | E29: 0.8946915116 | F29: 0 | Q29: 0 | R29: 0 | S29: 0 | W29: 0 | X29: 0 | Y29: 0 | AC29: 0 | AD29: 0 | AE29: 0 | AI29: 0 | AJ29: 0 | AK29: 0 | AO29: 0 | AP29: 0 | AQ29: 0
B30: 27 | C30: MAR | D30: 27 | E30: 0.8908705417 | F30: 0 | Q30: 0 | R30: 0 | S30: 0 | W30: 0 | X30: 0 | Y30: 0 | AC30: 0 | AD30: 0 | AE30: 0 | AI30: 0 | AJ30: 0 | AK30: 0 | AO30: 0 | AP30: 0 | AQ30: 0 | AZ30: Idade Filho 1 Incrementada
B31: 28 | C31: ABR | D31: 28 | E31: 0.88706589 | F31: 0 | Q31: 0 | R31: 0 | S31: 0 | W31: 0 | X31: 0 | Y31: 0 | AC31: 0 | AD31: 0 | AE31: 0 | AI31: 0 | AJ31: 0 | AK31: 0 | AO31: 0 | AP31: 0 | AQ31: 0 | AZ31: =IF(AND(Data_Base_Incrementada<>"",Data_Nascimento_Filho_1<>""),IF(DATEDIF(Data_Nascimento_Filho_1,Data_Base_Incrementada,"Y")<=116,DATEDIF(Data_Nascimento_Filho_1,Data_Base_Incrementada,"Y"),116),"") -> 
B32: 29 | C32: MAI | D32: 29 | E32: 0.8832774869 | F32: 0 | Q32: 0 | R32: 0 | S32: 0 | W32: 0 | X32: 0 | Y32: 0 | AC32: 0 | AD32: 0 | AE32: 0 | AI32: 0 | AJ32: 0 | AK32: 0 | AO32: 0 | AP32: 0 | AQ32: 0
B33: 30 | C33: JUN | D33: 30 | E33: 0.879505263 | F33: 0 | Q33: 0 | R33: 0 | S33: 0 | W33: 0 | X33: 0 | Y33: 0 | AC33: 0 | AD33: 0 | AE33: 0 | AI33: 0 | AJ33: 0 | AK33: 0 | AO33: 0 | AP33: 0 | AQ33: 0 | AZ33: Expectativa Filho 1 Incrementada
B34: 31 | C34: JUL | D34: 31 | E34: 0.8757491492 | F34: 0 | Q34: 0 | R34: 0 | S34: 0 | W34: 0 | X34: 0 | Y34: 0 | AC34: 0 | AD34: 0 | AE34: 0 | AI34: 0 | AJ34: 0 | AK34: 0 | AO34: 0 | AP34: 0 | AQ34: 0 | AZ34: =IF(AND(Idade_Filho_1_Incrementada<>"",Idade_Filho_1_Incrementada>=18),IF(Plano=Nao_Repactuado,VLOOKUP(Idade_Filho_1_Incrementada,Tabua_Mortalidade,5,FALSE),IF(Plano=Repactuado,VLOOKUP(Idade_Filho_1_Incrementada,Tabua_Mortalidade,3,FALSE),"")),IF(Idade_Filho_1_Incrementada<18,67,"")) -> 
B35: 32 | C35: AGO | D35: 32 | E35: 0.8720090767 | F35: 0 | Q35: 0 | R35: 0 | S35: 0 | W35: 0 | X35: 0 | Y35: 0 | AC35: 0 | AD35: 0 | AE35: 0 | AI35: 0 | AJ35: 0 | AK35: 0 | AO35: 0 | AP35: 0 | AQ35: 0
B36: 33 | C36: SET | D36: 33 | E36: 0.8682849769 | F36: 0 | Q36: 0 | R36: 0 | S36: 0 | W36: 0 | X36: 0 | Y36: 0 | AC36: 0 | AD36: 0 | AE36: 0 | AI36: 0 | AJ36: 0 | AK36: 0 | AO36: 0 | AP36: 0 | AQ36: 0 | AZ36: Quant.Incrementada Benefícios Filho 1
B37: 34 | C37: OUT | D37: 34 | E37: 0.8645767817 | F37: 0 | Q37: 0 | R37: 0 | S37: 0 | W37: 0 | X37: 0 | Y37: 0 | AC37: 0 | AD37: 0 | AE37: 0 | AI37: 0 | AJ37: 0 | AK37: 0 | AO37: 0 | AP37: 0 | AQ37: 0 | AZ37: =IF(Expectativa_Filho_1_Incrementada<>"",IF(Pensao_Vitalicia_Filho_1="SIM",TRUNC(Expectativa_Filho_1_Incrementada,0)*12 + ROUND(((Expectativa_Filho_1_Incrementada - TRUNC(Expectativa_Filho_1_Incrementada,0)) * 12),0),(21 - Idade_Filho_1_Incrementada)*12),0) -> 0
B38: 35 | C38: NOV | D38: 35 | E38: 0.8608844232 | F38: 0.8608844232 | Q38: 0 | R38: 0 | S38: 0 | W38: 0 | X38: 0 | Y38: 0 | AC38: 0 | AD38: 0 | AE38: 0 | AI38: 0 | AJ38: 0 | AK38: 0 | AO38: 0 | AP38: 0 | AQ38: 0
B39: 36 | C39: DEZ | D39: 36 | E39: 0.8572078336 | F39: 0 | Q39: 0 | R39: 0 | S39: 0 | W39: 0 | X39: 0 | Y39: 0 | AC39: 0 | AD39: 0 | AE39: 0 | AI39: 0 | AJ39: 0 | AK39: 0 | AO39: 0 | AP39: 0 | AQ39: 0 | AZ39: Idade Filho 2 Incrementada
B40: 37 | C40: JAN | D40: 37 | E40: 0.8535469457 | F40: 0 | Q40: 0 | R40: 0 | S40: 0 | W40: 0 | X40: 0 | Y40: 0 | AC40: 0 | AD40: 0 | AE40: 0 | AI40: 0 | AJ40: 0 | AK40: 0 | AO40: 0 | AP40: 0 | AQ40: 0 | AZ40: =IF(AND(Data_Base_Incrementada<>"",Data_Nascimento_Filho_2<>""),IF(DATEDIF(Data_Nascimento_Filho_2,Data_Base_Incrementada,"Y")<=116,DATEDIF(Data_Nascimento_Filho_2,Data_Base_Incrementada,"Y"),116),"") -> 
B41: 38 | C41: FEV | D41: 38 | E41: 0.8499016924 | F41: 0 | Q41: 0 | R41: 0 | S41: 0 | W41: 0 | X41: 0 | Y41: 0 | AC41: 0 | AD41: 0 | AE41: 0 | AI41: 0 | AJ41: 0 | AK41: 0 | AO41: 0 | AP41: 0 | AQ41: 0
B42: 39 | C42: MAR | D42: 39 | E42: 0.8462720069 | F42: 0 | Q42: 0 | R42: 0 | S42: 0 | W42: 0 | X42: 0 | Y42: 0 | AC42: 0 | AD42: 0 | AE42: 0 | AI42: 0 | AJ42: 0 | AK42: 0 | AO42: 0 | AP42: 0 | AQ42: 0 | AZ42: Expectativa Filho 2 Incrementada
B43: 40 | C43: ABR | D43: 40 | E43: 0.8426578228 | F43: 0 | Q43: 0 | R43: 0 | S43: 0 | W43: 0 | X43: 0 | Y43: 0 | AC43: 0 | AD43: 0 | AE43: 0 | AI43: 0 | AJ43: 0 | AK43: 0 | AO43: 0 | AP43: 0 | AQ43: 0 | AZ43: =IF(AND(Idade_Filho_2_Incrementada<>"",Idade_Filho_2_Incrementada>=18),IF(Plano=Nao_Repactuado,VLOOKUP(Idade_Filho_2_Incrementada,Tabua_Mortalidade,5,FALSE),IF(Plano=Repactuado,VLOOKUP(Idade_Filho_2_Incrementada,Tabua_Mortalidade,3,FALSE),"")),IF(Idade_Filho_2_Incrementada<18,67,"")) -> 
B44: 41 | C44: MAI | D44: 41 | E44: 0.8390590738 | F44: 0 | Q44: 0 | R44: 0 | S44: 0 | W44: 0 | X44: 0 | Y44: 0 | AC44: 0 | AD44: 0 | AE44: 0 | AI44: 0 | AJ44: 0 | AK44: 0 | AO44: 0 | AP44: 0 | AQ44: 0
B45: 42 | C45: JUN | D45: 42 | E45: 0.835475694 | F45: 0 | Q45: 0 | R45: 0 | S45: 0 | W45: 0 | X45: 0 | Y45: 0 | AC45: 0 | AD45: 0 | AE45: 0 | AI45: 0 | AJ45: 0 | AK45: 0 | AO45: 0 | AP45: 0 | AQ45: 0 | AZ45: Quant.Incrementada Benefícios Filho 2
B46: 43 | C46: JUL | D46: 43 | E46: 0.8319076178 | F46: 0 | Q46: 0 | R46: 0 | S46: 0 | W46: 0 | X46: 0 | Y46: 0 | AC46: 0 | AD46: 0 | AE46: 0 | AI46: 0 | AJ46: 0 | AK46: 0 | AO46: 0 | AP46: 0 | AQ46: 0 | AZ46: =IF(Expectativa_Filho_2_Incrementada<>"",IF(Pensao_Vitalicia_Filho_2="SIM",TRUNC(Expectativa_Filho_2_Incrementada,0)*12 + ROUND(((Expectativa_Filho_2_Incrementada - TRUNC(Expectativa_Filho_2_Incrementada,0)) * 12),0),(21 - Idade_Filho_2_Incrementada)*12),0) -> 0
B47: 44 | C47: AGO | D47: 44 | E47: 0.8283547798 | F47: 0 | Q47: 0 | R47: 0 | S47: 0 | W47: 0 | X47: 0 | Y47: 0 | AC47: 0 | AD47: 0 | AE47: 0 | AI47: 0 | AJ47: 0 | AK47: 0 | AO47: 0 | AP47: 0 | AQ47: 0
B48: 45 | C48: SET | D48: 45 | E48: 0.824817115 | F48: 0 | Q48: 0 | R48: 0 | S48: 0 | W48: 0 | X48: 0 | Y48: 0 | AC48: 0 | AD48: 0 | AE48: 0 | AI48: 0 | AJ48: 0 | AK48: 0 | AO48: 0 | AP48: 0 | AQ48: 0 | AZ48: Idade Filho 3 Incrementada
B49: 46 | C49: OUT | D49: 46 | E49: 0.8212945585 | F49: 0 | Q49: 0 | R49: 0 | S49: 0 | W49: 0 | X49: 0 | Y49: 0 | AC49: 0 | AD49: 0 | AE49: 0 | AI49: 0 | AJ49: 0 | AK49: 0 | AO49: 0 | AP49: 0 | AQ49: 0 | AZ49: =IF(AND(Data_Base_Incrementada<>"",Data_Nascimento_Filho_3<>""),IF(DATEDIF(Data_Nascimento_Filho_3,Data_Base_Incrementada,"Y")<=116,DATEDIF(Data_Nascimento_Filho_3,Data_Base_Incrementada,"Y"),116),"") -> 
B50: 47 | C50: NOV | D50: 47 | E50: 0.8177870459 | F50: 0.8177870459 | Q50: 0 | R50: 0 | S50: 0 | W50: 0 | X50: 0 | Y50: 0 | AC50: 0 | AD50: 0 | AE50: 0 | AI50: 0 | AJ50: 0 | AK50: 0 | AO50: 0 | AP50: 0 | AQ50: 0
B51: 48 | C51: DEZ | D51: 48 | E51: 0.8142945128 | F51: 0 | Q51: 0 | R51: 0 | S51: 0 | W51: 0 | X51: 0 | Y51: 0 | AC51: 0 | AD51: 0 | AE51: 0 | AI51: 0 | AJ51: 0 | AK51: 0 | AO51: 0 | AP51: 0 | AQ51: 0 | AZ51: Expectativa Filho 3 Incrementada
B52: 49 | C52: JAN | D52: 49 | E52: 0.8108168953 | F52: 0 | Q52: 0 | R52: 0 | S52: 0 | W52: 0 | X52: 0 | Y52: 0 | AC52: 0 | AD52: 0 | AE52: 0 | AI52: 0 | AJ52: 0 | AK52: 0 | AO52: 0 | AP52: 0 | AQ52: 0 | AZ52: =IF(AND(Idade_Filho_3_Incrementada<>"",Idade_Filho_3_Incrementada>=18),IF(Plano=Nao_Repactuado,VLOOKUP(Idade_Filho_3_Incrementada,Tabua_Mortalidade,5,FALSE),IF(Plano=Repactuado,VLOOKUP(Idade_Filho_3_Incrementada,Tabua_Mortalidade,3,FALSE),"")),IF(Idade_Filho_3_Incrementada<18,67,"")) -> 
B53: 50 | C53: FEV | D53: 50 | E53: 0.8073541297 | F53: 0 | Q53: 0 | R53: 0 | S53: 0 | W53: 0 | X53: 0 | Y53: 0 | AC53: 0 | AD53: 0 | AE53: 0 | AI53: 0 | AJ53: 0 | AK53: 0 | AO53: 0 | AP53: 0 | AQ53: 0
B54: 51 | C54: MAR | D54: 51 | E54: 0.8039061527 | F54: 0 | Q54: 0 | R54: 0 | S54: 0 | W54: 0 | X54: 0 | Y54: 0 | AC54: 0 | AD54: 0 | AE54: 0 | AI54: 0 | AJ54: 0 | AK54: 0 | AO54: 0 | AP54: 0 | AQ54: 0 | AZ54: Quant.Incrementada Benefícios Filho 3
B55: 52 | C55: ABR | D55: 52 | E55: 0.8004729009 | F55: 0 | Q55: 0 | R55: 0 | S55: 0 | W55: 0 | X55: 0 | Y55: 0 | AC55: 0 | AD55: 0 | AE55: 0 | AI55: 0 | AJ55: 0 | AK55: 0 | AO55: 0 | AP55: 0 | AQ55: 0 | AZ55: =IF(Expectativa_Filho_3_Incrementada<>"",IF(Pensao_Vitalicia_Filho_3="SIM",TRUNC(Expectativa_Filho_3_Incrementada,0)*12 + ROUND(((Expectativa_Filho_3_Incrementada - TRUNC(Expectativa_Filho_3_Incrementada,0)) * 12),0),(21 - Idade_Filho_3_Incrementada)*12),0) -> 0
B56: 53 | C56: MAI | D56: 53 | E56: 0.7970543115 | F56: 0 | Q56: 0 | R56: 0 | S56: 0 | W56: 0 | X56: 0 | Y56: 0 | AC56: 0 | AD56: 0 | AE56: 0 | AI56: 0 | AJ56: 0 | AK56: 0 | AO56: 0 | AP56: 0 | AQ56: 0
B57: 54 | C57: JUN | D57: 54 | E57: 0.793650322 | F57: 0 | Q57: 0 | R57: 0 | S57: 0 | W57: 0 | X57: 0 | Y57: 0 | AC57: 0 | AD57: 0 | AE57: 0 | AI57: 0 | AJ57: 0 | AK57: 0 | AO57: 0 | AP57: 0 | AQ57: 0 | AZ57: Idade Filho 4 Incrementada
B58: 55 | C58: JUL | D58: 55 | E58: 0.7902608699 | F58: 0 | Q58: 0 | R58: 0 | S58: 0 | W58: 0 | X58: 0 | Y58: 0 | AC58: 0 | AD58: 0 | AE58: 0 | AI58: 0 | AJ58: 0 | AK58: 0 | AO58: 0 | AP58: 0 | AQ58: 0 | AZ58: =IF(AND(Data_Base_Incrementada<>"",Data_Nascimento_Filho_4<>""),IF(DATEDIF(Data_Nascimento_Filho_4,Data_Base_Incrementada,"Y")<=116,DATEDIF(Data_Nascimento_Filho_4,Data_Base_Incrementada,"Y"),116),"") -> 
B59: 56 | C59: AGO | D59: 56 | E59: 0.7868858932 | F59: 0 | Q59: 0 | R59: 0 | S59: 0 | W59: 0 | X59: 0 | Y59: 0 | AC59: 0 | AD59: 0 | AE59: 0 | AI59: 0 | AJ59: 0 | AK59: 0 | AO59: 0 | AP59: 0 | AQ59: 0
B60: 57 | C60: SET | D60: 57 | E60: 0.7835253301 | F60: 0 | Q60: 0 | R60: 0 | S60: 0 | W60: 0 | X60: 0 | Y60: 0 | AC60: 0 | AD60: 0 | AE60: 0 | AI60: 0 | AJ60: 0 | AK60: 0 | AO60: 0 | AP60: 0 | AQ60: 0 | AZ60: Expectativa Filho 4 Incrementada
B61: 58 | C61: OUT | D61: 58 | E61: 0.7801791189 | F61: 0 | Q61: 0 | R61: 0 | S61: 0 | W61: 0 | X61: 0 | Y61: 0 | AC61: 0 | AD61: 0 | AE61: 0 | AI61: 0 | AJ61: 0 | AK61: 0 | AO61: 0 | AP61: 0 | AQ61: 0 | AZ61: =IF(AND(Idade_Filho_4_Incrementada<>"",Idade_Filho_4_Incrementada>=18),IF(Plano=Nao_Repactuado,VLOOKUP(Idade_Filho_4_Incrementada,Tabua_Mortalidade,5,FALSE),IF(Plano=Repactuado,VLOOKUP(Idade_Filho_4_Incrementada,Tabua_Mortalidade,3,FALSE),"")),IF(Idade_Filho_4_Incrementada<18,67,"")) -> 
B62: 59 | C62: NOV | D62: 59 | E62: 0.7768471985 | F62: 0.7768471985 | Q62: 0 | R62: 0 | S62: 0 | W62: 0 | X62: 0 | Y62: 0 | AC62: 0 | AD62: 0 | AE62: 0 | AI62: 0 | AJ62: 0 | AK62: 0 | AO62: 0 | AP62: 0 | AQ62: 0
B63: 60 | C63: DEZ | D63: 60 | E63: 0.7735295077 | F63: 0 | Q63: 0 | R63: 0 | S63: 0 | W63: 0 | X63: 0 | Y63: 0 | AC63: 0 | AD63: 0 | AE63: 0 | AI63: 0 | AJ63: 0 | AK63: 0 | AO63: 0 | AP63: 0 | AQ63: 0 | AZ63: Quant.Incrementada Benefícios Filho 4
B64: 61 | C64: JAN | D64: 61 | E64: 0.7702259859 | F64: 0 | Q64: 0 | R64: 0 | S64: 0 | W64: 0 | X64: 0 | Y64: 0 | AC64: 0 | AD64: 0 | AE64: 0 | AI64: 0 | AJ64: 0 | AK64: 0 | AO64: 0 | AP64: 0 | AQ64: 0 | AZ64: =IF(Expectativa_Filho_4_Incrementada<>"",IF(Pensao_Vitalicia_Filho_4="SIM",TRUNC(Expectativa_Filho_4_Incrementada,0)*12 + ROUND(((Expectativa_Filho_4_Incrementada - TRUNC(Expectativa_Filho_4_Incrementada,0)) * 12),0),(21 - Idade_Filho_4_Incrementada)*12),0) -> 0
B65: 62 | C65: FEV | D65: 62 | E65: 0.7669365724 | F65: 0 | Q65: 0 | R65: 0 | S65: 0 | W65: 0 | X65: 0 | Y65: 0 | AC65: 0 | AD65: 0 | AE65: 0 | AI65: 0 | AJ65: 0 | AK65: 0 | AO65: 0 | AP65: 0 | AQ65: 0
B66: 63 | C66: MAR | D66: 63 | E66: 0.763661207 | F66: 0 | Q66: 0 | R66: 0 | S66: 0 | W66: 0 | X66: 0 | Y66: 0 | AC66: 0 | AD66: 0 | AE66: 0 | AI66: 0 | AJ66: 0 | AK66: 0 | AO66: 0 | AP66: 0 | AQ66: 0 | AZ66: Quant.Incrementada Benefícios Principal
B67: 64 | C67: ABR | D67: 64 | E67: 0.7603998298 | F67: 0 | I67: =IF(AND(Plano=Nao_Repactuado,G67<=116),VLOOKUP(G67,Tabua_Mortalidade,4),IF(AND(Plano=Repactuado,G67<=116),VLOOKUP(G67,Tabua_Mortalidade,2),"")) ->  | P67: =IF(AND(Plano=Nao_Repactuado,N67<=116),VLOOKUP(N67,Tabua_Mortalidade,4),IF(AND(Plano=Repactuado,N67<=116),VLOOKUP(N67,Tabua_Mortalidade,2),"")) ->  | Q67: 0 | R67: 0 | S67: 0 | V67: =IF(AND(Plano=Nao_Repactuado,T67>=18,T67<=116),VLOOKUP(T67,Tabua_Mortalidade,4),IF(AND(Plano=Repactuado,T67>=18,T67<=116),VLOOKUP(T67,Tabua_Mortalidade,2),IF(T67<18,IF(Plano=Nao_Repactuado,1000000,IF(Plano=Repactuado,10000000,"")),""))) ->  | W67: 0 | X67: 0 | Y67: 0 | AB67: =IF(AND(Plano=Nao_Repactuado,Z67>=18,Z67<=116),VLOOKUP(Z67,Tabua_Mortalidade,4),IF(AND(Plano=Repactuado,Z67>=18,Z67<=116),VLOOKUP(Z67,Tabua_Mortalidade,2),IF(Z67<18,IF(Plano=Nao_Repactuado,1000000,IF(Plano=Repactuado,10000000,"")),""))) ->  | AC67: 0 | AD67: 0 | AE67: 0 | AI67: 0 | AJ67: 0 | AK67: 0 | AN67: =IF(AND(Plano=Nao_Repactuado,AL67>=18,AL67<=116),VLOOKUP(AL67,Tabua_Mortalidade,4),IF(AND(Plano=Repactuado,AL67>=18,AL67<=116),VLOOKUP(AL67,Tabua_Mortalidade,2),IF(AL67<18,IF(Plano=Nao_Repactuado,1000000,IF(Plano=Repactuado,10000000,"")),""))) ->  | AO67: 0 | AP67: 0 | AQ67: 0 | AZ67: =MAX(Quantidade_Incrementada_Beneficios_Participante,Quantidade_Incrementada_Beneficios_Conjuge,Quantidade_Incrementada_Beneficios_Filho_1,Quantidade_Incrementada_Beneficios_Filho_2,Quantidade_Incrementada_Beneficios_Filho_3,Quantidade_Incrementada_Beneficios_Filho_4) -> 0
B68: 65 | C68: MAI | D68: =IF(B68>=Mes_Inicio_Serie_Beneficio_PP3,(B68-Mes_Inicio_Serie_Beneficio_PP3+1),"") -> 65 | E68: =IF(Mes_Inicio_Serie_Beneficio_PP3<>"",IF(B68>=Mes_Inicio_Serie_Beneficio_PP3,1/((1+Rentabilidade_Mensal_PP3)^D68),IF(B68=Mes_Inicio_Serie_Beneficio_PP3 - 1,1,"")),"") -> 0.7571523811 | F68: =IF(B68>=Mes_Inicio_Serie_Beneficio_PP3,IF(AND(E68<>"",C68="NOV"),E68,0),"") -> 0 | G68: =IF(G67<>"",IF(MOD(B68,12)=Mes_Nascimento_Participante,G67+1,G67),"") ->  | K68: =IF(J68<>"",1 - J68,"") ->  | N68: =IF(N67<>"",IF(MOD(B68,12)=Mes_Nascimento_Conjuge,N67+1,N67),"") ->  | Q68: =IF(AND(P$3<>"",P69<>""),P69/P$3,0) -> 0 | R68: 0 | S68: 0 | T68: =IF(T67<>"",IF(MOD($B68,12)=Mes_Nascimento_Filho_1,T67+1,T67),"") ->  | W68: =IF(AND(V$3<>"",V69<>"",OR(T68<21,Pensao_Vitalicia_Filho_1="SIM")),V69/V$3,0) -> 0 | X68: 0 | Y68: 0 | Z68: =IF(Z67<>"",IF(MOD($B68,12)=Mes_Nascimento_Filho_2,Z67+1,Z67),"") ->  | AC68: =IF(AND(AB$3<>"",AB69<>"",OR(Z68<21,Pensao_Vitalicia_Filho_2="SIM")),AB69/AB$3,0) -> 0 | AD68: 0 | AE68: 0 | AF68: =IF(AF67<>"",IF(MOD($B68,12)=Mes_Nascimento_Filho_3,AF67+1,AF67),"") ->  | AH68: =IF(AND(Plano=Nao_Repactuado,AF68>=18,AF68<=116),VLOOKUP(AF68,Tabua_Mortalidade,4),IF(AND(Plano=Repactuado,AF68>=18,AF68<=116),VLOOKUP(AF68,Tabua_Mortalidade,2),IF(AF68<18,IF(Plano=Nao_Repactuado,1000000,IF(Plano=Repactuado,10000000,"")),""))) ->  | AI68: =IF(AND(AH$3<>"",AH69<>"",OR(AF68<21,Pensao_Vitalicia_Filho_3="SIM")),AH69/AH$3,0) -> 0 | AJ68: 0 | AK68: 0 | AL68: =IF(AL67<>"",IF(MOD($B68,12)=Mes_Nascimento_Filho_4,AL67+1,AL67),"") ->  | AO68: =IF(AND(AN$3<>"",AN69<>"",OR(AL68<21,Pensao_Vitalicia_Filho_4="SIM")),AN69/AN$3,0) -> 0 | AP68: 0 | AQ68: 0
B69: 66 | C69: =IF(MOD(B69,12)=1,"JAN",IF(MOD(B69,12)=2,"FEV",IF(MOD(B69,12)=3,"MAR",IF(MOD(B69,12)=4,"ABR",IF(MOD(B69,12)=5,"MAI",IF(MOD(B69,12)=6,"JUN",IF(MOD(B69,12)=7,"JUL",IF(MOD(B69,12)=8,"AGO",IF(MOD(B69,12)=9,"SET",IF(MOD(B69,12)=10,"OUT",IF(MOD(B69,12)=11,"NOV",IF(MOD(B69,12)=0,"DEZ","")))))))))))) -> JUN | D69: 66 | E69: 0.7539188012 | F69: 0 | H69: =IF(H68<>"",IF((H68+1)=12,0,H68+1),"") ->  | J69: =IF(AND(I$3<>"",I70<>""),I70/I$3,"") ->  | L69: =IF(AND(E69<>"",J69<>""),E69 * J69,"") ->  | M69: =IF(AND(F69<>"",J69<>""),F69 * J69,"") ->  | O69: =IF(O68<>"",IF((O68+1)=12,0,O68+1),"") ->  | Q69: 0 | R69: =IF(AND($E69<>"",Q69<>""),$E69 * Q69,"") -> 0 | S69: =IF(AND($F69<>"",Q69<>""),$F69 * Q69,"") -> 0 | U69: =IF(U68<>"",IF((U68+1)=12,0,U68+1),"") ->  | W69: 0 | X69: =IF(AND($E69<>"",W69<>""),$E69 * W69,"") -> 0 | Y69: =IF(AND($F69<>"",W69<>""),$F69 * W69,"") -> 0 | AA69: =IF(AA68<>"",IF((AA68+1)=12,0,AA68+1),"") ->  | AC69: 0 | AD69: =IF(AND($E69<>"",AC69<>""),$E69 * AC69,"") -> 0 | AE69: =IF(AND($F69<>"",AC69<>""),$F69 * AC69,"") -> 0 | AG69: =IF(AG68<>"",IF((AG68+1)=12,0,AG68+1),"") ->  | AI69: 0 | AJ69: =IF(AND($E69<>"",AI69<>""),$E69 * AI69,"") -> 0 | AK69: =IF(AND($F69<>"",AI69<>""),$F69 * AI69,"") -> 0 | AM69: =IF(AM68<>"",IF((AM68+1)=12,0,AM68+1),"") ->  | AO69: 0 | AP69: =IF(AND($E69<>"",AO69<>""),$E69 * AO69,"") -> 0 | AQ69: =IF(AND($F69<>"",AO69<>""),$F69 * AO69,"") -> 0 | BA69: Quant. Incr. Benef. | BB69: Coluna Benefício | BC69: Coluna Abono
B70: 67 | C70: JUL | D70: 67 | E70: 0.750699031 | F70: 0 | Q70: 0 | R70: 0 | S70: 0 | W70: 0 | X70: 0 | Y70: 0 | AC70: 0 | AD70: 0 | AE70: 0 | AI70: 0 | AJ70: 0 | AK70: 0 | AO70: 0 | AP70: 0 | AQ70: 0 | AZ70: Participante | BA70: =Quantidade_Incrementada_Beneficios_Participante -> 0 | BB70: =SUBSTITUTE(ADDRESS(ROW(Fator_Beneficio_Participante),COLUMN(Fator_Beneficio_Participante),4),ROW(Fator_Beneficio_Participante),"") -> L | BC70: =SUBSTITUTE(ADDRESS(ROW(Fator_Abono_Participante),COLUMN(Fator_Abono_Participante),4),ROW(Fator_Abono_Participante),"") -> M
B71: 68 | C71: AGO | D71: 68 | E71: 0.7474930115 | F71: 0 | Q71: 0 | R71: 0 | S71: 0 | W71: 0 | X71: 0 | Y71: 0 | AC71: 0 | AD71: 0 | AE71: 0 | AI71: 0 | AJ71: 0 | AK71: 0 | AO71: 0 | AP71: 0 | AQ71: 0 | AZ71: Cônjuge | BA71: =Quantidade_Incrementada_Beneficios_Conjuge -> 0 | BB71: =SUBSTITUTE(ADDRESS(ROW(Fator_Beneficio_Conjuge),COLUMN(Fator_Beneficio_Conjuge),4),ROW(Fator_Beneficio_Conjuge),"") -> R | BC71: =SUBSTITUTE(ADDRESS(ROW(Fator_Abono_Conjuge),COLUMN(Fator_Abono_Conjuge),4),ROW(Fator_Abono_Conjuge),"") -> S
B72: 69 | C72: SET | D72: 69 | E72: 0.744300684 | F72: 0 | Q72: 0 | R72: 0 | S72: 0 | W72: 0 | X72: 0 | Y72: 0 | AC72: 0 | AD72: 0 | AE72: 0 | AI72: 0 | AJ72: 0 | AK72: 0 | AO72: 0 | AP72: 0 | AQ72: 0 | AZ72: Filho 1 | BA72: =Quantidade_Incrementada_Beneficios_Filho_1 -> 0 | BB72: =SUBSTITUTE(ADDRESS(ROW(Fator_Beneficio_Filho_1),COLUMN(Fator_Beneficio_Filho_1),4),ROW(Fator_Beneficio_Filho_1),"") -> X | BC72: =SUBSTITUTE(ADDRESS(ROW(Fator_Abono_Filho_1),COLUMN(Fator_Abono_Filho_1),4),ROW(Fator_Abono_Filho_1),"") -> Y
B73: 70 | C73: OUT | D73: 70 | E73: 0.7411219901 | F73: 0 | Q73: 0 | R73: 0 | S73: 0 | W73: 0 | X73: 0 | Y73: 0 | AC73: 0 | AD73: 0 | AE73: 0 | AI73: 0 | AJ73: 0 | AK73: 0 | AO73: 0 | AP73: 0 | AQ73: 0 | AZ73: Filho 2 | BA73: =Quantidade_Incrementada_Beneficios_Filho_2 -> 0 | BB73: =SUBSTITUTE(ADDRESS(ROW(Fator_Beneficio_Filho_2),COLUMN(Fator_Beneficio_Filho_2),4),ROW(Fator_Beneficio_Filho_2),"") -> AD | BC73: =SUBSTITUTE(ADDRESS(ROW(Fator_Abono_Filho_2),COLUMN(Fator_Abono_Filho_2),4),ROW(Fator_Abono_Filho_2),"") -> AE
B74: 71 | C74: NOV | D74: 71 | E74: 0.7379568714 | F74: 0.7379568714 | Q74: 0 | R74: 0 | S74: 0 | W74: 0 | X74: 0 | Y74: 0 | AC74: 0 | AD74: 0 | AE74: 0 | AI74: 0 | AJ74: 0 | AK74: 0 | AO74: 0 | AP74: 0 | AQ74: 0 | AZ74: Filho 3 | BA74: =Quantidade_Incrementada_Beneficios_Filho_3 -> 0 | BB74: =SUBSTITUTE(ADDRESS(ROW(Fator_Beneficio_Filho_3),COLUMN(Fator_Beneficio_Filho_3),4),ROW(Fator_Beneficio_Filho_3),"") -> AJ | BC74: =SUBSTITUTE(ADDRESS(ROW(Fator_Abono_Filho_3),COLUMN(Fator_Abono_Filho_3),4),ROW(Fator_Abono_Filho_3),"") -> AK
B75: 72 | C75: DEZ | D75: 72 | E75: 0.73480527 | F75: 0 | Q75: 0 | R75: 0 | S75: 0 | W75: 0 | X75: 0 | Y75: 0 | AC75: 0 | AD75: 0 | AE75: 0 | AI75: 0 | AJ75: 0 | AK75: 0 | AO75: 0 | AP75: 0 | AQ75: 0 | AZ75: Filho 4 | BA75: =Quantidade_Incrementada_Beneficios_Filho_4 -> 0 | BB75: =SUBSTITUTE(ADDRESS(ROW(Fator_Beneficio_Filho_4),COLUMN(Fator_Beneficio_Filho_4),4),ROW(Fator_Beneficio_Filho_4),"") -> AP | BC75: =SUBSTITUTE(ADDRESS(ROW(Fator_Abono_Filho_4),COLUMN(Fator_Abono_Filho_4),4),ROW(Fator_Abono_Filho_4),"") -> AQ
B76: 73 | C76: JAN | D76: 73 | E76: 0.7316671282 | F76: 0 | Q76: 0 | R76: 0 | S76: 0 | W76: 0 | X76: 0 | Y76: 0 | AC76: 0 | AD76: 0 | AE76: 0 | AI76: 0 | AJ76: 0 | AK76: 0 | AO76: 0 | AP76: 0 | AQ76: 0
B77: 74 | C77: FEV | D77: 74 | E77: 0.7285423885 | F77: 0 | Q77: 0 | R77: 0 | S77: 0 | W77: 0 | X77: 0 | Y77: 0 | AC77: 0 | AD77: 0 | AE77: 0 | AI77: 0 | AJ77: 0 | AK77: 0 | AO77: 0 | AP77: 0 | AQ77: 0
B78: 75 | C78: MAR | D78: 75 | E78: 0.7254309937 | F78: 0 | Q78: 0 | R78: 0 | S78: 0 | W78: 0 | X78: 0 | Y78: 0 | AC78: 0 | AD78: 0 | AE78: 0 | AI78: 0 | AJ78: 0 | AK78: 0 | AO78: 0 | AP78: 0 | AQ78: 0 | BB78: Coluna Beneficio | BC78: Coluna Abono
B79: 76 | C79: ABR | D79: 76 | E79: 0.7223328867 | F79: 0 | Q79: 0 | R79: 0 | S79: 0 | W79: 0 | X79: 0 | Y79: 0 | AC79: 0 | AD79: 0 | AE79: 0 | AI79: 0 | AJ79: 0 | AK79: 0 | AO79: 0 | AP79: 0 | AQ79: 0 | BB79: =IF(Quantidade_Incrementada_Beneficios_Principal<>0,VLOOKUP(Quantidade_Incrementada_Beneficios_Principal,Tabela_Letra_Coluna,2,FALSE),"") ->  | BC79: =IF(Quantidade_Incrementada_Beneficios_Principal<>0,VLOOKUP(Quantidade_Incrementada_Beneficios_Principal,Tabela_Letra_Coluna,3,FALSE),"") -> 
B80: 77 | C80: MAI | D80: 77 | E80: 0.7192480109 | F80: 0 | Q80: 0 | R80: 0 | S80: 0 | W80: 0 | X80: 0 | Y80: 0 | AC80: 0 | AD80: 0 | AE80: 0 | AI80: 0 | AJ80: 0 | AK80: 0 | AO80: 0 | AP80: 0 | AQ80: 0
B81: 78 | C81: JUN | D81: 78 | E81: 0.7161763097 | F81: 0 | Q81: 0 | R81: 0 | S81: 0 | W81: 0 | X81: 0 | Y81: 0 | AC81: 0 | AD81: 0 | AE81: 0 | AI81: 0 | AJ81: 0 | AK81: 0 | AO81: 0 | AP81: 0 | AQ81: 0
B82: 79 | C82: JUL | D82: 79 | E82: 0.7131177268 | F82: 0 | Q82: 0 | R82: 0 | S82: 0 | W82: 0 | X82: 0 | Y82: 0 | AC82: 0 | AD82: 0 | AE82: 0 | AI82: 0 | AJ82: 0 | AK82: 0 | AO82: 0 | AP82: 0 | AQ82: 0
B83: 80 | C83: AGO | D83: 80 | E83: 0.7100722063 | F83: 0 | Q83: 0 | R83: 0 | S83: 0 | W83: 0 | X83: 0 | Y83: 0 | AC83: 0 | AD83: 0 | AE83: 0 | AI83: 0 | AJ83: 0 | AK83: 0 | AO83: 0 | AP83: 0 | AQ83: 0
B84: 81 | C84: SET | D84: 81 | E84: 0.7070396923 | F84: 0 | Q84: 0 | R84: 0 | S84: 0 | W84: 0 | X84: 0 | Y84: 0 | AC84: 0 | AD84: 0 | AE84: 0 | AI84: 0 | AJ84: 0 | AK84: 0 | AO84: 0 | AP84: 0 | AQ84: 0
B85: 82 | C85: OUT | D85: 82 | E85: 0.7040201293 | F85: 0 | Q85: 0 | R85: 0 | S85: 0 | W85: 0 | X85: 0 | Y85: 0 | AC85: 0 | AD85: 0 | AE85: 0 | AI85: 0 | AJ85: 0 | AK85: 0 | AO85: 0 | AP85: 0 | AQ85: 0
B86: 83 | C86: NOV | D86: 83 | E86: 0.7010134619 | F86: 0.7010134619 | Q86: 0 | R86: 0 | S86: 0 | W86: 0 | X86: 0 | Y86: 0 | AC86: 0 | AD86: 0 | AE86: 0 | AI86: 0 | AJ86: 0 | AK86: 0 | AO86: 0 | AP86: 0 | AQ86: 0
B87: 84 | C87: DEZ | D87: 84 | E87: 0.6980196352 | F87: 0 | Q87: 0 | R87: 0 | S87: 0 | W87: 0 | X87: 0 | Y87: 0 | AC87: 0 | AD87: 0 | AE87: 0 | AI87: 0 | AJ87: 0 | AK87: 0 | AO87: 0 | AP87: 0 | AQ87: 0
B88: 85 | C88: JAN | D88: 85 | E88: 0.6950385943 | F88: 0 | Q88: 0 | R88: 0 | S88: 0 | W88: 0 | X88: 0 | Y88: 0 | AC88: 0 | AD88: 0 | AE88: 0 | AI88: 0 | AJ88: 0 | AK88: 0 | AO88: 0 | AP88: 0 | AQ88: 0
B89: 86 | C89: FEV | D89: 86 | E89: 0.6920702845 | F89: 0 | Q89: 0 | R89: 0 | S89: 0 | W89: 0 | X89: 0 | Y89: 0 | AC89: 0 | AD89: 0 | AE89: 0 | AI89: 0 | AJ89: 0 | AK89: 0 | AO89: 0 | AP89: 0 | AQ89: 0
B90: 87 | C90: MAR | D90: 87 | E90: 0.6891146515 | F90: 0 | Q90: 0 | R90: 0 | S90: 0 | W90: 0 | X90: 0 | Y90: 0 | AC90: 0 | AD90: 0 | AE90: 0 | AI90: 0 | AJ90: 0 | AK90: 0 | AO90: 0 | AP90: 0 | AQ90: 0
B91: 88 | C91: ABR | D91: 88 | E91: 0.6861716412 | F91: 0 | Q91: 0 | R91: 0 | S91: 0 | W91: 0 | X91: 0 | Y91: 0 | AC91: 0 | AD91: 0 | AE91: 0 | AI91: 0 | AJ91: 0 | AK91: 0 | AO91: 0 | AP91: 0 | AQ91: 0
B92: 89 | C92: MAI | D92: 89 | E92: 0.6832411997 | F92: 0 | Q92: 0 | R92: 0 | S92: 0 | W92: 0 | X92: 0 | Y92: 0 | AC92: 0 | AD92: 0 | AE92: 0 | AI92: 0 | AJ92: 0 | AK92: 0 | AO92: 0 | AP92: 0 | AQ92: 0
B93: 90 | C93: JUN | D93: 90 | E93: 0.6803232732 | F93: 0 | Q93: 0 | R93: 0 | S93: 0 | W93: 0 | X93: 0 | Y93: 0 | AC93: 0 | AD93: 0 | AE93: 0 | AI93: 0 | AJ93: 0 | AK93: 0 | AO93: 0 | AP93: 0 | AQ93: 0
B94: 91 | C94: JUL | D94: 91 | E94: 0.6774178083 | F94: 0 | Q94: 0 | R94: 0 | S94: 0 | W94: 0 | X94: 0 | Y94: 0 | AC94: 0 | AD94: 0 | AE94: 0 | AI94: 0 | AJ94: 0 | AK94: 0 | AO94: 0 | AP94: 0 | AQ94: 0
B95: 92 | C95: AGO | D95: 92 | E95: 0.6745247518 | F95: 0 | Q95: 0 | R95: 0 | S95: 0 | W95: 0 | X95: 0 | Y95: 0 | AC95: 0 | AD95: 0 | AE95: 0 | AI95: 0 | AJ95: 0 | AK95: 0 | AO95: 0 | AP95: 0 | AQ95: 0
B96: 93 | C96: SET | D96: 93 | E96: 0.6716440508 | F96: 0 | Q96: 0 | R96: 0 | S96: 0 | W96: 0 | X96: 0 | Y96: 0 | AC96: 0 | AD96: 0 | AE96: 0 | AI96: 0 | AJ96: 0 | AK96: 0 | AO96: 0 | AP96: 0 | AQ96: 0
B97: 94 | C97: OUT | D97: 94 | E97: 0.6687756524 | F97: 0 | Q97: 0 | R97: 0 | S97: 0 | W97: 0 | X97: 0 | Y97: 0 | AC97: 0 | AD97: 0 | AE97: 0 | AI97: 0 | AJ97: 0 | AK97: 0 | AO97: 0 | AP97: 0 | AQ97: 0
B98: 95 | C98: NOV | D98: 95 | E98: 0.6659195041 | F98: 0.6659195041 | Q98: 0 | R98: 0 | S98: 0 | W98: 0 | X98: 0 | Y98: 0 | AC98: 0 | AD98: 0 | AE98: 0 | AI98: 0 | AJ98: 0 | AK98: 0 | AO98: 0 | AP98: 0 | AQ98: 0
B99: 96 | C99: DEZ | D99: 96 | E99: 0.6630755535 | F99: 0 | Q99: 0 | R99: 0 | S99: 0 | W99: 0 | X99: 0 | Y99: 0 | AC99: 0 | AD99: 0 | AE99: 0 | AI99: 0 | AJ99: 0 | AK99: 0 | AO99: 0 | AP99: 0 | AQ99: 0
B100: 97 | C100: JAN | D100: 97 | E100: 0.6602437487 | F100: 0 | Q100: 0 | R100: 0 | S100: 0 | W100: 0 | X100: 0 | Y100: 0 | AC100: 0 | AD100: 0 | AE100: 0 | AI100: 0 | AJ100: 0 | AK100: 0 | AO100: 0 | AP100: 0 | AQ100: 0
B101: 98 | C101: FEV | D101: 98 | E101: 0.6574240377 | F101: 0 | Q101: 0 | R101: 0 | S101: 0 | W101: 0 | X101: 0 | Y101: 0 | AC101: 0 | AD101: 0 | AE101: 0 | AI101: 0 | AJ101: 0 | AK101: 0 | AO101: 0 | AP101: 0 | AQ101: 0
B102: 99 | C102: MAR | D102: 99 | E102: 0.6546163689 | F102: 0 | Q102: 0 | R102: 0 | S102: 0 | W102: 0 | X102: 0 | Y102: 0 | AC102: 0 | AD102: 0 | AE102: 0 | AI102: 0 | AJ102: 0 | AK102: 0 | AO102: 0 | AP102: 0 | AQ102: 0
B103: 100 | C103: ABR | D103: 100 | E103: 0.6518206908 | F103: 0 | Q103: 0 | R103: 0 | S103: 0 | W103: 0 | X103: 0 | Y103: 0 | AC103: 0 | AD103: 0 | AE103: 0 | AI103: 0 | AJ103: 0 | AK103: 0 | AO103: 0 | AP103: 0 | AQ103: 0
B104: 101 | C104: MAI | D104: 101 | E104: 0.6490369523 | F104: 0 | Q104: 0 | R104: 0 | S104: 0 | W104: 0 | X104: 0 | Y104: 0 | AC104: 0 | AD104: 0 | AE104: 0 | AI104: 0 | AJ104: 0 | AK104: 0 | AO104: 0 | AP104: 0 | AQ104: 0
B105: 102 | C105: JUN | D105: 102 | E105: 0.6462651023 | F105: 0 | Q105: 0 | R105: 0 | S105: 0 | W105: 0 | X105: 0 | Y105: 0 | AC105: 0 | AD105: 0 | AE105: 0 | AI105: 0 | AJ105: 0 | AK105: 0 | AO105: 0 | AP105: 0 | AQ105: 0
B106: 103 | C106: JUL | D106: 103 | E106: 0.6435050901 | F106: 0 | Q106: 0 | R106: 0 | S106: 0 | W106: 0 | X106: 0 | Y106: 0 | AC106: 0 | AD106: 0 | AE106: 0 | AI106: 0 | AJ106: 0 | AK106: 0 | AO106: 0 | AP106: 0 | AQ106: 0
B107: 104 | C107: AGO | D107: 104 | E107: 0.640756865 | F107: 0 | Q107: 0 | R107: 0 | S107: 0 | W107: 0 | X107: 0 | Y107: 0 | AC107: 0 | AD107: 0 | AE107: 0 | AI107: 0 | AJ107: 0 | AK107: 0 | AO107: 0 | AP107: 0 | AQ107: 0
B108: 105 | C108: SET | D108: 105 | E108: 0.6380203769 | F108: 0 | Q108: 0 | R108: 0 | S108: 0 | W108: 0 | X108: 0 | Y108: 0 | AC108: 0 | AD108: 0 | AE108: 0 | AI108: 0 | AJ108: 0 | AK108: 0 | AO108: 0 | AP108: 0 | AQ108: 0
B109: 106 | C109: OUT | D109: 106 | E109: 0.6352955755 | F109: 0 | Q109: 0 | R109: 0 | S109: 0 | W109: 0 | X109: 0 | Y109: 0 | AC109: 0 | AD109: 0 | AE109: 0 | AI109: 0 | AJ109: 0 | AK109: 0 | AO109: 0 | AP109: 0 | AQ109: 0
B110: 107 | C110: NOV | D110: 107 | E110: 0.632582411 | F110: 0.632582411 | Q110: 0 | R110: 0 | S110: 0 | W110: 0 | X110: 0 | Y110: 0 | AC110: 0 | AD110: 0 | AE110: 0 | AI110: 0 | AJ110: 0 | AK110: 0 | AO110: 0 | AP110: 0 | AQ110: 0
B111: 108 | C111: DEZ | D111: 108 | E111: 0.6298808336 | F111: 0 | Q111: 0 | R111: 0 | S111: 0 | W111: 0 | X111: 0 | Y111: 0 | AC111: 0 | AD111: 0 | AE111: 0 | AI111: 0 | AJ111: 0 | AK111: 0 | AO111: 0 | AP111: 0 | AQ111: 0
B112: 109 | C112: JAN | D112: 109 | E112: 0.6271907939 | F112: 0 | Q112: 0 | R112: 0 | S112: 0 | W112: 0 | X112: 0 | Y112: 0 | AC112: 0 | AD112: 0 | AE112: 0 | AI112: 0 | AJ112: 0 | AK112: 0 | AO112: 0 | AP112: 0 | AQ112: 0
B113: 110 | C113: FEV | D113: 110 | E113: 0.6245122425 | F113: 0 | Q113: 0 | R113: 0 | S113: 0 | W113: 0 | X113: 0 | Y113: 0 | AC113: 0 | AD113: 0 | AE113: 0 | AI113: 0 | AJ113: 0 | AK113: 0 | AO113: 0 | AP113: 0 | AQ113: 0
B114: 111 | C114: MAR | D114: 111 | E114: 0.6218451305 | F114: 0 | Q114: 0 | R114: 0 | S114: 0 | W114: 0 | X114: 0 | Y114: 0 | AC114: 0 | AD114: 0 | AE114: 0 | AI114: 0 | AJ114: 0 | AK114: 0 | AO114: 0 | AP114: 0 | AQ114: 0
B115: 112 | C115: ABR | D115: 112 | E115: 0.619189409 | F115: 0 | Q115: 0 | R115: 0 | S115: 0 | W115: 0 | X115: 0 | Y115: 0 | AC115: 0 | AD115: 0 | AE115: 0 | AI115: 0 | AJ115: 0 | AK115: 0 | AO115: 0 | AP115: 0 | AQ115: 0
B116: 113 | C116: MAI | D116: 113 | E116: 0.6165450292 | F116: 0 | Q116: 0 | R116: 0 | S116: 0 | W116: 0 | X116: 0 | Y116: 0 | AC116: 0 | AD116: 0 | AE116: 0 | AI116: 0 | AJ116: 0 | AK116: 0 | AO116: 0 | AP116: 0 | AQ116: 0
B117: 114 | C117: JUN | D117: 114 | E117: 0.6139119429 | F117: 0 | Q117: 0 | R117: 0 | S117: 0 | W117: 0 | X117: 0 | Y117: 0 | AC117: 0 | AD117: 0 | AE117: 0 | AI117: 0 | AJ117: 0 | AK117: 0 | AO117: 0 | AP117: 0 | AQ117: 0
B118: 115 | C118: JUL | D118: 115 | E118: 0.6112901017 | F118: 0 | Q118: 0 | R118: 0 | S118: 0 | W118: 0 | X118: 0 | Y118: 0 | AC118: 0 | AD118: 0 | AE118: 0 | AI118: 0 | AJ118: 0 | AK118: 0 | AO118: 0 | AP118: 0 | AQ118: 0
B119: 116 | C119: AGO | D119: 116 | E119: 0.6086794576 | F119: 0 | Q119: 0 | R119: 0 | S119: 0 | W119: 0 | X119: 0 | Y119: 0 | AC119: 0 | AD119: 0 | AE119: 0 | AI119: 0 | AJ119: 0 | AK119: 0 | AO119: 0 | AP119: 0 | AQ119: 0
B120: 117 | C120: SET | D120: 117 | E120: 0.6060799629 | F120: 0 | Q120: 0 | R120: 0 | S120: 0 | W120: 0 | X120: 0 | Y120: 0 | AC120: 0 | AD120: 0 | AE120: 0 | AI120: 0 | AJ120: 0 | AK120: 0 | AO120: 0 | AP120: 0 | AQ120: 0
B121: 118 | C121: OUT | D121: 118 | E121: 0.6034915698 | F121: 0 | Q121: 0 | R121: 0 | S121: 0 | W121: 0 | X121: 0 | Y121: 0 | AC121: 0 | AD121: 0 | AE121: 0 | AI121: 0 | AJ121: 0 | AK121: 0 | AO121: 0 | AP121: 0 | AQ121: 0
B122: 119 | C122: NOV | D122: 119 | E122: 0.600914231 | F122: 0.600914231 | Q122: 0 | R122: 0 | S122: 0 | W122: 0 | X122: 0 | Y122: 0 | AC122: 0 | AD122: 0 | AE122: 0 | AI122: 0 | AJ122: 0 | AK122: 0 | AO122: 0 | AP122: 0 | AQ122: 0
B123: 120 | C123: DEZ | D123: 120 | E123: 0.5983478993 | F123: 0 | Q123: 0 | R123: 0 | S123: 0 | W123: 0 | X123: 0 | Y123: 0 | AC123: 0 | AD123: 0 | AE123: 0 | AI123: 0 | AJ123: 0 | AK123: 0 | AO123: 0 | AP123: 0 | AQ123: 0
B124: 121 | C124: JAN | D124: 121 | E124: 0.5957925277 | F124: 0 | Q124: 0 | R124: 0 | S124: 0 | W124: 0 | X124: 0 | Y124: 0 | AC124: 0 | AD124: 0 | AE124: 0 | AI124: 0 | AJ124: 0 | AK124: 0 | AO124: 0 | AP124: 0 | AQ124: 0
B125: 122 | C125: FEV | D125: 122 | E125: 0.5932480693 | F125: 0 | Q125: 0 | R125: 0 | S125: 0 | W125: 0 | X125: 0 | Y125: 0 | AC125: 0 | AD125: 0 | AE125: 0 | AI125: 0 | AJ125: 0 | AK125: 0 | AO125: 0 | AP125: 0 | AQ125: 0
B126: 123 | C126: MAR | D126: 123 | E126: 0.5907144776 | F126: 0 | Q126: 0 | R126: 0 | S126: 0 | W126: 0 | X126: 0 | Y126: 0 | AC126: 0 | AD126: 0 | AE126: 0 | AI126: 0 | AJ126: 0 | AK126: 0 | AO126: 0 | AP126: 0 | AQ126: 0
B127: 124 | C127: ABR | D127: 124 | E127: 0.5881917061 | F127: 0 | Q127: 0 | R127: 0 | S127: 0 | W127: 0 | X127: 0 | Y127: 0 | AC127: 0 | AD127: 0 | AE127: 0 | AI127: 0 | AJ127: 0 | AK127: 0 | AO127: 0 | AP127: 0 | AQ127: 0
B128: 125 | C128: MAI | D128: 125 | E128: 0.5856797086 | F128: 0 | Q128: 0 | R128: 0 | S128: 0 | W128: 0 | X128: 0 | Y128: 0 | AC128: 0 | AD128: 0 | AE128: 0 | AI128: 0 | AJ128: 0 | AK128: 0 | AO128: 0 | AP128: 0 | AQ128: 0
B129: 126 | C129: JUN | D129: 126 | E129: 0.5831784391 | F129: 0 | Q129: 0 | R129: 0 | S129: 0 | W129: 0 | X129: 0 | Y129: 0 | AC129: 0 | AD129: 0 | AE129: 0 | AI129: 0 | AJ129: 0 | AK129: 0 | AO129: 0 | AP129: 0 | AQ129: 0
B130: 127 | C130: JUL | D130: 127 | E130: 0.5806878519 | F130: 0 | Q130: 0 | R130: 0 | S130: 0 | W130: 0 | X130: 0 | Y130: 0 | AC130: 0 | AD130: 0 | AE130: 0 | AI130: 0 | AJ130: 0 | AK130: 0 | AO130: 0 | AP130: 0 | AQ130: 0
B131: 128 | C131: AGO | D131: 128 | E131: 0.5782079012 | F131: 0 | I131: =IF(AND(Plano=Nao_Repactuado,G131<=116),VLOOKUP(G131,Tabua_Mortalidade,4),IF(AND(Plano=Repactuado,G131<=116),VLOOKUP(G131,Tabua_Mortalidade,2),"")) ->  | P131: =IF(AND(Plano=Nao_Repactuado,N131<=116),VLOOKUP(N131,Tabua_Mortalidade,4),IF(AND(Plano=Repactuado,N131<=116),VLOOKUP(N131,Tabua_Mortalidade,2),"")) ->  | Q131: 0 | R131: 0 | S131: 0 | V131: =IF(AND(Plano=Nao_Repactuado,T131>=18,T131<=116),VLOOKUP(T131,Tabua_Mortalidade,4),IF(AND(Plano=Repactuado,T131>=18,T131<=116),VLOOKUP(T131,Tabua_Mortalidade,2),IF(T131<18,IF(Plano=Nao_Repactuado,1000000,IF(Plano=Repactuado,10000000,"")),""))) ->  | W131: 0 | X131: 0 | Y131: 0 | AB131: =IF(AND(Plano=Nao_Repactuado,Z131>=18,Z131<=116),VLOOKUP(Z131,Tabua_Mortalidade,4),IF(AND(Plano=Repactuado,Z131>=18,Z131<=116),VLOOKUP(Z131,Tabua_Mortalidade,2),IF(Z131<18,IF(Plano=Nao_Repactuado,1000000,IF(Plano=Repactuado,10000000,"")),""))) ->  | AC131: 0 | AD131: 0 | AE131: 0 | AI131: 0 | AJ131: 0 | AK131: 0 | AN131: =IF(AND(Plano=Nao_Repactuado,AL131>=18,AL131<=116),VLOOKUP(AL131,Tabua_Mortalidade,4),IF(AND(Plano=Repactuado,AL131>=18,AL131<=116),VLOOKUP(AL131,Tabua_Mortalidade,2),IF(AL131<18,IF(Plano=Nao_Repactuado,1000000,IF(Plano=Repactuado,10000000,"")),""))) ->  | AO131: 0 | AP131: 0 | AQ131: 0
B132: 129 | C132: SET | D132: =IF(B132>=Mes_Inicio_Serie_Beneficio_PP3,(B132-Mes_Inicio_Serie_Beneficio_PP3+1),"") -> 129 | E132: =IF(Mes_Inicio_Serie_Beneficio_PP3<>"",IF(B132>=Mes_Inicio_Serie_Beneficio_PP3,1/((1+Rentabilidade_Mensal_PP3)^D132),IF(B132=Mes_Inicio_Serie_Beneficio_PP3 - 1,1,"")),"") -> 0.5757385417 | F132: =IF(B132>=Mes_Inicio_Serie_Beneficio_PP3,IF(AND(E132<>"",C132="NOV"),E132,0),"") -> 0 | G132: =IF(G131<>"",IF(MOD(B132,12)=Mes_Nascimento_Participante,G131+1,G131),"") ->  | K132: =IF(J132<>"",1 - J132,"") ->  | N132: =IF(N131<>"",IF(MOD(B132,12)=Mes_Nascimento_Conjuge,N131+1,N131),"") ->  | Q132: =IF(AND(P$3<>"",P133<>""),P133/P$3,0) -> 0 | R132: 0 | S132: 0 | T132: =IF(T131<>"",IF(MOD($B132,12)=Mes_Nascimento_Filho_1,T131+1,T131),"") ->  | W132: =IF(AND(V$3<>"",V133<>"",OR(T132<21,Pensao_Vitalicia_Filho_1="SIM")),V133/V$3,0) -> 0 | X132: 0 | Y132: 0 | Z132: =IF(Z131<>"",IF(MOD($B132,12)=Mes_Nascimento_Filho_2,Z131+1,Z131),"") ->  | AC132: =IF(AND(AB$3<>"",AB133<>"",OR(Z132<21,Pensao_Vitalicia_Filho_2="SIM")),AB133/AB$3,0) -> 0 | AD132: 0 | AE132: 0 | AF132: =IF(AF131<>"",IF(MOD($B132,12)=Mes_Nascimento_Filho_3,AF131+1,AF131),"") ->  | AH132: =IF(AND(Plano=Nao_Repactuado,AF132>=18,AF132<=116),VLOOKUP(AF132,Tabua_Mortalidade,4),IF(AND(Plano=Repactuado,AF132>=18,AF132<=116),VLOOKUP(AF132,Tabua_Mortalidade,2),IF(AF132<18,IF(Plano=Nao_Repactuado,1000000,IF(Plano=Repactuado,10000000,"")),""))) ->  | AI132: =IF(AND(AH$3<>"",AH133<>"",OR(AF132<21,Pensao_Vitalicia_Filho_3="SIM")),AH133/AH$3,0) -> 0 | AJ132: 0 | AK132: 0 | AL132: =IF(AL131<>"",IF(MOD($B132,12)=Mes_Nascimento_Filho_4,AL131+1,AL131),"") ->  | AO132: =IF(AND(AN$3<>"",AN133<>"",OR(AL132<21,Pensao_Vitalicia_Filho_4="SIM")),AN133/AN$3,0) -> 0 | AP132: 0 | AQ132: 0
B133: 130 | C133: =IF(MOD(B133,12)=1,"JAN",IF(MOD(B133,12)=2,"FEV",IF(MOD(B133,12)=3,"MAR",IF(MOD(B133,12)=4,"ABR",IF(MOD(B133,12)=5,"MAI",IF(MOD(B133,12)=6,"JUN",IF(MOD(B133,12)=7,"JUL",IF(MOD(B133,12)=8,"AGO",IF(MOD(B133,12)=9,"SET",IF(MOD(B133,12)=10,"OUT",IF(MOD(B133,12)=11,"NOV",IF(MOD(B133,12)=0,"DEZ","")))))))))))) -> OUT | D133: 130 | E133: 0.5732797281 | F133: 0 | H133: =IF(H132<>"",IF((H132+1)=12,0,H132+1),"") ->  | J133: =IF(AND(I$3<>"",I134<>""),I134/I$3,"") ->  | L133: =IF(AND(E133<>"",J133<>""),E133 * J133,"") ->  | M133: =IF(AND(F133<>"",J133<>""),F133 * J133,"") ->  | O133: =IF(O132<>"",IF((O132+1)=12,0,O132+1),"") ->  | Q133: 0 | R133: =IF(AND($E133<>"",Q133<>""),$E133 * Q133,"") -> 0 | S133: =IF(AND($F133<>"",Q133<>""),$F133 * Q133,"") -> 0 | U133: =IF(U132<>"",IF((U132+1)=12,0,U132+1),"") ->  | W133: 0 | X133: =IF(AND($E133<>"",W133<>""),$E133 * W133,"") -> 0 | Y133: =IF(AND($F133<>"",W133<>""),$F133 * W133,"") -> 0 | AA133: =IF(AA132<>"",IF((AA132+1)=12,0,AA132+1),"") ->  | AC133: 0 | AD133: =IF(AND($E133<>"",AC133<>""),$E133 * AC133,"") -> 0 | AE133: =IF(AND($F133<>"",AC133<>""),$F133 * AC133,"") -> 0 | AG133: =IF(AG132<>"",IF((AG132+1)=12,0,AG132+1),"") ->  | AI133: 0 | AJ133: =IF(AND($E133<>"",AI133<>""),$E133 * AI133,"") -> 0 | AK133: =IF(AND($F133<>"",AI133<>""),$F133 * AI133,"") -> 0 | AM133: =IF(AM132<>"",IF((AM132+1)=12,0,AM132+1),"") ->  | AO133: 0 | AP133: =IF(AND($E133<>"",AO133<>""),$E133 * AO133,"") -> 0 | AQ133: =IF(AND($F133<>"",AO133<>""),$F133 * AO133,"") -> 0
B134: 131 | C134: NOV | D134: 131 | E134: 0.5708314154 | F134: 0.5708314154 | Q134: 0 | R134: 0 | S134: 0 | W134: 0 | X134: 0 | Y134: 0 | AC134: 0 | AD134: 0 | AE134: 0 | AI134: 0 | AJ134: 0 | AK134: 0 | AO134: 0 | AP134: 0 | AQ134: 0
B135: 132 | C135: DEZ | D135: 132 | E135: 0.5683935588 | F135: 0 | Q135: 0 | R135: 0 | S135: 0 | W135: 0 | X135: 0 | Y135: 0 | AC135: 0 | AD135: 0 | AE135: 0 | AI135: 0 | AJ135: 0 | AK135: 0 | AO135: 0 | AP135: 0 | AQ135: 0
B136: 133 | C136: JAN | D136: 133 | E136: 0.5659661135 | F136: 0 | Q136: 0 | R136: 0 | S136: 0 | W136: 0 | X136: 0 | Y136: 0 | AC136: 0 | AD136: 0 | AE136: 0 | AI136: 0 | AJ136: 0 | AK136: 0 | AO136: 0 | AP136: 0 | AQ136: 0
B137: 134 | C137: FEV | D137: 134 | E137: 0.5635490351 | F137: 0 | Q137: 0 | R137: 0 | S137: 0 | W137: 0 | X137: 0 | Y137: 0 | AC137: 0 | AD137: 0 | AE137: 0 | AI137: 0 | AJ137: 0 | AK137: 0 | AO137: 0 | AP137: 0 | AQ137: 0
B138: 135 | C138: MAR | D138: 135 | E138: 0.5611422794 | F138: 0 | Q138: 0 | R138: 0 | S138: 0 | W138: 0 | X138: 0 | Y138: 0 | AC138: 0 | AD138: 0 | AE138: 0 | AI138: 0 | AJ138: 0 | AK138: 0 | AO138: 0 | AP138: 0 | AQ138: 0
B139: 136 | C139: ABR | D139: 136 | E139: 0.5587458023 | F139: 0 | Q139: 0 | R139: 0 | S139: 0 | W139: 0 | X139: 0 | Y139: 0 | AC139: 0 | AD139: 0 | AE139: 0 | AI139: 0 | AJ139: 0 | AK139: 0 | AO139: 0 | AP139: 0 | AQ139: 0
B140: 137 | C140: MAI | D140: 137 | E140: 0.5563595598 | F140: 0 | Q140: 0 | R140: 0 | S140: 0 | W140: 0 | X140: 0 | Y140: 0 | AC140: 0 | AD140: 0 | AE140: 0 | AI140: 0 | AJ140: 0 | AK140: 0 | AO140: 0 | AP140: 0 | AQ140: 0
B141: 138 | C141: JUN | D141: 138 | E141: 0.5539835083 | F141: 0 | Q141: 0 | R141: 0 | S141: 0 | W141: 0 | X141: 0 | Y141: 0 | AC141: 0 | AD141: 0 | AE141: 0 | AI141: 0 | AJ141: 0 | AK141: 0 | AO141: 0 | AP141: 0 | AQ141: 0
B142: 139 | C142: JUL | D142: 139 | E142: 0.5516176042 | F142: 0 | Q142: 0 | R142: 0 | S142: 0 | W142: 0 | X142: 0 | Y142: 0 | AC142: 0 | AD142: 0 | AE142: 0 | AI142: 0 | AJ142: 0 | AK142: 0 | AO142: 0 | AP142: 0 | AQ142: 0
B143: 140 | C143: AGO | D143: 140 | E143: 0.5492618042 | F143: 0 | Q143: 0 | R143: 0 | S143: 0 | W143: 0 | X143: 0 | Y143: 0 | AC143: 0 | AD143: 0 | AE143: 0 | AI143: 0 | AJ143: 0 | AK143: 0 | AO143: 0 | AP143: 0 | AQ143: 0
B144: 141 | C144: SET | D144: 141 | E144: 0.5469160651 | F144: 0 | Q144: 0 | R144: 0 | S144: 0 | W144: 0 | X144: 0 | Y144: 0 | AC144: 0 | AD144: 0 | AE144: 0 | AI144: 0 | AJ144: 0 | AK144: 0 | AO144: 0 | AP144: 0 | AQ144: 0
B145: 142 | C145: OUT | D145: 142 | E145: 0.544580344 | F145: 0 | Q145: 0 | R145: 0 | S145: 0 | W145: 0 | X145: 0 | Y145: 0 | AC145: 0 | AD145: 0 | AE145: 0 | AI145: 0 | AJ145: 0 | AK145: 0 | AO145: 0 | AP145: 0 | AQ145: 0
B146: 143 | C146: NOV | D146: 143 | E146: 0.5422545981 | F146: 0.5422545981 | Q146: 0 | R146: 0 | S146: 0 | W146: 0 | X146: 0 | Y146: 0 | AC146: 0 | AD146: 0 | AE146: 0 | AI146: 0 | AJ146: 0 | AK146: 0 | AO146: 0 | AP146: 0 | AQ146: 0
B147: 144 | C147: DEZ | D147: 144 | E147: 0.5399387848 | F147: 0 | Q147: 0 | R147: 0 | S147: 0 | W147: 0 | X147: 0 | Y147: 0 | AC147: 0 | AD147: 0 | AE147: 0 | AI147: 0 | AJ147: 0 | AK147: 0 | AO147: 0 | AP147: 0 | AQ147: 0
B148: 145 | C148: JAN | D148: 145 | E148: 0.5376328617 | F148: 0 | Q148: 0 | R148: 0 | S148: 0 | W148: 0 | X148: 0 | Y148: 0 | AC148: 0 | AD148: 0 | AE148: 0 | AI148: 0 | AJ148: 0 | AK148: 0 | AO148: 0 | AP148: 0 | AQ148: 0
B149: 146 | C149: FEV | D149: 146 | E149: 0.5353367865 | F149: 0 | Q149: 0 | R149: 0 | S149: 0 | W149: 0 | X149: 0 | Y149: 0 | AC149: 0 | AD149: 0 | AE149: 0 | AI149: 0 | AJ149: 0 | AK149: 0 | AO149: 0 | AP149: 0 | AQ149: 0
B150: 147 | C150: MAR | D150: 147 | E150: 0.5330505172 | F150: 0 | Q150: 0 | R150: 0 | S150: 0 | W150: 0 | X150: 0 | Y150: 0 | AC150: 0 | AD150: 0 | AE150: 0 | AI150: 0 | AJ150: 0 | AK150: 0 | AO150: 0 | AP150: 0 | AQ150: 0
B151: 148 | C151: ABR | D151: 148 | E151: 0.5307740119 | F151: 0 | Q151: 0 | R151: 0 | S151: 0 | W151: 0 | X151: 0 | Y151: 0 | AC151: 0 | AD151: 0 | AE151: 0 | AI151: 0 | AJ151: 0 | AK151: 0 | AO151: 0 | AP151: 0 | AQ151: 0
B152: 149 | C152: MAI | D152: 149 | E152: 0.5285072288 | F152: 0 | Q152: 0 | R152: 0 | S152: 0 | W152: 0 | X152: 0 | Y152: 0 | AC152: 0 | AD152: 0 | AE152: 0 | AI152: 0 | AJ152: 0 | AK152: 0 | AO152: 0 | AP152: 0 | AQ152: 0
B153: 150 | C153: JUN | D153: 150 | E153: 0.5262501266 | F153: 0 | Q153: 0 | R153: 0 | S153: 0 | W153: 0 | X153: 0 | Y153: 0 | AC153: 0 | AD153: 0 | AE153: 0 | AI153: 0 | AJ153: 0 | AK153: 0 | AO153: 0 | AP153: 0 | AQ153: 0
B154: 151 | C154: JUL | D154: 151 | E154: 0.5240026638 | F154: 0 | Q154: 0 | R154: 0 | S154: 0 | W154: 0 | X154: 0 | Y154: 0 | AC154: 0 | AD154: 0 | AE154: 0 | AI154: 0 | AJ154: 0 | AK154: 0 | AO154: 0 | AP154: 0 | AQ154: 0
B155: 152 | C155: AGO | D155: 152 | E155: 0.5217647992 | F155: 0 | Q155: 0 | R155: 0 | S155: 0 | W155: 0 | X155: 0 | Y155: 0 | AC155: 0 | AD155: 0 | AE155: 0 | AI155: 0 | AJ155: 0 | AK155: 0 | AO155: 0 | AP155: 0 | AQ155: 0
B156: 153 | C156: SET | D156: 153 | E156: 0.519536492 | F156: 0 | Q156: 0 | R156: 0 | S156: 0 | W156: 0 | X156: 0 | Y156: 0 | AC156: 0 | AD156: 0 | AE156: 0 | AI156: 0 | AJ156: 0 | AK156: 0 | AO156: 0 | AP156: 0 | AQ156: 0
B157: 154 | C157: OUT | D157: 154 | E157: 0.5173177012 | F157: 0 | Q157: 0 | R157: 0 | S157: 0 | W157: 0 | X157: 0 | Y157: 0 | AC157: 0 | AD157: 0 | AE157: 0 | AI157: 0 | AJ157: 0 | AK157: 0 | AO157: 0 | AP157: 0 | AQ157: 0
B158: 155 | C158: NOV | D158: 155 | E158: 0.5151083862 | F158: 0.5151083862 | Q158: 0 | R158: 0 | S158: 0 | W158: 0 | X158: 0 | Y158: 0 | AC158: 0 | AD158: 0 | AE158: 0 | AI158: 0 | AJ158: 0 | AK158: 0 | AO158: 0 | AP158: 0 | AQ158: 0
B159: 156 | C159: DEZ | D159: 156 | E159: 0.5129085065 | F159: 0 | Q159: 0 | R159: 0 | S159: 0 | W159: 0 | X159: 0 | Y159: 0 | AC159: 0 | AD159: 0 | AE159: 0 | AI159: 0 | AJ159: 0 | AK159: 0 | AO159: 0 | AP159: 0 | AQ159: 0
B160: 157 | C160: JAN | D160: 157 | E160: 0.5107180219 | F160: 0 | Q160: 0 | R160: 0 | S160: 0 | W160: 0 | X160: 0 | Y160: 0 | AC160: 0 | AD160: 0 | AE160: 0 | AI160: 0 | AJ160: 0 | AK160: 0 | AO160: 0 | AP160: 0 | AQ160: 0
B161: 158 | C161: FEV | D161: 158 | E161: 0.5085368923 | F161: 0 | Q161: 0 | R161: 0 | S161: 0 | W161: 0 | X161: 0 | Y161: 0 | AC161: 0 | AD161: 0 | AE161: 0 | AI161: 0 | AJ161: 0 | AK161: 0 | AO161: 0 | AP161: 0 | AQ161: 0
B162: 159 | C162: MAR | D162: 159 | E162: 0.5063650776 | F162: 0 | Q162: 0 | R162: 0 | S162: 0 | W162: 0 | X162: 0 | Y162: 0 | AC162: 0 | AD162: 0 | AE162: 0 | AI162: 0 | AJ162: 0 | AK162: 0 | AO162: 0 | AP162: 0 | AQ162: 0
B163: 160 | C163: ABR | D163: 160 | E163: 0.5042025381 | F163: 0 | Q163: 0 | R163: 0 | S163: 0 | W163: 0 | X163: 0 | Y163: 0 | AC163: 0 | AD163: 0 | AE163: 0 | AI163: 0 | AJ163: 0 | AK163: 0 | AO163: 0 | AP163: 0 | AQ163: 0
B164: 161 | C164: MAI | D164: 161 | E164: 0.5020492342 | F164: 0 | Q164: 0 | R164: 0 | S164: 0 | W164: 0 | X164: 0 | Y164: 0 | AC164: 0 | AD164: 0 | AE164: 0 | AI164: 0 | AJ164: 0 | AK164: 0 | AO164: 0 | AP164: 0 | AQ164: 0
B165: 162 | C165: JUN | D165: 162 | E165: 0.4999051264 | F165: 0 | Q165: 0 | R165: 0 | S165: 0 | W165: 0 | X165: 0 | Y165: 0 | AC165: 0 | AD165: 0 | AE165: 0 | AI165: 0 | AJ165: 0 | AK165: 0 | AO165: 0 | AP165: 0 | AQ165: 0
B166: 163 | C166: JUL | D166: 163 | E166: 0.4977701755 | F166: 0 | Q166: 0 | R166: 0 | S166: 0 | W166: 0 | X166: 0 | Y166: 0 | AC166: 0 | AD166: 0 | AE166: 0 | AI166: 0 | AJ166: 0 | AK166: 0 | AO166: 0 | AP166: 0 | AQ166: 0
B167: 164 | C167: AGO | D167: 164 | E167: 0.4956443424 | F167: 0 | Q167: 0 | R167: 0 | S167: 0 | W167: 0 | X167: 0 | Y167: 0 | AC167: 0 | AD167: 0 | AE167: 0 | AI167: 0 | AJ167: 0 | AK167: 0 | AO167: 0 | AP167: 0 | AQ167: 0
B168: 165 | C168: SET | D168: 165 | E168: 0.4935275881 | F168: 0 | Q168: 0 | R168: 0 | S168: 0 | W168: 0 | X168: 0 | Y168: 0 | AC168: 0 | AD168: 0 | AE168: 0 | AI168: 0 | AJ168: 0 | AK168: 0 | AO168: 0 | AP168: 0 | AQ168: 0
B169: 166 | C169: OUT | D169: 166 | E169: 0.4914198738 | F169: 0 | Q169: 0 | R169: 0 | S169: 0 | W169: 0 | X169: 0 | Y169: 0 | AC169: 0 | AD169: 0 | AE169: 0 | AI169: 0 | AJ169: 0 | AK169: 0 | AO169: 0 | AP169: 0 | AQ169: 0
B170: 167 | C170: NOV | D170: 167 | E170: 0.489321161 | F170: 0.489321161 | Q170: 0 | R170: 0 | S170: 0 | W170: 0 | X170: 0 | Y170: 0 | AC170: 0 | AD170: 0 | AE170: 0 | AI170: 0 | AJ170: 0 | AK170: 0 | AO170: 0 | AP170: 0 | AQ170: 0
B171: 168 | C171: DEZ | D171: 168 | E171: 0.4872314112 | F171: 0 | Q171: 0 | R171: 0 | S171: 0 | W171: 0 | X171: 0 | Y171: 0 | AC171: 0 | AD171: 0 | AE171: 0 | AI171: 0 | AJ171: 0 | AK171: 0 | AO171: 0 | AP171: 0 | AQ171: 0
B172: 169 | C172: JAN | D172: 169 | E172: 0.485150586 | F172: 0 | Q172: 0 | R172: 0 | S172: 0 | W172: 0 | X172: 0 | Y172: 0 | AC172: 0 | AD172: 0 | AE172: 0 | AI172: 0 | AJ172: 0 | AK172: 0 | AO172: 0 | AP172: 0 | AQ172: 0
B173: 170 | C173: FEV | D173: 170 | E173: 0.4830786475 | F173: 0 | Q173: 0 | R173: 0 | S173: 0 | W173: 0 | X173: 0 | Y173: 0 | AC173: 0 | AD173: 0 | AE173: 0 | AI173: 0 | AJ173: 0 | AK173: 0 | AO173: 0 | AP173: 0 | AQ173: 0
B174: 171 | C174: MAR | D174: 171 | E174: 0.4810155577 | F174: 0 | Q174: 0 | R174: 0 | S174: 0 | W174: 0 | X174: 0 | Y174: 0 | AC174: 0 | AD174: 0 | AE174: 0 | AI174: 0 | AJ174: 0 | AK174: 0 | AO174: 0 | AP174: 0 | AQ174: 0
B175: 172 | C175: ABR | D175: 172 | E175: 0.4789612787 | F175: 0 | Q175: 0 | R175: 0 | S175: 0 | W175: 0 | X175: 0 | Y175: 0 | AC175: 0 | AD175: 0 | AE175: 0 | AI175: 0 | AJ175: 0 | AK175: 0 | AO175: 0 | AP175: 0 | AQ175: 0
B176: 173 | C176: MAI | D176: 173 | E176: 0.476915773 | F176: 0 | Q176: 0 | R176: 0 | S176: 0 | W176: 0 | X176: 0 | Y176: 0 | AC176: 0 | AD176: 0 | AE176: 0 | AI176: 0 | AJ176: 0 | AK176: 0 | AO176: 0 | AP176: 0 | AQ176: 0
B177: 174 | C177: JUN | D177: 174 | E177: 0.474879003 | F177: 0 | Q177: 0 | R177: 0 | S177: 0 | W177: 0 | X177: 0 | Y177: 0 | AC177: 0 | AD177: 0 | AE177: 0 | AI177: 0 | AJ177: 0 | AK177: 0 | AO177: 0 | AP177: 0 | AQ177: 0
B178: 175 | C178: JUL | D178: 175 | E178: 0.4728509314 | F178: 0 | Q178: 0 | R178: 0 | S178: 0 | W178: 0 | X178: 0 | Y178: 0 | AC178: 0 | AD178: 0 | AE178: 0 | AI178: 0 | AJ178: 0 | AK178: 0 | AO178: 0 | AP178: 0 | AQ178: 0
B179: 176 | C179: AGO | D179: 176 | E179: 0.4708315212 | F179: 0 | Q179: 0 | R179: 0 | S179: 0 | W179: 0 | X179: 0 | Y179: 0 | AC179: 0 | AD179: 0 | AE179: 0 | AI179: 0 | AJ179: 0 | AK179: 0 | AO179: 0 | AP179: 0 | AQ179: 0
B180: 177 | C180: SET | D180: 177 | E180: 0.4688207353 | F180: 0 | Q180: 0 | R180: 0 | S180: 0 | W180: 0 | X180: 0 | Y180: 0 | AC180: 0 | AD180: 0 | AE180: 0 | AI180: 0 | AJ180: 0 | AK180: 0 | AO180: 0 | AP180: 0 | AQ180: 0
B181: 178 | C181: OUT | D181: 178 | E181: 0.4668185369 | F181: 0 | Q181: 0 | R181: 0 | S181: 0 | W181: 0 | X181: 0 | Y181: 0 | AC181: 0 | AD181: 0 | AE181: 0 | AI181: 0 | AJ181: 0 | AK181: 0 | AO181: 0 | AP181: 0 | AQ181: 0
B182: 179 | C182: NOV | D182: 179 | E182: 0.4648248893 | F182: 0.4648248893 | Q182: 0 | R182: 0 | S182: 0 | W182: 0 | X182: 0 | Y182: 0 | AC182: 0 | AD182: 0 | AE182: 0 | AI182: 0 | AJ182: 0 | AK182: 0 | AO182: 0 | AP182: 0 | AQ182: 0
B183: 180 | C183: DEZ | D183: 180 | E183: 0.462839756 | F183: 0 | Q183: 0 | R183: 0 | S183: 0 | W183: 0 | X183: 0 | Y183: 0 | AC183: 0 | AD183: 0 | AE183: 0 | AI183: 0 | AJ183: 0 | AK183: 0 | AO183: 0 | AP183: 0 | AQ183: 0
B184: 181 | C184: JAN | D184: 181 | E184: 0.4608631006 | F184: 0 | Q184: 0 | R184: 0 | S184: 0 | W184: 0 | X184: 0 | Y184: 0 | AC184: 0 | AD184: 0 | AE184: 0 | AI184: 0 | AJ184: 0 | AK184: 0 | AO184: 0 | AP184: 0 | AQ184: 0
B185: 182 | C185: FEV | D185: 182 | E185: 0.458894887 | F185: 0 | Q185: 0 | R185: 0 | S185: 0 | W185: 0 | X185: 0 | Y185: 0 | AC185: 0 | AD185: 0 | AE185: 0 | AI185: 0 | AJ185: 0 | AK185: 0 | AO185: 0 | AP185: 0 | AQ185: 0
B186: 183 | C186: MAR | D186: 183 | E186: 0.456935079 | F186: 0 | Q186: 0 | R186: 0 | S186: 0 | W186: 0 | X186: 0 | Y186: 0 | AC186: 0 | AD186: 0 | AE186: 0 | AI186: 0 | AJ186: 0 | AK186: 0 | AO186: 0 | AP186: 0 | AQ186: 0
B187: 184 | C187: ABR | D187: 184 | E187: 0.4549836408 | F187: 0 | Q187: 0 | R187: 0 | S187: 0 | W187: 0 | X187: 0 | Y187: 0 | AC187: 0 | AD187: 0 | AE187: 0 | AI187: 0 | AJ187: 0 | AK187: 0 | AO187: 0 | AP187: 0 | AQ187: 0
B188: 185 | C188: MAI | D188: 185 | E188: 0.4530405367 | F188: 0 | Q188: 0 | R188: 0 | S188: 0 | W188: 0 | X188: 0 | Y188: 0 | AC188: 0 | AD188: 0 | AE188: 0 | AI188: 0 | AJ188: 0 | AK188: 0 | AO188: 0 | AP188: 0 | AQ188: 0
B189: 186 | C189: JUN | D189: 186 | E189: 0.4511057309 | F189: 0 | Q189: 0 | R189: 0 | S189: 0 | W189: 0 | X189: 0 | Y189: 0 | AC189: 0 | AD189: 0 | AE189: 0 | AI189: 0 | AJ189: 0 | AK189: 0 | AO189: 0 | AP189: 0 | AQ189: 0
B190: 187 | C190: JUL | D190: 187 | E190: 0.4491791882 | F190: 0 | Q190: 0 | R190: 0 | S190: 0 | W190: 0 | X190: 0 | Y190: 0 | AC190: 0 | AD190: 0 | AE190: 0 | AI190: 0 | AJ190: 0 | AK190: 0 | AO190: 0 | AP190: 0 | AQ190: 0
B191: 188 | C191: AGO | D191: 188 | E191: 0.4472608732 | F191: 0 | Q191: 0 | R191: 0 | S191: 0 | W191: 0 | X191: 0 | Y191: 0 | AC191: 0 | AD191: 0 | AE191: 0 | AI191: 0 | AJ191: 0 | AK191: 0 | AO191: 0 | AP191: 0 | AQ191: 0
B192: 189 | C192: SET | D192: 189 | E192: 0.4453507508 | F192: 0 | Q192: 0 | R192: 0 | S192: 0 | W192: 0 | X192: 0 | Y192: 0 | AC192: 0 | AD192: 0 | AE192: 0 | AI192: 0 | AJ192: 0 | AK192: 0 | AO192: 0 | AP192: 0 | AQ192: 0
B193: 190 | C193: OUT | D193: 190 | E193: 0.4434487859 | F193: 0 | Q193: 0 | R193: 0 | S193: 0 | W193: 0 | X193: 0 | Y193: 0 | AC193: 0 | AD193: 0 | AE193: 0 | AI193: 0 | AJ193: 0 | AK193: 0 | AO193: 0 | AP193: 0 | AQ193: 0
B194: 191 | C194: NOV | D194: 191 | E194: 0.4415549438 | F194: 0.4415549438 | Q194: 0 | R194: 0 | S194: 0 | W194: 0 | X194: 0 | Y194: 0 | AC194: 0 | AD194: 0 | AE194: 0 | AI194: 0 | AJ194: 0 | AK194: 0 | AO194: 0 | AP194: 0 | AQ194: 0
B195: 192 | C195: DEZ | D195: 192 | E195: 0.4396691897 | F195: 0 | I195: =IF(AND(Plano=Nao_Repactuado,G195<=116),VLOOKUP(G195,Tabua_Mortalidade,4),IF(AND(Plano=Repactuado,G195<=116),VLOOKUP(G195,Tabua_Mortalidade,2),"")) ->  | P195: =IF(AND(Plano=Nao_Repactuado,N195<=116),VLOOKUP(N195,Tabua_Mortalidade,4),IF(AND(Plano=Repactuado,N195<=116),VLOOKUP(N195,Tabua_Mortalidade,2),"")) ->  | Q195: 0 | R195: 0 | S195: 0 | V195: =IF(AND(Plano=Nao_Repactuado,T195>=18,T195<=116),VLOOKUP(T195,Tabua_Mortalidade,4),IF(AND(Plano=Repactuado,T195>=18,T195<=116),VLOOKUP(T195,Tabua_Mortalidade,2),IF(T195<18,IF(Plano=Nao_Repactuado,1000000,IF(Plano=Repactuado,10000000,"")),""))) ->  | W195: 0 | X195: 0 | Y195: 0 | AB195: =IF(AND(Plano=Nao_Repactuado,Z195>=18,Z195<=116),VLOOKUP(Z195,Tabua_Mortalidade,4),IF(AND(Plano=Repactuado,Z195>=18,Z195<=116),VLOOKUP(Z195,Tabua_Mortalidade,2),IF(Z195<18,IF(Plano=Nao_Repactuado,1000000,IF(Plano=Repactuado,10000000,"")),""))) ->  | AC195: 0 | AD195: 0 | AE195: 0 | AI195: 0 | AJ195: 0 | AK195: 0 | AN195: =IF(AND(Plano=Nao_Repactuado,AL195>=18,AL195<=116),VLOOKUP(AL195,Tabua_Mortalidade,4),IF(AND(Plano=Repactuado,AL195>=18,AL195<=116),VLOOKUP(AL195,Tabua_Mortalidade,2),IF(AL195<18,IF(Plano=Nao_Repactuado,1000000,IF(Plano=Repactuado,10000000,"")),""))) ->  | AO195: 0 | AP195: 0 | AQ195: 0
B196: 193 | C196: JAN | D196: =IF(B196>=Mes_Inicio_Serie_Beneficio_PP3,(B196-Mes_Inicio_Serie_Beneficio_PP3+1),"") -> 193 | E196: =IF(Mes_Inicio_Serie_Beneficio_PP3<>"",IF(B196>=Mes_Inicio_Serie_Beneficio_PP3,1/((1+Rentabilidade_Mensal_PP3)^D196),IF(B196=Mes_Inicio_Serie_Beneficio_PP3 - 1,1,"")),"") -> 0.4377914892 | F196: =IF(B196>=Mes_Inicio_Serie_Beneficio_PP3,IF(AND(E196<>"",C196="NOV"),E196,0),"") -> 0 | G196: =IF(G195<>"",IF(MOD(B196,12)=Mes_Nascimento_Participante,G195+1,G195),"") ->  | K196: =IF(J196<>"",1 - J196,"") ->  | N196: =IF(N195<>"",IF(MOD(B196,12)=Mes_Nascimento_Conjuge,N195+1,N195),"") ->  | Q196: =IF(AND(P$3<>"",P197<>""),P197/P$3,0) -> 0 | R196: 0 | S196: 0 | T196: =IF(T195<>"",IF(MOD($B196,12)=Mes_Nascimento_Filho_1,T195+1,T195),"") ->  | W196: =IF(AND(V$3<>"",V197<>"",OR(T196<21,Pensao_Vitalicia_Filho_1="SIM")),V197/V$3,0) -> 0 | X196: 0 | Y196: 0 | Z196: =IF(Z195<>"",IF(MOD($B196,12)=Mes_Nascimento_Filho_2,Z195+1,Z195),"") ->  | AC196: =IF(AND(AB$3<>"",AB197<>"",OR(Z196<21,Pensao_Vitalicia_Filho_2="SIM")),AB197/AB$3,0) -> 0 | AD196: 0 | AE196: 0 | AF196: =IF(AF195<>"",IF(MOD($B196,12)=Mes_Nascimento_Filho_3,AF195+1,AF195),"") ->  | AH196: =IF(AND(Plano=Nao_Repactuado,AF196>=18,AF196<=116),VLOOKUP(AF196,Tabua_Mortalidade,4),IF(AND(Plano=Repactuado,AF196>=18,AF196<=116),VLOOKUP(AF196,Tabua_Mortalidade,2),IF(AF196<18,IF(Plano=Nao_Repactuado,1000000,IF(Plano=Repactuado,10000000,"")),""))) ->  | AI196: =IF(AND(AH$3<>"",AH197<>"",OR(AF196<21,Pensao_Vitalicia_Filho_3="SIM")),AH197/AH$3,0) -> 0 | AJ196: 0 | AK196: 0 | AL196: =IF(AL195<>"",IF(MOD($B196,12)=Mes_Nascimento_Filho_4,AL195+1,AL195),"") ->  | AO196: =IF(AND(AN$3<>"",AN197<>"",OR(AL196<21,Pensao_Vitalicia_Filho_4="SIM")),AN197/AN$3,0) -> 0 | AP196: 0 | AQ196: 0
B197: 194 | C197: =IF(MOD(B197,12)=1,"JAN",IF(MOD(B197,12)=2,"FEV",IF(MOD(B197,12)=3,"MAR",IF(MOD(B197,12)=4,"ABR",IF(MOD(B197,12)=5,"MAI",IF(MOD(B197,12)=6,"JUN",IF(MOD(B197,12)=7,"JUL",IF(MOD(B197,12)=8,"AGO",IF(MOD(B197,12)=9,"SET",IF(MOD(B197,12)=10,"OUT",IF(MOD(B197,12)=11,"NOV",IF(MOD(B197,12)=0,"DEZ","")))))))))))) -> FEV | D197: 194 | E197: 0.4359218077 | F197: 0 | H197: =IF(H196<>"",IF((H196+1)=12,0,H196+1),"") ->  | J197: =IF(AND(I$3<>"",I198<>""),I198/I$3,"") ->  | L197: =IF(AND(E197<>"",J197<>""),E197 * J197,"") ->  | M197: =IF(AND(F197<>"",J197<>""),F197 * J197,"") ->  | O197: =IF(O196<>"",IF((O196+1)=12,0,O196+1),"") ->  | Q197: 0 | R197: =IF(AND($E197<>"",Q197<>""),$E197 * Q197,"") -> 0 | S197: =IF(AND($F197<>"",Q197<>""),$F197 * Q197,"") -> 0 | U197: =IF(U196<>"",IF((U196+1)=12,0,U196+1),"") ->  | W197: 0 | X197: =IF(AND($E197<>"",W197<>""),$E197 * W197,"") -> 0 | Y197: =IF(AND($F197<>"",W197<>""),$F197 * W197,"") -> 0 | AA197: =IF(AA196<>"",IF((AA196+1)=12,0,AA196+1),"") ->  | AC197: 0 | AD197: =IF(AND($E197<>"",AC197<>""),$E197 * AC197,"") -> 0 | AE197: =IF(AND($F197<>"",AC197<>""),$F197 * AC197,"") -> 0 | AG197: =IF(AG196<>"",IF((AG196+1)=12,0,AG196+1),"") ->  | AI197: 0 | AJ197: =IF(AND($E197<>"",AI197<>""),$E197 * AI197,"") -> 0 | AK197: =IF(AND($F197<>"",AI197<>""),$F197 * AI197,"") -> 0 | AM197: =IF(AM196<>"",IF((AM196+1)=12,0,AM196+1),"") ->  | AO197: 0 | AP197: =IF(AND($E197<>"",AO197<>""),$E197 * AO197,"") -> 0 | AQ197: =IF(AND($F197<>"",AO197<>""),$F197 * AO197,"") -> 0
B198: 195 | C198: MAR | D198: 195 | E198: 0.4340601112 | F198: 0 | Q198: 0 | R198: 0 | S198: 0 | W198: 0 | X198: 0 | Y198: 0 | AC198: 0 | AD198: 0 | AE198: 0 | AI198: 0 | AJ198: 0 | AK198: 0 | AO198: 0 | AP198: 0 | AQ198: 0
B199: 196 | C199: ABR | D199: 196 | E199: 0.4322063654 | F199: 0 | Q199: 0 | R199: 0 | S199: 0 | W199: 0 | X199: 0 | Y199: 0 | AC199: 0 | AD199: 0 | AE199: 0 | AI199: 0 | AJ199: 0 | AK199: 0 | AO199: 0 | AP199: 0 | AQ199: 0
B200: 197 | C200: MAI | D200: 197 | E200: 0.4303605364 | F200: 0 | Q200: 0 | R200: 0 | S200: 0 | W200: 0 | X200: 0 | Y200: 0 | AC200: 0 | AD200: 0 | AE200: 0 | AI200: 0 | AJ200: 0 | AK200: 0 | AO200: 0 | AP200: 0 | AQ200: 0
... 1200 more rows

Sheet Fluxo de Caixa PP3 (hidden)
B2: Reserva Migração Ind.: | E2: =IF(Reserva_Individual_Migracao_Petros<>"",Reserva_Individual_Migracao_Petros,"") ->  | H2: Mod. Receb.: | I2: =IF(Aux_1!B3=1,"Prazo Indeterminado",IF(Aux_1!B3=2,"Prazo Determinado",IF(Aux_1!B3=3,"Percentual do Saldo",""))) -> Prazo Indeterminado | M2: Rendimento Anual PP3: | O2: =(1+Taxa_Juros_Anual_PP3)*(1+'Valor Projetado do Benefício'!D5) - 1 -> 0.09217625 | R2: UMP | S2: Linha inicial a Ocultar
H3: =IF(Aux_1!B3=2,"Prazo:",IF(Aux_1!B3=3,"Percentual:","")) ->  | I3: =IF(Aux_1!B3=2,'Simulador de Alternativas PED'!F58,IF(Aux_1!B3=3,'Simulador de Alternativas PED'!F66,"")) ->  | M3: Rendimento Mensal PP3: | O3: =IF(O2<>"",(1+O2)^(1/12) -1,0) -> 0.007374749285
B4: Recálculo Atuarial Anual.: | E4: SIM | H4: Benefício PP3: | I4: =IF(Modalidade = 1,Valor_Beneficio_Prazo_Indeterminado,IF(Modalidade = 2,Valor_Beneficio_Prazo_Determinado,IF(Modalidade = 3,Valor_Beneficio_Percentual_Reserva,""))) -> 
D6: 1 | E6: 2 | F6: 3 | G6: 4 | H6: 5 | I6: 6 | J6: 7 | K6: 8 | L6: 9 | M6: 10 | N6: 11 | O6: 12
O7: =IF(E2<>"",E2,"") -> 
O8: =IF(I4<>"",I4,"") -> 
B9: 2019 | D9: JAN | E9: FEV | F9: MAR | G9: ABR | H9: MAI | I9: JUN | J9: JUL | K9: AGO | L9: SET | M9: OUT | N9: NOV | O9: DEZ | P9: Valor da UMP
B10: Saldo | C10: 0 | D10: =IF(ROW(D10) - 1 = ROW(Inicio_FC),IF(Mes_Inicio_Serie>D$6,"",IF(Mes_Inicio_Serie=D$6,$E$2*(1+Taxa_PP3_Mensal),(C10-C11)*(1+Taxa_PP3_Mensal))),IF(MOD(D$6,12)=1,($O7-$O8)*(1+Taxa_PP3_Mensal),(C10-C11)*(1+Taxa_PP3_Mensal))) -> 
B11: Benefício | C11: 0 | D11: =IF(ROW(D11) - 2 = ROW(Inicio_FC),IF(D$6<Mes_Inicio_Serie,"",IF(MOD(D$6,12)=1,$O8,IF(MOD(D$6,12)=6,IF(Recalculo_Atuarial="SIM",IF(OR(Modalidade=1,Modalidade=2),$I10/$Q11,Percentual_Reserva*$I10),IF(OR(Modalidade=1,Modalidade=2),IF(Mes_Inicio_Serie<>6,$H11,$I$4),Percentual_Reserva*$I10)),IF(MOD(D$6,12)=11,IF(Opcao_Abono="SIM",IF(Mes_Inicio_Serie<>11,2*$M11,2*$I$4),IF(Mes_Inicio_Serie<>11,$M11,$I$4)),IF(MOD(D$6,12)=0,IF(Opcao_Abono="SIM",IF(Mes_Inicio_Serie<>12,$N11/2,$I$4),IF(Mes_Inicio_Serie<>12,$N11,$I$4)),IF(D$6=Mes_Inicio_Serie,$I$4,C11)))))),IF(D10=0,0,IF(C10<2*C11,D10,IF(MOD(D$6,12)=1,$O8,IF(MOD(D$6,12)=6,IF(Recalculo_Atuarial="SIM",IF(OR(Modalidade=1,Modalidade=2),IF($I10/$Q11>=$R11,$I10/$Q11,D10),IF(Percentual_Reserva*$I10>=$R11,Percentual_Reserva*$I10,D10)),IF(OR(Modalidade=1,Modalidade=2),$H11,IF(Percentual_Reserva*$I10>=$R11,Percentual_Reserva*$I10,D10))),IF(MOD(D$6,12)=11,IF(Opcao_Abono="SIM",2*$M11,$M11),IF(MOD(D$6,12)=0,IF(Opcao_Abono="SIM",$N11/2,$N11),C11))))))) ->  | P11: =IF(AND(O10<>0,O11<>0),R11,"") ->  | Q11: 227.0744602 | R11: =Valor_Inicial_UMP -> 100 | S11: =IF(AND(D10<>0,D13=0),ROW(D12),0) -> 
B12: =B9+1 -> 2020
B13: Saldo | C13: 0 | D13: =IF(ROW(D13) - 1 = ROW(Inicio_FC),IF(Mes_Inicio_Serie>D$6,"",IF(Mes_Inicio_Serie=D$6,$E$2*(1+Taxa_PP3_Mensal),(C13-C14)*(1+Taxa_PP3_Mensal))),IF(MOD(D$6,12)=1,($O10-$O11)*(1+Taxa_PP3_Mensal),(C13-C14)*(1+Taxa_PP3_Mensal))) -> 
B14: Benefício | C14: 0 | D14: =IF(ROW(D14) - 2 = ROW(Inicio_FC),IF(D$6<Mes_Inicio_Serie,"",IF(MOD(D$6,12)=1,$O11,IF(MOD(D$6,12)=6,IF(Recalculo_Atuarial="SIM",IF(OR(Modalidade=1,Modalidade=2),$I13/$Q14,Percentual_Reserva*$I13),IF(OR(Modalidade=1,Modalidade=2),IF(Mes_Inicio_Serie<>6,$H14,$I$4),Percentual_Reserva*$I13)),IF(MOD(D$6,12)=11,IF(Opcao_Abono="SIM",IF(Mes_Inicio_Serie<>11,2*$M14,2*$I$4),IF(Mes_Inicio_Serie<>11,$M14,$I$4)),IF(MOD(D$6,12)=0,IF(Opcao_Abono="SIM",IF(Mes_Inicio_Serie<>12,$N14/2,$I$4),IF(Mes_Inicio_Serie<>12,$N14,$I$4)),IF(D$6=Mes_Inicio_Serie,$I$4,C14)))))),IF(D13=0,0,IF(C13<2*C14,D13,IF(MOD(D$6,12)=1,$O11,IF(MOD(D$6,12)=6,IF(Recalculo_Atuarial="SIM",IF(OR(Modalidade=1,Modalidade=2),IF($I13/$Q14>=$R14,$I13/$Q14,D13),IF(Percentual_Reserva*$I13>=$R14,Percentual_Reserva*$I13,D13)),IF(OR(Modalidade=1,Modalidade=2),$H14,IF(Percentual_Reserva*$I13>=$R14,Percentual_Reserva*$I13,D13))),IF(MOD(D$6,12)=11,IF(Opcao_Abono="SIM",2*$M14,$M14),IF(MOD(D$6,12)=0,IF(Opcao_Abono="SIM",$N14/2,$N14),C14))))))) ->  | P14: =IF(AND(D13<>0,D14<>0),R14,"") ->  | Q14: 225.7281102 | R14: =R11*(1 + Taxa_Composta_Anual_PP3) -> 109.217625 | S14: =IF(AND(D13<>0,D16=0),ROW(D15),0) -> 
B15: =B12+1 -> 2021
B16: Saldo | C16: 0 | D16: =IF(ROW(D16) - 1 = ROW(Inicio_FC),IF(Mes_Inicio_Serie>D$6,"",IF(Mes_Inicio_Serie=D$6,$E$2*(1+Taxa_PP3_Mensal),(C16-C17)*(1+Taxa_PP3_Mensal))),IF(MOD(D$6,12)=1,($O13-$O14)*(1+Taxa_PP3_Mensal),(C16-C17)*(1+Taxa_PP3_Mensal))) -> 
B17: Benefício | C17: 0 | D17: =IF(ROW(D17) - 2 = ROW(Inicio_FC),IF(D$6<Mes_Inicio_Serie,"",IF(MOD(D$6,12)=1,$O14,IF(MOD(D$6,12)=6,IF(Recalculo_Atuarial="SIM",IF(OR(Modalidade=1,Modalidade=2),$I16/$Q17,Percentual_Reserva*$I16),IF(OR(Modalidade=1,Modalidade=2),IF(Mes_Inicio_Serie<>6,$H17,$I$4),Percentual_Reserva*$I16)),IF(MOD(D$6,12)=11,IF(Opcao_Abono="SIM",IF(Mes_Inicio_Serie<>11,2*$M17,2*$I$4),IF(Mes_Inicio_Serie<>11,$M17,$I$4)),IF(MOD(D$6,12)=0,IF(Opcao_Abono="SIM",IF(Mes_Inicio_Serie<>12,$N17/2,$I$4),IF(Mes_Inicio_Serie<>12,$N17,$I$4)),IF(D$6=Mes_Inicio_Serie,$I$4,C17)))))),IF(D16=0,0,IF(C16<2*C17,D16,IF(MOD(D$6,12)=1,$O14,IF(MOD(D$6,12)=6,IF(Recalculo_Atuarial="SIM",IF(OR(Modalidade=1,Modalidade=2),IF($I16/$Q17>=$R17,$I16/$Q17,D16),IF(Percentual_Reserva*$I16>=$R17,Percentual_Reserva*$I16,D16)),IF(OR(Modalidade=1,Modalidade=2),$H17,IF(Percentual_Reserva*$I16>=$R17,Percentual_Reserva*$I16,D16))),IF(MOD(D$6,12)=11,IF(Opcao_Abono="SIM",2*$M17,$M17),IF(MOD(D$6,12)=0,IF(Opcao_Abono="SIM",$N17/2,$N17),C17))))))) ->  | P17: =IF(AND(D16<>0,D17<>0),R17,"") ->  | Q17: 224.3108076 | R17: =R14*(1 + Taxa_Composta_Anual_PP3) -> 119.2848961 | S17: =IF(AND(D16<>0,D19=0),ROW(D18),0) -> 
B18: =B15+1 -> 2022
B19: Saldo | C19: 0 | D19: =IF(ROW(D19) - 1 = ROW(Inicio_FC),IF(Mes_Inicio_Serie>D$6,"",IF(Mes_Inicio_Serie=D$6,$E$2*(1+Taxa_PP3_Mensal),(C19-C20)*(1+Taxa_PP3_Mensal))),IF(MOD(D$6,12)=1,($O16-$O17)*(1+Taxa_PP3_Mensal),(C19-C20)*(1+Taxa_PP3_Mensal))) -> 
B20: Benefício | C20: 0 | D20: =IF(ROW(D20) - 2 = ROW(Inicio_FC),IF(D$6<Mes_Inicio_Serie,"",IF(MOD(D$6,12)=1,$O17,IF(MOD(D$6,12)=6,IF(Recalculo_Atuarial="SIM",IF(OR(Modalidade=1,Modalidade=2),$I19/$Q20,Percentual_Reserva*$I19),IF(OR(Modalidade=1,Modalidade=2),IF(Mes_Inicio_Serie<>6,$H20,$I$4),Percentual_Reserva*$I19)),IF(MOD(D$6,12)=11,IF(Opcao_Abono="SIM",IF(Mes_Inicio_Serie<>11,2*$M20,2*$I$4),IF(Mes_Inicio_Serie<>11,$M20,$I$4)),IF(MOD(D$6,12)=0,IF(Opcao_Abono="SIM",IF(Mes_Inicio_Serie<>12,$N20/2,$I$4),IF(Mes_Inicio_Serie<>12,$N20,$I$4)),IF(D$6=Mes_Inicio_Serie,$I$4,C20)))))),IF(D19=0,0,IF(C19<2*C20,D19,IF(MOD(D$6,12)=1,$O17,IF(MOD(D$6,12)=6,IF(Recalculo_Atuarial="SIM",IF(OR(Modalidade=1,Modalidade=2),IF($I19/$Q20>=$R20,$I19/$Q20,D19),IF(Percentual_Reserva*$I19>=$R20,Percentual_Reserva*$I19,D19)),IF(OR(Modalidade=1,Modalidade=2),$H20,IF(Percentual_Reserva*$I19>=$R20,Percentual_Reserva*$I19,D19))),IF(MOD(D$6,12)=11,IF(Opcao_Abono="SIM",2*$M20,$M20),IF(MOD(D$6,12)=0,IF(Opcao_Abono="SIM",$N20/2,$N20),C20))))))) ->  | P20: =IF(AND(D19<>0,D20<>0),R20,"") ->  | Q20: 222.8188131 | R20: =R17*(1 + Taxa_Composta_Anual_PP3) -> 130.2801305 | S20: =IF(AND(D19<>0,D22=0),ROW(D21),0) -> 
B21: =B18+1 -> 2023
B22: Saldo | C22: 0 | D22: =IF(ROW(D22) - 1 = ROW(Inicio_FC),IF(Mes_Inicio_Serie>D$6,"",IF(Mes_Inicio_Serie=D$6,$E$2*(1+Taxa_PP3_Mensal),(C22-C23)*(1+Taxa_PP3_Mensal))),IF(MOD(D$6,12)=1,($O19-$O20)*(1+Taxa_PP3_Mensal),(C22-C23)*(1+Taxa_PP3_Mensal))) -> 
B23: Benefício | C23: 0 | D23: =IF(ROW(D23) - 2 = ROW(Inicio_FC),IF(D$6<Mes_Inicio_Serie,"",IF(MOD(D$6,12)=1,$O20,IF(MOD(D$6,12)=6,IF(Recalculo_Atuarial="SIM",IF(OR(Modalidade=1,Modalidade=2),$I22/$Q23,Percentual_Reserva*$I22),IF(OR(Modalidade=1,Modalidade=2),IF(Mes_Inicio_Serie<>6,$H23,$I$4),Percentual_Reserva*$I22)),IF(MOD(D$6,12)=11,IF(Opcao_Abono="SIM",IF(Mes_Inicio_Serie<>11,2*$M23,2*$I$4),IF(Mes_Inicio_Serie<>11,$M23,$I$4)),IF(MOD(D$6,12)=0,IF(Opcao_Abono="SIM",IF(Mes_Inicio_Serie<>12,$N23/2,$I$4),IF(Mes_Inicio_Serie<>12,$N23,$I$4)),IF(D$6=Mes_Inicio_Serie,$I$4,C23)))))),IF(D22=0,0,IF(C22<2*C23,D22,IF(MOD(D$6,12)=1,$O20,IF(MOD(D$6,12)=6,IF(Recalculo_Atuarial="SIM",IF(OR(Modalidade=1,Modalidade=2),IF($I22/$Q23>=$R23,$I22/$Q23,D22),IF(Percentual_Reserva*$I22>=$R23,Percentual_Reserva*$I22,D22)),IF(OR(Modalidade=1,Modalidade=2),$H23,IF(Percentual_Reserva*$I22>=$R23,Percentual_Reserva*$I22,D22))),IF(MOD(D$6,12)=11,IF(Opcao_Abono="SIM",2*$M23,$M23),IF(MOD(D$6,12)=0,IF(Opcao_Abono="SIM",$N23/2,$N23),C23))))))) ->  | P23: =IF(AND(D22<>0,D23<>0),R23,"") ->  | Q23: 221.2481905 | R23: =R20*(1 + Taxa_Composta_Anual_PP3) -> 142.2888644 | S23: =IF(AND(D22<>0,D25=0),ROW(D24),0) -> 
B24: =B21+1 -> 2024
B25: Saldo | C25: 0 | D25: =IF(ROW(D25) - 1 = ROW(Inicio_FC),IF(Mes_Inicio_Serie>D$6,"",IF(Mes_Inicio_Serie=D$6,$E$2*(1+Taxa_PP3_Mensal),(C25-C26)*(1+Taxa_PP3_Mensal))),IF(MOD(D$6,12)=1,($O22-$O23)*(1+Taxa_PP3_Mensal),(C25-C26)*(1+Taxa_PP3_Mensal))) -> 
B26: Benefício | C26: 0 | D26: =IF(ROW(D26) - 2 = ROW(Inicio_FC),IF(D$6<Mes_Inicio_Serie,"",IF(MOD(D$6,12)=1,$O23,IF(MOD(D$6,12)=6,IF(Recalculo_Atuarial="SIM",IF(OR(Modalidade=1,Modalidade=2),$I25/$Q26,Percentual_Reserva*$I25),IF(OR(Modalidade=1,Modalidade=2),IF(Mes_Inicio_Serie<>6,$H26,$I$4),Percentual_Reserva*$I25)),IF(MOD(D$6,12)=11,IF(Opcao_Abono="SIM",IF(Mes_Inicio_Serie<>11,2*$M26,2*$I$4),IF(Mes_Inicio_Serie<>11,$M26,$I$4)),IF(MOD(D$6,12)=0,IF(Opcao_Abono="SIM",IF(Mes_Inicio_Serie<>12,$N26/2,$I$4),IF(Mes_Inicio_Serie<>12,$N26,$I$4)),IF(D$6=Mes_Inicio_Serie,$I$4,C26)))))),IF(D25=0,0,IF(C25<2*C26,D25,IF(MOD(D$6,12)=1,$O23,IF(MOD(D$6,12)=6,IF(Recalculo_Atuarial="SIM",IF(OR(Modalidade=1,Modalidade=2),IF($I25/$Q26>=$R26,$I25/$Q26,D25),IF(Percentual_Reserva*$I25>=$R26,Percentual_Reserva*$I25,D25)),IF(OR(Modalidade=1,Modalidade=2),$H26,IF(Percentual_Reserva*$I25>=$R26,Percentual_Reserva*$I25,D25))),IF(MOD(D$6,12)=11,IF(Opcao_Abono="SIM",2*$M26,$M26),IF(MOD(D$6,12)=0,IF(Opcao_Abono="SIM",$N26/2,$N26),C26))))))) ->  | P26: =IF(AND(D25<>0,D26<>0),R26,"") ->  | Q26: 219.5947962 | R26: =R23*(1 + Taxa_Composta_Anual_PP3) -> 155.4045183 | S26: =IF(AND(D25<>0,D28=0),ROW(D27),0) -> 
B27: =B24+1 -> 2025
B28: Saldo | C28: 0 | D28: =IF(ROW(D28) - 1 = ROW(Inicio_FC),IF(Mes_Inicio_Serie>D$6,"",IF(Mes_Inicio_Serie=D$6,$E$2*(1+Taxa_PP3_Mensal),(C28-C29)*(1+Taxa_PP3_Mensal))),IF(MOD(D$6,12)=1,($O25-$O26)*(1+Taxa_PP3_Mensal),(C28-C29)*(1+Taxa_PP3_Mensal))) -> 
B29: Benefício | C29: 0 | D29: =IF(ROW(D29) - 2 = ROW(Inicio_FC),IF(D$6<Mes_Inicio_Serie,"",IF(MOD(D$6,12)=1,$O26,IF(MOD(D$6,12)=6,IF(Recalculo_Atuarial="SIM",IF(OR(Modalidade=1,Modalidade=2),$I28/$Q29,Percentual_Reserva*$I28),IF(OR(Modalidade=1,Modalidade=2),IF(Mes_Inicio_Serie<>6,$H29,$I$4),Percentual_Reserva*$I28)),IF(MOD(D$6,12)=11,IF(Opcao_Abono="SIM",IF(Mes_Inicio_Serie<>11,2*$M29,2*$I$4),IF(Mes_Inicio_Serie<>11,$M29,$I$4)),IF(MOD(D$6,12)=0,IF(Opcao_Abono="SIM",IF(Mes_Inicio_Serie<>12,$N29/2,$I$4),IF(Mes_Inicio_Serie<>12,$N29,$I$4)),IF(D$6=Mes_Inicio_Serie,$I$4,C29)))))),IF(D28=0,0,IF(C28<2*C29,D28,IF(MOD(D$6,12)=1,$O26,IF(MOD(D$6,12)=6,IF(Recalculo_Atuarial="SIM",IF(OR(Modalidade=1,Modalidade=2),IF($I28/$Q29>=$R29,$I28/$Q29,D28),IF(Percentual_Reserva*$I28>=$R29,Percentual_Reserva*$I28,D28)),IF(OR(Modalidade=1,Modalidade=2),$H29,IF(Percentual_Reserva*$I28>=$R29,Percentual_Reserva*$I28,D28))),IF(MOD(D$6,12)=11,IF(Opcao_Abono="SIM",2*$M29,$M29),IF(MOD(D$6,12)=0,IF(Opcao_Abono="SIM",$N29/2,$N29),C29))))))) ->  | P29: =IF(AND(D28<>0,D29<>0),R29,"") ->  | Q29: 217.8542679 | R29: =R26*(1 + Taxa_Composta_Anual_PP3) -> 169.7291241 | S29: =IF(AND(D28<>0,D31=0),ROW(D30),0) -> 
B30: =B27+1 -> 2026
B31: Saldo | C31: 0 | D31: =IF(ROW(D31) - 1 = ROW(Inicio_FC),IF(Mes_Inicio_Serie>D$6,"",IF(Mes_Inicio_Serie=D$6,$E$2*(1+Taxa_PP3_Mensal),(C31-C32)*(1+Taxa_PP3_Mensal))),IF(MOD(D$6,12)=1,($O28-$O29)*(1+Taxa_PP3_Mensal),(C31-C32)*(1+Taxa_PP3_Mensal))) -> 
B32: Benefício | C32: 0 | D32: =IF(ROW(D32) - 2 = ROW(Inicio_FC),IF(D$6<Mes_Inicio_Serie,"",IF(MOD(D$6,12)=1,$O29,IF(MOD(D$6,12)=6,IF(Recalculo_Atuarial="SIM",IF(OR(Modalidade=1,Modalidade=2),$I31/$Q32,Percentual_Reserva*$I31),IF(OR(Modalidade=1,Modalidade=2),IF(Mes_Inicio_Serie<>6,$H32,$I$4),Percentual_Reserva*$I31)),IF(MOD(D$6,12)=11,IF(Opcao_Abono="SIM",IF(Mes_Inicio_Serie<>11,2*$M32,2*$I$4),IF(Mes_Inicio_Serie<>11,$M32,$I$4)),IF(MOD(D$6,12)=0,IF(Opcao_Abono="SIM",IF(Mes_Inicio_Serie<>12,$N32/2,$I$4),IF(Mes_Inicio_Serie<>12,$N32,$I$4)),IF(D$6=Mes_Inicio_Serie,$I$4,C32)))))),IF(D31=0,0,IF(C31<2*C32,D31,IF(MOD(D$6,12)=1,$O29,IF(MOD(D$6,12)=6,IF(Recalculo_Atuarial="SIM",IF(OR(Modalidade=1,Modalidade=2),IF($I31/$Q32>=$R32,$I31/$Q32,D31),IF(Percentual_Reserva*$I31>=$R32,Percentual_Reserva*$I31,D31)),IF(OR(Modalidade=1,Modalidade=2),$H32,IF(Percentual_Reserva*$I31>=$R32,Percentual_Reserva*$I31,D31))),IF(MOD(D$6,12)=11,IF(Opcao_Abono="SIM",2*$M32,$M32),IF(MOD(D$6,12)=0,IF(Opcao_Abono="SIM",$N32/2,$N32),C32))))))) ->  | P32: =IF(AND(D31<>0,D32<>0),R32,"") ->  | Q32: 216.0220138 | R32: =R29*(1 + Taxa_Composta_Anual_PP3) -> 185.3741182 | S32: =IF(AND(D31<>0,D34=0),ROW(D33),0) -> 
B33: =B30+1 -> 2027
B34: Saldo | C34: 0 | D34: =IF(ROW(D34) - 1 = ROW(Inicio_FC),IF(Mes_Inicio_Serie>D$6,"",IF(Mes_Inicio_Serie=D$6,$E$2*(1+Taxa_PP3_Mensal),(C34-C35)*(1+Taxa_PP3_Mensal))),IF(MOD(D$6,12)=1,($O31-$O32)*(1+Taxa_PP3_Mensal),(C34-C35)*(1+Taxa_PP3_Mensal))) -> 
B35: Benefício | C35: 0 | D35: =IF(ROW(D35) - 2 = ROW(Inicio_FC),IF(D$6<Mes_Inicio_Serie,"",IF(MOD(D$6,12)=1,$O32,IF(MOD(D$6,12)=6,IF(Recalculo_Atuarial="SIM",IF(OR(Modalidade=1,Modalidade=2),$I34/$Q35,Percentual_Reserva*$I34),IF(OR(Modalidade=1,Modalidade=2),IF(Mes_Inicio_Serie<>6,$H35,$I$4),Percentual_Reserva*$I34)),IF(MOD(D$6,12)=11,IF(Opcao_Abono="SIM",IF(Mes_Inicio_Serie<>11,2*$M35,2*$I$4),IF(Mes_Inicio_Serie<>11,$M35,$I$4)),IF(MOD(D$6,12)=0,IF(Opcao_Abono="SIM",IF(Mes_Inicio_Serie<>12,$N35/2,$I$4),IF(Mes_Inicio_Serie<>12,$N35,$I$4)),IF(D$6=Mes_Inicio_Serie,$I$4,C35)))))),IF(D34=0,0,IF(C34<2*C35,D34,IF(MOD(D$6,12)=1,$O32,IF(MOD(D$6,12)=6,IF(Recalculo_Atuarial="SIM",IF(OR(Modalidade=1,Modalidade=2),IF($I34/$Q35>=$R35,$I34/$Q35,D34),IF(Percentual_Reserva*$I34>=$R35,Percentual_Reserva*$I34,D34)),IF(OR(Modalidade=1,Modalidade=2),$H35,IF(Percentual_Reserva*$I34>=$R35,Percentual_Reserva*$I34,D34))),IF(MOD(D$6,12)=11,IF(Opcao_Abono="SIM",2*$M35,$M35),IF(MOD(D$6,12)=0,IF(Opcao_Abono="SIM",$N35/2,$N35),C35))))))) ->  | P35: =IF(AND(D34<>0,D35<>0),R35,"") ->  | Q35: 214.0931999 | R35: =R32*(1 + Taxa_Composta_Anual_PP3) -> 202.4612093 | S35: =IF(AND(D34<>0,D37=0),ROW(D36),0) -> 
B36: =B33+1 -> 2028
B37: Saldo | C37: 0 | D37: =IF(ROW(D37) - 1 = ROW(Inicio_FC),IF(Mes_Inicio_Serie>D$6,"",IF(Mes_Inicio_Serie=D$6,$E$2*(1+Taxa_PP3_Mensal),(C37-C38)*(1+Taxa_PP3_Mensal))),IF(MOD(D$6,12)=1,($O34-$O35)*(1+Taxa_PP3_Mensal),(C37-C38)*(1+Taxa_PP3_Mensal))) -> 
B38: Benefício | C38: 0 | D38: =IF(ROW(D38) - 2 = ROW(Inicio_FC),IF(D$6<Mes_Inicio_Serie,"",IF(MOD(D$6,12)=1,$O35,IF(MOD(D$6,12)=6,IF(Recalculo_Atuarial="SIM",IF(OR(Modalidade=1,Modalidade=2),$I37/$Q38,Percentual_Reserva*$I37),IF(OR(Modalidade=1,Modalidade=2),IF(Mes_Inicio_Serie<>6,$H38,$I$4),Percentual_Reserva*$I37)),IF(MOD(D$6,12)=11,IF(Opcao_Abono="SIM",IF(Mes_Inicio_Serie<>11,2*$M38,2*$I$4),IF(Mes_Inicio_Serie<>11,$M38,$I$4)),IF(MOD(D$6,12)=0,IF(Opcao_Abono="SIM",IF(Mes_Inicio_Serie<>12,$N38/2,$I$4),IF(Mes_Inicio_Serie<>12,$N38,$I$4)),IF(D$6=Mes_Inicio_Serie,$I$4,C38)))))),IF(D37=0,0,IF(C37<2*C38,D37,IF(MOD(D$6,12)=1,$O35,IF(MOD(D$6,12)=6,IF(Recalculo_Atuarial="SIM",IF(OR(Modalidade=1,Modalidade=2),IF($I37/$Q38>=$R38,$I37/$Q38,D37),IF(Percentual_Reserva*$I37>=$R38,Percentual_Reserva*$I37,D37)),IF(OR(Modalidade=1,Modalidade=2),$H38,IF(Percentual_Reserva*$I37>=$R38,Percentual_Reserva*$I37,D37))),IF(MOD(D$6,12)=11,IF(Opcao_Abono="SIM",2*$M38,$M38),IF(MOD(D$6,12)=0,IF(Opcao_Abono="SIM",$N38/2,$N38),C38))))))) ->  | P38: =IF(AND(D37<>0,D38<>0),R38,"") ->  | Q38: 212.0627375 | R38: =R35*(1 + Taxa_Composta_Anual_PP3) -> 221.1233243 | S38: =IF(AND(D37<>0,D40=0),ROW(D39),0) -> 
B39: =B36+1 -> 2029
B40: Saldo | C40: 0 | D40: =IF(ROW(D40) - 1 = ROW(Inicio_FC),IF(Mes_Inicio_Serie>D$6,"",IF(Mes_Inicio_Serie=D$6,$E$2*(1+Taxa_PP3_Mensal),(C40-C41)*(1+Taxa_PP3_Mensal))),IF(MOD(D$6,12)=1,($O37-$O38)*(1+Taxa_PP3_Mensal),(C40-C41)*(1+Taxa_PP3_Mensal))) -> 
B41: Benefício | C41: 0 | D41: =IF(ROW(D41) - 2 = ROW(Inicio_FC),IF(D$6<Mes_Inicio_Serie,"",IF(MOD(D$6,12)=1,$O38,IF(MOD(D$6,12)=6,IF(Recalculo_Atuarial="SIM",IF(OR(Modalidade=1,Modalidade=2),$I40/$Q41,Percentual_Reserva*$I40),IF(OR(Modalidade=1,Modalidade=2),IF(Mes_Inicio_Serie<>6,$H41,$I$4),Percentual_Reserva*$I40)),IF(MOD(D$6,12)=11,IF(Opcao_Abono="SIM",IF(Mes_Inicio_Serie<>11,2*$M41,2*$I$4),IF(Mes_Inicio_Serie<>11,$M41,$I$4)),IF(MOD(D$6,12)=0,IF(Opcao_Abono="SIM",IF(Mes_Inicio_Serie<>12,$N41/2,$I$4),IF(Mes_Inicio_Serie<>12,$N41,$I$4)),IF(D$6=Mes_Inicio_Serie,$I$4,C41)))))),IF(D40=0,0,IF(C40<2*C41,D40,IF(MOD(D$6,12)=1,$O38,IF(MOD(D$6,12)=6,IF(Recalculo_Atuarial="SIM",IF(OR(Modalidade=1,Modalidade=2),IF($I40/$Q41>=$R41,$I40/$Q41,D40),IF(Percentual_Reserva*$I40>=$R41,Percentual_Reserva*$I40,D40)),IF(OR(Modalidade=1,Modalidade=2),$H41,IF(Percentual_Reserva*$I40>=$R41,Percentual_Reserva*$I40,D40))),IF(MOD(D$6,12)=11,IF(Opcao_Abono="SIM",2*$M41,$M41),IF(MOD(D$6,12)=0,IF(Opcao_Abono="SIM",$N41/2,$N41),C41))))))) ->  | P41: =IF(AND(D40<>0,D41<>0),R41,"") ->  | Q41: 209.9252697 | R41: =R38*(1 + Taxa_Composta_Anual_PP3) -> 241.5056432 | S41: =IF(AND(D40<>0,D43=0),ROW(D42),0) -> 
B42: =B39+1 -> 2030
B43: Saldo | C43: 0 | D43: =IF(ROW(D43) - 1 = ROW(Inicio_FC),IF(Mes_Inicio_Serie>D$6,"",IF(Mes_Inicio_Serie=D$6,$E$2*(1+Taxa_PP3_Mensal),(C43-C44)*(1+Taxa_PP3_Mensal))),IF(MOD(D$6,12)=1,($O40-$O41)*(1+Taxa_PP3_Mensal),(C43-C44)*(1+Taxa_PP3_Mensal))) -> 
B44: Benefício | C44: 0 | D44: =IF(ROW(D44) - 2 = ROW(Inicio_FC),IF(D$6<Mes_Inicio_Serie,"",IF(MOD(D$6,12)=1,$O41,IF(MOD(D$6,12)=6,IF(Recalculo_Atuarial="SIM",IF(OR(Modalidade=1,Modalidade=2),$I43/$Q44,Percentual_Reserva*$I43),IF(OR(Modalidade=1,Modalidade=2),IF(Mes_Inicio_Serie<>6,$H44,$I$4),Percentual_Reserva*$I43)),IF(MOD(D$6,12)=11,IF(Opcao_Abono="SIM",IF(Mes_Inicio_Serie<>11,2*$M44,2*$I$4),IF(Mes_Inicio_Serie<>11,$M44,$I$4)),IF(MOD(D$6,12)=0,IF(Opcao_Abono="SIM",IF(Mes_Inicio_Serie<>12,$N44/2,$I$4),IF(Mes_Inicio_Serie<>12,$N44,$I$4)),IF(D$6=Mes_Inicio_Serie,$I$4,C44)))))),IF(D43=0,0,IF(C43<2*C44,D43,IF(MOD(D$6,12)=1,$O41,IF(MOD(D$6,12)=6,IF(Recalculo_Atuarial="SIM",IF(OR(Modalidade=1,Modalidade=2),IF($I43/$Q44>=$R44,$I43/$Q44,D43),IF(Percentual_Reserva*$I43>=$R44,Percentual_Reserva*$I43,D43)),IF(OR(Modalidade=1,Modalidade=2),$H44,IF(Percentual_Reserva*$I43>=$R44,Percentual_Reserva*$I43,D43))),IF(MOD(D$6,12)=11,IF(Opcao_Abono="SIM",2*$M44,$M44),IF(MOD(D$6,12)=0,IF(Opcao_Abono="SIM",$N44/2,$N44),C44))))))) ->  | P44: =IF(AND(D43<>0,D44<>0),R44,"") ->  | Q44: 207.6751574 | R44: =R41*(1 + Taxa_Composta_Anual_PP3) -> 263.7667277 | S44: =IF(AND(D43<>0,D46=0),ROW(D45),0) -> 
B45: =B42+1 -> 2031
B46: Saldo | C46: 0 | D46: =IF(ROW(D46) - 1 = ROW(Inicio_FC),IF(Mes_Inicio_Serie>D$6,"",IF(Mes_Inicio_Serie=D$6,$E$2*(1+Taxa_PP3_Mensal),(C46-C47)*(1+Taxa_PP3_Mensal))),IF(MOD(D$6,12)=1,($O43-$O44)*(1+Taxa_PP3_Mensal),(C46-C47)*(1+Taxa_PP3_Mensal))) -> 
B47: Benefício | C47: 0 | D47: =IF(ROW(D47) - 2 = ROW(Inicio_FC),IF(D$6<Mes_Inicio_Serie,"",IF(MOD(D$6,12)=1,$O44,IF(MOD(D$6,12)=6,IF(Recalculo_Atuarial="SIM",IF(OR(Modalidade=1,Modalidade=2),$I46/$Q47,Percentual_Reserva*$I46),IF(OR(Modalidade=1,Modalidade=2),IF(Mes_Inicio_Serie<>6,$H47,$I$4),Percentual_Reserva*$I46)),IF(MOD(D$6,12)=11,IF(Opcao_Abono="SIM",IF(Mes_Inicio_Serie<>11,2*$M47,2*$I$4),IF(Mes_Inicio_Serie<>11,$M47,$I$4)),IF(MOD(D$6,12)=0,IF(Opcao_Abono="SIM",IF(Mes_Inicio_Serie<>12,$N47/2,$I$4),IF(Mes_Inicio_Serie<>12,$N47,$I$4)),IF(D$6=Mes_Inicio_Serie,$I$4,C47)))))),IF(D46=0,0,IF(C46<2*C47,D46,IF(MOD(D$6,12)=1,$O44,IF(MOD(D$6,12)=6,IF(Recalculo_Atuarial="SIM",IF(OR(Modalidade=1,Modalidade=2),IF($I46/$Q47>=$R47,$I46/$Q47,D46),IF(Percentual_Reserva*$I46>=$R47,Percentual_Reserva*$I46,D46)),IF(OR(Modalidade=1,Modalidade=2),$H47,IF(Percentual_Reserva*$I46>=$R47,Percentual_Reserva*$I46,D46))),IF(MOD(D$6,12)=11,IF(Opcao_Abono="SIM",2*$M47,$M47),IF(MOD(D$6,12)=0,IF(Opcao_Abono="SIM",$N47/2,$N47),C47))))))) ->  | P47: =IF(AND(D46<>0,D47<>0),R47,"") ->  | Q47: 205.3064642 | R47: =R44*(1 + Taxa_Composta_Anual_PP3) -> 288.0797555 | S47: =IF(AND(D46<>0,D49=0),ROW(D48),0) -> 
B48: =B45+1 -> 2032
B49: Saldo | C49: 0 | D49: =IF(ROW(D49) - 1 = ROW(Inicio_FC),IF(Mes_Inicio_Serie>D$6,"",IF(Mes_Inicio_Serie=D$6,$E$2*(1+Taxa_PP3_Mensal),(C49-C50)*(1+Taxa_PP3_Mensal))),IF(MOD(D$6,12)=1,($O46-$O47)*(1+Taxa_PP3_Mensal),(C49-C50)*(1+Taxa_PP3_Mensal))) -> 
B50: Benefício | C50: 0 | D50: =IF(ROW(D50) - 2 = ROW(Inicio_FC),IF(D$6<Mes_Inicio_Serie,"",IF(MOD(D$6,12)=1,$O47,IF(MOD(D$6,12)=6,IF(Recalculo_Atuarial="SIM",IF(OR(Modalidade=1,Modalidade=2),$I49/$Q50,Percentual_Reserva*$I49),IF(OR(Modalidade=1,Modalidade=2),IF(Mes_Inicio_Serie<>6,$H50,$I$4),Percentual_Reserva*$I49)),IF(MOD(D$6,12)=11,IF(Opcao_Abono="SIM",IF(Mes_Inicio_Serie<>11,2*$M50,2*$I$4),IF(Mes_Inicio_Serie<>11,$M50,$I$4)),IF(MOD(D$6,12)=0,IF(Opcao_Abono="SIM",IF(Mes_Inicio_Serie<>12,$N50/2,$I$4),IF(Mes_Inicio_Serie<>12,$N50,$I$4)),IF(D$6=Mes_Inicio_Serie,$I$4,C50)))))),IF(D49=0,0,IF(C49<2*C50,D49,IF(MOD(D$6,12)=1,$O47,IF(MOD(D$6,12)=6,IF(Recalculo_Atuarial="SIM",IF(OR(Modalidade=1,Modalidade=2),IF($I49/$Q50>=$R50,$I49/$Q50,D49),IF(Percentual_Reserva*$I49>=$R50,Percentual_Reserva*$I49,D49)),IF(OR(Modalidade=1,Modalidade=2),$H50,IF(Percentual_Reserva*$I49>=$R50,Percentual_Reserva*$I49,D49))),IF(MOD(D$6,12)=11,IF(Opcao_Abono="SIM",2*$M50,$M50),IF(MOD(D$6,12)=0,IF(Opcao_Abono="SIM",$N50/2,$N50),C50))))))) ->  | P50: =IF(AND(D49<>0,D50<>0),R50,"") ->  | Q50: 202.8129408 | R50: =R47*(1 + Taxa_Composta_Anual_PP3) -> 314.6338671 | S50: =IF(AND(D49<>0,D52=0),ROW(D51),0) -> 
B51: =B48+1 -> 2033
B52: Saldo | C52: 0 | D52: =IF(ROW(D52) - 1 = ROW(Inicio_FC),IF(Mes_Inicio_Serie>D$6,"",IF(Mes_Inicio_Serie=D$6,$E$2*(1+Taxa_PP3_Mensal),(C52-C53)*(1+Taxa_PP3_Mensal))),IF(MOD(D$6,12)=1,($O49-$O50)*(1+Taxa_PP3_Mensal),(C52-C53)*(1+Taxa_PP3_Mensal))) -> 
B53: Benefício | C53: 0 | D53: =IF(ROW(D53) - 2 = ROW(Inicio_FC),IF(D$6<Mes_Inicio_Serie,"",IF(MOD(D$6,12)=1,$O50,IF(MOD(D$6,12)=6,IF(Recalculo_Atuarial="SIM",IF(OR(Modalidade=1,Modalidade=2),$I52/$Q53,Percentual_Reserva*$I52),IF(OR(Modalidade=1,Modalidade=2),IF(Mes_Inicio_Serie<>6,$H53,$I$4),Percentual_Reserva*$I52)),IF(MOD(D$6,12)=11,IF(Opcao_Abono="SIM",IF(Mes_Inicio_Serie<>11,2*$M53,2*$I$4),IF(Mes_Inicio_Serie<>11,$M53,$I$4)),IF(MOD(D$6,12)=0,IF(Opcao_Abono="SIM",IF(Mes_Inicio_Serie<>12,$N53/2,$I$4),IF(Mes_Inicio_Serie<>12,$N53,$I$4)),IF(D$6=Mes_Inicio_Serie,$I$4,C53)))))),IF(D52=0,0,IF(C52<2*C53,D52,IF(MOD(D$6,12)=1,$O50,IF(MOD(D$6,12)=6,IF(Recalculo_Atuarial="SIM",IF(OR(Modalidade=1,Modalidade=2),IF($I52/$Q53>=$R53,$I52/$Q53,D52),IF(Percentual_Reserva*$I52>=$R53,Percentual_Reserva*$I52,D52)),IF(OR(Modalidade=1,Modalidade=2),$H53,IF(Percentual_Reserva*$I52>=$R53,Percentual_Reserva*$I52,D52))),IF(MOD(D$6,12)=11,IF(Opcao_Abono="SIM",2*$M53,$M53),IF(MOD(D$6,12)=0,IF(Opcao_Abono="SIM",$N53/2,$N53),C53))))))) ->  | P53: =IF(AND(D52<>0,D53<>0),R53,"") ->  | Q53: 200.1880087 | R53: =R50*(1 + Taxa_Composta_Anual_PP3) -> 343.6356371 | S53: =IF(AND(D52<>0,D55=0),ROW(D54),0) -> 
B54: =B51+1 -> 2034
B55: Saldo | C55: 0 | D55: =IF(ROW(D55) - 1 = ROW(Inicio_FC),IF(Mes_Inicio_Serie>D$6,"",IF(Mes_Inicio_Serie=D$6,$E$2*(1+Taxa_PP3_Mensal),(C55-C56)*(1+Taxa_PP3_Mensal))),IF(MOD(D$6,12)=1,($O52-$O53)*(1+Taxa_PP3_Mensal),(C55-C56)*(1+Taxa_PP3_Mensal))) -> 
B56: Benefício | C56: 0 | D56: =IF(ROW(D56) - 2 = ROW(Inicio_FC),IF(D$6<Mes_Inicio_Serie,"",IF(MOD(D$6,12)=1,$O53,IF(MOD(D$6,12)=6,IF(Recalculo_Atuarial="SIM",IF(OR(Modalidade=1,Modalidade=2),$I55/$Q56,Percentual_Reserva*$I55),IF(OR(Modalidade=1,Modalidade=2),IF(Mes_Inicio_Serie<>6,$H56,$I$4),Percentual_Reserva*$I55)),IF(MOD(D$6,12)=11,IF(Opcao_Abono="SIM",IF(Mes_Inicio_Serie<>11,2*$M56,2*$I$4),IF(Mes_Inicio_Serie<>11,$M56,$I$4)),IF(MOD(D$6,12)=0,IF(Opcao_Abono="SIM",IF(Mes_Inicio_Serie<>12,$N56/2,$I$4),IF(Mes_Inicio_Serie<>12,$N56,$I$4)),IF(D$6=Mes_Inicio_Serie,$I$4,C56)))))),IF(D55=0,0,IF(C55<2*C56,D55,IF(MOD(D$6,12)=1,$O53,IF(MOD(D$6,12)=6,IF(Recalculo_Atuarial="SIM",IF(OR(Modalidade=1,Modalidade=2),IF($I55/$Q56>=$R56,$I55/$Q56,D55),IF(Percentual_Reserva*$I55>=$R56,Percentual_Reserva*$I55,D55)),IF(OR(Modalidade=1,Modalidade=2),$H56,IF(Percentual_Reserva*$I55>=$R56,Percentual_Reserva*$I55,D55))),IF(MOD(D$6,12)=11,IF(Opcao_Abono="SIM",2*$M56,$M56),IF(MOD(D$6,12)=0,IF(Opcao_Abono="SIM",$N56/2,$N56),C56))))))) ->  | P56: =IF(AND(D55<>0,D56<>0),R56,"") ->  | Q56: 197.4247428 | R56: =R53*(1 + Taxa_Composta_Anual_PP3) -> 375.3106815 | S56: =IF(AND(D55<>0,D58=0),ROW(D57),0) -> 
B57: =B54+1 -> 2035
B58: Saldo | C58: 0 | D58: =IF(ROW(D58) - 1 = ROW(Inicio_FC),IF(Mes_Inicio_Serie>D$6,"",IF(Mes_Inicio_Serie=D$6,$E$2*(1+Taxa_PP3_Mensal),(C58-C59)*(1+Taxa_PP3_Mensal))),IF(MOD(D$6,12)=1,($O55-$O56)*(1+Taxa_PP3_Mensal),(C58-C59)*(1+Taxa_PP3_Mensal))) -> 
B59: Benefício | C59: 0 | D59: =IF(ROW(D59) - 2 = ROW(Inicio_FC),IF(D$6<Mes_Inicio_Serie,"",IF(MOD(D$6,12)=1,$O56,IF(MOD(D$6,12)=6,IF(Recalculo_Atuarial="SIM",IF(OR(Modalidade=1,Modalidade=2),$I58/$Q59,Percentual_Reserva*$I58),IF(OR(Modalidade=1,Modalidade=2),IF(Mes_Inicio_Serie<>6,$H59,$I$4),Percentual_Reserva*$I58)),IF(MOD(D$6,12)=11,IF(Opcao_Abono="SIM",IF(Mes_Inicio_Serie<>11,2*$M59,2*$I$4),IF(Mes_Inicio_Serie<>11,$M59,$I$4)),IF(MOD(D$6,12)=0,IF(Opcao_Abono="SIM",IF(Mes_Inicio_Serie<>12,$N59/2,$I$4),IF(Mes_Inicio_Serie<>12,$N59,$I$4)),IF(D$6=Mes_Inicio_Serie,$I$4,C59)))))),IF(D58=0,0,IF(C58<2*C59,D58,IF(MOD(D$6,12)=1,$O56,IF(MOD(D$6,12)=6,IF(Recalculo_Atuarial="SIM",IF(OR(Modalidade=1,Modalidade=2),IF($I58/$Q59>=$R59,$I58/$Q59,D58),IF(Percentual_Reserva*$I58>=$R59,Percentual_Reserva*$I58,D58)),IF(OR(Modalidade=1,Modalidade=2),$H59,IF(Percentual_Reserva*$I58>=$R59,Percentual_Reserva*$I58,D58))),IF(MOD(D$6,12)=11,IF(Opcao_Abono="SIM",2*$M59,$M59),IF(MOD(D$6,12)=0,IF(Opcao_Abono="SIM",$N59/2,$N59),C59))))))) ->  | P59: =IF(AND(D58<>0,D59<>0),R59,"") ->  | Q59: 194.5158527 | R59: =R56*(1 + Taxa_Composta_Anual_PP3) -> 409.9054127 | S59: =IF(AND(D58<>0,D61=0),ROW(D60),0) -> 
B60: =B57+1 -> 2036
B61: Saldo | C61: 0 | D61: =IF(ROW(D61) - 1 = ROW(Inicio_FC),IF(Mes_Inicio_Serie>D$6,"",IF(Mes_Inicio_Serie=D$6,$E$2*(1+Taxa_PP3_Mensal),(C61-C62)*(1+Taxa_PP3_Mensal))),IF(MOD(D$6,12)=1,($O58-$O59)*(1+Taxa_PP3_Mensal),(C61-C62)*(1+Taxa_PP3_Mensal))) -> 
B62: Benefício | C62: 0 | D62: =IF(ROW(D62) - 2 = ROW(Inicio_FC),IF(D$6<Mes_Inicio_Serie,"",IF(MOD(D$6,12)=1,$O59,IF(MOD(D$6,12)=6,IF(Recalculo_Atuarial="SIM",IF(OR(Modalidade=1,Modalidade=2),$I61/$Q62,Percentual_Reserva*$I61),IF(OR(Modalidade=1,Modalidade=2),IF(Mes_Inicio_Serie<>6,$H62,$I$4),Percentual_Reserva*$I61)),IF(MOD(D$6,12)=11,IF(Opcao_Abono="SIM",IF(Mes_Inicio_Serie<>11,2*$M62,2*$I$4),IF(Mes_Inicio_Serie<>11,$M62,$I$4)),IF(MOD(D$6,12)=0,IF(Opcao_Abono="SIM",IF(Mes_Inicio_Serie<>12,$N62/2,$I$4),IF(Mes_Inicio_Serie<>12,$N62,$I$4)),IF(D$6=Mes_Inicio_Serie,$I$4,C62)))))),IF(D61=0,0,IF(C61<2*C62,D61,IF(MOD(D$6,12)=1,$O59,IF(MOD(D$6,12)=6,IF(Recalculo_Atuarial="SIM",IF(OR(Modalidade=1,Modalidade=2),IF($I61/$Q62>=$R62,$I61/$Q62,D61),IF(Percentual_Reserva*$I61>=$R62,Percentual_Reserva*$I61,D61)),IF(OR(Modalidade=1,Modalidade=2),$H62,IF(Percentual_Reserva*$I61>=$R62,Percentual_Reserva*$I61,D61))),IF(MOD(D$6,12)=11,IF(Opcao_Abono="SIM",2*$M62,$M62),IF(MOD(D$6,12)=0,IF(Opcao_Abono="SIM",$N62/2,$N62),C62))))))) ->  | P62: =IF(AND(D61<>0,D62<>0),R62,"") ->  | Q62: 191.4536641 | R62: =R59*(1 + Taxa_Composta_Anual_PP3) -> 447.6889565 | S62: =IF(AND(D61<>0,D64=0),ROW(D63),0) -> 
B63: =B60+1 -> 2037
B64: Saldo | C64: 0 | D64: =IF(ROW(D64) - 1 = ROW(Inicio_FC),IF(Mes_Inicio_Serie>D$6,"",IF(Mes_Inicio_Serie=D$6,$E$2*(1+Taxa_PP3_Mensal),(C64-C65)*(1+Taxa_PP3_Mensal))),IF(MOD(D$6,12)=1,($O61-$O62)*(1+Taxa_PP3_Mensal),(C64-C65)*(1+Taxa_PP3_Mensal))) -> 
B65: Benefício | C65: 0 | D65: =IF(ROW(D65) - 2 = ROW(Inicio_FC),IF(D$6<Mes_Inicio_Serie,"",IF(MOD(D$6,12)=1,$O62,IF(MOD(D$6,12)=6,IF(Recalculo_Atuarial="SIM",IF(OR(Modalidade=1,Modalidade=2),$I64/$Q65,Percentual_Reserva*$I64),IF(OR(Modalidade=1,Modalidade=2),IF(Mes_Inicio_Serie<>6,$H65,$I$4),Percentual_Reserva*$I64)),IF(MOD(D$6,12)=11,IF(Opcao_Abono="SIM",IF(Mes_Inicio_Serie<>11,2*$M65,2*$I$4),IF(Mes_Inicio_Serie<>11,$M65,$I$4)),IF(MOD(D$6,12)=0,IF(Opcao_Abono="SIM",IF(Mes_Inicio_Serie<>12,$N65/2,$I$4),IF(Mes_Inicio_Serie<>12,$N65,$I$4)),IF(D$6=Mes_Inicio_Serie,$I$4,C65)))))),IF(D64=0,0,IF(C64<2*C65,D64,IF(MOD(D$6,12)=1,$O62,IF(MOD(D$6,12)=6,IF(Recalculo_Atuarial="SIM",IF(OR(Modalidade=1,Modalidade=2),IF($I64/$Q65>=$R65,$I64/$Q65,D64),IF(Percentual_Reserva*$I64>=$R65,Percentual_Reserva*$I64,D64)),IF(OR(Modalidade=1,Modalidade=2),$H65,IF(Percentual_Reserva*$I64>=$R65,Percentual_Reserva*$I64,D64))),IF(MOD(D$6,12)=11,IF(Opcao_Abono="SIM",2*$M65,$M65),IF(MOD(D$6,12)=0,IF(Opcao_Abono="SIM",$N65/2,$N65),C65))))))) ->  | P65: =IF(AND(D64<>0,D65<>0),R65,"") ->  | Q65: 188.2300982 | R65: =R62*(1 + Taxa_Composta_Anual_PP3) -> 488.9552457 | S65: =IF(AND(D64<>0,D67=0),ROW(D66),0) -> 
B66: =B63+1 -> 2038
B67: Saldo | C67: 0 | D67: =IF(ROW(D67) - 1 = ROW(Inicio_FC),IF(Mes_Inicio_Serie>D$6,"",IF(Mes_Inicio_Serie=D$6,$E$2*(1+Taxa_PP3_Mensal),(C67-C68)*(1+Taxa_PP3_Mensal))),IF(MOD(D$6,12)=1,($O64-$O65)*(1+Taxa_PP3_Mensal),(C67-C68)*(1+Taxa_PP3_Mensal))) -> 
B68: Benefício | C68: 0 | D68: =IF(ROW(D68) - 2 = ROW(Inicio_FC),IF(D$6<Mes_Inicio_Serie,"",IF(MOD(D$6,12)=1,$O65,IF(MOD(D$6,12)=6,IF(Recalculo_Atuarial="SIM",IF(OR(Modalidade=1,Modalidade=2),$I67/$Q68,Percentual_Reserva*$I67),IF(OR(Modalidade=1,Modalidade=2),IF(Mes_Inicio_Serie<>6,$H68,$I$4),Percentual_Reserva*$I67)),IF(MOD(D$6,12)=11,IF(Opcao_Abono="SIM",IF(Mes_Inicio_Serie<>11,2*$M68,2*$I$4),IF(Mes_Inicio_Serie<>11,$M68,$I$4)),IF(MOD(D$6,12)=0,IF(Opcao_Abono="SIM",IF(Mes_Inicio_Serie<>12,$N68/2,$I$4),IF(Mes_Inicio_Serie<>12,$N68,$I$4)),IF(D$6=Mes_Inicio_Serie,$I$4,C68)))))),IF(D67=0,0,IF(C67<2*C68,D67,IF(MOD(D$6,12)=1,$O65,IF(MOD(D$6,12)=6,IF(Recalculo_Atuarial="SIM",IF(OR(Modalidade=1,Modalidade=2),IF($I67/$Q68>=$R68,$I67/$Q68,D67),IF(Percentual_Reserva*$I67>=$R68,Percentual_Reserva*$I67,D67)),IF(OR(Modalidade=1,Modalidade=2),$H68,IF(Percentual_Reserva*$I67>=$R68,Percentual_Reserva*$I67,D67))),IF(MOD(D$6,12)=11,IF(Opcao_Abono="SIM",2*$M68,$M68),IF(MOD(D$6,12)=0,IF(Opcao_Abono="SIM",$N68/2,$N68),C68))))))) ->  | P68: =IF(AND(D67<>0,D68<>0),R68,"") ->  | Q68: 184.8366503 | R68: =R65*(1 + Taxa_Composta_Anual_PP3) -> 534.0253066 | S68: =IF(AND(D67<>0,D70=0),ROW(D69),0) -> 
B69: =B66+1 -> 2039
B70: Saldo | C70: 0 | D70: =IF(ROW(D70) - 1 = ROW(Inicio_FC),IF(Mes_Inicio_Serie>D$6,"",IF(Mes_Inicio_Serie=D$6,$E$2*(1+Taxa_PP3_Mensal),(C70-C71)*(1+Taxa_PP3_Mensal))),IF(MOD(D$6,12)=1,($O67-$O68)*(1+Taxa_PP3_Mensal),(C70-C71)*(1+Taxa_PP3_Mensal))) -> 
B71: Benefício | C71: 0 | D71: =IF(ROW(D71) - 2 = ROW(Inicio_FC),IF(D$6<Mes_Inicio_Serie,"",IF(MOD(D$6,12)=1,$O68,IF(MOD(D$6,12)=6,IF(Recalculo_Atuarial="SIM",IF(OR(Modalidade=1,Modalidade=2),$I70/$Q71,Percentual_Reserva*$I70),IF(OR(Modalidade=1,Modalidade=2),IF(Mes_Inicio_Serie<>6,$H71,$I$4),Percentual_Reserva*$I70)),IF(MOD(D$6,12)=11,IF(Opcao_Abono="SIM",IF(Mes_Inicio_Serie<>11,2*$M71,2*$I$4),IF(Mes_Inicio_Serie<>11,$M71,$I$4)),IF(MOD(D$6,12)=0,IF(Opcao_Abono="SIM",IF(Mes_Inicio_Serie<>12,$N71/2,$I$4),IF(Mes_Inicio_Serie<>12,$N71,$I$4)),IF(D$6=Mes_Inicio_Serie,$I$4,C71)))))),IF(D70=0,0,IF(C70<2*C71,D70,IF(MOD(D$6,12)=1,$O68,IF(MOD(D$6,12)=6,IF(Recalculo_Atuarial="SIM",IF(OR(Modalidade=1,Modalidade=2),IF($I70/$Q71>=$R71,$I70/$Q71,D70),IF(Percentual_Reserva*$I70>=$R71,Percentual_Reserva*$I70,D70)),IF(OR(Modalidade=1,Modalidade=2),$H71,IF(Percentual_Reserva*$I70>=$R71,Percentual_Reserva*$I70,D70))),IF(MOD(D$6,12)=11,IF(Opcao_Abono="SIM",2*$M71,$M71),IF(MOD(D$6,12)=0,IF(Opcao_Abono="SIM",$N71/2,$N71),C71))))))) ->  | P71: =IF(AND(D70<>0,D71<>0),R71,"") ->  | Q71: 181.2643678 | R71: =R68*(1 + Taxa_Composta_Anual_PP3) -> 583.2497568 | S71: =IF(AND(D70<>0,D73=0),ROW(D72),0) -> 
B72: =B69+1 -> 2040
B73: Saldo | C73: 0 | D73: =IF(ROW(D73) - 1 = ROW(Inicio_FC),IF(Mes_Inicio_Serie>D$6,"",IF(Mes_Inicio_Serie=D$6,$E$2*(1+Taxa_PP3_Mensal),(C73-C74)*(1+Taxa_PP3_Mensal))),IF(MOD(D$6,12)=1,($O70-$O71)*(1+Taxa_PP3_Mensal),(C73-C74)*(1+Taxa_PP3_Mensal))) -> 
B74: Benefício | C74: 0 | D74: =IF(ROW(D74) - 2 = ROW(Inicio_FC),IF(D$6<Mes_Inicio_Serie,"",IF(MOD(D$6,12)=1,$O71,IF(MOD(D$6,12)=6,IF(Recalculo_Atuarial="SIM",IF(OR(Modalidade=1,Modalidade=2),$I73/$Q74,Percentual_Reserva*$I73),IF(OR(Modalidade=1,Modalidade=2),IF(Mes_Inicio_Serie<>6,$H74,$I$4),Percentual_Reserva*$I73)),IF(MOD(D$6,12)=11,IF(Opcao_Abono="SIM",IF(Mes_Inicio_Serie<>11,2*$M74,2*$I$4),IF(Mes_Inicio_Serie<>11,$M74,$I$4)),IF(MOD(D$6,12)=0,IF(Opcao_Abono="SIM",IF(Mes_Inicio_Serie<>12,$N74/2,$I$4),IF(Mes_Inicio_Serie<>12,$N74,$I$4)),IF(D$6=Mes_Inicio_Serie,$I$4,C74)))))),IF(D73=0,0,IF(C73<2*C74,D73,IF(MOD(D$6,12)=1,$O71,IF(MOD(D$6,12)=6,IF(Recalculo_Atuarial="SIM",IF(OR(Modalidade=1,Modalidade=2),IF($I73/$Q74>=$R74,$I73/$Q74,D73),IF(Percentual_Reserva*$I73>=$R74,Percentual_Reserva*$I73,D73)),IF(OR(Modalidade=1,Modalidade=2),$H74,IF(Percentual_Reserva*$I73>=$R74,Percentual_Reserva*$I73,D73))),IF(MOD(D$6,12)=11,IF(Opcao_Abono="SIM",2*$M74,$M74),IF(MOD(D$6,12)=0,IF(Opcao_Abono="SIM",$N74/2,$N74),C74))))))) ->  | P74: =IF(AND(D73<>0,D74<>0),R74,"") ->  | Q74: 177.5038259 | R74: =R71*(1 + Taxa_Composta_Anual_PP3) -> 637.0115322 | S74: =IF(AND(D73<>0,D76=0),ROW(D75),0) -> 
B75: =B72+1 -> 2041
B76: Saldo | C76: 0 | D76: =IF(ROW(D76) - 1 = ROW(Inicio_FC),IF(Mes_Inicio_Serie>D$6,"",IF(Mes_Inicio_Serie=D$6,$E$2*(1+Taxa_PP3_Mensal),(C76-C77)*(1+Taxa_PP3_Mensal))),IF(MOD(D$6,12)=1,($O73-$O74)*(1+Taxa_PP3_Mensal),(C76-C77)*(1+Taxa_PP3_Mensal))) -> 
B77: Benefício | C77: 0 | D77: =IF(ROW(D77) - 2 = ROW(Inicio_FC),IF(D$6<Mes_Inicio_Serie,"",IF(MOD(D$6,12)=1,$O74,IF(MOD(D$6,12)=6,IF(Recalculo_Atuarial="SIM",IF(OR(Modalidade=1,Modalidade=2),$I76/$Q77,Percentual_Reserva*$I76),IF(OR(Modalidade=1,Modalidade=2),IF(Mes_Inicio_Serie<>6,$H77,$I$4),Percentual_Reserva*$I76)),IF(MOD(D$6,12)=11,IF(Opcao_Abono="SIM",IF(Mes_Inicio_Serie<>11,2*$M77,2*$I$4),IF(Mes_Inicio_Serie<>11,$M77,$I$4)),IF(MOD(D$6,12)=0,IF(Opcao_Abono="SIM",IF(Mes_Inicio_Serie<>12,$N77/2,$I$4),IF(Mes_Inicio_Serie<>12,$N77,$I$4)),IF(D$6=Mes_Inicio_Serie,$I$4,C77)))))),IF(D76=0,0,IF(C76<2*C77,D76,IF(MOD(D$6,12)=1,$O74,IF(MOD(D$6,12)=6,IF(Recalculo_Atuarial="SIM",IF(OR(Modalidade=1,Modalidade=2),IF($I76/$Q77>=$R77,$I76/$Q77,D76),IF(Percentual_Reserva*$I76>=$R77,Percentual_Reserva*$I76,D76)),IF(OR(Modalidade=1,Modalidade=2),$H77,IF(Percentual_Reserva*$I76>=$R77,Percentual_Reserva*$I76,D76))),IF(MOD(D$6,12)=11,IF(Opcao_Abono="SIM",2*$M77,$M77),IF(MOD(D$6,12)=0,IF(Opcao_Abono="SIM",$N77/2,$N77),C77))))))) ->  | P77: =IF(AND(D76<>0,D77<>0),R77,"") ->  | Q77: 173.5451035 | R77: =R74*(1 + Taxa_Composta_Anual_PP3) -> 695.7288665 | S77: =IF(AND(D76<>0,D79=0),ROW(D78),0) -> 
B78: =B75+1 -> 2042
B79: Saldo | C79: 0 | D79: =IF(ROW(D79) - 1 = ROW(Inicio_FC),IF(Mes_Inicio_Serie>D$6,"",IF(Mes_Inicio_Serie=D$6,$E$2*(1+Taxa_PP3_Mensal),(C79-C80)*(1+Taxa_PP3_Mensal))),IF(MOD(D$6,12)=1,($O76-$O77)*(1+Taxa_PP3_Mensal),(C79-C80)*(1+Taxa_PP3_Mensal))) -> 
B80: Benefício | C80: 0 | D80: =IF(ROW(D80) - 2 = ROW(Inicio_FC),IF(D$6<Mes_Inicio_Serie,"",IF(MOD(D$6,12)=1,$O77,IF(MOD(D$6,12)=6,IF(Recalculo_Atuarial="SIM",IF(OR(Modalidade=1,Modalidade=2),$I79/$Q80,Percentual_Reserva*$I79),IF(OR(Modalidade=1,Modalidade=2),IF(Mes_Inicio_Serie<>6,$H80,$I$4),Percentual_Reserva*$I79)),IF(MOD(D$6,12)=11,IF(Opcao_Abono="SIM",IF(Mes_Inicio_Serie<>11,2*$M80,2*$I$4),IF(Mes_Inicio_Serie<>11,$M80,$I$4)),IF(MOD(D$6,12)=0,IF(Opcao_Abono="SIM",IF(Mes_Inicio_Serie<>12,$N80/2,$I$4),IF(Mes_Inicio_Serie<>12,$N80,$I$4)),IF(D$6=Mes_Inicio_Serie,$I$4,C80)))))),IF(D79=0,0,IF(C79<2*C80,D79,IF(MOD(D$6,12)=1,$O77,IF(MOD(D$6,12)=6,IF(Recalculo_Atuarial="SIM",IF(OR(Modalidade=1,Modalidade=2),IF($I79/$Q80>=$R80,$I79/$Q80,D79),IF(Percentual_Reserva*$I79>=$R80,Percentual_Reserva*$I79,D79)),IF(OR(Modalidade=1,Modalidade=2),$H80,IF(Percentual_Reserva*$I79>=$R80,Percentual_Reserva*$I79,D79))),IF(MOD(D$6,12)=11,IF(Opcao_Abono="SIM",2*$M80,$M80),IF(MOD(D$6,12)=0,IF(Opcao_Abono="SIM",$N80/2,$N80),C80))))))) ->  | P80: =IF(AND(D79<>0,D80<>0),R80,"") ->  | Q80: 169.3777564 | R80: =R77*(1 + Taxa_Composta_Anual_PP3) -> 759.8585444 | S80: =IF(AND(D79<>0,D82=0),ROW(D81),0) -> 
B81: =B78+1 -> 2043
B82: Saldo | C82: 0 | D82: =IF(ROW(D82) - 1 = ROW(Inicio_FC),IF(Mes_Inicio_Serie>D$6,"",IF(Mes_Inicio_Serie=D$6,$E$2*(1+Taxa_PP3_Mensal),(C82-C83)*(1+Taxa_PP3_Mensal))),IF(MOD(D$6,12)=1,($O79-$O80)*(1+Taxa_PP3_Mensal),(C82-C83)*(1+Taxa_PP3_Mensal))) -> 
B83: Benefício | C83: 0 | D83: =IF(ROW(D83) - 2 = ROW(Inicio_FC),IF(D$6<Mes_Inicio_Serie,"",IF(MOD(D$6,12)=1,$O80,IF(MOD(D$6,12)=6,IF(Recalculo_Atuarial="SIM",IF(OR(Modalidade=1,Modalidade=2),$I82/$Q83,Percentual_Reserva*$I82),IF(OR(Modalidade=1,Modalidade=2),IF(Mes_Inicio_Serie<>6,$H83,$I$4),Percentual_Reserva*$I82)),IF(MOD(D$6,12)=11,IF(Opcao_Abono="SIM",IF(Mes_Inicio_Serie<>11,2*$M83,2*$I$4),IF(Mes_Inicio_Serie<>11,$M83,$I$4)),IF(MOD(D$6,12)=0,IF(Opcao_Abono="SIM",IF(Mes_Inicio_Serie<>12,$N83/2,$I$4),IF(Mes_Inicio_Serie<>12,$N83,$I$4)),IF(D$6=Mes_Inicio_Serie,$I$4,C83)))))),IF(D82=0,0,IF(C82<2*C83,D82,IF(MOD(D$6,12)=1,$O80,IF(MOD(D$6,12)=6,IF(Recalculo_Atuarial="SIM",IF(OR(Modalidade=1,Modalidade=2),IF($I82/$Q83>=$R83,$I82/$Q83,D82),IF(Percentual_Reserva*$I82>=$R83,Percentual_Reserva*$I82,D82)),IF(OR(Modalidade=1,Modalidade=2),$H83,IF(Percentual_Reserva*$I82>=$R83,Percentual_Reserva*$I82,D82))),IF(MOD(D$6,12)=11,IF(Opcao_Abono="SIM",2*$M83,$M83),IF(MOD(D$6,12)=0,IF(Opcao_Abono="SIM",$N83/2,$N83),C83))))))) ->  | P83: =IF(AND(D82<>0,D83<>0),R83,"") ->  | Q83: 164.9907902 | R83: =R80*(1 + Taxa_Composta_Anual_PP3) -> 829.8994555 | S83: =IF(AND(D82<>0,D85=0),ROW(D84),0) -> 
B84: =B81+1 -> 2044
B85: Saldo | C85: 0 | D85: =IF(ROW(D85) - 1 = ROW(Inicio_FC),IF(Mes_Inicio_Serie>D$6,"",IF(Mes_Inicio_Serie=D$6,$E$2*(1+Taxa_PP3_Mensal),(C85-C86)*(1+Taxa_PP3_Mensal))),IF(MOD(D$6,12)=1,($O82-$O83)*(1+Taxa_PP3_Mensal),(C85-C86)*(1+Taxa_PP3_Mensal))) -> 
B86: Benefício | C86: 0 | D86: =IF(ROW(D86) - 2 = ROW(Inicio_FC),IF(D$6<Mes_Inicio_Serie,"",IF(MOD(D$6,12)=1,$O83,IF(MOD(D$6,12)=6,IF(Recalculo_Atuarial="SIM",IF(OR(Modalidade=1,Modalidade=2),$I85/$Q86,Percentual_Reserva*$I85),IF(OR(Modalidade=1,Modalidade=2),IF(Mes_Inicio_Serie<>6,$H86,$I$4),Percentual_Reserva*$I85)),IF(MOD(D$6,12)=11,IF(Opcao_Abono="SIM",IF(Mes_Inicio_Serie<>11,2*$M86,2*$I$4),IF(Mes_Inicio_Serie<>11,$M86,$I$4)),IF(MOD(D$6,12)=0,IF(Opcao_Abono="SIM",IF(Mes_Inicio_Serie<>12,$N86/2,$I$4),IF(Mes_Inicio_Serie<>12,$N86,$I$4)),IF(D$6=Mes_Inicio_Serie,$I$4,C86)))))),IF(D85=0,0,IF(C85<2*C86,D85,IF(MOD(D$6,12)=1,$O83,IF(MOD(D$6,12)=6,IF(Recalculo_Atuarial="SIM",IF(OR(Modalidade=1,Modalidade=2),IF($I85/$Q86>=$R86,$I85/$Q86,D85),IF(Percentual_Reserva*$I85>=$R86,Percentual_Reserva*$I85,D85)),IF(OR(Modalidade=1,Modalidade=2),$H86,IF(Percentual_Reserva*$I85>=$R86,Percentual_Reserva*$I85,D85))),IF(MOD(D$6,12)=11,IF(Opcao_Abono="SIM",2*$M86,$M86),IF(MOD(D$6,12)=0,IF(Opcao_Abono="SIM",$N86/2,$N86),C86))))))) ->  | P86: =IF(AND(D85<>0,D86<>0),R86,"") ->  | Q86: 160.3726308 | R86: =R83*(1 + Taxa_Composta_Anual_PP3) -> 906.3964752 | S86: =IF(AND(D85<>0,D88=0),ROW(D87),0) -> 
B87: =B84+1 -> 2045
B88: Saldo | C88: 0 | D88: =IF(ROW(D88) - 1 = ROW(Inicio_FC),IF(Mes_Inicio_Serie>D$6,"",IF(Mes_Inicio_Serie=D$6,$E$2*(1+Taxa_PP3_Mensal),(C88-C89)*(1+Taxa_PP3_Mensal))),IF(MOD(D$6,12)=1,($O85-$O86)*(1+Taxa_PP3_Mensal),(C88-C89)*(1+Taxa_PP3_Mensal))) -> 
B89: Benefício | C89: 0 | D89: =IF(ROW(D89) - 2 = ROW(Inicio_FC),IF(D$6<Mes_Inicio_Serie,"",IF(MOD(D$6,12)=1,$O86,IF(MOD(D$6,12)=6,IF(Recalculo_Atuarial="SIM",IF(OR(Modalidade=1,Modalidade=2),$I88/$Q89,Percentual_Reserva*$I88),IF(OR(Modalidade=1,Modalidade=2),IF(Mes_Inicio_Serie<>6,$H89,$I$4),Percentual_Reserva*$I88)),IF(MOD(D$6,12)=11,IF(Opcao_Abono="SIM",IF(Mes_Inicio_Serie<>11,2*$M89,2*$I$4),IF(Mes_Inicio_Serie<>11,$M89,$I$4)),IF(MOD(D$6,12)=0,IF(Opcao_Abono="SIM",IF(Mes_Inicio_Serie<>12,$N89/2,$I$4),IF(Mes_Inicio_Serie<>12,$N89,$I$4)),IF(D$6=Mes_Inicio_Serie,$I$4,C89)))))),IF(D88=0,0,IF(C88<2*C89,D88,IF(MOD(D$6,12)=1,$O86,IF(MOD(D$6,12)=6,IF(Recalculo_Atuarial="SIM",IF(OR(Modalidade=1,Modalidade=2),IF($I88/$Q89>=$R89,$I88/$Q89,D88),IF(Percentual_Reserva*$I88>=$R89,Percentual_Reserva*$I88,D88)),IF(OR(Modalidade=1,Modalidade=2),$H89,IF(Percentual_Reserva*$I88>=$R89,Percentual_Reserva*$I88,D88))),IF(MOD(D$6,12)=11,IF(Opcao_Abono="SIM",2*$M89,$M89),IF(MOD(D$6,12)=0,IF(Opcao_Abono="SIM",$N89/2,$N89),C89))))))) ->  | P89: =IF(AND(D88<>0,D89<>0),R89,"") ->  | Q89: 155.5110944 | R89: =R86*(1 + Taxa_Composta_Anual_PP3) -> 989.9447033 | S89: =IF(AND(D88<>0,D91=0),ROW(D90),0) -> 
B90: =B87+1 -> 2046
B91: Saldo | C91: 0 | D91: =IF(ROW(D91) - 1 = ROW(Inicio_FC),IF(Mes_Inicio_Serie>D$6,"",IF(Mes_Inicio_Serie=D$6,$E$2*(1+Taxa_PP3_Mensal),(C91-C92)*(1+Taxa_PP3_Mensal))),IF(MOD(D$6,12)=1,($O88-$O89)*(1+Taxa_PP3_Mensal),(C91-C92)*(1+Taxa_PP3_Mensal))) -> 
B92: Benefício | C92: 0 | D92: =IF(ROW(D92) - 2 = ROW(Inicio_FC),IF(D$6<Mes_Inicio_Serie,"",IF(MOD(D$6,12)=1,$O89,IF(MOD(D$6,12)=6,IF(Recalculo_Atuarial="SIM",IF(OR(Modalidade=1,Modalidade=2),$I91/$Q92,Percentual_Reserva*$I91),IF(OR(Modalidade=1,Modalidade=2),IF(Mes_Inicio_Serie<>6,$H92,$I$4),Percentual_Reserva*$I91)),IF(MOD(D$6,12)=11,IF(Opcao_Abono="SIM",IF(Mes_Inicio_Serie<>11,2*$M92,2*$I$4),IF(Mes_Inicio_Serie<>11,$M92,$I$4)),IF(MOD(D$6,12)=0,IF(Opcao_Abono="SIM",IF(Mes_Inicio_Serie<>12,$N92/2,$I$4),IF(Mes_Inicio_Serie<>12,$N92,$I$4)),IF(D$6=Mes_Inicio_Serie,$I$4,C92)))))),IF(D91=0,0,IF(C91<2*C92,D91,IF(MOD(D$6,12)=1,$O89,IF(MOD(D$6,12)=6,IF(Recalculo_Atuarial="SIM",IF(OR(Modalidade=1,Modalidade=2),IF($I91/$Q92>=$R92,$I91/$Q92,D91),IF(Percentual_Reserva*$I91>=$R92,Percentual_Reserva*$I91,D91)),IF(OR(Modalidade=1,Modalidade=2),$H92,IF(Percentual_Reserva*$I91>=$R92,Percentual_Reserva*$I91,D91))),IF(MOD(D$6,12)=11,IF(Opcao_Abono="SIM",2*$M92,$M92),IF(MOD(D$6,12)=0,IF(Opcao_Abono="SIM",$N92/2,$N92),C92))))))) ->  | P92: =IF(AND(D91<>0,D92<>0),R92,"") ->  | Q92: 150.393355 | R92: =R89*(1 + Taxa_Composta_Anual_PP3) -> 1081.194094 | S92: =IF(AND(D91<>0,D94=0),ROW(D93),0) -> 
B93: =B90+1 -> 2047
B94: Saldo | C94: 0 | D94: =IF(ROW(D94) - 1 = ROW(Inicio_FC),IF(Mes_Inicio_Serie>D$6,"",IF(Mes_Inicio_Serie=D$6,$E$2*(1+Taxa_PP3_Mensal),(C94-C95)*(1+Taxa_PP3_Mensal))),IF(MOD(D$6,12)=1,($O91-$O92)*(1+Taxa_PP3_Mensal),(C94-C95)*(1+Taxa_PP3_Mensal))) -> 
B95: Benefício | C95: 0 | D95: =IF(ROW(D95) - 2 = ROW(Inicio_FC),IF(D$6<Mes_Inicio_Serie,"",IF(MOD(D$6,12)=1,$O92,IF(MOD(D$6,12)=6,IF(Recalculo_Atuarial="SIM",IF(OR(Modalidade=1,Modalidade=2),$I94/$Q95,Percentual_Reserva*$I94),IF(OR(Modalidade=1,Modalidade=2),IF(Mes_Inicio_Serie<>6,$H95,$I$4),Percentual_Reserva*$I94)),IF(MOD(D$6,12)=11,IF(Opcao_Abono="SIM",IF(Mes_Inicio_Serie<>11,2*$M95,2*$I$4),IF(Mes_Inicio_Serie<>11,$M95,$I$4)),IF(MOD(D$6,12)=0,IF(Opcao_Abono="SIM",IF(Mes_Inicio_Serie<>12,$N95/2,$I$4),IF(Mes_Inicio_Serie<>12,$N95,$I$4)),IF(D$6=Mes_Inicio_Serie,$I$4,C95)))))),IF(D94=0,0,IF(C94<2*C95,D94,IF(MOD(D$6,12)=1,$O92,IF(MOD(D$6,12)=6,IF(Recalculo_Atuarial="SIM",IF(OR(Modalidade=1,Modalidade=2),IF($I94/$Q95>=$R95,$I94/$Q95,D94),IF(Percentual_Reserva*$I94>=$R95,Percentual_Reserva*$I94,D94)),IF(OR(Modalidade=1,Modalidade=2),$H95,IF(Percentual_Reserva*$I94>=$R95,Percentual_Reserva*$I94,D94))),IF(MOD(D$6,12)=11,IF(Opcao_Abono="SIM",2*$M95,$M95),IF(MOD(D$6,12)=0,IF(Opcao_Abono="SIM",$N95/2,$N95),C95))))))) ->  | P95: =IF(AND(D94<>0,D95<>0),R95,"") ->  | Q95: 145.0059108 | R95: =R92*(1 + Taxa_Composta_Anual_PP3) -> 1180.854511 | S95: =IF(AND(D94<>0,D97=0),ROW(D96),0) -> 
B96: =B93+1 -> 2048
B97: Saldo | C97: 0 | D97: =IF(ROW(D97) - 1 = ROW(Inicio_FC),IF(Mes_Inicio_Serie>D$6,"",IF(Mes_Inicio_Serie=D$6,$E$2*(1+Taxa_PP3_Mensal),(C97-C98)*(1+Taxa_PP3_Mensal))),IF(MOD(D$6,12)=1,($O94-$O95)*(1+Taxa_PP3_Mensal),(C97-C98)*(1+Taxa_PP3_Mensal))) -> 
B98: Benefício | C98: 0 | D98: =IF(ROW(D98) - 2 = ROW(Inicio_FC),IF(D$6<Mes_Inicio_Serie,"",IF(MOD(D$6,12)=1,$O95,IF(MOD(D$6,12)=6,IF(Recalculo_Atuarial="SIM",IF(OR(Modalidade=1,Modalidade=2),$I97/$Q98,Percentual_Reserva*$I97),IF(OR(Modalidade=1,Modalidade=2),IF(Mes_Inicio_Serie<>6,$H98,$I$4),Percentual_Reserva*$I97)),IF(MOD(D$6,12)=11,IF(Opcao_Abono="SIM",IF(Mes_Inicio_Serie<>11,2*$M98,2*$I$4),IF(Mes_Inicio_Serie<>11,$M98,$I$4)),IF(MOD(D$6,12)=0,IF(Opcao_Abono="SIM",IF(Mes_Inicio_Serie<>12,$N98/2,$I$4),IF(Mes_Inicio_Serie<>12,$N98,$I$4)),IF(D$6=Mes_Inicio_Serie,$I$4,C98)))))),IF(D97=0,0,IF(C97<2*C98,D97,IF(MOD(D$6,12)=1,$O95,IF(MOD(D$6,12)=6,IF(Recalculo_Atuarial="SIM",IF(OR(Modalidade=1,Modalidade=2),IF($I97/$Q98>=$R98,$I97/$Q98,D97),IF(Percentual_Reserva*$I97>=$R98,Percentual_Reserva*$I97,D97)),IF(OR(Modalidade=1,Modalidade=2),$H98,IF(Percentual_Reserva*$I97>=$R98,Percentual_Reserva*$I97,D97))),IF(MOD(D$6,12)=11,IF(Opcao_Abono="SIM",2*$M98,$M98),IF(MOD(D$6,12)=0,IF(Opcao_Abono="SIM",$N98/2,$N98),C98))))))) ->  | P98: =IF(AND(D97<>0,D98<>0),R98,"") ->  | Q98: 139.3345483 | R98: =R95*(1 + Taxa_Composta_Anual_PP3) -> 1289.701251 | S98: =IF(AND(D97<>0,D100=0),ROW(D99),0) -> 
B99: =B96+1 -> 2049
B100: Saldo | C100: 0 | D100: =IF(ROW(D100) - 1 = ROW(Inicio_FC),IF(Mes_Inicio_Serie>D$6,"",IF(Mes_Inicio_Serie=D$6,$E$2*(1+Taxa_PP3_Mensal),(C100-C101)*(1+Taxa_PP3_Mensal))),IF(MOD(D$6,12)=1,($O97-$O98)*(1+Taxa_PP3_Mensal),(C100-C101)*(1+Taxa_PP3_Mensal))) -> 
B101: Benefício | C101: 0 | D101: =IF(ROW(D101) - 2 = ROW(Inicio_FC),IF(D$6<Mes_Inicio_Serie,"",IF(MOD(D$6,12)=1,$O98,IF(MOD(D$6,12)=6,IF(Recalculo_Atuarial="SIM",IF(OR(Modalidade=1,Modalidade=2),$I100/$Q101,Percentual_Reserva*$I100),IF(OR(Modalidade=1,Modalidade=2),IF(Mes_Inicio_Serie<>6,$H101,$I$4),Percentual_Reserva*$I100)),IF(MOD(D$6,12)=11,IF(Opcao_Abono="SIM",IF(Mes_Inicio_Serie<>11,2*$M101,2*$I$4),IF(Mes_Inicio_Serie<>11,$M101,$I$4)),IF(MOD(D$6,12)=0,IF(Opcao_Abono="SIM",IF(Mes_Inicio_Serie<>12,$N101/2,$I$4),IF(Mes_Inicio_Serie<>12,$N101,$I$4)),IF(D$6=Mes_Inicio_Serie,$I$4,C101)))))),IF(D100=0,0,IF(C100<2*C101,D100,IF(MOD(D$6,12)=1,$O98,IF(MOD(D$6,12)=6,IF(Recalculo_Atuarial="SIM",IF(OR(Modalidade=1,Modalidade=2),IF($I100/$Q101>=$R101,$I100/$Q101,D100),IF(Percentual_Reserva*$I100>=$R101,Percentual_Reserva*$I100,D100)),IF(OR(Modalidade=1,Modalidade=2),$H101,IF(Percentual_Reserva*$I100>=$R101,Percentual_Reserva*$I100,D100))),IF(MOD(D$6,12)=11,IF(Opcao_Abono="SIM",2*$M101,$M101),IF(MOD(D$6,12)=0,IF(Opcao_Abono="SIM",$N101/2,$N101),C101))))))) ->  | P101: =IF(AND(D100<>0,D101<>0),R101,"") ->  | Q101: 133.364305 | R101: =R98*(1 + Taxa_Composta_Anual_PP3) -> 1408.581076 | S101: =IF(AND(D100<>0,D103=0),ROW(D102),0) -> 
B102: =B99+1 -> 2050
B103: Saldo | C103: 0 | D103: =IF(ROW(D103) - 1 = ROW(Inicio_FC),IF(Mes_Inicio_Serie>D$6,"",IF(Mes_Inicio_Serie=D$6,$E$2*(1+Taxa_PP3_Mensal),(C103-C104)*(1+Taxa_PP3_Mensal))),IF(MOD(D$6,12)=1,($O100-$O101)*(1+Taxa_PP3_Mensal),(C103-C104)*(1+Taxa_PP3_Mensal))) -> 
B104: Benefício | C104: 0 | D104: =IF(ROW(D104) - 2 = ROW(Inicio_FC),IF(D$6<Mes_Inicio_Serie,"",IF(MOD(D$6,12)=1,$O101,IF(MOD(D$6,12)=6,IF(Recalculo_Atuarial="SIM",IF(OR(Modalidade=1,Modalidade=2),$I103/$Q104,Percentual_Reserva*$I103),IF(OR(Modalidade=1,Modalidade=2),IF(Mes_Inicio_Serie<>6,$H104,$I$4),Percentual_Reserva*$I103)),IF(MOD(D$6,12)=11,IF(Opcao_Abono="SIM",IF(Mes_Inicio_Serie<>11,2*$M104,2*$I$4),IF(Mes_Inicio_Serie<>11,$M104,$I$4)),IF(MOD(D$6,12)=0,IF(Opcao_Abono="SIM",IF(Mes_Inicio_Serie<>12,$N104/2,$I$4),IF(Mes_Inicio_Serie<>12,$N104,$I$4)),IF(D$6=Mes_Inicio_Serie,$I$4,C104)))))),IF(D103=0,0,IF(C103<2*C104,D103,IF(MOD(D$6,12)=1,$O101,IF(MOD(D$6,12)=6,IF(Recalculo_Atuarial="SIM",IF(OR(Modalidade=1,Modalidade=2),IF($I103/$Q104>=$R104,$I103/$Q104,D103),IF(Percentual_Reserva*$I103>=$R104,Percentual_Reserva*$I103,D103)),IF(OR(Modalidade=1,Modalidade=2),$H104,IF(Percentual_Reserva*$I103>=$R104,Percentual_Reserva*$I103,D103))),IF(MOD(D$6,12)=11,IF(Opcao_Abono="SIM",2*$M104,$M104),IF(MOD(D$6,12)=0,IF(Opcao_Abono="SIM",$N104/2,$N104),C104))))))) ->  | P104: =IF(AND(D103<>0,D104<>0),R104,"") ->  | Q104: 127.0794298 | R104: =R101*(1 + Taxa_Composta_Anual_PP3) -> 1538.418798 | S104: =IF(AND(D103<>0,D106=0),ROW(D105),0) -> 
B105: =B102+1 -> 2051
B106: Saldo | C106: 0 | D106: =IF(ROW(D106) - 1 = ROW(Inicio_FC),IF(Mes_Inicio_Serie>D$6,"",IF(Mes_Inicio_Serie=D$6,$E$2*(1+Taxa_PP3_Mensal),(C106-C107)*(1+Taxa_PP3_Mensal))),IF(MOD(D$6,12)=1,($O103-$O104)*(1+Taxa_PP3_Mensal),(C106-C107)*(1+Taxa_PP3_Mensal))) -> 
B107: Benefício | C107: 0 | D107: =IF(ROW(D107) - 2 = ROW(Inicio_FC),IF(D$6<Mes_Inicio_Serie,"",IF(MOD(D$6,12)=1,$O104,IF(MOD(D$6,12)=6,IF(Recalculo_Atuarial="SIM",IF(OR(Modalidade=1,Modalidade=2),$I106/$Q107,Percentual_Reserva*$I106),IF(OR(Modalidade=1,Modalidade=2),IF(Mes_Inicio_Serie<>6,$H107,$I$4),Percentual_Reserva*$I106)),IF(MOD(D$6,12)=11,IF(Opcao_Abono="SIM",IF(Mes_Inicio_Serie<>11,2*$M107,2*$I$4),IF(Mes_Inicio_Serie<>11,$M107,$I$4)),IF(MOD(D$6,12)=0,IF(Opcao_Abono="SIM",IF(Mes_Inicio_Serie<>12,$N107/2,$I$4),IF(Mes_Inicio_Serie<>12,$N107,$I$4)),IF(D$6=Mes_Inicio_Serie,$I$4,C107)))))),IF(D106=0,0,IF(C106<2*C107,D106,IF(MOD(D$6,12)=1,$O104,IF(MOD(D$6,12)=6,IF(Recalculo_Atuarial="SIM",IF(OR(Modalidade=1,Modalidade=2),IF($I106/$Q107>=$R107,$I106/$Q107,D106),IF(Percentual_Reserva*$I106>=$R107,Percentual_Reserva*$I106,D106)),IF(OR(Modalidade=1,Modalidade=2),$H107,IF(Percentual_Reserva*$I106>=$R107,Percentual_Reserva*$I106,D106))),IF(MOD(D$6,12)=11,IF(Opcao_Abono="SIM",2*$M107,$M107),IF(MOD(D$6,12)=0,IF(Opcao_Abono="SIM",$N107/2,$N107),C107))))))) ->  | P107: =IF(AND(D106<>0,D107<>0),R107,"") ->  | Q107: 120.4633417 | R107: =R104*(1 + Taxa_Composta_Anual_PP3) -> 1680.224474 | S107: =IF(AND(D106<>0,D109=0),ROW(D108),0) -> 
B108: =B105+1 -> 2052
B109: Saldo | C109: 0 | D109: =IF(ROW(D109) - 1 = ROW(Inicio_FC),IF(Mes_Inicio_Serie>D$6,"",IF(Mes_Inicio_Serie=D$6,$E$2*(1+Taxa_PP3_Mensal),(C109-C110)*(1+Taxa_PP3_Mensal))),IF(MOD(D$6,12)=1,($O106-$O107)*(1+Taxa_PP3_Mensal),(C109-C110)*(1+Taxa_PP3_Mensal))) -> 
B110: Benefício | C110: 0 | D110: =IF(ROW(D110) - 2 = ROW(Inicio_FC),IF(D$6<Mes_Inicio_Serie,"",IF(MOD(D$6,12)=1,$O107,IF(MOD(D$6,12)=6,IF(Recalculo_Atuarial="SIM",IF(OR(Modalidade=1,Modalidade=2),$I109/$Q110,Percentual_Reserva*$I109),IF(OR(Modalidade=1,Modalidade=2),IF(Mes_Inicio_Serie<>6,$H110,$I$4),Percentual_Reserva*$I109)),IF(MOD(D$6,12)=11,IF(Opcao_Abono="SIM",IF(Mes_Inicio_Serie<>11,2*$M110,2*$I$4),IF(Mes_Inicio_Serie<>11,$M110,$I$4)),IF(MOD(D$6,12)=0,IF(Opcao_Abono="SIM",IF(Mes_Inicio_Serie<>12,$N110/2,$I$4),IF(Mes_Inicio_Serie<>12,$N110,$I$4)),IF(D$6=Mes_Inicio_Serie,$I$4,C110)))))),IF(D109=0,0,IF(C109<2*C110,D109,IF(MOD(D$6,12)=1,$O107,IF(MOD(D$6,12)=6,IF(Recalculo_Atuarial="SIM",IF(OR(Modalidade=1,Modalidade=2),IF($I109/$Q110>=$R110,$I109/$Q110,D109),IF(Percentual_Reserva*$I109>=$R110,Percentual_Reserva*$I109,D109)),IF(OR(Modalidade=1,Modalidade=2),$H110,IF(Percentual_Reserva*$I109>=$R110,Percentual_Reserva*$I109,D109))),IF(MOD(D$6,12)=11,IF(Opcao_Abono="SIM",2*$M110,$M110),IF(MOD(D$6,12)=0,IF(Opcao_Abono="SIM",$N110/2,$N110),C110))))))) ->  | P110: =IF(AND(D109<>0,D110<>0),R110,"") ->  | Q110: 113.4985858 | R110: =R107*(1 + Taxa_Composta_Anual_PP3) -> 1835.101265 | S110: =IF(AND(D109<>0,D112=0),ROW(D111),0) -> 
B111: =B108+1 -> 2053
B112: Saldo | C112: 0 | D112: =IF(ROW(D112) - 1 = ROW(Inicio_FC),IF(Mes_Inicio_Serie>D$6,"",IF(Mes_Inicio_Serie=D$6,$E$2*(1+Taxa_PP3_Mensal),(C112-C113)*(1+Taxa_PP3_Mensal))),IF(MOD(D$6,12)=1,($O109-$O110)*(1+Taxa_PP3_Mensal),(C112-C113)*(1+Taxa_PP3_Mensal))) -> 
B113: Benefício | C113: 0 | D113: =IF(ROW(D113) - 2 = ROW(Inicio_FC),IF(D$6<Mes_Inicio_Serie,"",IF(MOD(D$6,12)=1,$O110,IF(MOD(D$6,12)=6,IF(Recalculo_Atuarial="SIM",IF(OR(Modalidade=1,Modalidade=2),$I112/$Q113,Percentual_Reserva*$I112),IF(OR(Modalidade=1,Modalidade=2),IF(Mes_Inicio_Serie<>6,$H113,$I$4),Percentual_Reserva*$I112)),IF(MOD(D$6,12)=11,IF(Opcao_Abono="SIM",IF(Mes_Inicio_Serie<>11,2*$M113,2*$I$4),IF(Mes_Inicio_Serie<>11,$M113,$I$4)),IF(MOD(D$6,12)=0,IF(Opcao_Abono="SIM",IF(Mes_Inicio_Serie<>12,$N113/2,$I$4),IF(Mes_Inicio_Serie<>12,$N113,$I$4)),IF(D$6=Mes_Inicio_Serie,$I$4,C113)))))),IF(D112=0,0,IF(C112<2*C113,D112,IF(MOD(D$6,12)=1,$O110,IF(MOD(D$6,12)=6,IF(Recalculo_Atuarial="SIM",IF(OR(Modalidade=1,Modalidade=2),IF($I112/$Q113>=$R113,$I112/$Q113,D112),IF(Percentual_Reserva*$I112>=$R113,Percentual_Reserva*$I112,D112)),IF(OR(Modalidade=1,Modalidade=2),$H113,IF(Percentual_Reserva*$I112>=$R113,Percentual_Reserva*$I112,D112))),IF(MOD(D$6,12)=11,IF(Opcao_Abono="SIM",2*$M113,$M113),IF(MOD(D$6,12)=0,IF(Opcao_Abono="SIM",$N113/2,$N113),C113))))))) ->  | P113: =IF(AND(D112<>0,D113<>0),R113,"") ->  | Q113: 106.1667873 | R113: =R110*(1 + Taxa_Composta_Anual_PP3) -> 2004.254018 | S113: =IF(AND(D112<>0,D115=0),ROW(D114),0) -> 
B114: =B111+1 -> 2054
B115: Saldo | C115: 0 | D115: =IF(ROW(D115) - 1 = ROW(Inicio_FC),IF(Mes_Inicio_Serie>D$6,"",IF(Mes_Inicio_Serie=D$6,$E$2*(1+Taxa_PP3_Mensal),(C115-C116)*(1+Taxa_PP3_Mensal))),IF(MOD(D$6,12)=1,($O112-$O113)*(1+Taxa_PP3_Mensal),(C115-C116)*(1+Taxa_PP3_Mensal))) -> 
B116: Benefício | C116: 0 | D116: =IF(ROW(D116) - 2 = ROW(Inicio_FC),IF(D$6<Mes_Inicio_Serie,"",IF(MOD(D$6,12)=1,$O113,IF(MOD(D$6,12)=6,IF(Recalculo_Atuarial="SIM",IF(OR(Modalidade=1,Modalidade=2),$I115/$Q116,Percentual_Reserva*$I115),IF(OR(Modalidade=1,Modalidade=2),IF(Mes_Inicio_Serie<>6,$H116,$I$4),Percentual_Reserva*$I115)),IF(MOD(D$6,12)=11,IF(Opcao_Abono="SIM",IF(Mes_Inicio_Serie<>11,2*$M116,2*$I$4),IF(Mes_Inicio_Serie<>11,$M116,$I$4)),IF(MOD(D$6,12)=0,IF(Opcao_Abono="SIM",IF(Mes_Inicio_Serie<>12,$N116/2,$I$4),IF(Mes_Inicio_Serie<>12,$N116,$I$4)),IF(D$6=Mes_Inicio_Serie,$I$4,C116)))))),IF(D115=0,0,IF(C115<2*C116,D115,IF(MOD(D$6,12)=1,$O113,IF(MOD(D$6,12)=6,IF(Recalculo_Atuarial="SIM",IF(OR(Modalidade=1,Modalidade=2),IF($I115/$Q116>=$R116,$I115/$Q116,D115),IF(Percentual_Reserva*$I115>=$R116,Percentual_Reserva*$I115,D115)),IF(OR(Modalidade=1,Modalidade=2),$H116,IF(Percentual_Reserva*$I115>=$R116,Percentual_Reserva*$I115,D115))),IF(MOD(D$6,12)=11,IF(Opcao_Abono="SIM",2*$M116,$M116),IF(MOD(D$6,12)=0,IF(Opcao_Abono="SIM",$N116/2,$N116),C116))))))) ->  | P116: =IF(AND(D115<>0,D116<>0),R116,"") ->  | Q116: 98.44860292 | R116: =R113*(1 + Taxa_Composta_Anual_PP3) -> 2188.998637 | S116: =IF(AND(D115<>0,D118=0),ROW(D117),0) -> 
B117: =B114+1 -> 2055
B118: Saldo | C118: 0 | D118: =IF(ROW(D118) - 1 = ROW(Inicio_FC),IF(Mes_Inicio_Serie>D$6,"",IF(Mes_Inicio_Serie=D$6,$E$2*(1+Taxa_PP3_Mensal),(C118-C119)*(1+Taxa_PP3_Mensal))),IF(MOD(D$6,12)=1,($O115-$O116)*(1+Taxa_PP3_Mensal),(C118-C119)*(1+Taxa_PP3_Mensal))) -> 
B119: Benefício | C119: 0 | D119: =IF(ROW(D119) - 2 = ROW(Inicio_FC),IF(D$6<Mes_Inicio_Serie,"",IF(MOD(D$6,12)=1,$O116,IF(MOD(D$6,12)=6,IF(Recalculo_Atuarial="SIM",IF(OR(Modalidade=1,Modalidade=2),$I118/$Q119,Percentual_Reserva*$I118),IF(OR(Modalidade=1,Modalidade=2),IF(Mes_Inicio_Serie<>6,$H119,$I$4),Percentual_Reserva*$I118)),IF(MOD(D$6,12)=11,IF(Opcao_Abono="SIM",IF(Mes_Inicio_Serie<>11,2*$M119,2*$I$4),IF(Mes_Inicio_Serie<>11,$M119,$I$4)),IF(MOD(D$6,12)=0,IF(Opcao_Abono="SIM",IF(Mes_Inicio_Serie<>12,$N119/2,$I$4),IF(Mes_Inicio_Serie<>12,$N119,$I$4)),IF(D$6=Mes_Inicio_Serie,$I$4,C119)))))),IF(D118=0,0,IF(C118<2*C119,D118,IF(MOD(D$6,12)=1,$O116,IF(MOD(D$6,12)=6,IF(Recalculo_Atuarial="SIM",IF(OR(Modalidade=1,Modalidade=2),IF($I118/$Q119>=$R119,$I118/$Q119,D118),IF(Percentual_Reserva*$I118>=$R119,Percentual_Reserva*$I118,D118)),IF(OR(Modalidade=1,Modalidade=2),$H119,IF(Percentual_Reserva*$I118>=$R119,Percentual_Reserva*$I118,D118))),IF(MOD(D$6,12)=11,IF(Opcao_Abono="SIM",2*$M119,$M119),IF(MOD(D$6,12)=0,IF(Opcao_Abono="SIM",$N119/2,$N119),C119))))))) ->  | P119: =IF(AND(D118<>0,D119<>0),R119,"") ->  | Q119: 90.32367026 | R119: =R116*(1 + Taxa_Composta_Anual_PP3) -> 2390.772323 | S119: =IF(AND(D118<>0,D121=0),ROW(D120),0) -> 
B120: =B117+1 -> 2056
B121: Saldo | C121: 0 | D121: =IF(ROW(D121) - 1 = ROW(Inicio_FC),IF(Mes_Inicio_Serie>D$6,"",IF(Mes_Inicio_Serie=D$6,$E$2*(1+Taxa_PP3_Mensal),(C121-C122)*(1+Taxa_PP3_Mensal))),IF(MOD(D$6,12)=1,($O118-$O119)*(1+Taxa_PP3_Mensal),(C121-C122)*(1+Taxa_PP3_Mensal))) -> 
B122: Benefício | C122: 0 | D122: =IF(ROW(D122) - 2 = ROW(Inicio_FC),IF(D$6<Mes_Inicio_Serie,"",IF(MOD(D$6,12)=1,$O119,IF(MOD(D$6,12)=6,IF(Recalculo_Atuarial="SIM",IF(OR(Modalidade=1,Modalidade=2),$I121/$Q122,Percentual_Reserva*$I121),IF(OR(Modalidade=1,Modalidade=2),IF(Mes_Inicio_Serie<>6,$H122,$I$4),Percentual_Reserva*$I121)),IF(MOD(D$6,12)=11,IF(Opcao_Abono="SIM",IF(Mes_Inicio_Serie<>11,2*$M122,2*$I$4),IF(Mes_Inicio_Serie<>11,$M122,$I$4)),IF(MOD(D$6,12)=0,IF(Opcao_Abono="SIM",IF(Mes_Inicio_Serie<>12,$N122/2,$I$4),IF(Mes_Inicio_Serie<>12,$N122,$I$4)),IF(D$6=Mes_Inicio_Serie,$I$4,C122)))))),IF(D121=0,0,IF(C121<2*C122,D121,IF(MOD(D$6,12)=1,$O119,IF(MOD(D$6,12)=6,IF(Recalculo_Atuarial="SIM",IF(OR(Modalidade=1,Modalidade=2),IF($I121/$Q122>=$R122,$I121/$Q122,D121),IF(Percentual_Reserva*$I121>=$R122,Percentual_Reserva*$I121,D121)),IF(OR(Modalidade=1,Modalidade=2),$H122,IF(Percentual_Reserva*$I121>=$R122,Percentual_Reserva*$I121,D121))),IF(MOD(D$6,12)=11,IF(Opcao_Abono="SIM",2*$M122,$M122),IF(MOD(D$6,12)=0,IF(Opcao_Abono="SIM",$N122/2,$N122),C122))))))) ->  | P122: =IF(AND(D121<>0,D122<>0),R122,"") ->  | Q122: 81.77055366 | R122: =R119*(1 + Taxa_Composta_Anual_PP3) -> 2611.14475 | S122: =IF(AND(D121<>0,D124=0),ROW(D123),0) -> 
B123: =B120+1 -> 2057
B124: Saldo | C124: 0 | D124: =IF(ROW(D124) - 1 = ROW(Inicio_FC),IF(Mes_Inicio_Serie>D$6,"",IF(Mes_Inicio_Serie=D$6,$E$2*(1+Taxa_PP3_Mensal),(C124-C125)*(1+Taxa_PP3_Mensal))),IF(MOD(D$6,12)=1,($O121-$O122)*(1+Taxa_PP3_Mensal),(C124-C125)*(1+Taxa_PP3_Mensal))) -> 
B125: Benefício | C125: 0 | D125: =IF(ROW(D125) - 2 = ROW(Inicio_FC),IF(D$6<Mes_Inicio_Serie,"",IF(MOD(D$6,12)=1,$O122,IF(MOD(D$6,12)=6,IF(Recalculo_Atuarial="SIM",IF(OR(Modalidade=1,Modalidade=2),$I124/$Q125,Percentual_Reserva*$I124),IF(OR(Modalidade=1,Modalidade=2),IF(Mes_Inicio_Serie<>6,$H125,$I$4),Percentual_Reserva*$I124)),IF(MOD(D$6,12)=11,IF(Opcao_Abono="SIM",IF(Mes_Inicio_Serie<>11,2*$M125,2*$I$4),IF(Mes_Inicio_Serie<>11,$M125,$I$4)),IF(MOD(D$6,12)=0,IF(Opcao_Abono="SIM",IF(Mes_Inicio_Serie<>12,$N125/2,$I$4),IF(Mes_Inicio_Serie<>12,$N125,$I$4)),IF(D$6=Mes_Inicio_Serie,$I$4,C125)))))),IF(D124=0,0,IF(C124<2*C125,D124,IF(MOD(D$6,12)=1,$O122,IF(MOD(D$6,12)=6,IF(Recalculo_Atuarial="SIM",IF(OR(Modalidade=1,Modalidade=2),IF($I124/$Q125>=$R125,$I124/$Q125,D124),IF(Percentual_Reserva*$I124>=$R125,Percentual_Reserva*$I124,D124)),IF(OR(Modalidade=1,Modalidade=2),$H125,IF(Percentual_Reserva*$I124>=$R125,Percentual_Reserva*$I124,D124))),IF(MOD(D$6,12)=11,IF(Opcao_Abono="SIM",2*$M125,$M125),IF(MOD(D$6,12)=0,IF(Opcao_Abono="SIM",$N125/2,$N125),C125))))))) ->  | P125: =IF(AND(D124<>0,D125<>0),R125,"") ->  | Q125: 72.76668781 | R125: =R122*(1 + Taxa_Composta_Anual_PP3) -> 2851.830281 | S125: =IF(AND(D124<>0,D127=0),ROW(D126),0) -> 
B126: =B123+1 -> 2058
B127: Saldo | C127: 0 | D127: =IF(ROW(D127) - 1 = ROW(Inicio_FC),IF(Mes_Inicio_Serie>D$6,"",IF(Mes_Inicio_Serie=D$6,$E$2*(1+Taxa_PP3_Mensal),(C127-C128)*(1+Taxa_PP3_Mensal))),IF(MOD(D$6,12)=1,($O124-$O125)*(1+Taxa_PP3_Mensal),(C127-C128)*(1+Taxa_PP3_Mensal))) -> 
B128: Benefício | C128: 0 | D128: =IF(ROW(D128) - 2 = ROW(Inicio_FC),IF(D$6<Mes_Inicio_Serie,"",IF(MOD(D$6,12)=1,$O125,IF(MOD(D$6,12)=6,IF(Recalculo_Atuarial="SIM",IF(OR(Modalidade=1,Modalidade=2),$I127/$Q128,Percentual_Reserva*$I127),IF(OR(Modalidade=1,Modalidade=2),IF(Mes_Inicio_Serie<>6,$H128,$I$4),Percentual_Reserva*$I127)),IF(MOD(D$6,12)=11,IF(Opcao_Abono="SIM",IF(Mes_Inicio_Serie<>11,2*$M128,2*$I$4),IF(Mes_Inicio_Serie<>11,$M128,$I$4)),IF(MOD(D$6,12)=0,IF(Opcao_Abono="SIM",IF(Mes_Inicio_Serie<>12,$N128/2,$I$4),IF(Mes_Inicio_Serie<>12,$N128,$I$4)),IF(D$6=Mes_Inicio_Serie,$I$4,C128)))))),IF(D127=0,0,IF(C127<2*C128,D127,IF(MOD(D$6,12)=1,$O125,IF(MOD(D$6,12)=6,IF(Recalculo_Atuarial="SIM",IF(OR(Modalidade=1,Modalidade=2),IF($I127/$Q128>=$R128,$I127/$Q128,D127),IF(Percentual_Reserva*$I127>=$R128,Percentual_Reserva*$I127,D127)),IF(OR(Modalidade=1,Modalidade=2),$H128,IF(Percentual_Reserva*$I127>=$R128,Percentual_Reserva*$I127,D127))),IF(MOD(D$6,12)=11,IF(Opcao_Abono="SIM",2*$M128,$M128),IF(MOD(D$6,12)=0,IF(Opcao_Abono="SIM",$N128/2,$N128),C128))))))) ->  | P128: =IF(AND(D127<>0,D128<>0),R128,"") ->  | Q128: 63.28831823 | R128: =R125*(1 + Taxa_Composta_Anual_PP3) -> 3114.701302 | S128: =IF(AND(D127<>0,D130=0),ROW(D129),0) -> 
B129: =B126+1 -> 2059
B130: Saldo | C130: 0 | D130: =IF(ROW(D130) - 1 = ROW(Inicio_FC),IF(Mes_Inicio_Serie>D$6,"",IF(Mes_Inicio_Serie=D$6,$E$2*(1+Taxa_PP3_Mensal),(C130-C131)*(1+Taxa_PP3_Mensal))),IF(MOD(D$6,12)=1,($O127-$O128)*(1+Taxa_PP3_Mensal),(C130-C131)*(1+Taxa_PP3_Mensal))) -> 
B131: Benefício | C131: 0 | D131: =IF(ROW(D131) - 2 = ROW(Inicio_FC),IF(D$6<Mes_Inicio_Serie,"",IF(MOD(D$6,12)=1,$O128,IF(MOD(D$6,12)=6,IF(Recalculo_Atuarial="SIM",IF(OR(Modalidade=1,Modalidade=2),$I130/$Q131,Percentual_Reserva*$I130),IF(OR(Modalidade=1,Modalidade=2),IF(Mes_Inicio_Serie<>6,$H131,$I$4),Percentual_Reserva*$I130)),IF(MOD(D$6,12)=11,IF(Opcao_Abono="SIM",IF(Mes_Inicio_Serie<>11,2*$M131,2*$I$4),IF(Mes_Inicio_Serie<>11,$M131,$I$4)),IF(MOD(D$6,12)=0,IF(Opcao_Abono="SIM",IF(Mes_Inicio_Serie<>12,$N131/2,$I$4),IF(Mes_Inicio_Serie<>12,$N131,$I$4)),IF(D$6=Mes_Inicio_Serie,$I$4,C131)))))),IF(D130=0,0,IF(C130<2*C131,D130,IF(MOD(D$6,12)=1,$O128,IF(MOD(D$6,12)=6,IF(Recalculo_Atuarial="SIM",IF(OR(Modalidade=1,Modalidade=2),IF($I130/$Q131>=$R131,$I130/$Q131,D130),IF(Percentual_Reserva*$I130>=$R131,Percentual_Reserva*$I130,D130)),IF(OR(Modalidade=1,Modalidade=2),$H131,IF(Percentual_Reserva*$I130>=$R131,Percentual_Reserva*$I130,D130))),IF(MOD(D$6,12)=11,IF(Opcao_Abono="SIM",2*$M131,$M131),IF(MOD(D$6,12)=0,IF(Opcao_Abono="SIM",$N131/2,$N131),C131))))))) ->  | P131: =IF(AND(D130<>0,D131<>0),R131,"") ->  | Q131: 53.31043857 | R131: =R128*(1 + Taxa_Composta_Anual_PP3) -> 3401.802788 | S131: =IF(AND(D130<>0,D133=0),ROW(D132),0) -> 
B132: =B129+1 -> 2060
B133: Saldo | C133: 0 | D133: =IF(ROW(D133) - 1 = ROW(Inicio_FC),IF(Mes_Inicio_Serie>D$6,"",IF(Mes_Inicio_Serie=D$6,$E$2*(1+Taxa_PP3_Mensal),(C133-C134)*(1+Taxa_PP3_Mensal))),IF(MOD(D$6,12)=1,($O130-$O131)*(1+Taxa_PP3_Mensal),(C133-C134)*(1+Taxa_PP3_Mensal))) -> 
B134: Benefício | C134: 0 | D134: =IF(ROW(D134) - 2 = ROW(Inicio_FC),IF(D$6<Mes_Inicio_Serie,"",IF(MOD(D$6,12)=1,$O131,IF(MOD(D$6,12)=6,IF(Recalculo_Atuarial="SIM",IF(OR(Modalidade=1,Modalidade=2),$I133/$Q134,Percentual_Reserva*$I133),IF(OR(Modalidade=1,Modalidade=2),IF(Mes_Inicio_Serie<>6,$H134,$I$4),Percentual_Reserva*$I133)),IF(MOD(D$6,12)=11,IF(Opcao_Abono="SIM",IF(Mes_Inicio_Serie<>11,2*$M134,2*$I$4),IF(Mes_Inicio_Serie<>11,$M134,$I$4)),IF(MOD(D$6,12)=0,IF(Opcao_Abono="SIM",IF(Mes_Inicio_Serie<>12,$N134/2,$I$4),IF(Mes_Inicio_Serie<>12,$N134,$I$4)),IF(D$6=Mes_Inicio_Serie,$I$4,C134)))))),IF(D133=0,0,IF(C133<2*C134,D133,IF(MOD(D$6,12)=1,$O131,IF(MOD(D$6,12)=6,IF(Recalculo_Atuarial="SIM",IF(OR(Modalidade=1,Modalidade=2),IF($I133/$Q134>=$R134,$I133/$Q134,D133),IF(Percentual_Reserva*$I133>=$R134,Percentual_Reserva*$I133,D133)),IF(OR(Modalidade=1,Modalidade=2),$H134,IF(Percentual_Reserva*$I133>=$R134,Percentual_Reserva*$I133,D133))),IF(MOD(D$6,12)=11,IF(Opcao_Abono="SIM",2*$M134,$M134),IF(MOD(D$6,12)=0,IF(Opcao_Abono="SIM",$N134/2,$N134),C134))))))) ->  | P134: =IF(AND(D133<>0,D134<>0),R134,"") ->  | Q134: 42.80672465 | R134: =R131*(1 + Taxa_Composta_Anual_PP3) -> 3715.368212 | S134: =IF(AND(D133<>0,D136=0),ROW(D135),0) -> 
B135: =B132+1 -> 2061
B136: Saldo | C136: 0 | D136: =IF(ROW(D136) - 1 = ROW(Inicio_FC),IF(Mes_Inicio_Serie>D$6,"",IF(Mes_Inicio_Serie=D$6,$E$2*(1+Taxa_PP3_Mensal),(C136-C137)*(1+Taxa_PP3_Mensal))),IF(MOD(D$6,12)=1,($O133-$O134)*(1+Taxa_PP3_Mensal),(C136-C137)*(1+Taxa_PP3_Mensal))) -> 
B137: Benefício | C137: 0 | D137: =IF(ROW(D137) - 2 = ROW(Inicio_FC),IF(D$6<Mes_Inicio_Serie,"",IF(MOD(D$6,12)=1,$O134,IF(MOD(D$6,12)=6,IF(Recalculo_Atuarial="SIM",IF(OR(Modalidade=1,Modalidade=2),$I136/$Q137,Percentual_Reserva*$I136),IF(OR(Modalidade=1,Modalidade=2),IF(Mes_Inicio_Serie<>6,$H137,$I$4),Percentual_Reserva*$I136)),IF(MOD(D$6,12)=11,IF(Opcao_Abono="SIM",IF(Mes_Inicio_Serie<>11,2*$M137,2*$I$4),IF(Mes_Inicio_Serie<>11,$M137,$I$4)),IF(MOD(D$6,12)=0,IF(Opcao_Abono="SIM",IF(Mes_Inicio_Serie<>12,$N137/2,$I$4),IF(Mes_Inicio_Serie<>12,$N137,$I$4)),IF(D$6=Mes_Inicio_Serie,$I$4,C137)))))),IF(D136=0,0,IF(C136<2*C137,D136,IF(MOD(D$6,12)=1,$O134,IF(MOD(D$6,12)=6,IF(Recalculo_Atuarial="SIM",IF(OR(Modalidade=1,Modalidade=2),IF($I136/$Q137>=$R137,$I136/$Q137,D136),IF(Percentual_Reserva*$I136>=$R137,Percentual_Reserva*$I136,D136)),IF(OR(Modalidade=1,Modalidade=2),$H137,IF(Percentual_Reserva*$I136>=$R137,Percentual_Reserva*$I136,D136))),IF(MOD(D$6,12)=11,IF(Opcao_Abono="SIM",2*$M137,$M137),IF(MOD(D$6,12)=0,IF(Opcao_Abono="SIM",$N137/2,$N137),C137))))))) ->  | P137: =IF(AND(D136<>0,D137<>0),R137,"") ->  | Q137: 31.74946501 | R137: =R134*(1 + Taxa_Composta_Anual_PP3) -> 4057.836922 | S137: =IF(AND(D136<>0,D139=0),ROW(D138),0) -> 
B138: =B135+1 -> 2062
B139: Saldo | C139: 0 | D139: =IF(ROW(D139) - 1 = ROW(Inicio_FC),IF(Mes_Inicio_Serie>D$6,"",IF(Mes_Inicio_Serie=D$6,$E$2*(1+Taxa_PP3_Mensal),(C139-C140)*(1+Taxa_PP3_Mensal))),IF(MOD(D$6,12)=1,($O136-$O137)*(1+Taxa_PP3_Mensal),(C139-C140)*(1+Taxa_PP3_Mensal))) -> 
B140: Benefício | C140: 0 | D140: =IF(ROW(D140) - 2 = ROW(Inicio_FC),IF(D$6<Mes_Inicio_Serie,"",IF(MOD(D$6,12)=1,$O137,IF(MOD(D$6,12)=6,IF(Recalculo_Atuarial="SIM",IF(OR(Modalidade=1,Modalidade=2),$I139/$Q140,Percentual_Reserva*$I139),IF(OR(Modalidade=1,Modalidade=2),IF(Mes_Inicio_Serie<>6,$H140,$I$4),Percentual_Reserva*$I139)),IF(MOD(D$6,12)=11,IF(Opcao_Abono="SIM",IF(Mes_Inicio_Serie<>11,2*$M140,2*$I$4),IF(Mes_Inicio_Serie<>11,$M140,$I$4)),IF(MOD(D$6,12)=0,IF(Opcao_Abono="SIM",IF(Mes_Inicio_Serie<>12,$N140/2,$I$4),IF(Mes_Inicio_Serie<>12,$N140,$I$4)),IF(D$6=Mes_Inicio_Serie,$I$4,C140)))))),IF(D139=0,0,IF(C139<2*C140,D139,IF(MOD(D$6,12)=1,$O137,IF(MOD(D$6,12)=6,IF(Recalculo_Atuarial="SIM",IF(OR(Modalidade=1,Modalidade=2),IF($I139/$Q140>=$R140,$I139/$Q140,D139),IF(Percentual_Reserva*$I139>=$R140,Percentual_Reserva*$I139,D139)),IF(OR(Modalidade=1,Modalidade=2),$H140,IF(Percentual_Reserva*$I139>=$R140,Percentual_Reserva*$I139,D139))),IF(MOD(D$6,12)=11,IF(Opcao_Abono="SIM",2*$M140,$M140),IF(MOD(D$6,12)=0,IF(Opcao_Abono="SIM",$N140/2,$N140),C140))))))) ->  | P140: =IF(AND(D139<>0,D140<>0),R140,"") ->  | Q140: 20.10948779 | R140: =R137*(1 + Taxa_Composta_Anual_PP3) -> 4431.873112 | S140: =IF(AND(D139<>0,D142=0),ROW(D141),0) -> 
B141: =B138+1 -> 2063
B142: Saldo | C142: 0 | D142: =IF(ROW(D142) - 1 = ROW(Inicio_FC),IF(Mes_Inicio_Serie>D$6,"",IF(Mes_Inicio_Serie=D$6,$E$2*(1+Taxa_PP3_Mensal),(C142-C143)*(1+Taxa_PP3_Mensal))),IF(MOD(D$6,12)=1,($O139-$O140)*(1+Taxa_PP3_Mensal),(C142-C143)*(1+Taxa_PP3_Mensal))) -> 
B143: Benefício | C143: 0 | D143: =IF(ROW(D143) - 2 = ROW(Inicio_FC),IF(D$6<Mes_Inicio_Serie,"",IF(MOD(D$6,12)=1,$O140,IF(MOD(D$6,12)=6,IF(Recalculo_Atuarial="SIM",IF(OR(Modalidade=1,Modalidade=2),$I142/$Q143,Percentual_Reserva*$I142),IF(OR(Modalidade=1,Modalidade=2),IF(Mes_Inicio_Serie<>6,$H143,$I$4),Percentual_Reserva*$I142)),IF(MOD(D$6,12)=11,IF(Opcao_Abono="SIM",IF(Mes_Inicio_Serie<>11,2*$M143,2*$I$4),IF(Mes_Inicio_Serie<>11,$M143,$I$4)),IF(MOD(D$6,12)=0,IF(Opcao_Abono="SIM",IF(Mes_Inicio_Serie<>12,$N143/2,$I$4),IF(Mes_Inicio_Serie<>12,$N143,$I$4)),IF(D$6=Mes_Inicio_Serie,$I$4,C143)))))),IF(D142=0,0,IF(C142<2*C143,D142,IF(MOD(D$6,12)=1,$O140,IF(MOD(D$6,12)=6,IF(Recalculo_Atuarial="SIM",IF(OR(Modalidade=1,Modalidade=2),IF($I142/$Q143>=$R143,$I142/$Q143,D142),IF(Percentual_Reserva*$I142>=$R143,Percentual_Reserva*$I142,D142)),IF(OR(Modalidade=1,Modalidade=2),$H143,IF(Percentual_Reserva*$I142>=$R143,Percentual_Reserva*$I142,D142))),IF(MOD(D$6,12)=11,IF(Opcao_Abono="SIM",2*$M143,$M143),IF(MOD(D$6,12)=0,IF(Opcao_Abono="SIM",$N143/2,$N143),C143))))))) ->  | P143: =IF(AND(D142<>0,D143<>0),R143,"") ->  | Q143: 7.856083768 | R143: =R140*(1 + Taxa_Composta_Anual_PP3) -> 4840.386556 | S143: =IF(AND(D142<>0,D145=0),ROW(D144),0) -> 
B144: =B141+1 -> 2064
B145: Saldo | C145: 0 | D145: =IF(ROW(D145) - 1 = ROW(Inicio_FC),IF(Mes_Inicio_Serie>D$6,"",IF(Mes_Inicio_Serie=D$6,$E$2*(1+Taxa_PP3_Mensal),(C145-C146)*(1+Taxa_PP3_Mensal))),IF(MOD(D$6,12)=1,($O142-$O143)*(1+Taxa_PP3_Mensal),(C145-C146)*(1+Taxa_PP3_Mensal))) -> 
B146: Benefício | C146: 0 | D146: =IF(ROW(D146) - 2 = ROW(Inicio_FC),IF(D$6<Mes_Inicio_Serie,"",IF(MOD(D$6,12)=1,$O143,IF(MOD(D$6,12)=6,IF(Recalculo_Atuarial="SIM",IF(OR(Modalidade=1,Modalidade=2),$I145/$Q146,Percentual_Reserva*$I145),IF(OR(Modalidade=1,Modalidade=2),IF(Mes_Inicio_Serie<>6,$H146,$I$4),Percentual_Reserva*$I145)),IF(MOD(D$6,12)=11,IF(Opcao_Abono="SIM",IF(Mes_Inicio_Serie<>11,2*$M146,2*$I$4),IF(Mes_Inicio_Serie<>11,$M146,$I$4)),IF(MOD(D$6,12)=0,IF(Opcao_Abono="SIM",IF(Mes_Inicio_Serie<>12,$N146/2,$I$4),IF(Mes_Inicio_Serie<>12,$N146,$I$4)),IF(D$6=Mes_Inicio_Serie,$I$4,C146)))))),IF(D145=0,0,IF(C145<2*C146,D145,IF(MOD(D$6,12)=1,$O143,IF(MOD(D$6,12)=6,IF(Recalculo_Atuarial="SIM",IF(OR(Modalidade=1,Modalidade=2),IF($I145/$Q146>=$R146,$I145/$Q146,D145),IF(Percentual_Reserva*$I145>=$R146,Percentual_Reserva*$I145,D145)),IF(OR(Modalidade=1,Modalidade=2),$H146,IF(Percentual_Reserva*$I145>=$R146,Percentual_Reserva*$I145,D145))),IF(MOD(D$6,12)=11,IF(Opcao_Abono="SIM",2*$M146,$M146),IF(MOD(D$6,12)=0,IF(Opcao_Abono="SIM",$N146/2,$N146),C146))))))) ->  | P146: =IF(AND(D145<>0,D146<>0),R146,"") ->  | Q146: 1.995729288 | R146: =R143*(1 + Taxa_Composta_Anual_PP3) -> 5286.555237 | S146: =IF(AND(D145<>0,D148=0),ROW(D147),0) -> 
B147: =B144+1 -> 2065
B148: Saldo | C148: 0 | D148: =IF(ROW(D148) - 1 = ROW(Inicio_FC),IF(Mes_Inicio_Serie>D$6,"",IF(Mes_Inicio_Serie=D$6,$E$2*(1+Taxa_PP3_Mensal),(C148-C149)*(1+Taxa_PP3_Mensal))),IF(MOD(D$6,12)=1,($O145-$O146)*(1+Taxa_PP3_Mensal),(C148-C149)*(1+Taxa_PP3_Mensal))) -> 
B149: Benefício | C149: 0 | D149: =IF(ROW(D149) - 2 = ROW(Inicio_FC),IF(D$6<Mes_Inicio_Serie,"",IF(MOD(D$6,12)=1,$O146,IF(MOD(D$6,12)=6,IF(Recalculo_Atuarial="SIM",IF(OR(Modalidade=1,Modalidade=2),$I148/$Q149,Percentual_Reserva*$I148),IF(OR(Modalidade=1,Modalidade=2),IF(Mes_Inicio_Serie<>6,$H149,$I$4),Percentual_Reserva*$I148)),IF(MOD(D$6,12)=11,IF(Opcao_Abono="SIM",IF(Mes_Inicio_Serie<>11,2*$M149,2*$I$4),IF(Mes_Inicio_Serie<>11,$M149,$I$4)),IF(MOD(D$6,12)=0,IF(Opcao_Abono="SIM",IF(Mes_Inicio_Serie<>12,$N149/2,$I$4),IF(Mes_Inicio_Serie<>12,$N149,$I$4)),IF(D$6=Mes_Inicio_Serie,$I$4,C149)))))),IF(D148=0,0,IF(C148<2*C149,D148,IF(MOD(D$6,12)=1,$O146,IF(MOD(D$6,12)=6,IF(Recalculo_Atuarial="SIM",IF(OR(Modalidade=1,Modalidade=2),IF($I148/$Q149>=$R149,$I148/$Q149,D148),IF(Percentual_Reserva*$I148>=$R149,Percentual_Reserva*$I148,D148)),IF(OR(Modalidade=1,Modalidade=2),$H149,IF(Percentual_Reserva*$I148>=$R149,Percentual_Reserva*$I148,D148))),IF(MOD(D$6,12)=11,IF(Opcao_Abono="SIM",2*$M149,$M149),IF(MOD(D$6,12)=0,IF(Opcao_Abono="SIM",$N149/2,$N149),C149))))))) ->  | P149: =IF(AND(D148<>0,D149<>0),R149,"") ->  | R149: =R146*(1 + Taxa_Composta_Anual_PP3) -> 5773.850075 | S149: =IF(AND(D148<>0,D151=0),ROW(D150),0) -> 
B150: =B147+1 -> 2066
B151: Saldo | C151: 0 | D151: =IF(ROW(D151) - 1 = ROW(Inicio_FC),IF(Mes_Inicio_Serie>D$6,"",IF(Mes_Inicio_Serie=D$6,$E$2*(1+Taxa_PP3_Mensal),(C151-C152)*(1+Taxa_PP3_Mensal))),IF(MOD(D$6,12)=1,($O148-$O149)*(1+Taxa_PP3_Mensal),(C151-C152)*(1+Taxa_PP3_Mensal))) -> 
B152: Benefício | C152: 0 | D152: =IF(ROW(D152) - 2 = ROW(Inicio_FC),IF(D$6<Mes_Inicio_Serie,"",IF(MOD(D$6,12)=1,$O149,IF(MOD(D$6,12)=6,IF(Recalculo_Atuarial="SIM",IF(OR(Modalidade=1,Modalidade=2),$I151/$Q152,Percentual_Reserva*$I151),IF(OR(Modalidade=1,Modalidade=2),IF(Mes_Inicio_Serie<>6,$H152,$I$4),Percentual_Reserva*$I151)),IF(MOD(D$6,12)=11,IF(Opcao_Abono="SIM",IF(Mes_Inicio_Serie<>11,2*$M152,2*$I$4),IF(Mes_Inicio_Serie<>11,$M152,$I$4)),IF(MOD(D$6,12)=0,IF(Opcao_Abono="SIM",IF(Mes_Inicio_Serie<>12,$N152/2,$I$4),IF(Mes_Inicio_Serie<>12,$N152,$I$4)),IF(D$6=Mes_Inicio_Serie,$I$4,C152)))))),IF(D151=0,0,IF(C151<2*C152,D151,IF(MOD(D$6,12)=1,$O149,IF(MOD(D$6,12)=6,IF(Recalculo_Atuarial="SIM",IF(OR(Modalidade=1,Modalidade=2),IF($I151/$Q152>=$R152,$I151/$Q152,D151),IF(Percentual_Reserva*$I151>=$R152,Percentual_Reserva*$I151,D151)),IF(OR(Modalidade=1,Modalidade=2),$H152,IF(Percentual_Reserva*$I151>=$R152,Percentual_Reserva*$I151,D151))),IF(MOD(D$6,12)=11,IF(Opcao_Abono="SIM",2*$M152,$M152),IF(MOD(D$6,12)=0,IF(Opcao_Abono="SIM",$N152/2,$N152),C152))))))) ->  | P152: =IF(AND(D151<>0,D152<>0),R152,"") ->  | R152: =R149*(1 + Taxa_Composta_Anual_PP3) -> 6306.061923 | S152: =IF(AND(D151<>0,D154=0),ROW(D153),0) -> 
B153: =B150+1 -> 2067
B154: Saldo | C154: 0 | D154: =IF(ROW(D154) - 1 = ROW(Inicio_FC),IF(Mes_Inicio_Serie>D$6,"",IF(Mes_Inicio_Serie=D$6,$E$2*(1+Taxa_PP3_Mensal),(C154-C155)*(1+Taxa_PP3_Mensal))),IF(MOD(D$6,12)=1,($O151-$O152)*(1+Taxa_PP3_Mensal),(C154-C155)*(1+Taxa_PP3_Mensal))) -> 
B155: Benefício | C155: 0 | D155: =IF(ROW(D155) - 2 = ROW(Inicio_FC),IF(D$6<Mes_Inicio_Serie,"",IF(MOD(D$6,12)=1,$O152,IF(MOD(D$6,12)=6,IF(Recalculo_Atuarial="SIM",IF(OR(Modalidade=1,Modalidade=2),$I154/$Q155,Percentual_Reserva*$I154),IF(OR(Modalidade=1,Modalidade=2),IF(Mes_Inicio_Serie<>6,$H155,$I$4),Percentual_Reserva*$I154)),IF(MOD(D$6,12)=11,IF(Opcao_Abono="SIM",IF(Mes_Inicio_Serie<>11,2*$M155,2*$I$4),IF(Mes_Inicio_Serie<>11,$M155,$I$4)),IF(MOD(D$6,12)=0,IF(Opcao_Abono="SIM",IF(Mes_Inicio_Serie<>12,$N155/2,$I$4),IF(Mes_Inicio_Serie<>12,$N155,$I$4)),IF(D$6=Mes_Inicio_Serie,$I$4,C155)))))),IF(D154=0,0,IF(C154<2*C155,D154,IF(MOD(D$6,12)=1,$O152,IF(MOD(D$6,12)=6,IF(Recalculo_Atuarial="SIM",IF(OR(Modalidade=1,Modalidade=2),IF($I154/$Q155>=$R155,$I154/$Q155,D154),IF(Percentual_Reserva*$I154>=$R155,Percentual_Reserva*$I154,D154)),IF(OR(Modalidade=1,Modalidade=2),$H155,IF(Percentual_Reserva*$I154>=$R155,Percentual_Reserva*$I154,D154))),IF(MOD(D$6,12)=11,IF(Opcao_Abono="SIM",2*$M155,$M155),IF(MOD(D$6,12)=0,IF(Opcao_Abono="SIM",$N155/2,$N155),C155))))))) ->  | P155: =IF(AND(D154<>0,D155<>0),R155,"") ->  | R155: =R152*(1 + Taxa_Composta_Anual_PP3) -> 6887.331063 | S155: =IF(AND(D154<>0,D157=0),ROW(D156),0) -> 
B156: =B153+1 -> 2068
B157: Saldo | C157: 0 | D157: =IF(ROW(D157) - 1 = ROW(Inicio_FC),IF(Mes_Inicio_Serie>D$6,"",IF(Mes_Inicio_Serie=D$6,$E$2*(1+Taxa_PP3_Mensal),(C157-C158)*(1+Taxa_PP3_Mensal))),IF(MOD(D$6,12)=1,($O154-$O155)*(1+Taxa_PP3_Mensal),(C157-C158)*(1+Taxa_PP3_Mensal))) -> 
B158: Benefício | C158: 0 | D158: =IF(ROW(D158) - 2 = ROW(Inicio_FC),IF(D$6<Mes_Inicio_Serie,"",IF(MOD(D$6,12)=1,$O155,IF(MOD(D$6,12)=6,IF(Recalculo_Atuarial="SIM",IF(OR(Modalidade=1,Modalidade=2),$I157/$Q158,Percentual_Reserva*$I157),IF(OR(Modalidade=1,Modalidade=2),IF(Mes_Inicio_Serie<>6,$H158,$I$4),Percentual_Reserva*$I157)),IF(MOD(D$6,12)=11,IF(Opcao_Abono="SIM",IF(Mes_Inicio_Serie<>11,2*$M158,2*$I$4),IF(Mes_Inicio_Serie<>11,$M158,$I$4)),IF(MOD(D$6,12)=0,IF(Opcao_Abono="SIM",IF(Mes_Inicio_Serie<>12,$N158/2,$I$4),IF(Mes_Inicio_Serie<>12,$N158,$I$4)),IF(D$6=Mes_Inicio_Serie,$I$4,C158)))))),IF(D157=0,0,IF(C157<2*C158,D157,IF(MOD(D$6,12)=1,$O155,IF(MOD(D$6,12)=6,IF(Recalculo_Atuarial="SIM",IF(OR(Modalidade=1,Modalidade=2),IF($I157/$Q158>=$R158,$I157/$Q158,D157),IF(Percentual_Reserva*$I157>=$R158,Percentual_Reserva*$I157,D157)),IF(OR(Modalidade=1,Modalidade=2),$H158,IF(Percentual_Reserva*$I157>=$R158,Percentual_Reserva*$I157,D157))),IF(MOD(D$6,12)=11,IF(Opcao_Abono="SIM",2*$M158,$M158),IF(MOD(D$6,12)=0,IF(Opcao_Abono="SIM",$N158/2,$N158),C158))))))) ->  | P158: =IF(AND(D157<>0,D158<>0),R158,"") ->  | R158: =R155*(1 + Taxa_Composta_Anual_PP3) -> 7522.179413 | S158: =IF(AND(D157<>0,D160=0),ROW(D159),0) -> 
B159: =B156+1 -> 2069
B160: Saldo | C160: 0 | D160: =IF(ROW(D160) - 1 = ROW(Inicio_FC),IF(Mes_Inicio_Serie>D$6,"",IF(Mes_Inicio_Serie=D$6,$E$2*(1+Taxa_PP3_Mensal),(C160-C161)*(1+Taxa_PP3_Mensal))),IF(MOD(D$6,12)=1,($O157-$O158)*(1+Taxa_PP3_Mensal),(C160-C161)*(1+Taxa_PP3_Mensal))) -> 
B161: Benefício | C161: 0 | D161: =IF(ROW(D161) - 2 = ROW(Inicio_FC),IF(D$6<Mes_Inicio_Serie,"",IF(MOD(D$6,12)=1,$O158,IF(MOD(D$6,12)=6,IF(Recalculo_Atuarial="SIM",IF(OR(Modalidade=1,Modalidade=2),$I160/$Q161,Percentual_Reserva*$I160),IF(OR(Modalidade=1,Modalidade=2),IF(Mes_Inicio_Serie<>6,$H161,$I$4),Percentual_Reserva*$I160)),IF(MOD(D$6,12)=11,IF(Opcao_Abono="SIM",IF(Mes_Inicio_Serie<>11,2*$M161,2*$I$4),IF(Mes_Inicio_Serie<>11,$M161,$I$4)),IF(MOD(D$6,12)=0,IF(Opcao_Abono="SIM",IF(Mes_Inicio_Serie<>12,$N161/2,$I$4),IF(Mes_Inicio_Serie<>12,$N161,$I$4)),IF(D$6=Mes_Inicio_Serie,$I$4,C161)))))),IF(D160=0,0,IF(C160<2*C161,D160,IF(MOD(D$6,12)=1,$O158,IF(MOD(D$6,12)=6,IF(Recalculo_Atuarial="SIM",IF(OR(Modalidade=1,Modalidade=2),IF($I160/$Q161>=$R161,$I160/$Q161,D160),IF(Percentual_Reserva*$I160>=$R161,Percentual_Reserva*$I160,D160)),IF(OR(Modalidade=1,Modalidade=2),$H161,IF(Percentual_Reserva*$I160>=$R161,Percentual_Reserva*$I160,D160))),IF(MOD(D$6,12)=11,IF(Opcao_Abono="SIM",2*$M161,$M161),IF(MOD(D$6,12)=0,IF(Opcao_Abono="SIM",$N161/2,$N161),C161))))))) ->  | P161: =IF(AND(D160<>0,D161<>0),R161,"") ->  | R161: =R158*(1 + Taxa_Composta_Anual_PP3) -> 8215.545703 | S161: =IF(AND(D160<>0,D163=0),ROW(D162),0) -> 
B162: =B159+1 -> 2070
B163: Saldo | C163: 0 | D163: =IF(ROW(D163) - 1 = ROW(Inicio_FC),IF(Mes_Inicio_Serie>D$6,"",IF(Mes_Inicio_Serie=D$6,$E$2*(1+Taxa_PP3_Mensal),(C163-C164)*(1+Taxa_PP3_Mensal))),IF(MOD(D$6,12)=1,($O160-$O161)*(1+Taxa_PP3_Mensal),(C163-C164)*(1+Taxa_PP3_Mensal))) -> 
B164: Benefício | C164: 0 | D164: =IF(ROW(D164) - 2 = ROW(Inicio_FC),IF(D$6<Mes_Inicio_Serie,"",IF(MOD(D$6,12)=1,$O161,IF(MOD(D$6,12)=6,IF(Recalculo_Atuarial="SIM",IF(OR(Modalidade=1,Modalidade=2),$I163/$Q164,Percentual_Reserva*$I163),IF(OR(Modalidade=1,Modalidade=2),IF(Mes_Inicio_Serie<>6,$H164,$I$4),Percentual_Reserva*$I163)),IF(MOD(D$6,12)=11,IF(Opcao_Abono="SIM",IF(Mes_Inicio_Serie<>11,2*$M164,2*$I$4),IF(Mes_Inicio_Serie<>11,$M164,$I$4)),IF(MOD(D$6,12)=0,IF(Opcao_Abono="SIM",IF(Mes_Inicio_Serie<>12,$N164/2,$I$4),IF(Mes_Inicio_Serie<>12,$N164,$I$4)),IF(D$6=Mes_Inicio_Serie,$I$4,C164)))))),IF(D163=0,0,IF(C163<2*C164,D163,IF(MOD(D$6,12)=1,$O161,IF(MOD(D$6,12)=6,IF(Recalculo_Atuarial="SIM",IF(OR(Modalidade=1,Modalidade=2),IF($I163/$Q164>=$R164,$I163/$Q164,D163),IF(Percentual_Reserva*$I163>=$R164,Percentual_Reserva*$I163,D163)),IF(OR(Modalidade=1,Modalidade=2),$H164,IF(Percentual_Reserva*$I163>=$R164,Percentual_Reserva*$I163,D163))),IF(MOD(D$6,12)=11,IF(Opcao_Abono="SIM",2*$M164,$M164),IF(MOD(D$6,12)=0,IF(Opcao_Abono="SIM",$N164/2,$N164),C164))))))) ->  | P164: =IF(AND(D163<>0,D164<>0),R164,"") ->  | R164: =R161*(1 + Taxa_Composta_Anual_PP3) -> 8972.823897 | S164: =IF(AND(D163<>0,D166=0),ROW(D165),0) -> 
B165: =B162+1 -> 2071
B166: Saldo | C166: 0 | D166: =IF(ROW(D166) - 1 = ROW(Inicio_FC),IF(Mes_Inicio_Serie>D$6,"",IF(Mes_Inicio_Serie=D$6,$E$2*(1+Taxa_PP3_Mensal),(C166-C167)*(1+Taxa_PP3_Mensal))),IF(MOD(D$6,12)=1,($O163-$O164)*(1+Taxa_PP3_Mensal),(C166-C167)*(1+Taxa_PP3_Mensal))) -> 
B167: Benefício | C167: 0 | D167: =IF(ROW(D167) - 2 = ROW(Inicio_FC),IF(D$6<Mes_Inicio_Serie,"",IF(MOD(D$6,12)=1,$O164,IF(MOD(D$6,12)=6,IF(Recalculo_Atuarial="SIM",IF(OR(Modalidade=1,Modalidade=2),$I166/$Q167,Percentual_Reserva*$I166),IF(OR(Modalidade=1,Modalidade=2),IF(Mes_Inicio_Serie<>6,$H167,$I$4),Percentual_Reserva*$I166)),IF(MOD(D$6,12)=11,IF(Opcao_Abono="SIM",IF(Mes_Inicio_Serie<>11,2*$M167,2*$I$4),IF(Mes_Inicio_Serie<>11,$M167,$I$4)),IF(MOD(D$6,12)=0,IF(Opcao_Abono="SIM",IF(Mes_Inicio_Serie<>12,$N167/2,$I$4),IF(Mes_Inicio_Serie<>12,$N167,$I$4)),IF(D$6=Mes_Inicio_Serie,$I$4,C167)))))),IF(D166=0,0,IF(C166<2*C167,D166,IF(MOD(D$6,12)=1,$O164,IF(MOD(D$6,12)=6,IF(Recalculo_Atuarial="SIM",IF(OR(Modalidade=1,Modalidade=2),IF($I166/$Q167>=$R167,$I166/$Q167,D166),IF(Percentual_Reserva*$I166>=$R167,Percentual_Reserva*$I166,D166)),IF(OR(Modalidade=1,Modalidade=2),$H167,IF(Percentual_Reserva*$I166>=$R167,Percentual_Reserva*$I166,D166))),IF(MOD(D$6,12)=11,IF(Opcao_Abono="SIM",2*$M167,$M167),IF(MOD(D$6,12)=0,IF(Opcao_Abono="SIM",$N167/2,$N167),C167))))))) ->  | P167: =IF(AND(D166<>0,D167<>0),R167,"") ->  | R167: =R164*(1 + Taxa_Composta_Anual_PP3) -> 9799.905156 | S167: =IF(AND(D166<>0,D169=0),ROW(D168),0) -> 
B168: =B165+1 -> 2072
B169: Saldo | C169: 0 | D169: =IF(ROW(D169) - 1 = ROW(Inicio_FC),IF(Mes_Inicio_Serie>D$6,"",IF(Mes_Inicio_Serie=D$6,$E$2*(1+Taxa_PP3_Mensal),(C169-C170)*(1+Taxa_PP3_Mensal))),IF(MOD(D$6,12)=1,($O166-$O167)*(1+Taxa_PP3_Mensal),(C169-C170)*(1+Taxa_PP3_Mensal))) -> 
B170: Benefício | C170: 0 | D170: =IF(ROW(D170) - 2 = ROW(Inicio_FC),IF(D$6<Mes_Inicio_Serie,"",IF(MOD(D$6,12)=1,$O167,IF(MOD(D$6,12)=6,IF(Recalculo_Atuarial="SIM",IF(OR(Modalidade=1,Modalidade=2),$I169/$Q170,Percentual_Reserva*$I169),IF(OR(Modalidade=1,Modalidade=2),IF(Mes_Inicio_Serie<>6,$H170,$I$4),Percentual_Reserva*$I169)),IF(MOD(D$6,12)=11,IF(Opcao_Abono="SIM",IF(Mes_Inicio_Serie<>11,2*$M170,2*$I$4),IF(Mes_Inicio_Serie<>11,$M170,$I$4)),IF(MOD(D$6,12)=0,IF(Opcao_Abono="SIM",IF(Mes_Inicio_Serie<>12,$N170/2,$I$4),IF(Mes_Inicio_Serie<>12,$N170,$I$4)),IF(D$6=Mes_Inicio_Serie,$I$4,C170)))))),IF(D169=0,0,IF(C169<2*C170,D169,IF(MOD(D$6,12)=1,$O167,IF(MOD(D$6,12)=6,IF(Recalculo_Atuarial="SIM",IF(OR(Modalidade=1,Modalidade=2),IF($I169/$Q170>=$R170,$I169/$Q170,D169),IF(Percentual_Reserva*$I169>=$R170,Percentual_Reserva*$I169,D169)),IF(OR(Modalidade=1,Modalidade=2),$H170,IF(Percentual_Reserva*$I169>=$R170,Percentual_Reserva*$I169,D169))),IF(MOD(D$6,12)=11,IF(Opcao_Abono="SIM",2*$M170,$M170),IF(MOD(D$6,12)=0,IF(Opcao_Abono="SIM",$N170/2,$N170),C170))))))) ->  | P170: =IF(AND(D169<>0,D170<>0),R170,"") ->  | R170: =R167*(1 + Taxa_Composta_Anual_PP3) -> 10703.22366 | S170: =IF(AND(D169<>0,D172=0),ROW(D171),0) -> 
B171: =B168+1 -> 2073
B172: Saldo | C172: 0 | D172: =IF(ROW(D172) - 1 = ROW(Inicio_FC),IF(Mes_Inicio_Serie>D$6,"",IF(Mes_Inicio_Serie=D$6,$E$2*(1+Taxa_PP3_Mensal),(C172-C173)*(1+Taxa_PP3_Mensal))),IF(MOD(D$6,12)=1,($O169-$O170)*(1+Taxa_PP3_Mensal),(C172-C173)*(1+Taxa_PP3_Mensal))) -> 
B173: Benefício | C173: 0 | D173: =IF(ROW(D173) - 2 = ROW(Inicio_FC),IF(D$6<Mes_Inicio_Serie,"",IF(MOD(D$6,12)=1,$O170,IF(MOD(D$6,12)=6,IF(Recalculo_Atuarial="SIM",IF(OR(Modalidade=1,Modalidade=2),$I172/$Q173,Percentual_Reserva*$I172),IF(OR(Modalidade=1,Modalidade=2),IF(Mes_Inicio_Serie<>6,$H173,$I$4),Percentual_Reserva*$I172)),IF(MOD(D$6,12)=11,IF(Opcao_Abono="SIM",IF(Mes_Inicio_Serie<>11,2*$M173,2*$I$4),IF(Mes_Inicio_Serie<>11,$M173,$I$4)),IF(MOD(D$6,12)=0,IF(Opcao_Abono="SIM",IF(Mes_Inicio_Serie<>12,$N173/2,$I$4),IF(Mes_Inicio_Serie<>12,$N173,$I$4)),IF(D$6=Mes_Inicio_Serie,$I$4,C173)))))),IF(D172=0,0,IF(C172<2*C173,D172,IF(MOD(D$6,12)=1,$O170,IF(MOD(D$6,12)=6,IF(Recalculo_Atuarial="SIM",IF(OR(Modalidade=1,Modalidade=2),IF($I172/$Q173>=$R173,$I172/$Q173,D172),IF(Percentual_Reserva*$I172>=$R173,Percentual_Reserva*$I172,D172)),IF(OR(Modalidade=1,Modalidade=2),$H173,IF(Percentual_Reserva*$I172>=$R173,Percentual_Reserva*$I172,D172))),IF(MOD(D$6,12)=11,IF(Opcao_Abono="SIM",2*$M173,$M173),IF(MOD(D$6,12)=0,IF(Opcao_Abono="SIM",$N173/2,$N173),C173))))))) ->  | P173: =IF(AND(D172<>0,D173<>0),R173,"") ->  | R173: =R170*(1 + Taxa_Composta_Anual_PP3) -> 11689.80668 | S173: =IF(AND(D172<>0,D175=0),ROW(D174),0) -> 
B174: =B171+1 -> 2074
B175: Saldo | C175: 0 | D175: =IF(ROW(D175) - 1 = ROW(Inicio_FC),IF(Mes_Inicio_Serie>D$6,"",IF(Mes_Inicio_Serie=D$6,$E$2*(1+Taxa_PP3_Mensal),(C175-C176)*(1+Taxa_PP3_Mensal))),IF(MOD(D$6,12)=1,($O172-$O173)*(1+Taxa_PP3_Mensal),(C175-C176)*(1+Taxa_PP3_Mensal))) -> 
B176: Benefício | C176: 0 | D176: =IF(ROW(D176) - 2 = ROW(Inicio_FC),IF(D$6<Mes_Inicio_Serie,"",IF(MOD(D$6,12)=1,$O173,IF(MOD(D$6,12)=6,IF(Recalculo_Atuarial="SIM",IF(OR(Modalidade=1,Modalidade=2),$I175/$Q176,Percentual_Reserva*$I175),IF(OR(Modalidade=1,Modalidade=2),IF(Mes_Inicio_Serie<>6,$H176,$I$4),Percentual_Reserva*$I175)),IF(MOD(D$6,12)=11,IF(Opcao_Abono="SIM",IF(Mes_Inicio_Serie<>11,2*$M176,2*$I$4),IF(Mes_Inicio_Serie<>11,$M176,$I$4)),IF(MOD(D$6,12)=0,IF(Opcao_Abono="SIM",IF(Mes_Inicio_Serie<>12,$N176/2,$I$4),IF(Mes_Inicio_Serie<>12,$N176,$I$4)),IF(D$6=Mes_Inicio_Serie,$I$4,C176)))))),IF(D175=0,0,IF(C175<2*C176,D175,IF(MOD(D$6,12)=1,$O173,IF(MOD(D$6,12)=6,IF(Recalculo_Atuarial="SIM",IF(OR(Modalidade=1,Modalidade=2),IF($I175/$Q176>=$R176,$I175/$Q176,D175),IF(Percentual_Reserva*$I175>=$R176,Percentual_Reserva*$I175,D175)),IF(OR(Modalidade=1,Modalidade=2),$H176,IF(Percentual_Reserva*$I175>=$R176,Percentual_Reserva*$I175,D175))),IF(MOD(D$6,12)=11,IF(Opcao_Abono="SIM",2*$M176,$M176),IF(MOD(D$6,12)=0,IF(Opcao_Abono="SIM",$N176/2,$N176),C176))))))) ->  | P176: =IF(AND(D175<>0,D176<>0),R176,"") ->  | R176: =R173*(1 + Taxa_Composta_Anual_PP3) -> 12767.32923 | S176: =IF(AND(D175<>0,D178=0),ROW(D177),0) -> 
B177: =B174+1 -> 2075
B178: Saldo | C178: 0 | D178: =IF(ROW(D178) - 1 = ROW(Inicio_FC),IF(Mes_Inicio_Serie>D$6,"",IF(Mes_Inicio_Serie=D$6,$E$2*(1+Taxa_PP3_Mensal),(C178-C179)*(1+Taxa_PP3_Mensal))),IF(MOD(D$6,12)=1,($O175-$O176)*(1+Taxa_PP3_Mensal),(C178-C179)*(1+Taxa_PP3_Mensal))) -> 
B179: Benefício | C179: 0 | D179: =IF(ROW(D179) - 2 = ROW(Inicio_FC),IF(D$6<Mes_Inicio_Serie,"",IF(MOD(D$6,12)=1,$O176,IF(MOD(D$6,12)=6,IF(Recalculo_Atuarial="SIM",IF(OR(Modalidade=1,Modalidade=2),$I178/$Q179,Percentual_Reserva*$I178),IF(OR(Modalidade=1,Modalidade=2),IF(Mes_Inicio_Serie<>6,$H179,$I$4),Percentual_Reserva*$I178)),IF(MOD(D$6,12)=11,IF(Opcao_Abono="SIM",IF(Mes_Inicio_Serie<>11,2*$M179,2*$I$4),IF(Mes_Inicio_Serie<>11,$M179,$I$4)),IF(MOD(D$6,12)=0,IF(Opcao_Abono="SIM",IF(Mes_Inicio_Serie<>12,$N179/2,$I$4),IF(Mes_Inicio_Serie<>12,$N179,$I$4)),IF(D$6=Mes_Inicio_Serie,$I$4,C179)))))),IF(D178=0,0,IF(C178<2*C179,D178,IF(MOD(D$6,12)=1,$O176,IF(MOD(D$6,12)=6,IF(Recalculo_Atuarial="SIM",IF(OR(Modalidade=1,Modalidade=2),IF($I178/$Q179>=$R179,$I178/$Q179,D178),IF(Percentual_Reserva*$I178>=$R179,Percentual_Reserva*$I178,D178)),IF(OR(Modalidade=1,Modalidade=2),$H179,IF(Percentual_Reserva*$I178>=$R179,Percentual_Reserva*$I178,D178))),IF(MOD(D$6,12)=11,IF(Opcao_Abono="SIM",2*$M179,$M179),IF(MOD(D$6,12)=0,IF(Opcao_Abono="SIM",$N179/2,$N179),C179))))))) ->  | P179: =IF(AND(D178<>0,D179<>0),R179,"") ->  | R179: =R176*(1 + Taxa_Composta_Anual_PP3) -> 13944.17376 | S179: =IF(AND(D178<>0,D181=0),ROW(D180),0) -> 
B180: =B177+1 -> 2076
B181: Saldo | C181: 0 | D181: =IF(ROW(D181) - 1 = ROW(Inicio_FC),IF(Mes_Inicio_Serie>D$6,"",IF(Mes_Inicio_Serie=D$6,$E$2*(1+Taxa_PP3_Mensal),(C181-C182)*(1+Taxa_PP3_Mensal))),IF(MOD(D$6,12)=1,($O178-$O179)*(1+Taxa_PP3_Mensal),(C181-C182)*(1+Taxa_PP3_Mensal))) -> 
B182: Benefício | C182: 0 | D182: =IF(ROW(D182) - 2 = ROW(Inicio_FC),IF(D$6<Mes_Inicio_Serie,"",IF(MOD(D$6,12)=1,$O179,IF(MOD(D$6,12)=6,IF(Recalculo_Atuarial="SIM",IF(OR(Modalidade=1,Modalidade=2),$I181/$Q182,Percentual_Reserva*$I181),IF(OR(Modalidade=1,Modalidade=2),IF(Mes_Inicio_Serie<>6,$H182,$I$4),Percentual_Reserva*$I181)),IF(MOD(D$6,12)=11,IF(Opcao_Abono="SIM",IF(Mes_Inicio_Serie<>11,2*$M182,2*$I$4),IF(Mes_Inicio_Serie<>11,$M182,$I$4)),IF(MOD(D$6,12)=0,IF(Opcao_Abono="SIM",IF(Mes_Inicio_Serie<>12,$N182/2,$I$4),IF(Mes_Inicio_Serie<>12,$N182,$I$4)),IF(D$6=Mes_Inicio_Serie,$I$4,C182)))))),IF(D181=0,0,IF(C181<2*C182,D181,IF(MOD(D$6,12)=1,$O179,IF(MOD(D$6,12)=6,IF(Recalculo_Atuarial="SIM",IF(OR(Modalidade=1,Modalidade=2),IF($I181/$Q182>=$R182,$I181/$Q182,D181),IF(Percentual_Reserva*$I181>=$R182,Percentual_Reserva*$I181,D181)),IF(OR(Modalidade=1,Modalidade=2),$H182,IF(Percentual_Reserva*$I181>=$R182,Percentual_Reserva*$I181,D181))),IF(MOD(D$6,12)=11,IF(Opcao_Abono="SIM",2*$M182,$M182),IF(MOD(D$6,12)=0,IF(Opcao_Abono="SIM",$N182/2,$N182),C182))))))) ->  | P182: =IF(AND(D181<>0,D182<>0),R182,"") ->  | R182: =R179*(1 + Taxa_Composta_Anual_PP3) -> 15229.4954 | S182: =IF(AND(D181<>0,D184=0),ROW(D183),0) -> 
B183: =B180+1 -> 2077
B184: Saldo | C184: 0 | D184: =IF(ROW(D184) - 1 = ROW(Inicio_FC),IF(Mes_Inicio_Serie>D$6,"",IF(Mes_Inicio_Serie=D$6,$E$2*(1+Taxa_PP3_Mensal),(C184-C185)*(1+Taxa_PP3_Mensal))),IF(MOD(D$6,12)=1,($O181-$O182)*(1+Taxa_PP3_Mensal),(C184-C185)*(1+Taxa_PP3_Mensal))) -> 
B185: Benefício | C185: 0 | D185: =IF(ROW(D185) - 2 = ROW(Inicio_FC),IF(D$6<Mes_Inicio_Serie,"",IF(MOD(D$6,12)=1,$O182,IF(MOD(D$6,12)=6,IF(Recalculo_Atuarial="SIM",IF(OR(Modalidade=1,Modalidade=2),$I184/$Q185,Percentual_Reserva*$I184),IF(OR(Modalidade=1,Modalidade=2),IF(Mes_Inicio_Serie<>6,$H185,$I$4),Percentual_Reserva*$I184)),IF(MOD(D$6,12)=11,IF(Opcao_Abono="SIM",IF(Mes_Inicio_Serie<>11,2*$M185,2*$I$4),IF(Mes_Inicio_Serie<>11,$M185,$I$4)),IF(MOD(D$6,12)=0,IF(Opcao_Abono="SIM",IF(Mes_Inicio_Serie<>12,$N185/2,$I$4),IF(Mes_Inicio_Serie<>12,$N185,$I$4)),IF(D$6=Mes_Inicio_Serie,$I$4,C185)))))),IF(D184=0,0,IF(C184<2*C185,D184,IF(MOD(D$6,12)=1,$O182,IF(MOD(D$6,12)=6,IF(Recalculo_Atuarial="SIM",IF(OR(Modalidade=1,Modalidade=2),IF($I184/$Q185>=$R185,$I184/$Q185,D184),IF(Percentual_Reserva*$I184>=$R185,Percentual_Reserva*$I184,D184)),IF(OR(Modalidade=1,Modalidade=2),$H185,IF(Percentual_Reserva*$I184>=$R185,Percentual_Reserva*$I184,D184))),IF(MOD(D$6,12)=11,IF(Opcao_Abono="SIM",2*$M185,$M185),IF(MOD(D$6,12)=0,IF(Opcao_Abono="SIM",$N185/2,$N185),C185))))))) ->  | P185: =IF(AND(D184<>0,D185<>0),R185,"") ->  | R185: =R182*(1 + Taxa_Composta_Anual_PP3) -> 16633.29318 | S185: =IF(AND(D184<>0,D187=0),ROW(D186),0) -> 
B186: =B183+1 -> 2078
B187: Saldo | C187: 0 | D187: =IF(ROW(D187) - 1 = ROW(Inicio_FC),IF(Mes_Inicio_Serie>D$6,"",IF(Mes_Inicio_Serie=D$6,$E$2*(1+Taxa_PP3_Mensal),(C187-C188)*(1+Taxa_PP3_Mensal))),IF(MOD(D$6,12)=1,($O184-$O185)*(1+Taxa_PP3_Mensal),(C187-C188)*(1+Taxa_PP3_Mensal))) -> 
B188: Benefício | C188: 0 | D188: =IF(ROW(D188) - 2 = ROW(Inicio_FC),IF(D$6<Mes_Inicio_Serie,"",IF(MOD(D$6,12)=1,$O185,IF(MOD(D$6,12)=6,IF(Recalculo_Atuarial="SIM",IF(OR(Modalidade=1,Modalidade=2),$I187/$Q188,Percentual_Reserva*$I187),IF(OR(Modalidade=1,Modalidade=2),IF(Mes_Inicio_Serie<>6,$H188,$I$4),Percentual_Reserva*$I187)),IF(MOD(D$6,12)=11,IF(Opcao_Abono="SIM",IF(Mes_Inicio_Serie<>11,2*$M188,2*$I$4),IF(Mes_Inicio_Serie<>11,$M188,$I$4)),IF(MOD(D$6,12)=0,IF(Opcao_Abono="SIM",IF(Mes_Inicio_Serie<>12,$N188/2,$I$4),IF(Mes_Inicio_Serie<>12,$N188,$I$4)),IF(D$6=Mes_Inicio_Serie,$I$4,C188)))))),IF(D187=0,0,IF(C187<2*C188,D187,IF(MOD(D$6,12)=1,$O185,IF(MOD(D$6,12)=6,IF(Recalculo_Atuarial="SIM",IF(OR(Modalidade=1,Modalidade=2),IF($I187/$Q188>=$R188,$I187/$Q188,D187),IF(Percentual_Reserva*$I187>=$R188,Percentual_Reserva*$I187,D187)),IF(OR(Modalidade=1,Modalidade=2),$H188,IF(Percentual_Reserva*$I187>=$R188,Percentual_Reserva*$I187,D187))),IF(MOD(D$6,12)=11,IF(Opcao_Abono="SIM",2*$M188,$M188),IF(MOD(D$6,12)=0,IF(Opcao_Abono="SIM",$N188/2,$N188),C188))))))) ->  | P188: =IF(AND(D187<>0,D188<>0),R188,"") ->  | R188: =R185*(1 + Taxa_Composta_Anual_PP3) -> 18166.48777 | S188: =IF(AND(D187<>0,D190=0),ROW(D189),0) -> 
B189: =B186+1 -> 2079
B190: Saldo | C190: 0 | D190: =IF(ROW(D190) - 1 = ROW(Inicio_FC),IF(Mes_Inicio_Serie>D$6,"",IF(Mes_Inicio_Serie=D$6,$E$2*(1+Taxa_PP3_Mensal),(C190-C191)*(1+Taxa_PP3_Mensal))),IF(MOD(D$6,12)=1,($O187-$O188)*(1+Taxa_PP3_Mensal),(C190-C191)*(1+Taxa_PP3_Mensal))) -> 
B191: Benefício | C191: 0 | D191: =IF(ROW(D191) - 2 = ROW(Inicio_FC),IF(D$6<Mes_Inicio_Serie,"",IF(MOD(D$6,12)=1,$O188,IF(MOD(D$6,12)=6,IF(Recalculo_Atuarial="SIM",IF(OR(Modalidade=1,Modalidade=2),$I190/$Q191,Percentual_Reserva*$I190),IF(OR(Modalidade=1,Modalidade=2),IF(Mes_Inicio_Serie<>6,$H191,$I$4),Percentual_Reserva*$I190)),IF(MOD(D$6,12)=11,IF(Opcao_Abono="SIM",IF(Mes_Inicio_Serie<>11,2*$M191,2*$I$4),IF(Mes_Inicio_Serie<>11,$M191,$I$4)),IF(MOD(D$6,12)=0,IF(Opcao_Abono="SIM",IF(Mes_Inicio_Serie<>12,$N191/2,$I$4),IF(Mes_Inicio_Serie<>12,$N191,$I$4)),IF(D$6=Mes_Inicio_Serie,$I$4,C191)))))),IF(D190=0,0,IF(C190<2*C191,D190,IF(MOD(D$6,12)=1,$O188,IF(MOD(D$6,12)=6,IF(Recalculo_Atuarial="SIM",IF(OR(Modalidade=1,Modalidade=2),IF($I190/$Q191>=$R191,$I190/$Q191,D190),IF(Percentual_Reserva*$I190>=$R191,Percentual_Reserva*$I190,D190)),IF(OR(Modalidade=1,Modalidade=2),$H191,IF(Percentual_Reserva*$I190>=$R191,Percentual_Reserva*$I190,D190))),IF(MOD(D$6,12)=11,IF(Opcao_Abono="SIM",2*$M191,$M191),IF(MOD(D$6,12)=0,IF(Opcao_Abono="SIM",$N191/2,$N191),C191))))))) ->  | P191: =IF(AND(D190<>0,D191<>0),R191,"") ->  | R191: =R188*(1 + Taxa_Composta_Anual_PP3) -> 19841.00649 | S191: =IF(AND(D190<>0,D193=0),ROW(D192),0) -> 
B192: =B189+1 -> 2080
B193: Saldo | C193: 0 | D193: =IF(ROW(D193) - 1 = ROW(Inicio_FC),IF(Mes_Inicio_Serie>D$6,"",IF(Mes_Inicio_Serie=D$6,$E$2*(1+Taxa_PP3_Mensal),(C193-C194)*(1+Taxa_PP3_Mensal))),IF(MOD(D$6,12)=1,($O190-$O191)*(1+Taxa_PP3_Mensal),(C193-C194)*(1+Taxa_PP3_Mensal))) -> 
B194: Benefício | C194: 0 | D194: =IF(ROW(D194) - 2 = ROW(Inicio_FC),IF(D$6<Mes_Inicio_Serie,"",IF(MOD(D$6,12)=1,$O191,IF(MOD(D$6,12)=6,IF(Recalculo_Atuarial="SIM",IF(OR(Modalidade=1,Modalidade=2),$I193/$Q194,Percentual_Reserva*$I193),IF(OR(Modalidade=1,Modalidade=2),IF(Mes_Inicio_Serie<>6,$H194,$I$4),Percentual_Reserva*$I193)),IF(MOD(D$6,12)=11,IF(Opcao_Abono="SIM",IF(Mes_Inicio_Serie<>11,2*$M194,2*$I$4),IF(Mes_Inicio_Serie<>11,$M194,$I$4)),IF(MOD(D$6,12)=0,IF(Opcao_Abono="SIM",IF(Mes_Inicio_Serie<>12,$N194/2,$I$4),IF(Mes_Inicio_Serie<>12,$N194,$I$4)),IF(D$6=Mes_Inicio_Serie,$I$4,C194)))))),IF(D193=0,0,IF(C193<2*C194,D193,IF(MOD(D$6,12)=1,$O191,IF(MOD(D$6,12)=6,IF(Recalculo_Atuarial="SIM",IF(OR(Modalidade=1,Modalidade=2),IF($I193/$Q194>=$R194,$I193/$Q194,D193),IF(Percentual_Reserva*$I193>=$R194,Percentual_Reserva*$I193,D193)),IF(OR(Modalidade=1,Modalidade=2),$H194,IF(Percentual_Reserva*$I193>=$R194,Percentual_Reserva*$I193,D193))),IF(MOD(D$6,12)=11,IF(Opcao_Abono="SIM",2*$M194,$M194),IF(MOD(D$6,12)=0,IF(Opcao_Abono="SIM",$N194/2,$N194),C194))))))) ->  | P194: =IF(AND(D193<>0,D194<>0),R194,"") ->  | R194: =R191*(1 + Taxa_Composta_Anual_PP3) -> 21669.87606 | S194: =IF(AND(D193<>0,D196=0),ROW(D195),0) -> 
B195: =B192+1 -> 2081
B196: Saldo | C196: 0 | D196: =IF(ROW(D196) - 1 = ROW(Inicio_FC),IF(Mes_Inicio_Serie>D$6,"",IF(Mes_Inicio_Serie=D$6,$E$2*(1+Taxa_PP3_Mensal),(C196-C197)*(1+Taxa_PP3_Mensal))),IF(MOD(D$6,12)=1,($O193-$O194)*(1+Taxa_PP3_Mensal),(C196-C197)*(1+Taxa_PP3_Mensal))) -> 
B197: Benefício | C197: 0 | D197: =IF(ROW(D197) - 2 = ROW(Inicio_FC),IF(D$6<Mes_Inicio_Serie,"",IF(MOD(D$6,12)=1,$O194,IF(MOD(D$6,12)=6,IF(Recalculo_Atuarial="SIM",IF(OR(Modalidade=1,Modalidade=2),$I196/$Q197,Percentual_Reserva*$I196),IF(OR(Modalidade=1,Modalidade=2),IF(Mes_Inicio_Serie<>6,$H197,$I$4),Percentual_Reserva*$I196)),IF(MOD(D$6,12)=11,IF(Opcao_Abono="SIM",IF(Mes_Inicio_Serie<>11,2*$M197,2*$I$4),IF(Mes_Inicio_Serie<>11,$M197,$I$4)),IF(MOD(D$6,12)=0,IF(Opcao_Abono="SIM",IF(Mes_Inicio_Serie<>12,$N197/2,$I$4),IF(Mes_Inicio_Serie<>12,$N197,$I$4)),IF(D$6=Mes_Inicio_Serie,$I$4,C197)))))),IF(D196=0,0,IF(C196<2*C197,D196,IF(MOD(D$6,12)=1,$O194,IF(MOD(D$6,12)=6,IF(Recalculo_Atuarial="SIM",IF(OR(Modalidade=1,Modalidade=2),IF($I196/$Q197>=$R197,$I196/$Q197,D196),IF(Percentual_Reserva*$I196>=$R197,Percentual_Reserva*$I196,D196)),IF(OR(Modalidade=1,Modalidade=2),$H197,IF(Percentual_Reserva*$I196>=$R197,Percentual_Reserva*$I196,D196))),IF(MOD(D$6,12)=11,IF(Opcao_Abono="SIM",2*$M197,$M197),IF(MOD(D$6,12)=0,IF(Opcao_Abono="SIM",$N197/2,$N197),C197))))))) ->  | P197: =IF(AND(D196<>0,D197<>0),R197,"") ->  | R197: =R194*(1 + Taxa_Composta_Anual_PP3) -> 23667.32398 | S197: =IF(AND(D196<>0,D199=0),ROW(D198),0) -> 
B198: =B195+1 -> 2082
B199: Saldo | C199: 0 | D199: =IF(ROW(D199) - 1 = ROW(Inicio_FC),IF(Mes_Inicio_Serie>D$6,"",IF(Mes_Inicio_Serie=D$6,$E$2*(1+Taxa_PP3_Mensal),(C199-C200)*(1+Taxa_PP3_Mensal))),IF(MOD(D$6,12)=1,($O196-$O197)*(1+Taxa_PP3_Mensal),(C199-C200)*(1+Taxa_PP3_Mensal))) -> 
B200: Benefício | C200: 0 | D200: =IF(ROW(D200) - 2 = ROW(Inicio_FC),IF(D$6<Mes_Inicio_Serie,"",IF(MOD(D$6,12)=1,$O197,IF(MOD(D$6,12)=6,IF(Recalculo_Atuarial="SIM",IF(OR(Modalidade=1,Modalidade=2),$I199/$Q200,Percentual_Reserva*$I199),IF(OR(Modalidade=1,Modalidade=2),IF(Mes_Inicio_Serie<>6,$H200,$I$4),Percentual_Reserva*$I199)),IF(MOD(D$6,12)=11,IF(Opcao_Abono="SIM",IF(Mes_Inicio_Serie<>11,2*$M200,2*$I$4),IF(Mes_Inicio_Serie<>11,$M200,$I$4)),IF(MOD(D$6,12)=0,IF(Opcao_Abono="SIM",IF(Mes_Inicio_Serie<>12,$N200/2,$I$4),IF(Mes_Inicio_Serie<>12,$N200,$I$4)),IF(D$6=Mes_Inicio_Serie,$I$4,C200)))))),IF(D199=0,0,IF(C199<2*C200,D199,IF(MOD(D$6,12)=1,$O197,IF(MOD(D$6,12)=6,IF(Recalculo_Atuarial="SIM",IF(OR(Modalidade=1,Modalidade=2),IF($I199/$Q200>=$R200,$I199/$Q200,D199),IF(Percentual_Reserva*$I199>=$R200,Percentual_Reserva*$I199,D199)),IF(OR(Modalidade=1,Modalidade=2),$H200,IF(Percentual_Reserva*$I199>=$R200,Percentual_Reserva*$I199,D199))),IF(MOD(D$6,12)=11,IF(Opcao_Abono="SIM",2*$M200,$M200),IF(MOD(D$6,12)=0,IF(Opcao_Abono="SIM",$N200/2,$N200),C200))))))) ->  | P200: =IF(AND(D199<>0,D200<>0),R200,"") ->  | R200: =R197*(1 + Taxa_Composta_Anual_PP3) -> 25848.88915 | S200: =IF(AND(D199<>0,D202=0),ROW(D201),0) -> 
B201: =B198+1 -> 2083
B202: Saldo | C202: 0 | D202: =IF(ROW(D202) - 1 = ROW(Inicio_FC),IF(Mes_Inicio_Serie>D$6,"",IF(Mes_Inicio_Serie=D$6,$E$2*(1+Taxa_PP3_Mensal),(C202-C203)*(1+Taxa_PP3_Mensal))),IF(MOD(D$6,12)=1,($O199-$O200)*(1+Taxa_PP3_Mensal),(C202-C203)*(1+Taxa_PP3_Mensal))) -> 
... 99 more rows

Sheet Gráfico Evolução Benefício (hidden)

Sheet Gráfico Evolução 13° (hidden)

Sheet Gráfico VPL (hidden)
A35: Notas:
A37: 1 - Este gráfico apresenta o valor presente líquido das perdas acumuladas produzidas por cada uma das alternativas propostas para o equacionamento, em função da expectativa de vida do participante.
A39: 2 - A alternativa que acarreta a menor perda ao participante é aquela cuja curva se encontra mais próxima do eixo da Expectativa de Vida (topo do gráfico). Observar que as curvas podem se cruzar; portanto, a melhor alternativa nos primeiros anos de expectativa de vida pode não ser a que produz a menor perda acumulada nos anos subsequentes.

Sheet Fluxo de Caixa Anual (hidden)
E1: 4 | G1: 6 | H1: 7 | J1: 9 | K1: 10 | L1: 11
C2: Perdas Anuais Projetadas
B3: 22 | C3: Ano | D3: Perdas Anuais com as Regras do PED Atual | E3: VPL PED Atual | F3: Perdas Anuais com o PED-RBF | G3: Perda Pecúlio PED-RBF por Morte no Ano | H3: VPL PED-RBF | I3: Perdas Anuais com o PP3 | J3: Perda Pecúlio PP3 por Morte no Ano | K3: VPL Alternativa PP3 | L3: Saldo Remanescente em Conta
B4: 1 | C4: Ano 1 | D4: =IF(ABS(12 * ('Valor Projetado do Benefício'!H5-'Valor Projetado do Benefício'!G5) + ('Valor Projetado do 13°'!H5 - 'Valor Projetado do 13°'!G5)) >= 0.1, 12 * ('Valor Projetado do Benefício'!H5-'Valor Projetado do Benefício'!G5) + ('Valor Projetado do 13°'!H5 - 'Valor Projetado do 13°'!G5), 0) -> -88496.5887 | E4: =NPV(Taxa_Juros,$D$4:D4) + Perda_Residual_PED_Atual -> -83487.34783 | F4: =IF(ABS(12 * ('Valor Projetado do Benefício'!I5-'Valor Projetado do Benefício'!G5) + ('Valor Projetado do 13°'!I5 - 'Valor Projetado do 13°'!G5)) >= 0.1, 12 * ('Valor Projetado do Benefício'!I5-'Valor Projetado do Benefício'!G5) + ('Valor Projetado do 13°'!I5 - 'Valor Projetado do 13°'!G5), 0) -> -56084.4531 | H4: =NPV(Taxa_Juros,F4 + G4) + Perda_Residual_PED_RBF -> -52909.86142 | I4: =IF(ABS(12 * ('Valor Projetado do Benefício'!J5-'Valor Projetado do Benefício'!G5) + ('Valor Projetado do 13°'!J5 - 'Valor Projetado do 13°'!G5)) >= 0.1, 12 * ('Valor Projetado do Benefício'!J5-'Valor Projetado do Benefício'!G5) + ('Valor Projetado do 13°'!J5 - 'Valor Projetado do 13°'!G5), 0) -> -58999.3859 | J4: -189683.52 | K4: =NPV(Taxa_Juros,I4+J4) + Perda_Residual_PP3 -> -234606.515 | L4: 2888492.931
B5: 2 | C5: Ano 2 | D5: =IF(ABS(12 * ('Valor Projetado do Benefício'!H6-'Valor Projetado do Benefício'!G6) + ('Valor Projetado do 13°'!H6 - 'Valor Projetado do 13°'!G6)) >= 0.1, 12 * ('Valor Projetado do Benefício'!H6-'Valor Projetado do Benefício'!G6) + ('Valor Projetado do 13°'!H6 - 'Valor Projetado do 13°'!G6), 0) -> -88496.5887 | E5: =NPV(Taxa_Juros,$D$4:D5) + Perda_Residual_PED_Atual -> -162248.9967 | F5: =IF(ABS(12 * ('Valor Projetado do Benefício'!I6-'Valor Projetado do Benefício'!G6) + ('Valor Projetado do 13°'!I6 - 'Valor Projetado do 13°'!G6)) >= 0.1, 12 * ('Valor Projetado do Benefício'!I6-'Valor Projetado do Benefício'!G6) + ('Valor Projetado do 13°'!I6 - 'Valor Projetado do 13°'!G6), 0) -> -56084.4531 | H5: =NPV(Taxa_Juros,$F$4:F5 + G5) + Perda_Residual_PED_RBF -> -52909.86142 | I5: =IF(ABS(12 * ('Valor Projetado do Benefício'!J6-'Valor Projetado do Benefício'!G6) + ('Valor Projetado do 13°'!J6 - 'Valor Projetado do 13°'!G6)) >= 0.1, 12 * ('Valor Projetado do Benefício'!J6-'Valor Projetado do Benefício'!G6) + ('Valor Projetado do 13°'!J6 - 'Valor Projetado do 13°'!G6), 0) -> -58482.3863 | J5: -189683.52 | K5: =NPV(Taxa_Juros,$I$4:I4,I5+J5) + Perda_Residual_PP3 -> -276526.5712 | L5: 2870024.066
B6: 3 | C6: Ano 3 | D6: =IF(ABS(12 * ('Valor Projetado do Benefício'!H7-'Valor Projetado do Benefício'!G7) + ('Valor Projetado do 13°'!H7 - 'Valor Projetado do 13°'!G7)) >= 0.1, 12 * ('Valor Projetado do Benefício'!H7-'Valor Projetado do Benefício'!G7) + ('Valor Projetado do 13°'!H7 - 'Valor Projetado do 13°'!G7), 0) -> -88496.5887 | E6: =NPV(Taxa_Juros,$D$4:D6) + Perda_Residual_PED_Atual -> -236552.4391 | F6: =IF(ABS(12 * ('Valor Projetado do Benefício'!I7-'Valor Projetado do Benefício'!G7) + ('Valor Projetado do 13°'!I7 - 'Valor Projetado do 13°'!G7)) >= 0.1, 12 * ('Valor Projetado do Benefício'!I7-'Valor Projetado do Benefício'!G7) + ('Valor Projetado do 13°'!I7 - 'Valor Projetado do 13°'!G7), 0) -> -56084.4531 | H6: =NPV(Taxa_Juros,$F$4:F6 + G6) + Perda_Residual_PED_RBF -> -52909.86142 | I6: =IF(ABS(12 * ('Valor Projetado do Benefício'!J7-'Valor Projetado do Benefício'!G7) + ('Valor Projetado do 13°'!J7 - 'Valor Projetado do 13°'!G7)) >= 0.1, 12 * ('Valor Projetado do Benefício'!J7-'Valor Projetado do Benefício'!G7) + ('Valor Projetado do 13°'!J7 - 'Valor Projetado do 13°'!G7), 0) -> -58513.0091 | J6: -189683.52 | K6: =NPV(Taxa_Juros,$I$4:I5,I6+J6) + Perda_Residual_PP3 -> -316099.5054 | L6: 2850625.238
B7: 4 | C7: Ano 4 | D7: =IF(ABS(12 * ('Valor Projetado do Benefício'!H8-'Valor Projetado do Benefício'!G8) + ('Valor Projetado do 13°'!H8 - 'Valor Projetado do 13°'!G8)) >= 0.1, 12 * ('Valor Projetado do Benefício'!H8-'Valor Projetado do Benefício'!G8) + ('Valor Projetado do 13°'!H8 - 'Valor Projetado do 13°'!G8), 0) -> -88496.5887 | E7: =NPV(Taxa_Juros,$D$4:D7) + Perda_Residual_PED_Atual -> -306650.0262 | F7: =IF(ABS(12 * ('Valor Projetado do Benefício'!I8-'Valor Projetado do Benefício'!G8) + ('Valor Projetado do 13°'!I8 - 'Valor Projetado do 13°'!G8)) >= 0.1, 12 * ('Valor Projetado do Benefício'!I8-'Valor Projetado do Benefício'!G8) + ('Valor Projetado do 13°'!I8 - 'Valor Projetado do 13°'!G8), 0) -> -56084.4531 | H7: =NPV(Taxa_Juros,$F$4:F7 + G7) + Perda_Residual_PED_RBF -> -52909.86142 | I7: =IF(ABS(12 * ('Valor Projetado do Benefício'!J8-'Valor Projetado do Benefício'!G8) + ('Valor Projetado do 13°'!J8 - 'Valor Projetado do 13°'!G8)) >= 0.1, 12 * ('Valor Projetado do Benefício'!J8-'Valor Projetado do Benefício'!G8) + ('Valor Projetado do 13°'!J8 - 'Valor Projetado do 13°'!G8), 0) -> -58543.8165 | J7: -189683.52 | K7: =NPV(Taxa_Juros,$I$4:I6,I7+J7) + Perda_Residual_PP3 -> -353456.8647 | L7: 2830247.708
B8: 5 | C8: Ano 5 | D8: =IF(ABS(12 * ('Valor Projetado do Benefício'!H9-'Valor Projetado do Benefício'!G9) + ('Valor Projetado do 13°'!H9 - 'Valor Projetado do 13°'!G9)) >= 0.1, 12 * ('Valor Projetado do Benefício'!H9-'Valor Projetado do Benefício'!G9) + ('Valor Projetado do 13°'!H9 - 'Valor Projetado do 13°'!G9), 0) -> -88496.5887 | E8: =NPV(Taxa_Juros,$D$4:D8) + Perda_Residual_PED_Atual -> -372779.8254 | F8: =IF(ABS(12 * ('Valor Projetado do Benefício'!I9-'Valor Projetado do Benefício'!G9) + ('Valor Projetado do 13°'!I9 - 'Valor Projetado do 13°'!G9)) >= 0.1, 12 * ('Valor Projetado do Benefício'!I9-'Valor Projetado do Benefício'!G9) + ('Valor Projetado do 13°'!I9 - 'Valor Projetado do 13°'!G9), 0) -> -56084.4531 | H8: =NPV(Taxa_Juros,$F$4:F8 + G8) + Perda_Residual_PED_RBF -> -52909.86142 | I8: =IF(ABS(12 * ('Valor Projetado do Benefício'!J9-'Valor Projetado do Benefício'!G9) + ('Valor Projetado do 13°'!J9 - 'Valor Projetado do 13°'!G9)) >= 0.1, 12 * ('Valor Projetado do Benefício'!J9-'Valor Projetado do Benefício'!G9) + ('Valor Projetado do 13°'!J9 - 'Valor Projetado do 13°'!G9), 0) -> -58574.8241 | J8: -189683.52 | K8: =NPV(Taxa_Juros,$I$4:I7,I8+J8) + Perda_Residual_PP3 -> -388722.8271 | L8: 2808840.192
B9: 6 | C9: Ano 6 | D9: =IF(ABS(12 * ('Valor Projetado do Benefício'!H10-'Valor Projetado do Benefício'!G10) + ('Valor Projetado do 13°'!H10 - 'Valor Projetado do 13°'!G10)) >= 0.1, 12 * ('Valor Projetado do Benefício'!H10-'Valor Projetado do Benefício'!G10) + ('Valor Projetado do 13°'!H10 - 'Valor Projetado do 13°'!G10), 0) -> -88496.5887 | E9: =NPV(Taxa_Juros,$D$4:D9) + Perda_Residual_PED_Atual -> -435166.4284 | F9: =IF(ABS(12 * ('Valor Projetado do Benefício'!I10-'Valor Projetado do Benefício'!G10) + ('Valor Projetado do 13°'!I10 - 'Valor Projetado do 13°'!G10)) >= 0.1, 12 * ('Valor Projetado do Benefício'!I10-'Valor Projetado do Benefício'!G10) + ('Valor Projetado do 13°'!I10 - 'Valor Projetado do 13°'!G10), 0) -> -56084.4531 | H9: =NPV(Taxa_Juros,$F$4:F9 + G9) + Perda_Residual_PED_RBF -> -52909.86142 | I9: =IF(ABS(12 * ('Valor Projetado do Benefício'!J10-'Valor Projetado do Benefício'!G10) + ('Valor Projetado do 13°'!J10 - 'Valor Projetado do 13°'!G10)) >= 0.1, 12 * ('Valor Projetado do Benefício'!J10-'Valor Projetado do Benefício'!G10) + ('Valor Projetado do 13°'!J10 - 'Valor Projetado do 13°'!G10), 0) -> -58606.0423 | J9: -189683.52 | K9: =NPV(Taxa_Juros,$I$4:I8,I9+J9) + Perda_Residual_PP3 -> -422014.6105 | L9: 2786348.721
B10: 7 | C10: Ano 7 | D10: =IF(ABS(12 * ('Valor Projetado do Benefício'!H11-'Valor Projetado do Benefício'!G11) + ('Valor Projetado do 13°'!H11 - 'Valor Projetado do 13°'!G11)) >= 0.1, 12 * ('Valor Projetado do Benefício'!H11-'Valor Projetado do Benefício'!G11) + ('Valor Projetado do 13°'!H11 - 'Valor Projetado do 13°'!G11), 0) -> -88496.5887 | E10: =NPV(Taxa_Juros,$D$4:D10) + Perda_Residual_PED_Atual -> -494021.7142 | F10: =IF(ABS(12 * ('Valor Projetado do Benefício'!I11-'Valor Projetado do Benefício'!G11) + ('Valor Projetado do 13°'!I11 - 'Valor Projetado do 13°'!G11)) >= 0.1, 12 * ('Valor Projetado do Benefício'!I11-'Valor Projetado do Benefício'!G11) + ('Valor Projetado do 13°'!I11 - 'Valor Projetado do 13°'!G11), 0) -> -56084.4531 | H10: =NPV(Taxa_Juros,$F$4:F10 + G10) + Perda_Residual_PED_RBF -> -52909.86142 | I10: =IF(ABS(12 * ('Valor Projetado do Benefício'!J11-'Valor Projetado do Benefício'!G11) + ('Valor Projetado do 13°'!J11 - 'Valor Projetado do 13°'!G11)) >= 0.1, 12 * ('Valor Projetado do Benefício'!J11-'Valor Projetado do Benefício'!G11) + ('Valor Projetado do 13°'!J11 - 'Valor Projetado do 13°'!G11), 0) -> -58637.4893 | J10: -189683.52 | K10: =NPV(Taxa_Juros,$I$4:I9,I10+J10) + Perda_Residual_PP3 -> -453442.8674 | L10: 2762716.504
B11: 8 | C11: Ano 8 | D11: =IF(ABS(12 * ('Valor Projetado do Benefício'!H12-'Valor Projetado do Benefício'!G12) + ('Valor Projetado do 13°'!H12 - 'Valor Projetado do 13°'!G12)) >= 0.1, 12 * ('Valor Projetado do Benefício'!H12-'Valor Projetado do Benefício'!G12) + ('Valor Projetado do 13°'!H12 - 'Valor Projetado do 13°'!G12), 0) -> -88496.5887 | E11: =NPV(Taxa_Juros,$D$4:D11) + Perda_Residual_PED_Atual -> -549545.5688 | F11: =IF(ABS(12 * ('Valor Projetado do Benefício'!I12-'Valor Projetado do Benefício'!G12) + ('Valor Projetado do 13°'!I12 - 'Valor Projetado do 13°'!G12)) >= 0.1, 12 * ('Valor Projetado do Benefício'!I12-'Valor Projetado do Benefício'!G12) + ('Valor Projetado do 13°'!I12 - 'Valor Projetado do 13°'!G12), 0) -> -56084.4531 | H11: =NPV(Taxa_Juros,$F$4:F11 + G11) + Perda_Residual_PED_RBF -> -52909.86142 | I11: =IF(ABS(12 * ('Valor Projetado do Benefício'!J12-'Valor Projetado do Benefício'!G12) + ('Valor Projetado do 13°'!J12 - 'Valor Projetado do 13°'!G12)) >= 0.1, 12 * ('Valor Projetado do Benefício'!J12-'Valor Projetado do Benefício'!G12) + ('Valor Projetado do 13°'!J12 - 'Valor Projetado do 13°'!G12), 0) -> -58669.1781 | J11: -189683.52 | K11: =NPV(Taxa_Juros,$I$4:I10,I11+J11) + Perda_Residual_PP3 -> -483112.0484 | L11: 2737883.782
B12: 9 | C12: Ano 9 | D12: =IF(ABS(12 * ('Valor Projetado do Benefício'!H13-'Valor Projetado do Benefício'!G13) + ('Valor Projetado do 13°'!H13 - 'Valor Projetado do 13°'!G13)) >= 0.1, 12 * ('Valor Projetado do Benefício'!H13-'Valor Projetado do Benefício'!G13) + ('Valor Projetado do 13°'!H13 - 'Valor Projetado do 13°'!G13), 0) -> -88496.5887 | E12: =NPV(Taxa_Juros,$D$4:D12) + Perda_Residual_PED_Atual -> -601926.5637 | F12: =IF(ABS(12 * ('Valor Projetado do Benefício'!I13-'Valor Projetado do Benefício'!G13) + ('Valor Projetado do 13°'!I13 - 'Valor Projetado do 13°'!G13)) >= 0.1, 12 * ('Valor Projetado do Benefício'!I13-'Valor Projetado do Benefício'!G13) + ('Valor Projetado do 13°'!I13 - 'Valor Projetado do 13°'!G13), 0) -> -56084.4531 | H12: =NPV(Taxa_Juros,$F$4:F12 + G12) + Perda_Residual_PED_RBF -> -52909.86142 | I12: =IF(ABS(12 * ('Valor Projetado do Benefício'!J13-'Valor Projetado do Benefício'!G13) + ('Valor Projetado do 13°'!J13 - 'Valor Projetado do 13°'!G13)) >= 0.1, 12 * ('Valor Projetado do Benefício'!J13-'Valor Projetado do Benefício'!G13) + ('Valor Projetado do 13°'!J13 - 'Valor Projetado do 13°'!G13), 0) -> -58701.1269 | J12: -189683.52 | K12: =NPV(Taxa_Juros,$I$4:I11,I12+J12) + Perda_Residual_PP3 -> -511120.7521 | L12: 2711787.671
B13: 10 | C13: Ano 10 | D13: =IF(ABS(12 * ('Valor Projetado do Benefício'!H14-'Valor Projetado do Benefício'!G14) + ('Valor Projetado do 13°'!H14 - 'Valor Projetado do 13°'!G14)) >= 0.1, 12 * ('Valor Projetado do Benefício'!H14-'Valor Projetado do Benefício'!G14) + ('Valor Projetado do 13°'!H14 - 'Valor Projetado do 13°'!G14), 0) -> -88496.5887 | E13: =NPV(Taxa_Juros,$D$4:D13) + Perda_Residual_PED_Atual -> -651342.5966 | F13: =IF(ABS(12 * ('Valor Projetado do Benefício'!I14-'Valor Projetado do Benefício'!G14) + ('Valor Projetado do 13°'!I14 - 'Valor Projetado do 13°'!G14)) >= 0.1, 12 * ('Valor Projetado do Benefício'!I14-'Valor Projetado do Benefício'!G14) + ('Valor Projetado do 13°'!I14 - 'Valor Projetado do 13°'!G14), 0) -> -56084.4531 | H13: =NPV(Taxa_Juros,$F$4:F13 + G13) + Perda_Residual_PED_RBF -> -52909.86142 | I13: =IF(ABS(12 * ('Valor Projetado do Benefício'!J14-'Valor Projetado do Benefício'!G14) + ('Valor Projetado do 13°'!J14 - 'Valor Projetado do 13°'!G14)) >= 0.1, 12 * ('Valor Projetado do Benefício'!J14-'Valor Projetado do Benefício'!G14) + ('Valor Projetado do 13°'!J14 - 'Valor Projetado do 13°'!G14), 0) -> -58733.3565 | J13: -189683.52 | K13: =NPV(Taxa_Juros,$I$4:I12,I13+J13) + Perda_Residual_PP3 -> -537562.0544 | L13: 2684362.003
B14: 11 | C14: Ano 11 | D14: =IF(ABS(12 * ('Valor Projetado do Benefício'!H15-'Valor Projetado do Benefício'!G15) + ('Valor Projetado do 13°'!H15 - 'Valor Projetado do 13°'!G15)) >= 0.1, 12 * ('Valor Projetado do Benefício'!H15-'Valor Projetado do Benefício'!G15) + ('Valor Projetado do 13°'!H15 - 'Valor Projetado do 13°'!G15), 0) -> -88496.5887 | E14: =NPV(Taxa_Juros,$D$4:D14) + Perda_Residual_PED_Atual -> -697961.4956 | F14: =IF(ABS(12 * ('Valor Projetado do Benefício'!I15-'Valor Projetado do Benefício'!G15) + ('Valor Projetado do 13°'!I15 - 'Valor Projetado do 13°'!G15)) >= 0.1, 12 * ('Valor Projetado do Benefício'!I15-'Valor Projetado do Benefício'!G15) + ('Valor Projetado do 13°'!I15 - 'Valor Projetado do 13°'!G15), 0) -> -56084.4531 | H14: =NPV(Taxa_Juros,$F$4:F14 + G14) + Perda_Residual_PED_RBF -> -52909.86142 | I14: =IF(ABS(12 * ('Valor Projetado do Benefício'!J15-'Valor Projetado do Benefício'!G15) + ('Valor Projetado do 13°'!J15 - 'Valor Projetado do 13°'!G15)) >= 0.1, 12 * ('Valor Projetado do Benefício'!J15-'Valor Projetado do Benefício'!G15) + ('Valor Projetado do 13°'!J15 - 'Valor Projetado do 13°'!G15), 0) -> -58765.8851 | J14: -189683.52 | K14: =NPV(Taxa_Juros,$I$4:I13,I14+J14) + Perda_Residual_PP3 -> -562523.8149 | L14: 2655537.152
B15: 12 | C15: Ano 12 | D15: =IF(ABS(12 * ('Valor Projetado do Benefício'!H16-'Valor Projetado do Benefício'!G16) + ('Valor Projetado do 13°'!H16 - 'Valor Projetado do 13°'!G16)) >= 0.1, 12 * ('Valor Projetado do Benefício'!H16-'Valor Projetado do Benefício'!G16) + ('Valor Projetado do 13°'!H16 - 'Valor Projetado do 13°'!G16), 0) -> -88496.5887 | E15: =NPV(Taxa_Juros,$D$4:D15) + Perda_Residual_PED_Atual -> -741941.5889 | F15: =IF(ABS(12 * ('Valor Projetado do Benefício'!I16-'Valor Projetado do Benefício'!G16) + ('Valor Projetado do 13°'!I16 - 'Valor Projetado do 13°'!G16)) >= 0.1, 12 * ('Valor Projetado do Benefício'!I16-'Valor Projetado do Benefício'!G16) + ('Valor Projetado do 13°'!I16 - 'Valor Projetado do 13°'!G16), 0) -> -56084.4531 | H15: =NPV(Taxa_Juros,$F$4:F15 + G15) + Perda_Residual_PED_RBF -> -52909.86142 | I15: =IF(ABS(12 * ('Valor Projetado do Benefício'!J16-'Valor Projetado do Benefício'!G16) + ('Valor Projetado do 13°'!J16 - 'Valor Projetado do 13°'!G16)) >= 0.1, 12 * ('Valor Projetado do Benefício'!J16-'Valor Projetado do Benefício'!G16) + ('Valor Projetado do 13°'!J16 - 'Valor Projetado do 13°'!G16), 0) -> -58798.7348 | J15: -189683.52 | K15: =NPV(Taxa_Juros,$I$4:I14,I15+J15) + Perda_Residual_PP3 -> -586088.9708 | L15: 2625239.857
B16: 13 | C16: Ano 13 | D16: =IF(ABS(12 * ('Valor Projetado do Benefício'!H17-'Valor Projetado do Benefício'!G17) + ('Valor Projetado do 13°'!H17 - 'Valor Projetado do 13°'!G17)) >= 0.1, 12 * ('Valor Projetado do Benefício'!H17-'Valor Projetado do Benefício'!G17) + ('Valor Projetado do 13°'!H17 - 'Valor Projetado do 13°'!G17), 0) -> -88496.5887 | E16: =NPV(Taxa_Juros,$D$4:D16) + Perda_Residual_PED_Atual -> -783432.243 | F16: =IF(ABS(12 * ('Valor Projetado do Benefício'!I17-'Valor Projetado do Benefício'!G17) + ('Valor Projetado do 13°'!I17 - 'Valor Projetado do 13°'!G17)) >= 0.1, 12 * ('Valor Projetado do Benefício'!I17-'Valor Projetado do Benefício'!G17) + ('Valor Projetado do 13°'!I17 - 'Valor Projetado do 13°'!G17), 0) -> -56084.4531 | H16: =NPV(Taxa_Juros,$F$4:F16 + G16) + Perda_Residual_PED_RBF -> -52909.86142 | I16: =IF(ABS(12 * ('Valor Projetado do Benefício'!J17-'Valor Projetado do Benefício'!G17) + ('Valor Projetado do 13°'!J17 - 'Valor Projetado do 13°'!G17)) >= 0.1, 12 * ('Valor Projetado do Benefício'!J17-'Valor Projetado do Benefício'!G17) + ('Valor Projetado do 13°'!J17 - 'Valor Projetado do 13°'!G17), 0) -> -58831.9329 | J16: -189683.52 | K16: =NPV(Taxa_Juros,$I$4:I15,I16+J16) + Perda_Residual_PP3 -> -608335.8145 | L16: 2593393.032
B17: 14 | C17: Ano 14 | D17: =IF(ABS(12 * ('Valor Projetado do Benefício'!H18-'Valor Projetado do Benefício'!G18) + ('Valor Projetado do 13°'!H18 - 'Valor Projetado do 13°'!G18)) >= 0.1, 12 * ('Valor Projetado do Benefício'!H18-'Valor Projetado do Benefício'!G18) + ('Valor Projetado do 13°'!H18 - 'Valor Projetado do 13°'!G18), 0) -> -88496.5887 | E17: =NPV(Taxa_Juros,$D$4:D17) + Perda_Residual_PED_Atual -> -822574.3696 | F17: =IF(ABS(12 * ('Valor Projetado do Benefício'!I18-'Valor Projetado do Benefício'!G18) + ('Valor Projetado do 13°'!I18 - 'Valor Projetado do 13°'!G18)) >= 0.1, 12 * ('Valor Projetado do Benefício'!I18-'Valor Projetado do Benefício'!G18) + ('Valor Projetado do 13°'!I18 - 'Valor Projetado do 13°'!G18), 0) -> -56084.4531 | H17: =NPV(Taxa_Juros,$F$4:F17 + G17) + Perda_Residual_PED_RBF -> -52909.86142 | I17: =IF(ABS(12 * ('Valor Projetado do Benefício'!J18-'Valor Projetado do Benefício'!G18) + ('Valor Projetado do 13°'!J18 - 'Valor Projetado do 13°'!G18)) >= 0.1, 12 * ('Valor Projetado do Benefício'!J18-'Valor Projetado do Benefício'!G18) + ('Valor Projetado do 13°'!J18 - 'Valor Projetado do 13°'!G18), 0) -> -58865.5054 | J17: -189683.52 | K17: =NPV(Taxa_Juros,$I$4:I16,I17+J17) + Perda_Residual_PP3 -> -629338.2521 | L17: 2559915.57
B18: 15 | C18: Ano 15 | D18: =IF(ABS(12 * ('Valor Projetado do Benefício'!H19-'Valor Projetado do Benefício'!G19) + ('Valor Projetado do 13°'!H19 - 'Valor Projetado do 13°'!G19)) >= 0.1, 12 * ('Valor Projetado do Benefício'!H19-'Valor Projetado do Benefício'!G19) + ('Valor Projetado do 13°'!H19 - 'Valor Projetado do 13°'!G19), 0) -> -88496.5887 | E18: =NPV(Taxa_Juros,$D$4:D18) + Perda_Residual_PED_Atual -> -859500.904 | F18: =IF(ABS(12 * ('Valor Projetado do Benefício'!I19-'Valor Projetado do Benefício'!G19) + ('Valor Projetado do 13°'!I19 - 'Valor Projetado do 13°'!G19)) >= 0.1, 12 * ('Valor Projetado do Benefício'!I19-'Valor Projetado do Benefício'!G19) + ('Valor Projetado do 13°'!I19 - 'Valor Projetado do 13°'!G19), 0) -> -56084.4531 | H18: =NPV(Taxa_Juros,$F$4:F18 + G18) + Perda_Residual_PED_RBF -> -52909.86142 | I18: =IF(ABS(12 * ('Valor Projetado do Benefício'!J19-'Valor Projetado do Benefício'!G19) + ('Valor Projetado do 13°'!J19 - 'Valor Projetado do 13°'!G19)) >= 0.1, 12 * ('Valor Projetado do Benefício'!J19-'Valor Projetado do Benefício'!G19) + ('Valor Projetado do 13°'!J19 - 'Valor Projetado do 13°'!G19), 0) -> -58899.4796 | J18: -189683.52 | K18: =NPV(Taxa_Juros,$I$4:I17,I18+J18) + Perda_Residual_PP3 -> -649166.0487 | L18: 2524722.132
B19: 16 | C19: Ano 16 | D19: =IF(ABS(12 * ('Valor Projetado do Benefício'!H20-'Valor Projetado do Benefício'!G20) + ('Valor Projetado do 13°'!H20 - 'Valor Projetado do 13°'!G20)) >= 0.1, 12 * ('Valor Projetado do Benefício'!H20-'Valor Projetado do Benefício'!G20) + ('Valor Projetado do 13°'!H20 - 'Valor Projetado do 13°'!G20), 0) -> -88496.5887 | E19: =NPV(Taxa_Juros,$D$4:D19) + Perda_Residual_PED_Atual -> -894337.2573 | F19: =IF(ABS(12 * ('Valor Projetado do Benefício'!I20-'Valor Projetado do Benefício'!G20) + ('Valor Projetado do 13°'!I20 - 'Valor Projetado do 13°'!G20)) >= 0.1, 12 * ('Valor Projetado do Benefício'!I20-'Valor Projetado do Benefício'!G20) + ('Valor Projetado do 13°'!I20 - 'Valor Projetado do 13°'!G20), 0) -> -56084.4531 | H19: =NPV(Taxa_Juros,$F$4:F19 + G19) + Perda_Residual_PED_RBF -> -52909.86142 | I19: =IF(ABS(12 * ('Valor Projetado do Benefício'!J20-'Valor Projetado do Benefício'!G20) + ('Valor Projetado do 13°'!J20 - 'Valor Projetado do 13°'!G20)) >= 0.1, 12 * ('Valor Projetado do Benefício'!J20-'Valor Projetado do Benefício'!G20) + ('Valor Projetado do 13°'!J20 - 'Valor Projetado do 13°'!G20), 0) -> -58933.8906 | J19: -189683.52 | K19: =NPV(Taxa_Juros,$I$4:I18,I19+J19) + Perda_Residual_PP3 -> -667885.063 | L19: 2487722.932
B20: 17 | C20: Ano 17 | D20: =IF(ABS(12 * ('Valor Projetado do Benefício'!H21-'Valor Projetado do Benefício'!G21) + ('Valor Projetado do 13°'!H21 - 'Valor Projetado do 13°'!G21)) >= 0.1, 12 * ('Valor Projetado do Benefício'!H21-'Valor Projetado do Benefício'!G21) + ('Valor Projetado do 13°'!H21 - 'Valor Projetado do 13°'!G21), 0) -> -88496.5887 | E20: =NPV(Taxa_Juros,$D$4:D20) + Perda_Residual_PED_Atual -> -927201.7415 | F20: =IF(ABS(12 * ('Valor Projetado do Benefício'!I21-'Valor Projetado do Benefício'!G21) + ('Valor Projetado do 13°'!I21 - 'Valor Projetado do 13°'!G21)) >= 0.1, 12 * ('Valor Projetado do Benefício'!I21-'Valor Projetado do Benefício'!G21) + ('Valor Projetado do 13°'!I21 - 'Valor Projetado do 13°'!G21), 0) -> -56084.4531 | H20: =NPV(Taxa_Juros,$F$4:F20 + G20) + Perda_Residual_PED_RBF -> -52909.86142 | I20: =IF(ABS(12 * ('Valor Projetado do Benefício'!J21-'Valor Projetado do Benefício'!G21) + ('Valor Projetado do 13°'!J21 - 'Valor Projetado do 13°'!G21)) >= 0.1, 12 * ('Valor Projetado do Benefício'!J21-'Valor Projetado do Benefício'!G21) + ('Valor Projetado do 13°'!J21 - 'Valor Projetado do 13°'!G21), 0) -> -58968.7735 | J20: -189683.52 | K20: =NPV(Taxa_Juros,$I$4:I19,I20+J20) + Perda_Residual_PP3 -> -685557.4647 | L20: 2448823.506
B21: 18 | C21: Ano 18 | D21: =IF(ABS(12 * ('Valor Projetado do Benefício'!H22-'Valor Projetado do Benefício'!G22) + ('Valor Projetado do 13°'!H22 - 'Valor Projetado do 13°'!G22)) >= 0.1, 12 * ('Valor Projetado do Benefício'!H22-'Valor Projetado do Benefício'!G22) + ('Valor Projetado do 13°'!H22 - 'Valor Projetado do 13°'!G22), 0) -> -88496.5887 | E21: =NPV(Taxa_Juros,$D$4:D21) + Perda_Residual_PED_Atual -> -958205.9719 | F21: =IF(ABS(12 * ('Valor Projetado do Benefício'!I22-'Valor Projetado do Benefício'!G22) + ('Valor Projetado do 13°'!I22 - 'Valor Projetado do 13°'!G22)) >= 0.1, 12 * ('Valor Projetado do Benefício'!I22-'Valor Projetado do Benefício'!G22) + ('Valor Projetado do 13°'!I22 - 'Valor Projetado do 13°'!G22), 0) -> -56084.4531 | H21: =NPV(Taxa_Juros,$F$4:F21 + G21) + Perda_Residual_PED_RBF -> -52909.86142 | I21: =IF(ABS(12 * ('Valor Projetado do Benefício'!J22-'Valor Projetado do Benefício'!G22) + ('Valor Projetado do 13°'!J22 - 'Valor Projetado do 13°'!G22)) >= 0.1, 12 * ('Valor Projetado do Benefício'!J22-'Valor Projetado do Benefício'!G22) + ('Valor Projetado do 13°'!J22 - 'Valor Projetado do 13°'!G22), 0) -> -59004.1673 | J21: -189683.52 | K21: =NPV(Taxa_Juros,$I$4:I20,I21+J21) + Perda_Residual_PP3 -> -702241.9417 | L21: 2407924.471
B22: 19 | C22: Ano 19 | D22: =IF(ABS(12 * ('Valor Projetado do Benefício'!H23-'Valor Projetado do Benefício'!G23) + ('Valor Projetado do 13°'!H23 - 'Valor Projetado do 13°'!G23)) >= 0.1, 12 * ('Valor Projetado do Benefício'!H23-'Valor Projetado do Benefício'!G23) + ('Valor Projetado do 13°'!H23 - 'Valor Projetado do 13°'!G23), 0) -> 0 | E22: =NPV(Taxa_Juros,$D$4:D22) + Perda_Residual_PED_Atual -> -958205.9719 | F22: =IF(ABS(12 * ('Valor Projetado do Benefício'!I23-'Valor Projetado do Benefício'!G23) + ('Valor Projetado do 13°'!I23 - 'Valor Projetado do 13°'!G23)) >= 0.1, 12 * ('Valor Projetado do Benefício'!I23-'Valor Projetado do Benefício'!G23) + ('Valor Projetado do 13°'!I23 - 'Valor Projetado do 13°'!G23), 0) -> 0 | H22: =NPV(Taxa_Juros,$F$4:F22 + G22) + Perda_Residual_PED_RBF -> 0 | I22: =IF(ABS(12 * ('Valor Projetado do Benefício'!J23-'Valor Projetado do Benefício'!G23) + ('Valor Projetado do 13°'!J23 - 'Valor Projetado do 13°'!G23)) >= 0.1, 12 * ('Valor Projetado do Benefício'!J23-'Valor Projetado do Benefício'!G23) + ('Valor Projetado do 13°'!J23 - 'Valor Projetado do 13°'!G23), 0) -> -59040.1162 | J22: -189683.52 | K22: =NPV(Taxa_Juros,$I$4:I21,I22+J22) + Perda_Residual_PP3 -> -717993.896 | L22: 2364921.273
B23: 20 | C23: Ano 20 | D23: =IF(ABS(12 * ('Valor Projetado do Benefício'!H24-'Valor Projetado do Benefício'!G24) + ('Valor Projetado do 13°'!H24 - 'Valor Projetado do 13°'!G24)) >= 0.1, 12 * ('Valor Projetado do Benefício'!H24-'Valor Projetado do Benefício'!G24) + ('Valor Projetado do 13°'!H24 - 'Valor Projetado do 13°'!G24), 0) -> 0 | E23: =NPV(Taxa_Juros,$D$4:D23) + Perda_Residual_PED_Atual -> -958205.9719 | F23: =IF(ABS(12 * ('Valor Projetado do Benefício'!I24-'Valor Projetado do Benefício'!G24) + ('Valor Projetado do 13°'!I24 - 'Valor Projetado do 13°'!G24)) >= 0.1, 12 * ('Valor Projetado do Benefício'!I24-'Valor Projetado do Benefício'!G24) + ('Valor Projetado do 13°'!I24 - 'Valor Projetado do 13°'!G24), 0) -> 0 | H23: =NPV(Taxa_Juros,$F$4:F23 + G23) + Perda_Residual_PED_RBF -> 0 | I23: =IF(ABS(12 * ('Valor Projetado do Benefício'!J24-'Valor Projetado do Benefício'!G24) + ('Valor Projetado do 13°'!J24 - 'Valor Projetado do 13°'!G24)) >= 0.1, 12 * ('Valor Projetado do Benefício'!J24-'Valor Projetado do Benefício'!G24) + ('Valor Projetado do 13°'!J24 - 'Valor Projetado do 13°'!G24), 0) -> -59076.6696 | J23: -189683.52 | K23: =NPV(Taxa_Juros,$I$4:I22,I23+J23) + Perda_Residual_PP3 -> -732865.6277 | L23: 2319703.924
B24: 21 | C24: Ano 21 | D24: =IF(ABS(12 * ('Valor Projetado do Benefício'!H25-'Valor Projetado do Benefício'!G25) + ('Valor Projetado do 13°'!H25 - 'Valor Projetado do 13°'!G25)) >= 0.1, 12 * ('Valor Projetado do Benefício'!H25-'Valor Projetado do Benefício'!G25) + ('Valor Projetado do 13°'!H25 - 'Valor Projetado do 13°'!G25), 0) -> 0 | E24: =NPV(Taxa_Juros,$D$4:D24) + Perda_Residual_PED_Atual -> -958205.9719 | F24: =IF(ABS(12 * ('Valor Projetado do Benefício'!I25-'Valor Projetado do Benefício'!G25) + ('Valor Projetado do 13°'!I25 - 'Valor Projetado do 13°'!G25)) >= 0.1, 12 * ('Valor Projetado do Benefício'!I25-'Valor Projetado do Benefício'!G25) + ('Valor Projetado do 13°'!I25 - 'Valor Projetado do 13°'!G25), 0) -> 0 | H24: =NPV(Taxa_Juros,$F$4:F24 + G24) + Perda_Residual_PED_RBF -> 0 | I24: =IF(ABS(12 * ('Valor Projetado do Benefício'!J25-'Valor Projetado do Benefício'!G25) + ('Valor Projetado do 13°'!J25 - 'Valor Projetado do 13°'!G25)) >= 0.1, 12 * ('Valor Projetado do Benefício'!J25-'Valor Projetado do Benefício'!G25) + ('Valor Projetado do 13°'!J25 - 'Valor Projetado do 13°'!G25), 0) -> -59113.8847 | J24: -189683.52 | K24: =NPV(Taxa_Juros,$I$4:I23,I24+J24) + Perda_Residual_PP3 -> -746906.5104 | L24: 2272156.72
B25: 22 | C25: Ano 22 | D25: =IF(ABS(12 * ('Valor Projetado do Benefício'!H26-'Valor Projetado do Benefício'!G26) + ('Valor Projetado do 13°'!H26 - 'Valor Projetado do 13°'!G26)) >= 0.1, 12 * ('Valor Projetado do Benefício'!H26-'Valor Projetado do Benefício'!G26) + ('Valor Projetado do 13°'!H26 - 'Valor Projetado do 13°'!G26), 0) -> 0 | E25: =NPV(Taxa_Juros,$D$4:D25) + Perda_Residual_PED_Atual -> -958205.9719 | F25: =IF(ABS(12 * ('Valor Projetado do Benefício'!I26-'Valor Projetado do Benefício'!G26) + ('Valor Projetado do 13°'!I26 - 'Valor Projetado do 13°'!G26)) >= 0.1, 12 * ('Valor Projetado do Benefício'!I26-'Valor Projetado do Benefício'!G26) + ('Valor Projetado do 13°'!I26 - 'Valor Projetado do 13°'!G26), 0) -> 0 | H25: =NPV(Taxa_Juros,$F$4:F25 + G25) + Perda_Residual_PED_RBF -> 0 | I25: =IF(ABS(12 * ('Valor Projetado do Benefício'!J26-'Valor Projetado do Benefício'!G26) + ('Valor Projetado do 13°'!J26 - 'Valor Projetado do 13°'!G26)) >= 0.1, 12 * ('Valor Projetado do Benefício'!J26-'Valor Projetado do Benefício'!G26) + ('Valor Projetado do 13°'!J26 - 'Valor Projetado do 13°'!G26), 0) -> -59151.82 | J25: -189683.52 | K25: =NPV(Taxa_Juros,$I$4:I24,I25+J25) + Perda_Residual_PP3 -> -760163.1533 | L25: 2222157.956
B26: 23 | C26: Ano 23 | D26: =IF(ABS(12 * ('Valor Projetado do Benefício'!H27-'Valor Projetado do Benefício'!G27) + ('Valor Projetado do 13°'!H27 - 'Valor Projetado do 13°'!G27)) >= 0.1, 12 * ('Valor Projetado do Benefício'!H27-'Valor Projetado do Benefício'!G27) + ('Valor Projetado do 13°'!H27 - 'Valor Projetado do 13°'!G27), 0) -> 0 | E26: =NPV(Taxa_Juros,$D$4:D26) + Perda_Residual_PED_Atual -> -958205.9719 | F26: =IF(ABS(12 * ('Valor Projetado do Benefício'!I27-'Valor Projetado do Benefício'!G27) + ('Valor Projetado do 13°'!I27 - 'Valor Projetado do 13°'!G27)) >= 0.1, 12 * ('Valor Projetado do Benefício'!I27-'Valor Projetado do Benefício'!G27) + ('Valor Projetado do 13°'!I27 - 'Valor Projetado do 13°'!G27), 0) -> 0 | H26: =NPV(Taxa_Juros,$F$4:F26 + G26) + Perda_Residual_PED_RBF -> 0 | I26: =IF(ABS(12 * ('Valor Projetado do Benefício'!J27-'Valor Projetado do Benefício'!G27) + ('Valor Projetado do 13°'!J27 - 'Valor Projetado do 13°'!G27)) >= 0.1, 12 * ('Valor Projetado do Benefício'!J27-'Valor Projetado do Benefício'!G27) + ('Valor Projetado do 13°'!J27 - 'Valor Projetado do 13°'!G27), 0) -> -59190.547 | J26: -189683.52 | K26: =NPV(Taxa_Juros,$I$4:I25,I26+J26) + Perda_Residual_PP3 -> -772679.5588 | L26: 2169579.619
B27: 24 | C27: Ano 24 | D27: =IF(ABS(12 * ('Valor Projetado do Benefício'!H28-'Valor Projetado do Benefício'!G28) + ('Valor Projetado do 13°'!H28 - 'Valor Projetado do 13°'!G28)) >= 0.1, 12 * ('Valor Projetado do Benefício'!H28-'Valor Projetado do Benefício'!G28) + ('Valor Projetado do 13°'!H28 - 'Valor Projetado do 13°'!G28), 0) -> 0 | E27: =NPV(Taxa_Juros,$D$4:D27) + Perda_Residual_PED_Atual -> -958205.9719 | F27: =IF(ABS(12 * ('Valor Projetado do Benefício'!I28-'Valor Projetado do Benefício'!G28) + ('Valor Projetado do 13°'!I28 - 'Valor Projetado do 13°'!G28)) >= 0.1, 12 * ('Valor Projetado do Benefício'!I28-'Valor Projetado do Benefício'!G28) + ('Valor Projetado do 13°'!I28 - 'Valor Projetado do 13°'!G28), 0) -> 0 | H27: =NPV(Taxa_Juros,$F$4:F27 + G27) + Perda_Residual_PED_RBF -> 0 | I27: =IF(ABS(12 * ('Valor Projetado do Benefício'!J28-'Valor Projetado do Benefício'!G28) + ('Valor Projetado do 13°'!J28 - 'Valor Projetado do 13°'!G28)) >= 0.1, 12 * ('Valor Projetado do Benefício'!J28-'Valor Projetado do Benefício'!G28) + ('Valor Projetado do 13°'!J28 - 'Valor Projetado do 13°'!G28), 0) -> -59230.145 | J27: -189683.52 | K27: =NPV(Taxa_Juros,$I$4:I26,I27+J27) + Perda_Residual_PP3 -> -784497.2684 | L27: 2114287.072
B28: 25 | C28: Ano 25 | D28: =IF(ABS(12 * ('Valor Projetado do Benefício'!H29-'Valor Projetado do Benefício'!G29) + ('Valor Projetado do 13°'!H29 - 'Valor Projetado do 13°'!G29)) >= 0.1, 12 * ('Valor Projetado do Benefício'!H29-'Valor Projetado do Benefício'!G29) + ('Valor Projetado do 13°'!H29 - 'Valor Projetado do 13°'!G29), 0) -> 0 | E28: =NPV(Taxa_Juros,$D$4:D28) + Perda_Residual_PED_Atual -> -958205.9719 | F28: =IF(ABS(12 * ('Valor Projetado do Benefício'!I29-'Valor Projetado do Benefício'!G29) + ('Valor Projetado do 13°'!I29 - 'Valor Projetado do 13°'!G29)) >= 0.1, 12 * ('Valor Projetado do Benefício'!I29-'Valor Projetado do Benefício'!G29) + ('Valor Projetado do 13°'!I29 - 'Valor Projetado do 13°'!G29), 0) -> 0 | H28: =NPV(Taxa_Juros,$F$4:F28 + G28) + Perda_Residual_PED_RBF -> 0 | I28: =IF(ABS(12 * ('Valor Projetado do Benefício'!J29-'Valor Projetado do Benefício'!G29) + ('Valor Projetado do 13°'!J29 - 'Valor Projetado do 13°'!G29)) >= 0.1, 12 * ('Valor Projetado do Benefício'!J29-'Valor Projetado do Benefício'!G29) + ('Valor Projetado do 13°'!J29 - 'Valor Projetado do 13°'!G29), 0) -> -59270.7037 | J28: -189683.52 | K28: =NPV(Taxa_Juros,$I$4:I27,I28+J28) + Perda_Residual_PP3 -> -795655.5012 | L28: 2056138.718
B29: 26 | C29: Ano 26 | D29: =IF(ABS(12 * ('Valor Projetado do Benefício'!H30-'Valor Projetado do Benefício'!G30) + ('Valor Projetado do 13°'!H30 - 'Valor Projetado do 13°'!G30)) >= 0.1, 12 * ('Valor Projetado do Benefício'!H30-'Valor Projetado do Benefício'!G30) + ('Valor Projetado do 13°'!H30 - 'Valor Projetado do 13°'!G30), 0) -> 0 | E29: =NPV(Taxa_Juros,$D$4:D29) + Perda_Residual_PED_Atual -> -958205.9719 | F29: =IF(ABS(12 * ('Valor Projetado do Benefício'!I30-'Valor Projetado do Benefício'!G30) + ('Valor Projetado do 13°'!I30 - 'Valor Projetado do 13°'!G30)) >= 0.1, 12 * ('Valor Projetado do Benefício'!I30-'Valor Projetado do Benefício'!G30) + ('Valor Projetado do 13°'!I30 - 'Valor Projetado do 13°'!G30), 0) -> 0 | H29: =NPV(Taxa_Juros,$F$4:F29 + G29) + Perda_Residual_PED_RBF -> 0 | I29: =IF(ABS(12 * ('Valor Projetado do Benefício'!J30-'Valor Projetado do Benefício'!G30) + ('Valor Projetado do 13°'!J30 - 'Valor Projetado do 13°'!G30)) >= 0.1, 12 * ('Valor Projetado do Benefício'!J30-'Valor Projetado do Benefício'!G30) + ('Valor Projetado do 13°'!J30 - 'Valor Projetado do 13°'!G30), 0) -> -59312.3258 | J29: -189683.52 | K29: =NPV(Taxa_Juros,$I$4:I28,I29+J29) + Perda_Residual_PP3 -> -806191.2848 | L29: 1994985.662
B30: 27 | C30: Ano 27 | D30: =IF(ABS(12 * ('Valor Projetado do Benefício'!H31-'Valor Projetado do Benefício'!G31) + ('Valor Projetado do 13°'!H31 - 'Valor Projetado do 13°'!G31)) >= 0.1, 12 * ('Valor Projetado do Benefício'!H31-'Valor Projetado do Benefício'!G31) + ('Valor Projetado do 13°'!H31 - 'Valor Projetado do 13°'!G31), 0) -> 0 | E30: =NPV(Taxa_Juros,$D$4:D30) + Perda_Residual_PED_Atual -> -958205.9719 | F30: =IF(ABS(12 * ('Valor Projetado do Benefício'!I31-'Valor Projetado do Benefício'!G31) + ('Valor Projetado do 13°'!I31 - 'Valor Projetado do 13°'!G31)) >= 0.1, 12 * ('Valor Projetado do Benefício'!I31-'Valor Projetado do Benefício'!G31) + ('Valor Projetado do 13°'!I31 - 'Valor Projetado do 13°'!G31), 0) -> 0 | H30: =NPV(Taxa_Juros,$F$4:F30 + G30) + Perda_Residual_PED_RBF -> 0 | I30: =IF(ABS(12 * ('Valor Projetado do Benefício'!J31-'Valor Projetado do Benefício'!G31) + ('Valor Projetado do 13°'!J31 - 'Valor Projetado do 13°'!G31)) >= 0.1, 12 * ('Valor Projetado do Benefício'!J31-'Valor Projetado do Benefício'!G31) + ('Valor Projetado do 13°'!J31 - 'Valor Projetado do 13°'!G31), 0) -> -59355.1335 | J30: -189683.52 | K30: =NPV(Taxa_Juros,$I$4:I29,I30+J30) + Perda_Residual_PP3 -> -816139.5803 | L30: 1930671.342
B31: 28 | C31: Ano 28 | D31: =IF(ABS(12 * ('Valor Projetado do Benefício'!H32-'Valor Projetado do Benefício'!G32) + ('Valor Projetado do 13°'!H32 - 'Valor Projetado do 13°'!G32)) >= 0.1, 12 * ('Valor Projetado do Benefício'!H32-'Valor Projetado do Benefício'!G32) + ('Valor Projetado do 13°'!H32 - 'Valor Projetado do 13°'!G32), 0) -> 0 | E31: =NPV(Taxa_Juros,$D$4:D31) + Perda_Residual_PED_Atual -> -958205.9719 | F31: =IF(ABS(12 * ('Valor Projetado do Benefício'!I32-'Valor Projetado do Benefício'!G32) + ('Valor Projetado do 13°'!I32 - 'Valor Projetado do 13°'!G32)) >= 0.1, 12 * ('Valor Projetado do Benefício'!I32-'Valor Projetado do Benefício'!G32) + ('Valor Projetado do 13°'!I32 - 'Valor Projetado do 13°'!G32), 0) -> 0 | H31: =NPV(Taxa_Juros,$F$4:F31 + G31) + Perda_Residual_PED_RBF -> 0 | I31: =IF(ABS(12 * ('Valor Projetado do Benefício'!J32-'Valor Projetado do Benefício'!G32) + ('Valor Projetado do 13°'!J32 - 'Valor Projetado do 13°'!G32)) >= 0.1, 12 * ('Valor Projetado do Benefício'!J32-'Valor Projetado do Benefício'!G32) + ('Valor Projetado do 13°'!J32 - 'Valor Projetado do 13°'!G32), 0) -> -59399.262 | J31: -189683.52 | K31: =NPV(Taxa_Juros,$I$4:I30,I31+J31) + Perda_Residual_PP3 -> -825533.3976 | L31: 1863031.166
B32: 29 | C32: Ano 29 | D32: =IF(ABS(12 * ('Valor Projetado do Benefício'!H33-'Valor Projetado do Benefício'!G33) + ('Valor Projetado do 13°'!H33 - 'Valor Projetado do 13°'!G33)) >= 0.1, 12 * ('Valor Projetado do Benefício'!H33-'Valor Projetado do Benefício'!G33) + ('Valor Projetado do 13°'!H33 - 'Valor Projetado do 13°'!G33), 0) -> 0 | E32: =NPV(Taxa_Juros,$D$4:D32) + Perda_Residual_PED_Atual -> -958205.9719 | F32: =IF(ABS(12 * ('Valor Projetado do Benefício'!I33-'Valor Projetado do Benefício'!G33) + ('Valor Projetado do 13°'!I33 - 'Valor Projetado do 13°'!G33)) >= 0.1, 12 * ('Valor Projetado do Benefício'!I33-'Valor Projetado do Benefício'!G33) + ('Valor Projetado do 13°'!I33 - 'Valor Projetado do 13°'!G33), 0) -> 0 | H32: =NPV(Taxa_Juros,$F$4:F32 + G32) + Perda_Residual_PED_RBF -> 0 | I32: =IF(ABS(12 * ('Valor Projetado do Benefício'!J33-'Valor Projetado do Benefício'!G33) + ('Valor Projetado do 13°'!J33 - 'Valor Projetado do 13°'!G33)) >= 0.1, 12 * ('Valor Projetado do Benefício'!J33-'Valor Projetado do Benefício'!G33) + ('Valor Projetado do 13°'!J33 - 'Valor Projetado do 13°'!G33), 0) -> -59444.8764 | J32: -189683.52 | K32: =NPV(Taxa_Juros,$I$4:I31,I32+J32) + Perda_Residual_PP3 -> -834403.9078 | L32: 1791892.12
B33: 30 | C33: Ano 30 | D33: =IF(ABS(12 * ('Valor Projetado do Benefício'!H34-'Valor Projetado do Benefício'!G34) + ('Valor Projetado do 13°'!H34 - 'Valor Projetado do 13°'!G34)) >= 0.1, 12 * ('Valor Projetado do Benefício'!H34-'Valor Projetado do Benefício'!G34) + ('Valor Projetado do 13°'!H34 - 'Valor Projetado do 13°'!G34), 0) -> 0 | E33: =NPV(Taxa_Juros,$D$4:D33) + Perda_Residual_PED_Atual -> -958205.9719 | F33: =IF(ABS(12 * ('Valor Projetado do Benefício'!I34-'Valor Projetado do Benefício'!G34) + ('Valor Projetado do 13°'!I34 - 'Valor Projetado do 13°'!G34)) >= 0.1, 12 * ('Valor Projetado do Benefício'!I34-'Valor Projetado do Benefício'!G34) + ('Valor Projetado do 13°'!I34 - 'Valor Projetado do 13°'!G34), 0) -> 0 | H33: =NPV(Taxa_Juros,$F$4:F33 + G33) + Perda_Residual_PED_RBF -> 0 | I33: =IF(ABS(12 * ('Valor Projetado do Benefício'!J34-'Valor Projetado do Benefício'!G34) + ('Valor Projetado do 13°'!J34 - 'Valor Projetado do 13°'!G34)) >= 0.1, 12 * ('Valor Projetado do Benefício'!J34-'Valor Projetado do Benefício'!G34) + ('Valor Projetado do 13°'!J34 - 'Valor Projetado do 13°'!G34), 0) -> -59492.1678 | J33: -189683.52 | K33: =NPV(Taxa_Juros,$I$4:I32,I33+J33) + Perda_Residual_PP3 -> -842780.5476 | L33: 1717072.374
B34: 31 | C34: Ano 31 | D34: =IF(ABS(12 * ('Valor Projetado do Benefício'!H35-'Valor Projetado do Benefício'!G35) + ('Valor Projetado do 13°'!H35 - 'Valor Projetado do 13°'!G35)) >= 0.1, 12 * ('Valor Projetado do Benefício'!H35-'Valor Projetado do Benefício'!G35) + ('Valor Projetado do 13°'!H35 - 'Valor Projetado do 13°'!G35), 0) -> 0 | E34: =NPV(Taxa_Juros,$D$4:D34) + Perda_Residual_PED_Atual -> -958205.9719 | F34: =IF(ABS(12 * ('Valor Projetado do Benefício'!I35-'Valor Projetado do Benefício'!G35) + ('Valor Projetado do 13°'!I35 - 'Valor Projetado do 13°'!G35)) >= 0.1, 12 * ('Valor Projetado do Benefício'!I35-'Valor Projetado do Benefício'!G35) + ('Valor Projetado do 13°'!I35 - 'Valor Projetado do 13°'!G35), 0) -> 0 | H34: =NPV(Taxa_Juros,$F$4:F34 + G34) + Perda_Residual_PED_RBF -> 0 | I34: =IF(ABS(12 * ('Valor Projetado do Benefício'!J35-'Valor Projetado do Benefício'!G35) + ('Valor Projetado do 13°'!J35 - 'Valor Projetado do 13°'!G35)) >= 0.1, 12 * ('Valor Projetado do Benefício'!J35-'Valor Projetado do Benefício'!G35) + ('Valor Projetado do 13°'!J35 - 'Valor Projetado do 13°'!G35), 0) -> -59541.3637 | J34: -189683.52 | K34: =NPV(Taxa_Juros,$I$4:I33,I34+J34) + Perda_Residual_PP3 -> -850691.1186 | L34: 1638380.879
B35: 32 | C35: Ano 32 | D35: =IF(ABS(12 * ('Valor Projetado do Benefício'!H36-'Valor Projetado do Benefício'!G36) + ('Valor Projetado do 13°'!H36 - 'Valor Projetado do 13°'!G36)) >= 0.1, 12 * ('Valor Projetado do Benefício'!H36-'Valor Projetado do Benefício'!G36) + ('Valor Projetado do 13°'!H36 - 'Valor Projetado do 13°'!G36), 0) -> 0 | E35: =NPV(Taxa_Juros,$D$4:D35) + Perda_Residual_PED_Atual -> -958205.9719 | F35: =IF(ABS(12 * ('Valor Projetado do Benefício'!I36-'Valor Projetado do Benefício'!G36) + ('Valor Projetado do 13°'!I36 - 'Valor Projetado do 13°'!G36)) >= 0.1, 12 * ('Valor Projetado do Benefício'!I36-'Valor Projetado do Benefício'!G36) + ('Valor Projetado do 13°'!I36 - 'Valor Projetado do 13°'!G36), 0) -> 0 | H35: =NPV(Taxa_Juros,$F$4:F35 + G35) + Perda_Residual_PED_RBF -> 0 | I35: =IF(ABS(12 * ('Valor Projetado do Benefício'!J36-'Valor Projetado do Benefício'!G36) + ('Valor Projetado do 13°'!J36 - 'Valor Projetado do 13°'!G36)) >= 0.1, 12 * ('Valor Projetado do Benefício'!J36-'Valor Projetado do Benefício'!G36) + ('Valor Projetado do 13°'!J36 - 'Valor Projetado do 13°'!G36), 0) -> -59592.7423 | J35: -189683.52 | K35: =NPV(Taxa_Juros,$I$4:I34,I35+J35) + Perda_Residual_PP3 -> -858161.8829 | L35: 1555616.96
B36: 33 | C36: Ano 33 | D36: =IF(ABS(12 * ('Valor Projetado do Benefício'!H37-'Valor Projetado do Benefício'!G37) + ('Valor Projetado do 13°'!H37 - 'Valor Projetado do 13°'!G37)) >= 0.1, 12 * ('Valor Projetado do Benefício'!H37-'Valor Projetado do Benefício'!G37) + ('Valor Projetado do 13°'!H37 - 'Valor Projetado do 13°'!G37), 0) -> 0 | E36: =NPV(Taxa_Juros,$D$4:D36) + Perda_Residual_PED_Atual -> -958205.9719 | F36: =IF(ABS(12 * ('Valor Projetado do Benefício'!I37-'Valor Projetado do Benefício'!G37) + ('Valor Projetado do 13°'!I37 - 'Valor Projetado do 13°'!G37)) >= 0.1, 12 * ('Valor Projetado do Benefício'!I37-'Valor Projetado do Benefício'!G37) + ('Valor Projetado do 13°'!I37 - 'Valor Projetado do 13°'!G37), 0) -> 0 | H36: =NPV(Taxa_Juros,$F$4:F36 + G36) + Perda_Residual_PED_RBF -> 0 | I36: =IF(ABS(12 * ('Valor Projetado do Benefício'!J37-'Valor Projetado do Benefício'!G37) + ('Valor Projetado do 13°'!J37 - 'Valor Projetado do 13°'!G37)) >= 0.1, 12 * ('Valor Projetado do Benefício'!J37-'Valor Projetado do Benefício'!G37) + ('Valor Projetado do 13°'!J37 - 'Valor Projetado do 13°'!G37), 0) -> -59646.6377 | J36: -189683.52 | K36: =NPV(Taxa_Juros,$I$4:I35,I36+J36) + Perda_Residual_PP3 -> -865217.6526 | L36: 1468569.908
B37: 34 | C37: Ano 34 | D37: =IF(ABS(12 * ('Valor Projetado do Benefício'!H38-'Valor Projetado do Benefício'!G38) + ('Valor Projetado do 13°'!H38 - 'Valor Projetado do 13°'!G38)) >= 0.1, 12 * ('Valor Projetado do Benefício'!H38-'Valor Projetado do Benefício'!G38) + ('Valor Projetado do 13°'!H38 - 'Valor Projetado do 13°'!G38), 0) -> 0 | E37: =NPV(Taxa_Juros,$D$4:D37) + Perda_Residual_PED_Atual -> -958205.9719 | F37: =IF(ABS(12 * ('Valor Projetado do Benefício'!I38-'Valor Projetado do Benefício'!G38) + ('Valor Projetado do 13°'!I38 - 'Valor Projetado do 13°'!G38)) >= 0.1, 12 * ('Valor Projetado do Benefício'!I38-'Valor Projetado do Benefício'!G38) + ('Valor Projetado do 13°'!I38 - 'Valor Projetado do 13°'!G38), 0) -> 0 | H37: =NPV(Taxa_Juros,$F$4:F37 + G37) + Perda_Residual_PED_RBF -> 0 | I37: =IF(ABS(12 * ('Valor Projetado do Benefício'!J38-'Valor Projetado do Benefício'!G38) + ('Valor Projetado do 13°'!J38 - 'Valor Projetado do 13°'!G38)) >= 0.1, 12 * ('Valor Projetado do Benefício'!J38-'Valor Projetado do Benefício'!G38) + ('Valor Projetado do 13°'!J38 - 'Valor Projetado do 13°'!G38), 0) -> -59703.4672 | J37: -189683.52 | K37: =NPV(Taxa_Juros,$I$4:I36,I37+J37) + Perda_Residual_PP3 -> -871881.8765 | L37: 1377018.591
B38: 35 | C38: Ano 35 | D38: =IF(ABS(12 * ('Valor Projetado do Benefício'!H39-'Valor Projetado do Benefício'!G39) + ('Valor Projetado do 13°'!H39 - 'Valor Projetado do 13°'!G39)) >= 0.1, 12 * ('Valor Projetado do Benefício'!H39-'Valor Projetado do Benefício'!G39) + ('Valor Projetado do 13°'!H39 - 'Valor Projetado do 13°'!G39), 0) -> 0 | E38: =NPV(Taxa_Juros,$D$4:D38) + Perda_Residual_PED_Atual -> -958205.9719 | F38: =IF(ABS(12 * ('Valor Projetado do Benefício'!I39-'Valor Projetado do Benefício'!G39) + ('Valor Projetado do 13°'!I39 - 'Valor Projetado do 13°'!G39)) >= 0.1, 12 * ('Valor Projetado do Benefício'!I39-'Valor Projetado do Benefício'!G39) + ('Valor Projetado do 13°'!I39 - 'Valor Projetado do 13°'!G39), 0) -> 0 | H38: =NPV(Taxa_Juros,$F$4:F38 + G38) + Perda_Residual_PED_RBF -> 0 | I38: =IF(ABS(12 * ('Valor Projetado do Benefício'!J39-'Valor Projetado do Benefício'!G39) + ('Valor Projetado do 13°'!J39 - 'Valor Projetado do 13°'!G39)) >= 0.1, 12 * ('Valor Projetado do Benefício'!J39-'Valor Projetado do Benefício'!G39) + ('Valor Projetado do 13°'!J39 - 'Valor Projetado do 13°'!G39), 0) -> -59763.756 | J38: -189683.52 | K38: =NPV(Taxa_Juros,$I$4:I37,I38+J38) + Perda_Residual_PP3 -> -878176.7241 | L38: 1280731.089
B39: 36 | C39: Ano 36 | D39: =IF(ABS(12 * ('Valor Projetado do Benefício'!H40-'Valor Projetado do Benefício'!G40) + ('Valor Projetado do 13°'!H40 - 'Valor Projetado do 13°'!G40)) >= 0.1, 12 * ('Valor Projetado do Benefício'!H40-'Valor Projetado do Benefício'!G40) + ('Valor Projetado do 13°'!H40 - 'Valor Projetado do 13°'!G40), 0) -> 0 | E39: =NPV(Taxa_Juros,$D$4:D39) + Perda_Residual_PED_Atual -> -958205.9719 | F39: =IF(ABS(12 * ('Valor Projetado do Benefício'!I40-'Valor Projetado do Benefício'!G40) + ('Valor Projetado do 13°'!I40 - 'Valor Projetado do 13°'!G40)) >= 0.1, 12 * ('Valor Projetado do Benefício'!I40-'Valor Projetado do Benefício'!G40) + ('Valor Projetado do 13°'!I40 - 'Valor Projetado do 13°'!G40), 0) -> 0 | H39: =NPV(Taxa_Juros,$F$4:F39 + G39) + Perda_Residual_PED_RBF -> 0 | I39: =IF(ABS(12 * ('Valor Projetado do Benefício'!J40-'Valor Projetado do Benefício'!G40) + ('Valor Projetado do 13°'!J40 - 'Valor Projetado do 13°'!G40)) >= 0.1, 12 * ('Valor Projetado do Benefício'!J40-'Valor Projetado do Benefício'!G40) + ('Valor Projetado do 13°'!J40 - 'Valor Projetado do 13°'!G40), 0) -> -59828.1762 | J39: -189683.52 | K39: =NPV(Taxa_Juros,$I$4:I38,I39+J39) + Perda_Residual_PP3 -> -884123.1665 | L39: 1179464.388
B40: 37 | C40: Ano 37 | D40: =IF(ABS(12 * ('Valor Projetado do Benefício'!H41-'Valor Projetado do Benefício'!G41) + ('Valor Projetado do 13°'!H41 - 'Valor Projetado do 13°'!G41)) >= 0.1, 12 * ('Valor Projetado do Benefício'!H41-'Valor Projetado do Benefício'!G41) + ('Valor Projetado do 13°'!H41 - 'Valor Projetado do 13°'!G41), 0) -> 0 | E40: =NPV(Taxa_Juros,$D$4:D40) + Perda_Residual_PED_Atual -> -958205.9719 | F40: =IF(ABS(12 * ('Valor Projetado do Benefício'!I41-'Valor Projetado do Benefício'!G41) + ('Valor Projetado do 13°'!I41 - 'Valor Projetado do 13°'!G41)) >= 0.1, 12 * ('Valor Projetado do Benefício'!I41-'Valor Projetado do Benefício'!G41) + ('Valor Projetado do 13°'!I41 - 'Valor Projetado do 13°'!G41), 0) -> 0 | H40: =NPV(Taxa_Juros,$F$4:F40 + G40) + Perda_Residual_PED_RBF -> 0 | I40: =IF(ABS(12 * ('Valor Projetado do Benefício'!J41-'Valor Projetado do Benefício'!G41) + ('Valor Projetado do 13°'!J41 - 'Valor Projetado do 13°'!G41)) >= 0.1, 12 * ('Valor Projetado do Benefício'!J41-'Valor Projetado do Benefício'!G41) + ('Valor Projetado do 13°'!J41 - 'Valor Projetado do 13°'!G41), 0) -> -59897.6092 | J40: -189683.52 | K40: =NPV(Taxa_Juros,$I$4:I39,I40+J40) + Perda_Residual_PP3 -> -889741.0577 | L40: 1072964.176
B41: 38 | C41: Ano 38 | D41: =IF(ABS(12 * ('Valor Projetado do Benefício'!H42-'Valor Projetado do Benefício'!G42) + ('Valor Projetado do 13°'!H42 - 'Valor Projetado do 13°'!G42)) >= 0.1, 12 * ('Valor Projetado do Benefício'!H42-'Valor Projetado do Benefício'!G42) + ('Valor Projetado do 13°'!H42 - 'Valor Projetado do 13°'!G42), 0) -> 0 | E41: =NPV(Taxa_Juros,$D$4:D41) + Perda_Residual_PED_Atual -> -958205.9719 | F41: =IF(ABS(12 * ('Valor Projetado do Benefício'!I42-'Valor Projetado do Benefício'!G42) + ('Valor Projetado do 13°'!I42 - 'Valor Projetado do 13°'!G42)) >= 0.1, 12 * ('Valor Projetado do Benefício'!I42-'Valor Projetado do Benefício'!G42) + ('Valor Projetado do 13°'!I42 - 'Valor Projetado do 13°'!G42), 0) -> 0 | H41: =NPV(Taxa_Juros,$F$4:F41 + G41) + Perda_Residual_PED_RBF -> 0 | I41: =IF(ABS(12 * ('Valor Projetado do Benefício'!J42-'Valor Projetado do Benefício'!G42) + ('Valor Projetado do 13°'!J42 - 'Valor Projetado do 13°'!G42)) >= 0.1, 12 * ('Valor Projetado do Benefício'!J42-'Valor Projetado do Benefício'!G42) + ('Valor Projetado do 13°'!J42 - 'Valor Projetado do 13°'!G42), 0) -> -59973.2445 | J41: -189683.52 | K41: =NPV(Taxa_Juros,$I$4:I40,I41+J41) + Perda_Residual_PP3 -> -895049.2174 | L41: 960964.8156
B42: 39 | C42: Ano 39 | D42: =IF(ABS(12 * ('Valor Projetado do Benefício'!H43-'Valor Projetado do Benefício'!G43) + ('Valor Projetado do 13°'!H43 - 'Valor Projetado do 13°'!G43)) >= 0.1, 12 * ('Valor Projetado do Benefício'!H43-'Valor Projetado do Benefício'!G43) + ('Valor Projetado do 13°'!H43 - 'Valor Projetado do 13°'!G43), 0) -> 0 | E42: =NPV(Taxa_Juros,$D$4:D42) + Perda_Residual_PED_Atual -> -958205.9719 | F42: =IF(ABS(12 * ('Valor Projetado do Benefício'!I43-'Valor Projetado do Benefício'!G43) + ('Valor Projetado do 13°'!I43 - 'Valor Projetado do 13°'!G43)) >= 0.1, 12 * ('Valor Projetado do Benefício'!I43-'Valor Projetado do Benefício'!G43) + ('Valor Projetado do 13°'!I43 - 'Valor Projetado do 13°'!G43), 0) -> 0 | H42: =NPV(Taxa_Juros,$F$4:F42 + G42) + Perda_Residual_PED_RBF -> 0 | I42: =IF(ABS(12 * ('Valor Projetado do Benefício'!J43-'Valor Projetado do Benefício'!G43) + ('Valor Projetado do 13°'!J43 - 'Valor Projetado do 13°'!G43)) >= 0.1, 12 * ('Valor Projetado do Benefício'!J43-'Valor Projetado do Benefício'!G43) + ('Valor Projetado do 13°'!J43 - 'Valor Projetado do 13°'!G43), 0) -> -60056.7383 | J42: -189683.52 | K42: =NPV(Taxa_Juros,$I$4:I41,I42+J42) + Perda_Residual_PP3 -> -900065.5197 | L42: 843189.6506
B43: 40 | C43: Ano 40 | D43: =IF(ABS(12 * ('Valor Projetado do Benefício'!H44-'Valor Projetado do Benefício'!G44) + ('Valor Projetado do 13°'!H44 - 'Valor Projetado do 13°'!G44)) >= 0.1, 12 * ('Valor Projetado do Benefício'!H44-'Valor Projetado do Benefício'!G44) + ('Valor Projetado do 13°'!H44 - 'Valor Projetado do 13°'!G44), 0) -> 0 | E43: =NPV(Taxa_Juros,$D$4:D43) + Perda_Residual_PED_Atual -> -958205.9719 | F43: =IF(ABS(12 * ('Valor Projetado do Benefício'!I44-'Valor Projetado do Benefício'!G44) + ('Valor Projetado do 13°'!I44 - 'Valor Projetado do 13°'!G44)) >= 0.1, 12 * ('Valor Projetado do Benefício'!I44-'Valor Projetado do Benefício'!G44) + ('Valor Projetado do 13°'!I44 - 'Valor Projetado do 13°'!G44), 0) -> 0 | H43: =NPV(Taxa_Juros,$F$4:F43 + G43) + Perda_Residual_PED_RBF -> 0 | I43: =IF(ABS(12 * ('Valor Projetado do Benefício'!J44-'Valor Projetado do Benefício'!G44) + ('Valor Projetado do 13°'!J44 - 'Valor Projetado do 13°'!G44)) >= 0.1, 12 * ('Valor Projetado do Benefício'!J44-'Valor Projetado do Benefício'!G44) + ('Valor Projetado do 13°'!J44 - 'Valor Projetado do 13°'!G44), 0) -> -60150.4969 | J43: -189683.52 | K43: =NPV(Taxa_Juros,$I$4:I42,I43+J43) + Perda_Residual_PP3 -> -904806.9958 | L43: 719351.9443
B44: 41 | C44: Ano 41 | D44: =IF(ABS(12 * ('Valor Projetado do Benefício'!H45-'Valor Projetado do Benefício'!G45) + ('Valor Projetado do 13°'!H45 - 'Valor Projetado do 13°'!G45)) >= 0.1, 12 * ('Valor Projetado do Benefício'!H45-'Valor Projetado do Benefício'!G45) + ('Valor Projetado do 13°'!H45 - 'Valor Projetado do 13°'!G45), 0) -> 0 | E44: =NPV(Taxa_Juros,$D$4:D44) + Perda_Residual_PED_Atual -> -958205.9719 | F44: =IF(ABS(12 * ('Valor Projetado do Benefício'!I45-'Valor Projetado do Benefício'!G45) + ('Valor Projetado do 13°'!I45 - 'Valor Projetado do 13°'!G45)) >= 0.1, 12 * ('Valor Projetado do Benefício'!I45-'Valor Projetado do Benefício'!G45) + ('Valor Projetado do 13°'!I45 - 'Valor Projetado do 13°'!G45), 0) -> 0 | H44: =NPV(Taxa_Juros,$F$4:F44 + G44) + Perda_Residual_PED_RBF -> 0 | I44: =IF(ABS(12 * ('Valor Projetado do Benefício'!J45-'Valor Projetado do Benefício'!G45) + ('Valor Projetado do 13°'!J45 - 'Valor Projetado do 13°'!G45)) >= 0.1, 12 * ('Valor Projetado do Benefício'!J45-'Valor Projetado do Benefício'!G45) + ('Valor Projetado do 13°'!J45 - 'Valor Projetado do 13°'!G45), 0) -> -60258.2136 | J44: -189683.52 | K44: =NPV(Taxa_Juros,$I$4:I43,I44+J44) + Perda_Residual_PP3 -> -909289.9661 | L44: 589157.1127
B45: 42 | C45: Ano 42 | D45: =IF(ABS(12 * ('Valor Projetado do Benefício'!H46-'Valor Projetado do Benefício'!G46) + ('Valor Projetado do 13°'!H46 - 'Valor Projetado do 13°'!G46)) >= 0.1, 12 * ('Valor Projetado do Benefício'!H46-'Valor Projetado do Benefício'!G46) + ('Valor Projetado do 13°'!H46 - 'Valor Projetado do 13°'!G46), 0) -> 0 | E45: =NPV(Taxa_Juros,$D$4:D45) + Perda_Residual_PED_Atual -> -958205.9719 | F45: =IF(ABS(12 * ('Valor Projetado do Benefício'!I46-'Valor Projetado do Benefício'!G46) + ('Valor Projetado do 13°'!I46 - 'Valor Projetado do 13°'!G46)) >= 0.1, 12 * ('Valor Projetado do Benefício'!I46-'Valor Projetado do Benefício'!G46) + ('Valor Projetado do 13°'!I46 - 'Valor Projetado do 13°'!G46), 0) -> 0 | H45: =NPV(Taxa_Juros,$F$4:F45 + G45) + Perda_Residual_PED_RBF -> 0 | I45: =IF(ABS(12 * ('Valor Projetado do Benefício'!J46-'Valor Projetado do Benefício'!G46) + ('Valor Projetado do 13°'!J46 - 'Valor Projetado do 13°'!G46)) >= 0.1, 12 * ('Valor Projetado do Benefício'!J46-'Valor Projetado do Benefício'!G46) + ('Valor Projetado do 13°'!J46 - 'Valor Projetado do 13°'!G46), 0) -> -60385.975 | J45: -189683.52 | K45: =NPV(Taxa_Juros,$I$4:I44,I45+J45) + Perda_Residual_PP3 -> -913530.2383 | L45: 452307.9665
B46: 43 | C46: Ano 43 | D46: =IF(ABS(12 * ('Valor Projetado do Benefício'!H47-'Valor Projetado do Benefício'!G47) + ('Valor Projetado do 13°'!H47 - 'Valor Projetado do 13°'!G47)) >= 0.1, 12 * ('Valor Projetado do Benefício'!H47-'Valor Projetado do Benefício'!G47) + ('Valor Projetado do 13°'!H47 - 'Valor Projetado do 13°'!G47), 0) -> 0 | E46: =NPV(Taxa_Juros,$D$4:D46) + Perda_Residual_PED_Atual -> -958205.9719 | F46: =IF(ABS(12 * ('Valor Projetado do Benefício'!I47-'Valor Projetado do Benefício'!G47) + ('Valor Projetado do 13°'!I47 - 'Valor Projetado do 13°'!G47)) >= 0.1, 12 * ('Valor Projetado do Benefício'!I47-'Valor Projetado do Benefício'!G47) + ('Valor Projetado do 13°'!I47 - 'Valor Projetado do 13°'!G47), 0) -> 0 | H46: =NPV(Taxa_Juros,$F$4:F46 + G46) + Perda_Residual_PED_RBF -> 0 | I46: =IF(ABS(12 * ('Valor Projetado do Benefício'!J47-'Valor Projetado do Benefício'!G47) + ('Valor Projetado do 13°'!J47 - 'Valor Projetado do 13°'!G47)) >= 0.1, 12 * ('Valor Projetado do Benefício'!J47-'Valor Projetado do Benefício'!G47) + ('Valor Projetado do 13°'!J47 - 'Valor Projetado do 13°'!G47), 0) -> -60544.9156 | J46: -189683.52 | K46: =NPV(Taxa_Juros,$I$4:I45,I46+J46) + Perda_Residual_PP3 -> -917543.4693 | L46: 308518.311
B47: 44 | C47: Ano 44 | D47: =IF(ABS(12 * ('Valor Projetado do Benefício'!H48-'Valor Projetado do Benefício'!G48) + ('Valor Projetado do 13°'!H48 - 'Valor Projetado do 13°'!G48)) >= 0.1, 12 * ('Valor Projetado do Benefício'!H48-'Valor Projetado do Benefício'!G48) + ('Valor Projetado do 13°'!H48 - 'Valor Projetado do 13°'!G48), 0) -> 0 | E47: =NPV(Taxa_Juros,$D$4:D47) + Perda_Residual_PED_Atual -> -958205.9719 | F47: =IF(ABS(12 * ('Valor Projetado do Benefício'!I48-'Valor Projetado do Benefício'!G48) + ('Valor Projetado do 13°'!I48 - 'Valor Projetado do 13°'!G48)) >= 0.1, 12 * ('Valor Projetado do Benefício'!I48-'Valor Projetado do Benefício'!G48) + ('Valor Projetado do 13°'!I48 - 'Valor Projetado do 13°'!G48), 0) -> 0 | H47: =NPV(Taxa_Juros,$F$4:F47 + G47) + Perda_Residual_PED_RBF -> 0 | I47: =IF(ABS(12 * ('Valor Projetado do Benefício'!J48-'Valor Projetado do Benefício'!G48) + ('Valor Projetado do 13°'!J48 - 'Valor Projetado do 13°'!G48)) >= 0.1, 12 * ('Valor Projetado do Benefício'!J48-'Valor Projetado do Benefício'!G48) + ('Valor Projetado do 13°'!J48 - 'Valor Projetado do 13°'!G48), 0) -> -60758.9242 | J47: -189683.52 | K47: =NPV(Taxa_Juros,$I$4:I46,I47+J47) + Perda_Residual_PP3 -> -921346.0169 | L47: 157558.6151
B48: 45 | C48: Ano 45 | D48: =IF(ABS(12 * ('Valor Projetado do Benefício'!H49-'Valor Projetado do Benefício'!G49) + ('Valor Projetado do 13°'!H49 - 'Valor Projetado do 13°'!G49)) >= 0.1, 12 * ('Valor Projetado do Benefício'!H49-'Valor Projetado do Benefício'!G49) + ('Valor Projetado do 13°'!H49 - 'Valor Projetado do 13°'!G49), 0) -> 0 | E48: =NPV(Taxa_Juros,$D$4:D48) + Perda_Residual_PED_Atual -> -958205.9719 | F48: =IF(ABS(12 * ('Valor Projetado do Benefício'!I49-'Valor Projetado do Benefício'!G49) + ('Valor Projetado do 13°'!I49 - 'Valor Projetado do 13°'!G49)) >= 0.1, 12 * ('Valor Projetado do Benefício'!I49-'Valor Projetado do Benefício'!G49) + ('Valor Projetado do 13°'!I49 - 'Valor Projetado do 13°'!G49), 0) -> 0 | H48: =NPV(Taxa_Juros,$F$4:F48 + G48) + Perda_Residual_PED_RBF -> 0 | I48: =IF(ABS(12 * ('Valor Projetado do Benefício'!J49-'Valor Projetado do Benefício'!G49) + ('Valor Projetado do 13°'!J49 - 'Valor Projetado do 13°'!G49)) >= 0.1, 12 * ('Valor Projetado do Benefício'!J49-'Valor Projetado do Benefício'!G49) + ('Valor Projetado do 13°'!J49 - 'Valor Projetado do 13°'!G49), 0) -> -61096.2001 | J48: -189683.52 | K48: =NPV(Taxa_Juros,$I$4:I47,I48+J48) + Perda_Residual_PP3 -> -924957.8291 | L48: 0
B49: 46 | C49: Ano 46 | D49: =IF(ABS(12 * ('Valor Projetado do Benefício'!H50-'Valor Projetado do Benefício'!G50) + ('Valor Projetado do 13°'!H50 - 'Valor Projetado do 13°'!G50)) >= 0.1, 12 * ('Valor Projetado do Benefício'!H50-'Valor Projetado do Benefício'!G50) + ('Valor Projetado do 13°'!H50 - 'Valor Projetado do 13°'!G50), 0) -> 0 | E49: =NPV(Taxa_Juros,$D$4:D49) + Perda_Residual_PED_Atual -> -958205.9719 | F49: =IF(ABS(12 * ('Valor Projetado do Benefício'!I50-'Valor Projetado do Benefício'!G50) + ('Valor Projetado do 13°'!I50 - 'Valor Projetado do 13°'!G50)) >= 0.1, 12 * ('Valor Projetado do Benefício'!I50-'Valor Projetado do Benefício'!G50) + ('Valor Projetado do 13°'!I50 - 'Valor Projetado do 13°'!G50), 0) -> 0 | H49: =NPV(Taxa_Juros,$F$4:F49 + G49) + Perda_Residual_PED_RBF -> 0 | I49: =IF(ABS(12 * ('Valor Projetado do Benefício'!J50-'Valor Projetado do Benefício'!G50) + ('Valor Projetado do 13°'!J50 - 'Valor Projetado do 13°'!G50)) >= 0.1, 12 * ('Valor Projetado do Benefício'!J50-'Valor Projetado do Benefício'!G50) + ('Valor Projetado do 13°'!J50 - 'Valor Projetado do 13°'!G50), 0) -> -197935.6483 | J49: -189683.52 | K49: =NPV(Taxa_Juros,$I$4:I48,I49+J49) + Perda_Residual_PP3 -> -937743.8746 | L49: 0
B50: 47 | C50: Ano 47 | D50: =IF(ABS(12 * ('Valor Projetado do Benefício'!H51-'Valor Projetado do Benefício'!G51) + ('Valor Projetado do 13°'!H51 - 'Valor Projetado do 13°'!G51)) >= 0.1, 12 * ('Valor Projetado do Benefício'!H51-'Valor Projetado do Benefício'!G51) + ('Valor Projetado do 13°'!H51 - 'Valor Projetado do 13°'!G51), 0) -> 0 | E50: =NPV(Taxa_Juros,$D$4:D50) + Perda_Residual_PED_Atual -> -958205.9719 | F50: =IF(ABS(12 * ('Valor Projetado do Benefício'!I51-'Valor Projetado do Benefício'!G51) + ('Valor Projetado do 13°'!I51 - 'Valor Projetado do 13°'!G51)) >= 0.1, 12 * ('Valor Projetado do Benefício'!I51-'Valor Projetado do Benefício'!G51) + ('Valor Projetado do 13°'!I51 - 'Valor Projetado do 13°'!G51), 0) -> 0 | H50: =NPV(Taxa_Juros,$F$4:F50 + G50) + Perda_Residual_PED_RBF -> 0 | I50: =IF(ABS(12 * ('Valor Projetado do Benefício'!J51-'Valor Projetado do Benefício'!G51) + ('Valor Projetado do 13°'!J51 - 'Valor Projetado do 13°'!G51)) >= 0.1, 12 * ('Valor Projetado do Benefício'!J51-'Valor Projetado do Benefício'!G51) + ('Valor Projetado do 13°'!J51 - 'Valor Projetado do 13°'!G51), 0) -> -197935.6483 | J50: -189683.52 | K50: =NPV(Taxa_Juros,$I$4:I49,I50+J50) + Perda_Residual_PP3 -> -949806.1817 | L50: 0
B51: 48 | C51: Ano 48 | D51: =IF(ABS(12 * ('Valor Projetado do Benefício'!H52-'Valor Projetado do Benefício'!G52) + ('Valor Projetado do 13°'!H52 - 'Valor Projetado do 13°'!G52)) >= 0.1, 12 * ('Valor Projetado do Benefício'!H52-'Valor Projetado do Benefício'!G52) + ('Valor Projetado do 13°'!H52 - 'Valor Projetado do 13°'!G52), 0) -> 0 | E51: =NPV(Taxa_Juros,$D$4:D51) + Perda_Residual_PED_Atual -> -958205.9719 | F51: =IF(ABS(12 * ('Valor Projetado do Benefício'!I52-'Valor Projetado do Benefício'!G52) + ('Valor Projetado do 13°'!I52 - 'Valor Projetado do 13°'!G52)) >= 0.1, 12 * ('Valor Projetado do Benefício'!I52-'Valor Projetado do Benefício'!G52) + ('Valor Projetado do 13°'!I52 - 'Valor Projetado do 13°'!G52), 0) -> 0 | H51: =NPV(Taxa_Juros,$F$4:F51 + G51) + Perda_Residual_PED_RBF -> 0 | I51: =IF(ABS(12 * ('Valor Projetado do Benefício'!J52-'Valor Projetado do Benefício'!G52) + ('Valor Projetado do 13°'!J52 - 'Valor Projetado do 13°'!G52)) >= 0.1, 12 * ('Valor Projetado do Benefício'!J52-'Valor Projetado do Benefício'!G52) + ('Valor Projetado do 13°'!J52 - 'Valor Projetado do 13°'!G52), 0) -> -197935.6483 | J51: -189683.52 | K51: =NPV(Taxa_Juros,$I$4:I50,I51+J51) + Perda_Residual_PP3 -> -961185.7167 | L51: 0
B52: 49 | C52: Ano 49 | D52: =IF(ABS(12 * ('Valor Projetado do Benefício'!H53-'Valor Projetado do Benefício'!G53) + ('Valor Projetado do 13°'!H53 - 'Valor Projetado do 13°'!G53)) >= 0.1, 12 * ('Valor Projetado do Benefício'!H53-'Valor Projetado do Benefício'!G53) + ('Valor Projetado do 13°'!H53 - 'Valor Projetado do 13°'!G53), 0) -> 0 | E52: =NPV(Taxa_Juros,$D$4:D52) + Perda_Residual_PED_Atual -> -958205.9719 | F52: =IF(ABS(12 * ('Valor Projetado do Benefício'!I53-'Valor Projetado do Benefício'!G53) + ('Valor Projetado do 13°'!I53 - 'Valor Projetado do 13°'!G53)) >= 0.1, 12 * ('Valor Projetado do Benefício'!I53-'Valor Projetado do Benefício'!G53) + ('Valor Projetado do 13°'!I53 - 'Valor Projetado do 13°'!G53), 0) -> 0 | H52: =NPV(Taxa_Juros,$F$4:F52 + G52) + Perda_Residual_PED_RBF -> 0 | I52: =IF(ABS(12 * ('Valor Projetado do Benefício'!J53-'Valor Projetado do Benefício'!G53) + ('Valor Projetado do 13°'!J53 - 'Valor Projetado do 13°'!G53)) >= 0.1, 12 * ('Valor Projetado do Benefício'!J53-'Valor Projetado do Benefício'!G53) + ('Valor Projetado do 13°'!J53 - 'Valor Projetado do 13°'!G53), 0) -> -197935.6483 | J52: -189683.52 | K52: =NPV(Taxa_Juros,$I$4:I51,I52+J52) + Perda_Residual_PP3 -> -971921.1271 | L52: 0
B53: 50 | C53: Ano 50 | D53: =IF(ABS(12 * ('Valor Projetado do Benefício'!H54-'Valor Projetado do Benefício'!G54) + ('Valor Projetado do 13°'!H54 - 'Valor Projetado do 13°'!G54)) >= 0.1, 12 * ('Valor Projetado do Benefício'!H54-'Valor Projetado do Benefício'!G54) + ('Valor Projetado do 13°'!H54 - 'Valor Projetado do 13°'!G54), 0) -> 0 | E53: =NPV(Taxa_Juros,$D$4:D53) + Perda_Residual_PED_Atual -> -958205.9719 | F53: =IF(ABS(12 * ('Valor Projetado do Benefício'!I54-'Valor Projetado do Benefício'!G54) + ('Valor Projetado do 13°'!I54 - 'Valor Projetado do 13°'!G54)) >= 0.1, 12 * ('Valor Projetado do Benefício'!I54-'Valor Projetado do Benefício'!G54) + ('Valor Projetado do 13°'!I54 - 'Valor Projetado do 13°'!G54), 0) -> 0 | H53: =NPV(Taxa_Juros,$F$4:F53 + G53) + Perda_Residual_PED_RBF -> 0 | I53: =IF(ABS(12 * ('Valor Projetado do Benefício'!J54-'Valor Projetado do Benefício'!G54) + ('Valor Projetado do 13°'!J54 - 'Valor Projetado do 13°'!G54)) >= 0.1, 12 * ('Valor Projetado do Benefício'!J54-'Valor Projetado do Benefício'!G54) + ('Valor Projetado do 13°'!J54 - 'Valor Projetado do 13°'!G54), 0) -> -197935.6483 | J53: -189683.52 | K53: =NPV(Taxa_Juros,$I$4:I52,I53+J53) + Perda_Residual_PP3 -> -982048.8727 | L53: 0
C55: =CONCATENATE("VPL em ",Expectativa_Vida," Anos") -> VPL em 22 Anos | D55: =VLOOKUP(Expectativa_Vida,$B$4:$L$53,4,FALSE) -> -958205.9719 | F55: =VLOOKUP(Expectativa_Vida,$B$4:$L$53,7,FALSE) -> 0 | I55: =VLOOKUP(Expectativa_Vida,$B$4:$L$53,10,FALSE) -> -760163.1533
C56: P. Residual (Nota 4) | D56: =IF(Contribuicao_Extra_PED_2015 <>"", -24 * Contribuicao_Extra_PED_2015, 0) -> 0 | F56: =IF(Contribuicao_Extra_PED_2015 <>"", -24 * Contribuicao_Extra_PED_2015, 0) -> 0 | I56: =IF(Contribuicao_Extra_PED_2015 <>"", -24 * Contribuicao_Extra_PED_2015, 0) -> 0
C57: =CONCATENATE("VPL Perda Pecúlio PED-RBF - Falec. ",Idade_Atual+Expectativa_Vida," anos") ->  | F57: =VLOOKUP(Expectativa_Vida,$B$4:$L$53,6,FALSE)/((1 + Taxa_Juros) ^ Expectativa_Vida) -> 0
C58: =CONCATENATE("VPL Perda Pecúlio PP3 - Falecimento aos ",Idade_Atual + Expectativa_Vida," anos") ->  | I58: =VLOOKUP(Expectativa_Vida,$B$4:$L$53,9,FALSE)/((1 + Taxa_Juros) ^ Expectativa_Vida) -> -52638.1436
C59: =CONCATENATE("VPL do Saldo Remanescente na Conta PP3 ao final do ",Expectativa_Vida,"° ano") -> VPL do Saldo Remanescente na Conta PP3 ao final do 22° ano | I59: =VLOOKUP(Expectativa_Vida,$B$4:$L$53,11,FALSE)/((1 + Taxa_Composta_Anual_PP3) ^ Expectativa_Vida) -> 319399.9937
C67: Notas:
C69: 1 - Para cada ano considerado, a perda acumulada nos benefícios recebidos corresponde à soma das 12 diferenças entre o benefício líquido da proposta de equacionamento em questão e o benefício líquido recebido sem equacionamento, isso somado à diferença entre um décimo terceiro líquido da proposta de equacionamento em questão e o décimo terceiro líquido sem equacionamento.
C71: =CONCATENATE("2 - No PED Atual, o Pecúlio por Morte é calculado pela fórmula 15 x 60%(Benefício Petros + INSS). No PP3, o Pecúlio por Morte corresponde a 300 UMP e no PED-RBF está limitado a ",Teto_Peculio_PED_RBF,".") -> 2 - No PED Atual, o Pecúlio por Morte é calculado pela fórmula 15 x 60%(Benefício Petros + INSS). No PP3, o Pecúlio por Morte corresponde a 300 UMP e no PED-RBF está limitado a 2 x Renda Global.
C73: 3 - Para efeito de comparação das perdas anuais resultantes de cada alternativa, é considerado que todas elas tenham início ao mesmo tempo. Como na data de implantação de um novo plano já terão se passado praticamente 2 anos, contados desde a implantação do PED Atual, este Simulador considera que o PED-2015 será aplicado por mais 16 anos e o PED-2018 será aplicado por 18 anos. O efeito das perdas passadas, referentes ao PED-2015, são computadas como sendo Perdas Residuais, conforme descrito na nota a seguir.
C75: 4 - Além das perdas inerentes às regras específicas para o equacionamento do déficit, previstas nas alternativas PED Atual, PED-RBF e PP3, existe uma Perda Residual. Perda Residual corresponde às parcelas já pagas ou devidas ao PED Atual, desde a sua implementação, em março/2018, até a implantação de um novo plano que venha a substituí-lo. A data limite considerada neste Simulador é dezembro/2019; portanto, são consideradas como Perda Residual 24 contribuições extraordinárias referentes PED-2015, calculadas conforme as regras do PED Atual. Participantes que deixaram de pagar parte destas contribuições extraordinárias, por força de liminares, deverão aportá-las ao PPSP de origem, segundo condições a serem definidas pela Petros.
C77: =CONCATENATE("5 - O VPL das perdas acumuladas no período de ", Expectativa_Vida, " anos para as Alternativas PED-RBF e PP3 já inclui, além das perdas salariais e no décimo terceiro, a perda sobre o Pecúlio por Morte e as Perdas Residuais.") -> 5 - O VPL das perdas acumuladas no período de 22 anos para as Alternativas PED-RBF e PP3 já inclui, além das perdas salariais e no décimo terceiro, a perda sobre o Pecúlio por Morte e as Perdas Residuais.
C79: =CONCATENATE("6 - O VPL das perdas acumuladas no período de ", Expectativa_Vida, " anos foi calculado considerando uma Taxa de Atratividade de ", Aux!R25 * 100,"%.") -> 6 - O VPL das perdas acumuladas no período de 22 anos foi calculado considerando uma Taxa de Atratividade de 6%.
C81: 7 - O VPL do saldo remanescente na conta PP3 foi calculado com taxa equivalente ao rendimento projetado para os investimentos do PP3.
C83: 8 - No rodapé da tabela acima são apresentas as perdas decorrentes de cada alternativa de equacionamento, ao final do prazo correspondente à expectativa de vida do participante na sua idade atual. Como a idade limite média de um indivíduo aumenta, a cada ano completo vivido, recomenda-se analisar as perdas através do gráfico "VPL x Expectativa de Vida", ao invés da tabela, tendo em vista que, no gráfico, podem ser visualizados os valores presente líquidos das perdas acumuladas em cada alternativa, para expectativas de vida que vão de 0 até 50 anos.

Sheet Valor Projetado do Benefício (hidden)
C2: Projeção do Beneficio ao Longo dos Anos
C3: Ano | D3: IPCA Projetado (ver nota 1) | E3: Benefício Bruto Reajustado pelo IPCA | F3: Benefício Bruto Reajustado PP3 | G3: Valor do Benefício Líquido sem Equacionar | H3: Valor do Benefício Líquido com as Regras do PED Atual (ver nota 4) | I3: Valor do Benefício Líquido com as Regras do PED-RBF | J3: Valor do Benefício Líquido PP3
D4: 0 | E4: 21627.34
B5: 1 | C5: Ano 1 | D5: =Projecao_IPCA -> 0.0375 | E5: =E4*(1+D4) -> 21627.34 | F5: 12789.39735 | G5: 15225.8191 | H5: 8418.3892 | I5: 10911.6304 | J5: 10687.4048
B6: 2 | C6: Ano 2 | D6: 0.0375 | E6: =E5*(1+D5) -> 22438.36525 | F6: 12844.25145 | G6: 15225.8191 | H6: 8418.3892 | I6: 10911.6304 | J6: 10727.174
B7: 3 | C7: Ano 3 | D7: 0.0375 | E7: =E6*(1+D6) -> 23279.80395 | F7: 12841.00234 | G7: 15225.8191 | H7: 8418.3892 | I7: 10911.6304 | J7: 10724.8184
B8: 4 | C8: Ano 4 | D8: 0.0375 | E8: 24152.79659 | F8: 12837.73353 | G8: 15225.8191 | H8: 8418.3892 | I8: 10911.6304 | J8: 10722.4486
B9: 5 | C9: Ano 5 | D9: 0.0375 | E9: 25058.52647 | F9: 12834.44368 | G9: 15225.8191 | H9: 8418.3892 | I9: 10911.6304 | J9: 10720.0634
B10: 6 | C10: Ano 6 | D10: 0.0375 | E10: 25998.22121 | F10: 12831.13131 | G10: 15225.8191 | H10: 8418.3892 | I10: 10911.6304 | J10: 10717.662
B11: 7 | C11: Ano 7 | D11: 0.0375 | E11: 26973.15451 | F11: 12827.79487 | G11: 15225.8191 | H11: 8418.3892 | I11: 10911.6304 | J11: 10715.243
B12: 8 | C12: Ano 8 | D12: 0.0375 | E12: 27984.6478 | F12: 12824.43265 | G12: 15225.8191 | H12: 8418.3892 | I12: 10911.6304 | J12: 10712.8054
B13: 9 | C13: Ano 9 | D13: 0.0375 | E13: 29034.07209 | F13: 12821.0428 | G13: 15225.8191 | H13: 8418.3892 | I13: 10911.6304 | J13: 10710.3478
B14: 10 | C14: Ano 10 | D14: 0.0375 | E14: 30122.84979 | F14: 12817.62331 | G14: 15225.8191 | H14: 8418.3892 | I14: 10911.6304 | J14: 10707.8686
B15: 11 | C15: Ano 11 | D15: 0.0375 | E15: 31252.45666 | F15: 12814.172 | G15: 15225.8191 | H15: 8418.3892 | I15: 10911.6304 | J15: 10705.3664
B16: 12 | C16: Ano 12 | D16: 0.0375 | E16: 32424.42379 | F16: 12810.68649 | G16: 15225.8191 | H16: 8418.3892 | I16: 10911.6304 | J16: 10702.8395
B17: 13 | C17: Ano 13 | D17: 0.0375 | E17: 33640.33968 | F17: 12807.16417 | G17: 15225.8191 | H17: 8418.3892 | I17: 10911.6304 | J17: 10700.2858
B18: 14 | C18: Ano 14 | D18: 0.0375 | E18: 34901.85242 | F18: 12803.60219 | G18: 15225.8191 | H18: 8418.3892 | I18: 10911.6304 | J18: 10697.7033
B19: 15 | C19: Ano 15 | D19: 0.0375 | E19: =E18*(1+D18) -> 36210.67188 | F19: 12799.99743 | G19: 15225.8191 | H19: 8418.3892 | I19: 10911.6304 | J19: 10695.0899
B20: 16 | C20: Ano 16 | D20: 0.0375 | E20: 37568.57208 | F20: 12796.34642 | G20: 15225.8191 | H20: 8418.3892 | I20: 10911.6304 | J20: 10692.4429
B21: 17 | C21: Ano 17 | D21: 0.0375 | E21: 38977.39353 | F21: 12792.64537 | G21: 15225.8191 | H21: 8418.3892 | I21: 10911.6304 | J21: 10689.7596
B22: 18 | C22: Ano 18 | D22: 0.0375 | E22: 40439.04579 | F22: 12788.89006 | G22: 15225.8191 | H22: 8418.3892 | I22: 10911.6304 | J22: 10687.037
B23: 19 | C23: Ano 19 | D23: 0.0375 | E23: 41955.51001 | F23: 12785.07581 | G23: 15225.8191 | H23: 15225.8191 | I23: 15225.8191 | J23: 10684.2717
B24: 20 | C24: Ano 20 | D24: 0.0375 | E24: 43528.84163 | F24: 12781.19738 | G24: 15225.8191 | H24: 15225.8191 | I24: 15225.8191 | J24: 10681.4599
B25: 21 | C25: Ano 21 | D25: 0.0375 | E25: 45161.17319 | F25: 12777.24896 | G25: 15225.8191 | H25: 15225.8191 | I25: 15225.8191 | J25: 10678.5972
B26: 22 | C26: Ano 22 | D26: 0.0375 | E26: 46854.71719 | F26: 12773.22396 | G26: 15225.8191 | H26: 15225.8191 | I26: 15225.8191 | J26: 10675.6791
B27: 23 | C27: Ano 23 | D27: 0.0375 | E27: 48611.76908 | F27: 12769.11499 | G27: 15225.8191 | H27: 15225.8191 | I27: 15225.8191 | J27: 10672.7001
B28: 24 | C28: Ano 24 | D28: 0.0375 | E28: 50434.71042 | F28: 12764.91363 | G28: 15225.8191 | H28: 15225.8191 | I28: 15225.8191 | J28: 10669.6541
B29: 25 | C29: Ano 25 | D29: 0.0375 | E29: 52326.01206 | F29: 12760.61033 | G29: 15225.8191 | H29: 15225.8191 | I29: 15225.8191 | J29: 10666.5342
B30: 26 | C30: Ano 26 | D30: 0.0375 | E30: 54288.23751 | F30: 12756.19409 | G30: 15225.8191 | H30: 15225.8191 | I30: 15225.8191 | J30: 10663.3325
B31: 27 | C31: Ano 27 | D31: 0.0375 | E31: 56324.04642 | F31: 12751.65226 | G31: 15225.8191 | H31: 15225.8191 | I31: 15225.8191 | J31: 10660.0396
B32: 28 | C32: Ano 28 | D32: 0.0375 | E32: 58436.19816 | F32: 12746.9701 | G32: 15225.8191 | H32: 15225.8191 | I32: 15225.8191 | J32: 10656.6451
B33: 29 | C33: Ano 29 | D33: 0.0375 | E33: 60627.55559 | F33: 12742.1304 | G33: 15225.8191 | H33: 15225.8191 | I33: 15225.8191 | J33: 10653.1363
B34: 30 | C34: Ano 30 | D34: 0.0375 | E34: 62901.08893 | F34: 12737.11279 | G34: 15225.8191 | H34: 15225.8191 | I34: 15225.8191 | J34: 10649.4985
B35: 31 | C35: Ano 31 | D35: 0.0375 | E35: =E34*(1+D34) -> 65259.87976 | F35: 12731.893 | G35: 15225.8191 | H35: 15225.8191 | I35: 15225.8191 | J35: 10645.7142
B36: 32 | C36: Ano 32 | D36: 0.0375 | E36: 67707.12525 | F36: 12726.44177 | G36: 15225.8191 | H36: 15225.8191 | I36: 15225.8191 | J36: 10641.762
B37: 33 | C37: Ano 33 | D37: =Projecao_IPCA -> 0.0375 | E37: 70246.14245 | F37: 12720.7234 | G37: 15225.8191 | H37: 15225.8191 | I37: 15225.8191 | J37: 10637.6162
B38: 34 | C38: Ano 34 | D38: 0.0375 | E38: 72880.37279 | F38: 12714.69368 | G38: 15225.8191 | H38: 15225.8191 | I38: 15225.8191 | J38: 10633.2447
B39: 35 | C39: Ano 35 | D39: 0.0375 | E39: 75613.38677 | F39: 12708.29698 | G39: 15225.8191 | H39: 15225.8191 | I39: 15225.8191 | J39: 10628.6071
B40: 36 | C40: Ano 36 | D40: 0.0375 | E40: 78448.88878 | F40: 12701.46196 | G40: 15225.8191 | H40: 15225.8191 | I40: 15225.8191 | J40: 10623.6517
B41: 37 | C41: Ano 37 | D41: 0.0375 | E41: 81390.72211 | F41: 12694.09506 | G41: 15225.8191 | H41: 15225.8191 | I41: 15225.8191 | J41: 10618.3107
B42: 38 | C42: Ano 38 | D42: 0.0375 | E42: 84442.87419 | F42: 12686.07014 | G42: 15225.8191 | H42: 15225.8191 | I42: 15225.8191 | J42: 10612.4926
B43: 39 | C43: Ano 39 | D43: 0.0375 | E43: 87609.48197 | F43: 12677.21143 | G43: 15225.8191 | H43: 15225.8191 | I43: 15225.8191 | J43: 10606.07
B44: 40 | C44: Ano 40 | D44: 0.0375 | E44: 90894.83754 | F44: 12667.26352 | G44: 15225.8191 | H44: 15225.8191 | I44: 15225.8191 | J44: 10598.8578
B45: 41 | C45: Ano 41 | D45: 0.0375 | E45: =E44*(1+D44) -> 94303.39395 | F45: 12655.83474 | G45: 15225.8191 | H45: 15225.8191 | I45: 15225.8191 | J45: 10590.5719
B46: 42 | C46: Ano 42 | D46: 0.0375 | E46: 97839.77122 | F46: 12642.27912 | G46: 15225.8191 | H46: 15225.8191 | I46: 15225.8191 | J46: 10580.7441
B47: 43 | C47: Ano 43 | D47: 0.0375 | E47: 101508.7626 | F47: 12625.41538 | G47: 15225.8191 | H47: 15225.8191 | I47: 15225.8191 | J47: 10568.5179
B48: 44 | C48: Ano 44 | D48: 0.0375 | E48: 105315.3412 | F48: 12602.7089 | G48: 15225.8191 | H48: 15225.8191 | I48: 15225.8191 | J48: 10552.0557
B49: 45 | C49: Ano 45 | D49: 0.0375 | E49: 109264.6665 | F49: 12566.92369 | G49: 15225.8191 | H49: 15225.8191 | I49: 15225.8191 | J49: 10526.1114
B50: 46 | C50: Ano 46 | D50: 0.0375 | E50: 113362.0915 | F50: 0 | G50: 15225.8191 | H50: 15225.8191 | I50: 15225.8191 | J50: 0
B51: 47 | C51: Ano 47 | D51: 0.0375 | E51: 117613.17 | F51: 0 | G51: 15225.8191 | H51: 15225.8191 | I51: 15225.8191 | J51: 0
B52: 48 | C52: Ano 48 | D52: 0.0375 | E52: 122023.6638 | F52: 0 | G52: 15225.8191 | H52: 15225.8191 | I52: 15225.8191 | J52: 0
B53: 49 | C53: Ano 49 | D53: 0.0375 | E53: 126599.5512 | F53: 0 | G53: 15225.8191 | H53: 15225.8191 | I53: 15225.8191 | J53: 0
B54: 50 | C54: Ano 50 | D54: 0.0375 | E54: 131347.0344 | F54: 0 | G54: 15225.8191 | H54: 15225.8191 | I54: 15225.8191 | J54: 0
C58: Notas:
C60: 1 - O valor oficialmente divulgado para o IPCA de 2018 foi de 3,75%. Neste Simulador, o valor do IPCA projetado é ajustável e será mantido constante durante todo o período simulado.
C62: 2 - O fator de reajuste do benefício bruto sem equacionamento foi assumido como sendo correspondente ao IPCA pleno.
C64: 3 - Os fatores de reajuste do PED Atual e do PED-RBF, aplicáveis ao beneficio bruto, correspondem ao IPCA pleno.
C66: 4 - O PED Atual é composto por 2 parcelas, sendo uma com cobrança já iniciada, referente ao PED-2015, que terminará em 2035, e outra com cobrança a iniciar, referente ao PED-2018, com data de término prevista para 2037. Portanto, após esta última data, os valores líquidos dos benefícios voltam a ser iguais aos da coluna Benefício Líquido sem Equacionamento.
C68: 5 - A pensão judicial, caso seja lançada como dado de entrada, será reajustada pela variação anual do benefício bruto da alternativa considerada.
C70: 6 - Na ausência de informações sobre como e quando a Receita Federal reajustará a tabela de imposto de renda, a tabela está sendo reajustada, anualmete, pelo IPCA pleno. Embora esta premissa não corresponda à realidade, a margem de erro introduzida será menor que a que seria atingida se mantivéssemos a tabela sem alterações, ao longo de todo o período de simulação.

Sheet Valor Projetado do 13° (hidden)
C2: Projeção do Décimo Terceiro Benefício ao Longo dos Anos
C3: Ano | D3: IPCA Projetado (ver nota 1) | E3: 13° Bruto Reajustado pelo IPCA | F3: 13° Bruto Reajustado PP3 | G3: Valor do 13° Líquido sem Equacionar | H3: Valor do 13° Líquido com as Regras do PED Atual (ver nota 6) | I3: Valor do 13° Líquido com as Regras do PED-RBF | J3: Valor do 13° Líquido PP3
D4: 0 | E4: 21627.34
B5: 1 | C5: Ano 1 | D5: =Projecao_IPCA -> 0.0375 | E5: =E4*(1+D4) -> 21627.34 | F5: 12789.39735 | G5: 15225.8191 | H5: 8418.3892 | I5: 10911.6304 | J5: 10687.4048
B6: 2 | C6: Ano 2 | D6: 0.0375 | E6: =E5*(1+D5) -> 22438.36525 | F6: 12844.25145 | G6: 15225.8191 | H6: 8418.3892 | I6: 10911.6304 | J6: 10727.174
B7: 3 | C7: Ano 3 | D7: 0.0375 | E7: 23279.80395 | F7: 12841.00234 | G7: 15225.8191 | H7: 8418.3892 | I7: 10911.6304 | J7: 10724.8184
B8: 4 | C8: Ano 4 | D8: 0.0375 | E8: 24152.79659 | F8: 12837.73353 | G8: 15225.8191 | H8: 8418.3892 | I8: 10911.6304 | J8: 10722.4486
B9: 5 | C9: Ano 5 | D9: 0.0375 | E9: 25058.52647 | F9: 12834.44368 | G9: 15225.8191 | H9: 8418.3892 | I9: 10911.6304 | J9: 10720.0634
B10: 6 | C10: Ano 6 | D10: 0.0375 | E10: 25998.22121 | F10: 12831.13131 | G10: 15225.8191 | H10: 8418.3892 | I10: 10911.6304 | J10: 10717.662
B11: 7 | C11: Ano 7 | D11: 0.0375 | E11: 26973.15451 | F11: 12827.79487 | G11: 15225.8191 | H11: 8418.3892 | I11: 10911.6304 | J11: 10715.243
B12: 8 | C12: Ano 8 | D12: 0.0375 | E12: 27984.6478 | F12: 12824.43265 | G12: 15225.8191 | H12: 8418.3892 | I12: 10911.6304 | J12: 10712.8054
B13: 9 | C13: Ano 9 | D13: 0.0375 | E13: 29034.07209 | F13: 12821.0428 | G13: 15225.8191 | H13: 8418.3892 | I13: 10911.6304 | J13: 10710.3478
B14: 10 | C14: Ano 10 | D14: 0.0375 | E14: 30122.84979 | F14: 12817.62331 | G14: 15225.8191 | H14: 8418.3892 | I14: 10911.6304 | J14: 10707.8686
B15: 11 | C15: Ano 11 | D15: 0.0375 | E15: 31252.45666 | F15: 12814.172 | G15: 15225.8191 | H15: 8418.3892 | I15: 10911.6304 | J15: 10705.3664
B16: 12 | C16: Ano 12 | D16: 0.0375 | E16: 32424.42379 | F16: 12810.68649 | G16: 15225.8191 | H16: 8418.3892 | I16: 10911.6304 | J16: 10702.8395
B17: 13 | C17: Ano 13 | D17: 0.0375 | E17: 33640.33968 | F17: 12807.16417 | G17: 15225.8191 | H17: 8418.3892 | I17: 10911.6304 | J17: 10700.2858
B18: 14 | C18: Ano 14 | D18: 0.0375 | E18: 34901.85242 | F18: 12803.60219 | G18: 15225.8191 | H18: 8418.3892 | I18: 10911.6304 | J18: 10697.7033
B19: 15 | C19: Ano 15 | D19: 0.0375 | E19: =E18*(1+D18) -> 36210.67188 | F19: 12799.99743 | G19: 15225.8191 | H19: 8418.3892 | I19: 10911.6304 | J19: 10695.0899
B20: 16 | C20: Ano 16 | D20: 0.0375 | E20: 37568.57208 | F20: 12796.34642 | G20: 15225.8191 | H20: 8418.3892 | I20: 10911.6304 | J20: 10692.4429
B21: 17 | C21: Ano 17 | D21: 0.0375 | E21: 38977.39353 | F21: 12792.64537 | G21: 15225.8191 | H21: 8418.3892 | I21: 10911.6304 | J21: 10689.7596
B22: 18 | C22: Ano 18 | D22: 0.0375 | E22: 40439.04579 | F22: 12788.89006 | G22: 15225.8191 | H22: 8418.3892 | I22: 10911.6304 | J22: 10687.037
B23: 19 | C23: Ano 19 | D23: 0.0375 | E23: 41955.51001 | F23: 12785.07581 | G23: 15225.8191 | H23: 15225.8191 | I23: 15225.8191 | J23: 10684.2717
B24: 20 | C24: Ano 20 | D24: 0.0375 | E24: 43528.84163 | F24: 12781.19738 | G24: 15225.8191 | H24: 15225.8191 | I24: 15225.8191 | J24: 10681.4599
B25: 21 | C25: Ano 21 | D25: 0.0375 | E25: 45161.17319 | F25: 12777.24896 | G25: 15225.8191 | H25: 15225.8191 | I25: 15225.8191 | J25: 10678.5972
B26: 22 | C26: Ano 22 | D26: 0.0375 | E26: 46854.71719 | F26: 12773.22396 | G26: 15225.8191 | H26: 15225.8191 | I26: 15225.8191 | J26: 10675.6791
B27: 23 | C27: Ano 23 | D27: 0.0375 | E27: 48611.76908 | F27: 12769.11499 | G27: 15225.8191 | H27: 15225.8191 | I27: 15225.8191 | J27: 10672.7001
B28: 24 | C28: Ano 24 | D28: 0.0375 | E28: 50434.71042 | F28: 12764.91363 | G28: 15225.8191 | H28: 15225.8191 | I28: 15225.8191 | J28: 10669.6541
B29: 25 | C29: Ano 25 | D29: 0.0375 | E29: 52326.01206 | F29: 12760.61033 | G29: 15225.8191 | H29: 15225.8191 | I29: 15225.8191 | J29: 10666.5342
B30: 26 | C30: Ano 26 | D30: 0.0375 | E30: 54288.23751 | F30: 12756.19409 | G30: 15225.8191 | H30: 15225.8191 | I30: 15225.8191 | J30: 10663.3325
B31: 27 | C31: Ano 27 | D31: 0.0375 | E31: 56324.04642 | F31: 12751.65226 | G31: 15225.8191 | H31: 15225.8191 | I31: 15225.8191 | J31: 10660.0396
B32: 28 | C32: Ano 28 | D32: 0.0375 | E32: 58436.19816 | F32: 12746.9701 | G32: 15225.8191 | H32: 15225.8191 | I32: 15225.8191 | J32: 10656.6451
B33: 29 | C33: Ano 29 | D33: 0.0375 | E33: 60627.55559 | F33: 12742.1304 | G33: 15225.8191 | H33: 15225.8191 | I33: 15225.8191 | J33: 10653.1363
B34: 30 | C34: Ano 30 | D34: 0.0375 | E34: 62901.08893 | F34: 12737.11279 | G34: 15225.8191 | H34: 15225.8191 | I34: 15225.8191 | J34: 10649.4985
B35: 31 | C35: Ano 31 | D35: 0.0375 | E35: =E34*(1+D34) -> 65259.87976 | F35: 12731.893 | G35: 15225.8191 | H35: 15225.8191 | I35: 15225.8191 | J35: 10645.7142
B36: 32 | C36: Ano 32 | D36: 0.0375 | E36: 67707.12525 | F36: 12726.44177 | G36: 15225.8191 | H36: 15225.8191 | I36: 15225.8191 | J36: 10641.762
B37: 33 | C37: Ano 33 | D37: =Projecao_IPCA -> 0.0375 | E37: 70246.14245 | F37: 12720.7234 | G37: 15225.8191 | H37: 15225.8191 | I37: 15225.8191 | J37: 10637.6162
B38: 34 | C38: Ano 34 | D38: 0.0375 | E38: 72880.37279 | F38: 12714.69368 | G38: 15225.8191 | H38: 15225.8191 | I38: 15225.8191 | J38: 10633.2447
B39: 35 | C39: Ano 35 | D39: 0.0375 | E39: 75613.38677 | F39: 12708.29698 | G39: 15225.8191 | H39: 15225.8191 | I39: 15225.8191 | J39: 10628.6071
